Workbook

Sheet Report - ALL (DASHBOARD)
A1: PRELIMINARY - NOT FOR DISTRIBUTION
A2: Dashboard | B2: Select Parameter: | F2: Select Statistic: | I2: Select Seasonal Period: | L2: Do you want to convert CFS values to TAF/Mon? | W2: 74
W3: 1
W4: 7
L5: News | W5: FALSE
L6: - parameter list updated to include all items on the appendix list (in addition to other locations of interest)
L7: - year type sorting is now done by calendar year
L8: - year type sorting is provided for 60-20-20 index as well as 40-30-30 index
L9: - format modified to be consistent with appendix reports
L10: - check out the new spinners!
B13: =CONCATENATE('Report Data'!$P$7," / seasonal statistics (",$W$2,"-",$W$3,"-",$W$4,"-",IF(NOT($W$5),1,2),"a):") -> Sac R near Wilkins Slough (flow) (PRELIMINARY) / seasonal statistics (74-1-7-1a):
C17: ='Report Data'!P6 -> April
C18: ='Report Data'!P7 -> Sac R near Wilkins Slough (flow) (PRELIMINARY)
C19: ='Report Data'!P9 -> (C129/FLOW-CHANNEL)
C20: ='Report Data'!P8 -> Averages
C21: ='Report Data'!P11 -> Flow (CFS) | F21: =CONCATENATE("Difference from ",'Report Data'!Q13) -> Difference from NAA 111820 | G21: =CONCATENATE("Difference from ",'Report Data'!R13) -> Difference from ALT1 rev01 PEA
C25: ='Report Data'!O14 -> NAA 111820 | E25: ='Report Data'!P14 -> 11011.46205
C26: ='Report Data'!O15 -> ALT1 rev01 PEA | E26: ='Report Data'!P15 -> 10686.15262 | F26: ='Report Data'!Q15 -> -325.3094303
C27: ='Report Data'!O16 -> ALT1 rev01 PEA WilkSl 10700 A-M | E27: ='Report Data'!P16 -> 10704.5876 | F27: ='Report Data'!Q16 -> -306.8744473 | G27: ='Report Data'!R16 -> 18.43498294
C28: ='Report Data'!O17 -> ALT1 rev01 PEA WilkSl 10700 F-M | E28: ='Report Data'!P17 -> 10682.49249 | F28: ='Report Data'!Q17 -> -328.969562 | G28: ='Report Data'!R17 -> -3.660131713
C29: ='Report Data'!O18 -> 0 | E29: ='Report Data'!P18 ->  | F29: ='Report Data'!Q18 ->  | G29: ='Report Data'!R18 -> 
B60: =CONCATENATE('Report Data'!$P$7," / monthly statistics (",$W$2,"-",$W$3,"-",$W$4,"-",IF(NOT($W$5),1,2),"b):") -> Sac R near Wilkins Slough (flow) (PRELIMINARY) / monthly statistics (74-1-7-1b):
B116: =CONCATENATE('Report Data'!$P$7," / time series (",$W$2,"-",$W$3,"-",$W$4,"-",IF(NOT($W$5),1,2),"c):") -> Sac R near Wilkins Slough (flow) (PRELIMINARY) / time series (74-1-7-1c):

Sheet Chart - Prob Exc

Sheet Chart - Pattern

Sheet Report Data
A2: Information, Tables and Calculations for Reports
A4: Table of Selected Values for Monthly Chart: | O4: Trend Evaluation: | U4: Water Year Type Averages:
A6: Title: | B6: ='Compile Data'!$B$5&" (PRELIMINARY)" -> Sac R near Wilkins Slough (flow) (PRELIMINARY) | O6: Title: | P6: =INDEX(Other!$B$9:$B$33,'Report - ALL (DASHBOARD)'!$W$4) -> April | U6: Title: | V6: =INDEX(Other!$B$9:$B$33,'Report - ALL (DASHBOARD)'!$W$4) -> April
B7: =INDEX(Other!$C$9:$C$33,'Report - ALL (DASHBOARD)'!$W$3) -> Averages | P7: ='Compile Data'!$B$5&" (PRELIMINARY)" -> Sac R near Wilkins Slough (flow) (PRELIMINARY) | V7: ='Compile Data'!$B$5&" (PRELIMINARY)" -> Sac R near Wilkins Slough (flow) (PRELIMINARY)
B8: =CONCATENATE("(",'Compile Data'!$B$6,"/",'Compile Data'!$B$7,")") -> (C129/FLOW-CHANNEL) | P8: =CONCATENATE(INDEX(Other!$C$9:$C$33,'Report - ALL (DASHBOARD)'!$W$3)," ",IF('Report - ALL (DASHBOARD)'!$W$3>4,IF(AND('Compile Data'!$B$10="TAF",'Compile Data'!$B$8="PER-AVER"),"Totals","Averages"),"")) -> Averages | V8: =CONCATENATE(INDEX(Other!$C$9:$C$33,'Report - ALL (DASHBOARD)'!$W$3)," ",IF('Report - ALL (DASHBOARD)'!$W$3>4,IF(AND('Compile Data'!$B$10="TAF",'Compile Data'!$B$8="PER-AVER"),"Totals","Averages"),"")) -> Averages
P9: =CONCATENATE("(",'Compile Data'!$B$6,"/",'Compile Data'!$B$7,")") -> (C129/FLOW-CHANNEL) | V9: =CONCATENATE("(",'Compile Data'!$B$6,"/",'Compile Data'!$B$7,")") -> (C129/FLOW-CHANNEL)
A11: Y-axis: | B11: =IF('Compile Data'!$B$10="CFS","Flow (CFS)",IF('Compile Data'!$B$10="TAF","Volume (TAF)",IF('Compile Data'!$B$10="KM","POSITION (KM)",""))) -> Flow (CFS) | P11: =IF('Compile Data'!$B$10="CFS","Flow (CFS)",IF('Compile Data'!$B$10="TAF","Volume (TAF)",IF('Compile Data'!$B$10="KM","POSITION (KM)",""))) -> Flow (CFS) | V11: =IF('Compile Data'!$B$10="CFS","Flow (CFS)",IF('Compile Data'!$B$10="TAF","Volume (TAF)",IF('Compile Data'!$B$10="KM","POSITION (KM)",""))) -> Flow (CFS)
Q12: Diff from | R12: Diff from
B13: OCT | C13: NOV | D13: DEC | E13: JAN | F13: FEB | G13: MAR | H13: APR | I13: MAY | J13: JUN | K13: JUL | L13: AUG | M13: SEP | P13: Value | Q13: =$O$14 -> NAA 111820 | R13: =$O$15 -> ALT1 rev01 PEA | V13: Wet | W13: Above Normal | X13: Below Normal | Y13: Dry | Z13: Critically Dry
A14: ='Compile Data'!$B$1 -> NAA 111820 | B14: =INDEX('Compile Data'!K$95:K$118,'Report - ALL (DASHBOARD)'!$W$3) -> 6467.366108 | C14: =INDEX('Compile Data'!L$95:L$118,'Report - ALL (DASHBOARD)'!$W$3) -> 7670.15903 | D14: =INDEX('Compile Data'!M$95:M$118,'Report - ALL (DASHBOARD)'!$W$3) -> 11889.17933 | E14: =INDEX('Compile Data'!N$95:N$118,'Report - ALL (DASHBOARD)'!$W$3) -> 14438.78664 | F14: =INDEX('Compile Data'!O$95:O$118,'Report - ALL (DASHBOARD)'!$W$3) -> 16387.60012 | G14: =INDEX('Compile Data'!P$95:P$118,'Report - ALL (DASHBOARD)'!$W$3) -> 14743.18508 | H14: =INDEX('Compile Data'!Q$95:Q$118,'Report - ALL (DASHBOARD)'!$W$3) -> 11011.46205 | I14: =INDEX('Compile Data'!R$95:R$118,'Report - ALL (DASHBOARD)'!$W$3) -> 7092.282514 | J14: =INDEX('Compile Data'!S$95:S$118,'Report - ALL (DASHBOARD)'!$W$3) -> 6191.395138 | K14: =INDEX('Compile Data'!T$95:T$118,'Report - ALL (DASHBOARD)'!$W$3) -> 6561.10842 | L14: =INDEX('Compile Data'!U$95:U$118,'Report - ALL (DASHBOARD)'!$W$3) -> 5327.63786 | M14: =INDEX('Compile Data'!V$95:V$118,'Report - ALL (DASHBOARD)'!$W$3) -> 6764.413959 | O14: ='Compile Data'!$B$1 -> NAA 111820 | P14: =INDEX('Compile Data'!$K$95:$AH$118,'Report - ALL (DASHBOARD)'!$W$3,'Report - ALL (DASHBOARD)'!$W$4) -> 11011.46205 | U14: ='Compile Data'!$B$1 -> NAA 111820 | V14: =INDEX('Compile Data'!$K$95:$AH$118,12,'Report - ALL (DASHBOARD)'!$W$4) -> 16379.6471 | W14: =INDEX('Compile Data'!$K$95:$AH$118,13,'Report - ALL (DASHBOARD)'!$W$4) -> 12717.93931 | X14: =INDEX('Compile Data'!$K$95:$AH$118,14,'Report - ALL (DASHBOARD)'!$W$4) -> 9324.34519 | Y14: =INDEX('Compile Data'!$K$95:$AH$118,15,'Report - ALL (DASHBOARD)'!$W$4) -> 7195.329712 | Z14: =INDEX('Compile Data'!$K$95:$AH$118,16,'Report - ALL (DASHBOARD)'!$W$4) -> 5366.418693
A15: ='Compile Data'!$C$1 -> ALT1 rev01 PEA | B15: =INDEX('Compile Data'!AK$95:AK$118,'Report - ALL (DASHBOARD)'!$W$3) -> 6582.266388 | C15: =INDEX('Compile Data'!AL$95:AL$118,'Report - ALL (DASHBOARD)'!$W$3) -> 7604.787798 | D15: =INDEX('Compile Data'!AM$95:AM$118,'Report - ALL (DASHBOARD)'!$W$3) -> 11879.99255 | E15: =INDEX('Compile Data'!AN$95:AN$118,'Report - ALL (DASHBOARD)'!$W$3) -> 14104.53249 | F15: =INDEX('Compile Data'!AO$95:AO$118,'Report - ALL (DASHBOARD)'!$W$3) -> 16024.61064 | G15: =INDEX('Compile Data'!AP$95:AP$118,'Report - ALL (DASHBOARD)'!$W$3) -> 14282.47395 | H15: =INDEX('Compile Data'!AQ$95:AQ$118,'Report - ALL (DASHBOARD)'!$W$3) -> 10686.15262 | I15: =INDEX('Compile Data'!AR$95:AR$118,'Report - ALL (DASHBOARD)'!$W$3) -> 6927.423048 | J15: =INDEX('Compile Data'!AS$95:AS$118,'Report - ALL (DASHBOARD)'!$W$3) -> 6127.432999 | K15: =INDEX('Compile Data'!AT$95:AT$118,'Report - ALL (DASHBOARD)'!$W$3) -> 6779.809413 | L15: =INDEX('Compile Data'!AU$95:AU$118,'Report - ALL (DASHBOARD)'!$W$3) -> 5467.317379 | M15: =INDEX('Compile Data'!AV$95:AV$118,'Report - ALL (DASHBOARD)'!$W$3) -> 6888.468101 | O15: ='Compile Data'!$C$1 -> ALT1 rev01 PEA | P15: =INDEX('Compile Data'!$AK$95:$BH$118,'Report - ALL (DASHBOARD)'!$W$3,'Report - ALL (DASHBOARD)'!$W$4) -> 10686.15262 | Q15: =$P15-$P$14 -> -325.3094303 | U15: ='Compile Data'!$C$1 -> ALT1 rev01 PEA | V15: =INDEX('Compile Data'!$AK$95:$BH$118,12,'Report - ALL (DASHBOARD)'!$W$4) -> 15985.52654 | W15: =INDEX('Compile Data'!$AK$95:$BH$118,13,'Report - ALL (DASHBOARD)'!$W$4) -> 11792.23725 | X15: =INDEX('Compile Data'!$AK$95:$BH$118,14,'Report - ALL (DASHBOARD)'!$W$4) -> 9090.440639 | Y15: =INDEX('Compile Data'!$AK$95:$BH$118,15,'Report - ALL (DASHBOARD)'!$W$4) -> 7086.924944 | Z15: =INDEX('Compile Data'!$AK$95:$BH$118,16,'Report - ALL (DASHBOARD)'!$W$4) -> 5358.596636
A16: ='Compile Data'!$D$1 -> ALT1 rev01 PEA WilkSl 10700 A-M | B16: =INDEX('Compile Data'!BK$95:BK$118,'Report - ALL (DASHBOARD)'!$W$3) -> 6561.071512 | C16: =INDEX('Compile Data'!BL$95:BL$118,'Report - ALL (DASHBOARD)'!$W$3) -> 7597.546454 | D16: =INDEX('Compile Data'!BM$95:BM$118,'Report - ALL (DASHBOARD)'!$W$3) -> 11897.37775 | E16: =INDEX('Compile Data'!BN$95:BN$118,'Report - ALL (DASHBOARD)'!$W$3) -> 14095.74135 | F16: =INDEX('Compile Data'!BO$95:BO$118,'Report - ALL (DASHBOARD)'!$W$3) -> 16024.8471 | G16: =INDEX('Compile Data'!BP$95:BP$118,'Report - ALL (DASHBOARD)'!$W$3) -> 14267.74575 | H16: =INDEX('Compile Data'!BQ$95:BQ$118,'Report - ALL (DASHBOARD)'!$W$3) -> 10704.5876 | I16: =INDEX('Compile Data'!BR$95:BR$118,'Report - ALL (DASHBOARD)'!$W$3) -> 6977.078886 | J16: =INDEX('Compile Data'!BS$95:BS$118,'Report - ALL (DASHBOARD)'!$W$3) -> 6113.569658 | K16: =INDEX('Compile Data'!BT$95:BT$118,'Report - ALL (DASHBOARD)'!$W$3) -> 6784.311871 | L16: =INDEX('Compile Data'!BU$95:BU$118,'Report - ALL (DASHBOARD)'!$W$3) -> 5477.467772 | M16: =INDEX('Compile Data'!BV$95:BV$118,'Report - ALL (DASHBOARD)'!$W$3) -> 6891.994202 | O16: ='Compile Data'!$D$1 -> ALT1 rev01 PEA WilkSl 10700 A-M | P16: =INDEX('Compile Data'!$BK$95:$CH$118,'Report - ALL (DASHBOARD)'!$W$3,'Report - ALL (DASHBOARD)'!$W$4) -> 10704.5876 | Q16: =$P16-$P$14 -> -306.8744473 | R16: =$P16-$P$15 -> 18.43498294 | U16: ='Compile Data'!$D$1 -> ALT1 rev01 PEA WilkSl 10700 A-M | V16: =INDEX('Compile Data'!$BK$95:$CH$118,12,'Report - ALL (DASHBOARD)'!$W$4) -> 15975.34904 | W16: =INDEX('Compile Data'!$BK$95:$CH$118,13,'Report - ALL (DASHBOARD)'!$W$4) -> 11810.6005 | X16: =INDEX('Compile Data'!$BK$95:$CH$118,14,'Report - ALL (DASHBOARD)'!$W$4) -> 9129.17063 | Y16: =INDEX('Compile Data'!$BK$95:$CH$118,15,'Report - ALL (DASHBOARD)'!$W$4) -> 7138.408504 | Z16: =INDEX('Compile Data'!$BK$95:$CH$118,16,'Report - ALL (DASHBOARD)'!$W$4) -> 5365.846685
A17: ='Compile Data'!$E$1 -> ALT1 rev01 PEA WilkSl 10700 F-M | B17: =INDEX('Compile Data'!CK$95:CK$118,'Report - ALL (DASHBOARD)'!$W$3) -> 6550.018487 | C17: =INDEX('Compile Data'!CL$95:CL$118,'Report - ALL (DASHBOARD)'!$W$3) -> 7597.060009 | D17: =INDEX('Compile Data'!CM$95:CM$118,'Report - ALL (DASHBOARD)'!$W$3) -> 11888.53235 | E17: =INDEX('Compile Data'!CN$95:CN$118,'Report - ALL (DASHBOARD)'!$W$3) -> 14089.63459 | F17: =INDEX('Compile Data'!CO$95:CO$118,'Report - ALL (DASHBOARD)'!$W$3) -> 16149.01892 | G17: =INDEX('Compile Data'!CP$95:CP$118,'Report - ALL (DASHBOARD)'!$W$3) -> 14375.18753 | H17: =INDEX('Compile Data'!CQ$95:CQ$118,'Report - ALL (DASHBOARD)'!$W$3) -> 10682.49249 | I17: =INDEX('Compile Data'!CR$95:CR$118,'Report - ALL (DASHBOARD)'!$W$3) -> 6958.525122 | J17: =INDEX('Compile Data'!CS$95:CS$118,'Report - ALL (DASHBOARD)'!$W$3) -> 6104.990135 | K17: =INDEX('Compile Data'!CT$95:CT$118,'Report - ALL (DASHBOARD)'!$W$3) -> 6774.795001 | L17: =INDEX('Compile Data'!CU$95:CU$118,'Report - ALL (DASHBOARD)'!$W$3) -> 5468.037872 | M17: =INDEX('Compile Data'!CV$95:CV$118,'Report - ALL (DASHBOARD)'!$W$3) -> 6896.167596 | O17: ='Compile Data'!$E$1 -> ALT1 rev01 PEA WilkSl 10700 F-M | P17: =INDEX('Compile Data'!$CK$95:$DH$118,'Report - ALL (DASHBOARD)'!$W$3,'Report - ALL (DASHBOARD)'!$W$4) -> 10682.49249 | Q17: =$P17-$P$14 -> -328.969562 | R17: =$P17-$P$15 -> -3.660131713 | U17: ='Compile Data'!$E$1 -> ALT1 rev01 PEA WilkSl 10700 F-M | V17: =INDEX('Compile Data'!$CK$95:$DH$118,12,'Report - ALL (DASHBOARD)'!$W$4) -> 15926.07689 | W17: =INDEX('Compile Data'!$CK$95:$DH$118,13,'Report - ALL (DASHBOARD)'!$W$4) -> 11809.2743 | X17: =INDEX('Compile Data'!$CK$95:$DH$118,14,'Report - ALL (DASHBOARD)'!$W$4) -> 9095.829957 | Y17: =INDEX('Compile Data'!$CK$95:$DH$118,15,'Report - ALL (DASHBOARD)'!$W$4) -> 7137.11569 | Z17: =INDEX('Compile Data'!$CK$95:$DH$118,16,'Report - ALL (DASHBOARD)'!$W$4) -> 5363.782614
A18: ='Compile Data'!$F$1 -> 0 | B18: =INDEX('Compile Data'!DK$95:DK$118,'Report - ALL (DASHBOARD)'!$W$3) ->  | C18: =INDEX('Compile Data'!DL$95:DL$118,'Report - ALL (DASHBOARD)'!$W$3) ->  | D18: =INDEX('Compile Data'!DM$95:DM$118,'Report - ALL (DASHBOARD)'!$W$3) ->  | E18: =INDEX('Compile Data'!DN$95:DN$118,'Report - ALL (DASHBOARD)'!$W$3) ->  | F18: =INDEX('Compile Data'!DO$95:DO$118,'Report - ALL (DASHBOARD)'!$W$3) ->  | G18: =INDEX('Compile Data'!DP$95:DP$118,'Report - ALL (DASHBOARD)'!$W$3) ->  | H18: =INDEX('Compile Data'!DQ$95:DQ$118,'Report - ALL (DASHBOARD)'!$W$3) ->  | I18: =INDEX('Compile Data'!DR$95:DR$118,'Report - ALL (DASHBOARD)'!$W$3) ->  | J18: =INDEX('Compile Data'!DS$95:DS$118,'Report - ALL (DASHBOARD)'!$W$3) ->  | K18: =INDEX('Compile Data'!DT$95:DT$118,'Report - ALL (DASHBOARD)'!$W$3) ->  | L18: =INDEX('Compile Data'!DU$95:DU$118,'Report - ALL (DASHBOARD)'!$W$3) ->  | M18: =INDEX('Compile Data'!DV$95:DV$118,'Report - ALL (DASHBOARD)'!$W$3) ->  | O18: ='Compile Data'!$F$1 -> 0 | P18: =INDEX('Compile Data'!$DK$95:$EH$118,'Report - ALL (DASHBOARD)'!$W$3,'Report - ALL (DASHBOARD)'!$W$4) ->  | Q18: =$P18-$P$14 ->  | R18: =$P18-$P$15 ->  | U18: ='Compile Data'!$F$1 -> 0 | V18: =INDEX('Compile Data'!$DK$95:$EH$118,12,'Report - ALL (DASHBOARD)'!$W$4) ->  | W18: =INDEX('Compile Data'!$DK$95:$EH$118,13,'Report - ALL (DASHBOARD)'!$W$4) ->  | X18: =INDEX('Compile Data'!$DK$95:$EH$118,14,'Report - ALL (DASHBOARD)'!$W$4) ->  | Y18: =INDEX('Compile Data'!$DK$95:$EH$118,15,'Report - ALL (DASHBOARD)'!$W$4) ->  | Z18: =INDEX('Compile Data'!$DK$95:$EH$118,16,'Report - ALL (DASHBOARD)'!$W$4) -> 
A22: Annuals Plot: | O22: Exceedence Plot:
A24: Title: | B24: =INDEX(Other!$B$9:$B$33,'Report - ALL (DASHBOARD)'!$W$4) -> April | O24: Title: | P24: =INDEX(Other!$B$9:$B$33,'Report - ALL (DASHBOARD)'!$W$4) -> April
B25: ='Compile Data'!$B$5&" (PRELIMINARY)" -> Sac R near Wilkins Slough (flow) (PRELIMINARY) | P25: ='Compile Data'!$B$5&" (PRELIMINARY)" -> Sac R near Wilkins Slough (flow) (PRELIMINARY)
B26: =IF('Compile Data'!$B$10="CFS","Flow (CFS)",IF('Compile Data'!$B$10="TAF","Volume (TAF)",IF('Compile Data'!$B$10="KM","POSITION (KM)",""))) -> Flow (CFS) | P26: =IF('Compile Data'!$B$10="CFS","Flow (CFS)",IF('Compile Data'!$B$10="TAF","Volume (TAF)",IF('Compile Data'!$B$10="KM","POSITION (KM)",""))) -> Flow (CFS)
B28: ='Compile Data'!$B$1 -> NAA 111820 | C28: ='Compile Data'!$C$1 -> ALT1 rev01 PEA | D28: ='Compile Data'!$D$1 -> ALT1 rev01 PEA WilkSl 10700 A-M | E28: ='Compile Data'!$E$1 -> ALT1 rev01 PEA WilkSl 10700 F-M | F28: ='Compile Data'!$F$1 -> 0 | Q28: ='Compile Data'!$B$1 -> NAA 111820 | R28: ='Compile Data'!$C$1 -> ALT1 rev01 PEA | S28: ='Compile Data'!$D$1 -> ALT1 rev01 PEA WilkSl 10700 A-M | T28: ='Compile Data'!$E$1 -> ALT1 rev01 PEA WilkSl 10700 F-M | U28: ='Compile Data'!$F$1 -> 0
A29: 1922 | B29: =INDEX('Compile Data'!$K$12:$AH$93,$A29-1921,'Report - ALL (DASHBOARD)'!$W$4) -> 10129.78136 | C29: =INDEX('Compile Data'!$AK$12:$BH$93,$A29-1921,'Report - ALL (DASHBOARD)'!$W$4) -> 8744.450021 | D29: =INDEX('Compile Data'!$BK$12:$CH$93,$A29-1921,'Report - ALL (DASHBOARD)'!$W$4) -> 8801.203618 | E29: =INDEX('Compile Data'!$CK$12:$DH$93,$A29-1921,'Report - ALL (DASHBOARD)'!$W$4) -> 8787.879502 | F29: =INDEX('Compile Data'!$DK$12:$EH$93,$A29-1921,'Report - ALL (DASHBOARD)'!$W$4) ->  | O29: 1 | P29: =(O29-1)/81 -> 0 | Q29: =INDEX('Compile Data'!$K$121:$AH$202,$O29,'Report - ALL (DASHBOARD)'!$W$4) -> 26217.0802 | R29: =INDEX('Compile Data'!$AK$121:$BH$202,$O29,'Report - ALL (DASHBOARD)'!$W$4) -> 26227.46927 | S29: =INDEX('Compile Data'!$BK$121:$CH$202,$O29,'Report - ALL (DASHBOARD)'!$W$4) -> 26227.34836 | T29: =INDEX('Compile Data'!$CK$121:$DH$202,$O29,'Report - ALL (DASHBOARD)'!$W$4) -> 26233.00808 | U29: =INDEX('Compile Data'!$DK$121:$EH$202,$O29,'Report - ALL (DASHBOARD)'!$W$4) -> 
A30: =A29+1 -> 1923 | B30: =INDEX('Compile Data'!$K$12:$AH$93,$A30-1921,'Report - ALL (DASHBOARD)'!$W$4) -> 8753.080716 | C30: =INDEX('Compile Data'!$AK$12:$BH$93,$A30-1921,'Report - ALL (DASHBOARD)'!$W$4) -> 8400.274771 | D30: =INDEX('Compile Data'!$BK$12:$CH$93,$A30-1921,'Report - ALL (DASHBOARD)'!$W$4) -> 8743.939641 | E30: =INDEX('Compile Data'!$CK$12:$DH$93,$A30-1921,'Report - ALL (DASHBOARD)'!$W$4) -> 8744.00728 | F30: =INDEX('Compile Data'!$DK$12:$EH$93,$A30-1921,'Report - ALL (DASHBOARD)'!$W$4) ->  | O30: 2 | P30: 0.01234567901 | Q30: =INDEX('Compile Data'!$K$121:$AH$202,$O30,'Report - ALL (DASHBOARD)'!$W$4) -> 25103.87995 | R30: =INDEX('Compile Data'!$AK$121:$BH$202,$O30,'Report - ALL (DASHBOARD)'!$W$4) -> 25073.9704 | S30: =INDEX('Compile Data'!$BK$121:$CH$202,$O30,'Report - ALL (DASHBOARD)'!$W$4) -> 25073.80654 | T30: =INDEX('Compile Data'!$CK$121:$DH$202,$O30,'Report - ALL (DASHBOARD)'!$W$4) -> 25074.89787 | U30: =INDEX('Compile Data'!$DK$121:$EH$202,$O30,'Report - ALL (DASHBOARD)'!$W$4) -> 
A31: =A30+1 -> 1924 | B31: =INDEX('Compile Data'!$K$12:$AH$93,$A31-1921,'Report - ALL (DASHBOARD)'!$W$4) -> 4054.867217 | C31: =INDEX('Compile Data'!$AK$12:$BH$93,$A31-1921,'Report - ALL (DASHBOARD)'!$W$4) -> 4014.144355 | D31: =INDEX('Compile Data'!$BK$12:$CH$93,$A31-1921,'Report - ALL (DASHBOARD)'!$W$4) -> 4014.449969 | E31: =INDEX('Compile Data'!$CK$12:$DH$93,$A31-1921,'Report - ALL (DASHBOARD)'!$W$4) -> 4016.056316 | F31: =INDEX('Compile Data'!$DK$12:$EH$93,$A31-1921,'Report - ALL (DASHBOARD)'!$W$4) ->  | O31: 3 | P31: 0.02469135802 | Q31: =INDEX('Compile Data'!$K$121:$AH$202,$O31,'Report - ALL (DASHBOARD)'!$W$4) -> 25085.43993 | R31: =INDEX('Compile Data'!$AK$121:$BH$202,$O31,'Report - ALL (DASHBOARD)'!$W$4) -> 24827.36718 | S31: =INDEX('Compile Data'!$BK$121:$CH$202,$O31,'Report - ALL (DASHBOARD)'!$W$4) -> 24827.07296 | T31: =INDEX('Compile Data'!$CK$121:$DH$202,$O31,'Report - ALL (DASHBOARD)'!$W$4) -> 24827.29696 | U31: =INDEX('Compile Data'!$DK$121:$EH$202,$O31,'Report - ALL (DASHBOARD)'!$W$4) -> 
A32: 1925 | B32: =INDEX('Compile Data'!$K$12:$AH$93,$A32-1921,'Report - ALL (DASHBOARD)'!$W$4) -> 13457.2059 | C32: =INDEX('Compile Data'!$AK$12:$BH$93,$A32-1921,'Report - ALL (DASHBOARD)'!$W$4) -> 12569.59653 | D32: =INDEX('Compile Data'!$BK$12:$CH$93,$A32-1921,'Report - ALL (DASHBOARD)'!$W$4) -> 12569.46022 | E32: =INDEX('Compile Data'!$CK$12:$DH$93,$A32-1921,'Report - ALL (DASHBOARD)'!$W$4) -> 12504.04755 | F32: =INDEX('Compile Data'!$DK$12:$EH$93,$A32-1921,'Report - ALL (DASHBOARD)'!$W$4) ->  | O32: 4 | P32: 0.03703703704 | Q32: =INDEX('Compile Data'!$K$121:$AH$202,$O32,'Report - ALL (DASHBOARD)'!$W$4) -> 24284.94284 | R32: =INDEX('Compile Data'!$AK$121:$BH$202,$O32,'Report - ALL (DASHBOARD)'!$W$4) -> 24278.0842 | S32: =INDEX('Compile Data'!$BK$121:$CH$202,$O32,'Report - ALL (DASHBOARD)'!$W$4) -> 24282.51713 | T32: =INDEX('Compile Data'!$CK$121:$DH$202,$O32,'Report - ALL (DASHBOARD)'!$W$4) -> 24283.04904 | U32: =INDEX('Compile Data'!$DK$121:$EH$202,$O32,'Report - ALL (DASHBOARD)'!$W$4) -> 
A33: 1926 | B33: =INDEX('Compile Data'!$K$12:$AH$93,$A33-1921,'Report - ALL (DASHBOARD)'!$W$4) -> 9444.256662 | C33: =INDEX('Compile Data'!$AK$12:$BH$93,$A33-1921,'Report - ALL (DASHBOARD)'!$W$4) -> 8941.420189 | D33: =INDEX('Compile Data'!$BK$12:$CH$93,$A33-1921,'Report - ALL (DASHBOARD)'!$W$4) -> 9451.94068 | E33: =INDEX('Compile Data'!$CK$12:$DH$93,$A33-1921,'Report - ALL (DASHBOARD)'!$W$4) -> 9452.499498 | F33: =INDEX('Compile Data'!$DK$12:$EH$93,$A33-1921,'Report - ALL (DASHBOARD)'!$W$4) ->  | O33: 5 | P33: 0.04938271605 | Q33: =INDEX('Compile Data'!$K$121:$AH$202,$O33,'Report - ALL (DASHBOARD)'!$W$4) -> 23998.91014 | R33: =INDEX('Compile Data'!$AK$121:$BH$202,$O33,'Report - ALL (DASHBOARD)'!$W$4) -> 22970.49607 | S33: =INDEX('Compile Data'!$BK$121:$CH$202,$O33,'Report - ALL (DASHBOARD)'!$W$4) -> 22970.43415 | T33: =INDEX('Compile Data'!$CK$121:$DH$202,$O33,'Report - ALL (DASHBOARD)'!$W$4) -> 22970.46491 | U33: =INDEX('Compile Data'!$DK$121:$EH$202,$O33,'Report - ALL (DASHBOARD)'!$W$4) -> 
A34: 1927 | B34: =INDEX('Compile Data'!$K$12:$AH$93,$A34-1921,'Report - ALL (DASHBOARD)'!$W$4) -> 19493.68537 | C34: =INDEX('Compile Data'!$AK$12:$BH$93,$A34-1921,'Report - ALL (DASHBOARD)'!$W$4) -> 17972.54329 | D34: =INDEX('Compile Data'!$BK$12:$CH$93,$A34-1921,'Report - ALL (DASHBOARD)'!$W$4) -> 17985.15907 | E34: =INDEX('Compile Data'!$CK$12:$DH$93,$A34-1921,'Report - ALL (DASHBOARD)'!$W$4) -> 17973.80439 | F34: =INDEX('Compile Data'!$DK$12:$EH$93,$A34-1921,'Report - ALL (DASHBOARD)'!$W$4) ->  | O34: 6 | P34: 0.06172839506 | Q34: =INDEX('Compile Data'!$K$121:$AH$202,$O34,'Report - ALL (DASHBOARD)'!$W$4) -> 22972.82303 | R34: =INDEX('Compile Data'!$AK$121:$BH$202,$O34,'Report - ALL (DASHBOARD)'!$W$4) -> 22695.40036 | S34: =INDEX('Compile Data'!$BK$121:$CH$202,$O34,'Report - ALL (DASHBOARD)'!$W$4) -> 22695.22522 | T34: =INDEX('Compile Data'!$CK$121:$DH$202,$O34,'Report - ALL (DASHBOARD)'!$W$4) -> 22695.5171 | U34: =INDEX('Compile Data'!$DK$121:$EH$202,$O34,'Report - ALL (DASHBOARD)'!$W$4) -> 
A35: 1928 | B35: =INDEX('Compile Data'!$K$12:$AH$93,$A35-1921,'Report - ALL (DASHBOARD)'!$W$4) -> 11194.4105 | C35: =INDEX('Compile Data'!$AK$12:$BH$93,$A35-1921,'Report - ALL (DASHBOARD)'!$W$4) -> 10656.15664 | D35: =INDEX('Compile Data'!$BK$12:$CH$93,$A35-1921,'Report - ALL (DASHBOARD)'!$W$4) -> 10700 | E35: =INDEX('Compile Data'!$CK$12:$DH$93,$A35-1921,'Report - ALL (DASHBOARD)'!$W$4) -> 10700 | F35: =INDEX('Compile Data'!$DK$12:$EH$93,$A35-1921,'Report - ALL (DASHBOARD)'!$W$4) ->  | O35: 7 | P35: 0.07407407407 | Q35: =INDEX('Compile Data'!$K$121:$AH$202,$O35,'Report - ALL (DASHBOARD)'!$W$4) -> 22168.76357 | R35: =INDEX('Compile Data'!$AK$121:$BH$202,$O35,'Report - ALL (DASHBOARD)'!$W$4) -> 22037.60963 | S35: =INDEX('Compile Data'!$BK$121:$CH$202,$O35,'Report - ALL (DASHBOARD)'!$W$4) -> 22037.56645 | T35: =INDEX('Compile Data'!$CK$121:$DH$202,$O35,'Report - ALL (DASHBOARD)'!$W$4) -> 22037.78643 | U35: =INDEX('Compile Data'!$DK$121:$EH$202,$O35,'Report - ALL (DASHBOARD)'!$W$4) -> 
A36: 1929 | B36: =INDEX('Compile Data'!$K$12:$AH$93,$A36-1921,'Report - ALL (DASHBOARD)'!$W$4) -> 5483.18405 | C36: =INDEX('Compile Data'!$AK$12:$BH$93,$A36-1921,'Report - ALL (DASHBOARD)'!$W$4) -> 5479.441313 | D36: =INDEX('Compile Data'!$BK$12:$CH$93,$A36-1921,'Report - ALL (DASHBOARD)'!$W$4) -> 5479.440604 | E36: =INDEX('Compile Data'!$CK$12:$DH$93,$A36-1921,'Report - ALL (DASHBOARD)'!$W$4) -> 5479.43922 | F36: =INDEX('Compile Data'!$DK$12:$EH$93,$A36-1921,'Report - ALL (DASHBOARD)'!$W$4) ->  | O36: 8 | P36: 0.08641975309 | Q36: =INDEX('Compile Data'!$K$121:$AH$202,$O36,'Report - ALL (DASHBOARD)'!$W$4) -> 22049.9684 | R36: =INDEX('Compile Data'!$AK$121:$BH$202,$O36,'Report - ALL (DASHBOARD)'!$W$4) -> 20589.73438 | S36: =INDEX('Compile Data'!$BK$121:$CH$202,$O36,'Report - ALL (DASHBOARD)'!$W$4) -> 20589.52771 | T36: =INDEX('Compile Data'!$CK$121:$DH$202,$O36,'Report - ALL (DASHBOARD)'!$W$4) -> 20589.9476 | U36: =INDEX('Compile Data'!$DK$121:$EH$202,$O36,'Report - ALL (DASHBOARD)'!$W$4) -> 
A37: 1930 | B37: =INDEX('Compile Data'!$K$12:$AH$93,$A37-1921,'Report - ALL (DASHBOARD)'!$W$4) -> 5481.61072 | C37: =INDEX('Compile Data'!$AK$12:$BH$93,$A37-1921,'Report - ALL (DASHBOARD)'!$W$4) -> 5495.150153 | D37: =INDEX('Compile Data'!$BK$12:$CH$93,$A37-1921,'Report - ALL (DASHBOARD)'!$W$4) -> 5495.20084 | E37: =INDEX('Compile Data'!$CK$12:$DH$93,$A37-1921,'Report - ALL (DASHBOARD)'!$W$4) -> 5495.773782 | F37: =INDEX('Compile Data'!$DK$12:$EH$93,$A37-1921,'Report - ALL (DASHBOARD)'!$W$4) ->  | O37: 9 | P37: 0.0987654321 | Q37: =INDEX('Compile Data'!$K$121:$AH$202,$O37,'Report - ALL (DASHBOARD)'!$W$4) -> 21740.46535 | R37: =INDEX('Compile Data'!$AK$121:$BH$202,$O37,'Report - ALL (DASHBOARD)'!$W$4) -> 20584.75717 | S37: =INDEX('Compile Data'!$BK$121:$CH$202,$O37,'Report - ALL (DASHBOARD)'!$W$4) -> 20584.86134 | T37: =INDEX('Compile Data'!$CK$121:$DH$202,$O37,'Report - ALL (DASHBOARD)'!$W$4) -> 20585.4611 | U37: =INDEX('Compile Data'!$DK$121:$EH$202,$O37,'Report - ALL (DASHBOARD)'!$W$4) -> 
A38: 1931 | B38: =INDEX('Compile Data'!$K$12:$AH$93,$A38-1921,'Report - ALL (DASHBOARD)'!$W$4) -> 4197.813091 | C38: =INDEX('Compile Data'!$AK$12:$BH$93,$A38-1921,'Report - ALL (DASHBOARD)'!$W$4) -> 3926.762744 | D38: =INDEX('Compile Data'!$BK$12:$CH$93,$A38-1921,'Report - ALL (DASHBOARD)'!$W$4) -> 3926.800204 | E38: =INDEX('Compile Data'!$CK$12:$DH$93,$A38-1921,'Report - ALL (DASHBOARD)'!$W$4) -> 3942.834638 | F38: =INDEX('Compile Data'!$DK$12:$EH$93,$A38-1921,'Report - ALL (DASHBOARD)'!$W$4) ->  | O38: 10 | P38: 0.1111111111 | Q38: =INDEX('Compile Data'!$K$121:$AH$202,$O38,'Report - ALL (DASHBOARD)'!$W$4) -> 21227.84415 | R38: =INDEX('Compile Data'!$AK$121:$BH$202,$O38,'Report - ALL (DASHBOARD)'!$W$4) -> 20509.09926 | S38: =INDEX('Compile Data'!$BK$121:$CH$202,$O38,'Report - ALL (DASHBOARD)'!$W$4) -> 20509.62002 | T38: =INDEX('Compile Data'!$CK$121:$DH$202,$O38,'Report - ALL (DASHBOARD)'!$W$4) -> 20509.10628 | U38: =INDEX('Compile Data'!$DK$121:$EH$202,$O38,'Report - ALL (DASHBOARD)'!$W$4) -> 
A39: 1932 | B39: =INDEX('Compile Data'!$K$12:$AH$93,$A39-1921,'Report - ALL (DASHBOARD)'!$W$4) -> 4995.332653 | C39: =INDEX('Compile Data'!$AK$12:$BH$93,$A39-1921,'Report - ALL (DASHBOARD)'!$W$4) -> 5200.991643 | D39: =INDEX('Compile Data'!$BK$12:$CH$93,$A39-1921,'Report - ALL (DASHBOARD)'!$W$4) -> 5201.061131 | E39: =INDEX('Compile Data'!$CK$12:$DH$93,$A39-1921,'Report - ALL (DASHBOARD)'!$W$4) -> 5231.813588 | F39: =INDEX('Compile Data'!$DK$12:$EH$93,$A39-1921,'Report - ALL (DASHBOARD)'!$W$4) ->  | O39: 11 | P39: 0.1234567901 | Q39: =INDEX('Compile Data'!$K$121:$AH$202,$O39,'Report - ALL (DASHBOARD)'!$W$4) -> 20625.93187 | R39: =INDEX('Compile Data'!$AK$121:$BH$202,$O39,'Report - ALL (DASHBOARD)'!$W$4) -> 20410.27094 | S39: =INDEX('Compile Data'!$BK$121:$CH$202,$O39,'Report - ALL (DASHBOARD)'!$W$4) -> 20410.21936 | T39: =INDEX('Compile Data'!$CK$121:$DH$202,$O39,'Report - ALL (DASHBOARD)'!$W$4) -> 20278.07031 | U39: =INDEX('Compile Data'!$DK$121:$EH$202,$O39,'Report - ALL (DASHBOARD)'!$W$4) -> 
A40: 1933 | B40: =INDEX('Compile Data'!$K$12:$AH$93,$A40-1921,'Report - ALL (DASHBOARD)'!$W$4) -> 5549.640815 | C40: =INDEX('Compile Data'!$AK$12:$BH$93,$A40-1921,'Report - ALL (DASHBOARD)'!$W$4) -> 6556.429969 | D40: =INDEX('Compile Data'!$BK$12:$CH$93,$A40-1921,'Report - ALL (DASHBOARD)'!$W$4) -> 6556.441501 | E40: =INDEX('Compile Data'!$CK$12:$DH$93,$A40-1921,'Report - ALL (DASHBOARD)'!$W$4) -> 6560.205228 | F40: =INDEX('Compile Data'!$DK$12:$EH$93,$A40-1921,'Report - ALL (DASHBOARD)'!$W$4) ->  | O40: 12 | P40: 0.1358024691 | Q40: =INDEX('Compile Data'!$K$121:$AH$202,$O40,'Report - ALL (DASHBOARD)'!$W$4) -> 20623.26693 | R40: =INDEX('Compile Data'!$AK$121:$BH$202,$O40,'Report - ALL (DASHBOARD)'!$W$4) -> 20247.64223 | S40: =INDEX('Compile Data'!$BK$121:$CH$202,$O40,'Report - ALL (DASHBOARD)'!$W$4) -> 20248.44398 | T40: =INDEX('Compile Data'!$CK$121:$DH$202,$O40,'Report - ALL (DASHBOARD)'!$W$4) -> 19117.87031 | U40: =INDEX('Compile Data'!$DK$121:$EH$202,$O40,'Report - ALL (DASHBOARD)'!$W$4) -> 
A41: 1934 | B41: =INDEX('Compile Data'!$K$12:$AH$93,$A41-1921,'Report - ALL (DASHBOARD)'!$W$4) -> 4548.736641 | C41: =INDEX('Compile Data'!$AK$12:$BH$93,$A41-1921,'Report - ALL (DASHBOARD)'!$W$4) -> 4613.1833 | D41: =INDEX('Compile Data'!$BK$12:$CH$93,$A41-1921,'Report - ALL (DASHBOARD)'!$W$4) -> 4693.960106 | E41: =INDEX('Compile Data'!$CK$12:$DH$93,$A41-1921,'Report - ALL (DASHBOARD)'!$W$4) -> 4643.398577 | F41: =INDEX('Compile Data'!$DK$12:$EH$93,$A41-1921,'Report - ALL (DASHBOARD)'!$W$4) ->  | O41: 13 | P41: 0.1481481481 | Q41: =INDEX('Compile Data'!$K$121:$AH$202,$O41,'Report - ALL (DASHBOARD)'!$W$4) -> 20432.18463 | R41: =INDEX('Compile Data'!$AK$121:$BH$202,$O41,'Report - ALL (DASHBOARD)'!$W$4) -> 19607.93242 | S41: =INDEX('Compile Data'!$BK$121:$CH$202,$O41,'Report - ALL (DASHBOARD)'!$W$4) -> 18708.08085 | T41: =INDEX('Compile Data'!$CK$121:$DH$202,$O41,'Report - ALL (DASHBOARD)'!$W$4) -> 18706.97387 | U41: =INDEX('Compile Data'!$DK$121:$EH$202,$O41,'Report - ALL (DASHBOARD)'!$W$4) -> 
A42: 1935 | B42: =INDEX('Compile Data'!$K$12:$AH$93,$A42-1921,'Report - ALL (DASHBOARD)'!$W$4) -> 22168.76357 | C42: =INDEX('Compile Data'!$AK$12:$BH$93,$A42-1921,'Report - ALL (DASHBOARD)'!$W$4) -> 20509.09926 | D42: =INDEX('Compile Data'!$BK$12:$CH$93,$A42-1921,'Report - ALL (DASHBOARD)'!$W$4) -> 20509.62002 | E42: =INDEX('Compile Data'!$CK$12:$DH$93,$A42-1921,'Report - ALL (DASHBOARD)'!$W$4) -> 20509.10628 | F42: =INDEX('Compile Data'!$DK$12:$EH$93,$A42-1921,'Report - ALL (DASHBOARD)'!$W$4) ->  | O42: 14 | P42: 0.1604938272 | Q42: =INDEX('Compile Data'!$K$121:$AH$202,$O42,'Report - ALL (DASHBOARD)'!$W$4) -> 19891.63288 | R42: =INDEX('Compile Data'!$AK$121:$BH$202,$O42,'Report - ALL (DASHBOARD)'!$W$4) -> 18286.59613 | S42: =INDEX('Compile Data'!$BK$121:$CH$202,$O42,'Report - ALL (DASHBOARD)'!$W$4) -> 18286.95064 | T42: =INDEX('Compile Data'!$CK$121:$DH$202,$O42,'Report - ALL (DASHBOARD)'!$W$4) -> 18287.01973 | U42: =INDEX('Compile Data'!$DK$121:$EH$202,$O42,'Report - ALL (DASHBOARD)'!$W$4) -> 
A43: 1936 | B43: =INDEX('Compile Data'!$K$12:$AH$93,$A43-1921,'Report - ALL (DASHBOARD)'!$W$4) -> 7222.85006 | C43: =INDEX('Compile Data'!$AK$12:$BH$93,$A43-1921,'Report - ALL (DASHBOARD)'!$W$4) -> 7224.498448 | D43: =INDEX('Compile Data'!$BK$12:$CH$93,$A43-1921,'Report - ALL (DASHBOARD)'!$W$4) -> 7222.420837 | E43: =INDEX('Compile Data'!$CK$12:$DH$93,$A43-1921,'Report - ALL (DASHBOARD)'!$W$4) -> 7209.306838 | F43: =INDEX('Compile Data'!$DK$12:$EH$93,$A43-1921,'Report - ALL (DASHBOARD)'!$W$4) ->  | O43: 15 | P43: 0.1728395062 | Q43: =INDEX('Compile Data'!$K$121:$AH$202,$O43,'Report - ALL (DASHBOARD)'!$W$4) -> 19493.68537 | R43: =INDEX('Compile Data'!$AK$121:$BH$202,$O43,'Report - ALL (DASHBOARD)'!$W$4) -> 17972.54329 | S43: =INDEX('Compile Data'!$BK$121:$CH$202,$O43,'Report - ALL (DASHBOARD)'!$W$4) -> 17985.15907 | T43: =INDEX('Compile Data'!$CK$121:$DH$202,$O43,'Report - ALL (DASHBOARD)'!$W$4) -> 17973.80439 | U43: =INDEX('Compile Data'!$DK$121:$EH$202,$O43,'Report - ALL (DASHBOARD)'!$W$4) -> 
A44: 1937 | B44: =INDEX('Compile Data'!$K$12:$AH$93,$A44-1921,'Report - ALL (DASHBOARD)'!$W$4) -> 11094.1094 | C44: =INDEX('Compile Data'!$AK$12:$BH$93,$A44-1921,'Report - ALL (DASHBOARD)'!$W$4) -> 10647.15374 | D44: =INDEX('Compile Data'!$BK$12:$CH$93,$A44-1921,'Report - ALL (DASHBOARD)'!$W$4) -> 10700 | E44: =INDEX('Compile Data'!$CK$12:$DH$93,$A44-1921,'Report - ALL (DASHBOARD)'!$W$4) -> 10700 | F44: =INDEX('Compile Data'!$DK$12:$EH$93,$A44-1921,'Report - ALL (DASHBOARD)'!$W$4) ->  | O44: 16 | P44: 0.1851851852 | Q44: =INDEX('Compile Data'!$K$121:$AH$202,$O44,'Report - ALL (DASHBOARD)'!$W$4) -> 18768.00039 | R44: =INDEX('Compile Data'!$AK$121:$BH$202,$O44,'Report - ALL (DASHBOARD)'!$W$4) -> 17502.7311 | S44: =INDEX('Compile Data'!$BK$121:$CH$202,$O44,'Report - ALL (DASHBOARD)'!$W$4) -> 17502.66021 | T44: =INDEX('Compile Data'!$CK$121:$DH$202,$O44,'Report - ALL (DASHBOARD)'!$W$4) -> 17502.86656 | U44: =INDEX('Compile Data'!$DK$121:$EH$202,$O44,'Report - ALL (DASHBOARD)'!$W$4) -> 
A45: 1938 | B45: =INDEX('Compile Data'!$K$12:$AH$93,$A45-1921,'Report - ALL (DASHBOARD)'!$W$4) -> 23998.91014 | C45: =INDEX('Compile Data'!$AK$12:$BH$93,$A45-1921,'Report - ALL (DASHBOARD)'!$W$4) -> 22695.40036 | D45: =INDEX('Compile Data'!$BK$12:$CH$93,$A45-1921,'Report - ALL (DASHBOARD)'!$W$4) -> 22695.22522 | E45: =INDEX('Compile Data'!$CK$12:$DH$93,$A45-1921,'Report - ALL (DASHBOARD)'!$W$4) -> 22695.5171 | F45: =INDEX('Compile Data'!$DK$12:$EH$93,$A45-1921,'Report - ALL (DASHBOARD)'!$W$4) ->  | O45: 17 | P45: 0.1975308642 | Q45: =INDEX('Compile Data'!$K$121:$AH$202,$O45,'Report - ALL (DASHBOARD)'!$W$4) -> 18130.00677 | R45: =INDEX('Compile Data'!$AK$121:$BH$202,$O45,'Report - ALL (DASHBOARD)'!$W$4) -> 15632.97103 | S45: =INDEX('Compile Data'!$BK$121:$CH$202,$O45,'Report - ALL (DASHBOARD)'!$W$4) -> 15633.17258 | T45: =INDEX('Compile Data'!$CK$121:$DH$202,$O45,'Report - ALL (DASHBOARD)'!$W$4) -> 15633.61397 | U45: =INDEX('Compile Data'!$DK$121:$EH$202,$O45,'Report - ALL (DASHBOARD)'!$W$4) -> 
A46: 1939 | B46: =INDEX('Compile Data'!$K$12:$AH$93,$A46-1921,'Report - ALL (DASHBOARD)'!$W$4) -> 6659.823627 | C46: =INDEX('Compile Data'!$AK$12:$BH$93,$A46-1921,'Report - ALL (DASHBOARD)'!$W$4) -> 6679.358394 | D46: =INDEX('Compile Data'!$BK$12:$CH$93,$A46-1921,'Report - ALL (DASHBOARD)'!$W$4) -> 6679.4444 | E46: =INDEX('Compile Data'!$CK$12:$DH$93,$A46-1921,'Report - ALL (DASHBOARD)'!$W$4) -> 6682.911365 | F46: =INDEX('Compile Data'!$DK$12:$EH$93,$A46-1921,'Report - ALL (DASHBOARD)'!$W$4) ->  | O46: 18 | P46: 0.2098765432 | Q46: =INDEX('Compile Data'!$K$121:$AH$202,$O46,'Report - ALL (DASHBOARD)'!$W$4) -> 17167.5635 | R46: =INDEX('Compile Data'!$AK$121:$BH$202,$O46,'Report - ALL (DASHBOARD)'!$W$4) -> 15455.59393 | S46: =INDEX('Compile Data'!$BK$121:$CH$202,$O46,'Report - ALL (DASHBOARD)'!$W$4) -> 15454.568 | T46: =INDEX('Compile Data'!$CK$121:$DH$202,$O46,'Report - ALL (DASHBOARD)'!$W$4) -> 15449.26921 | U46: =INDEX('Compile Data'!$DK$121:$EH$202,$O46,'Report - ALL (DASHBOARD)'!$W$4) -> 
A47: 1940 | B47: =INDEX('Compile Data'!$K$12:$AH$93,$A47-1921,'Report - ALL (DASHBOARD)'!$W$4) -> 17167.5635 | C47: =INDEX('Compile Data'!$AK$12:$BH$93,$A47-1921,'Report - ALL (DASHBOARD)'!$W$4) -> 15632.97103 | D47: =INDEX('Compile Data'!$BK$12:$CH$93,$A47-1921,'Report - ALL (DASHBOARD)'!$W$4) -> 15633.17258 | E47: =INDEX('Compile Data'!$CK$12:$DH$93,$A47-1921,'Report - ALL (DASHBOARD)'!$W$4) -> 15633.61397 | F47: =INDEX('Compile Data'!$DK$12:$EH$93,$A47-1921,'Report - ALL (DASHBOARD)'!$W$4) ->  | O47: 19 | P47: 0.2222222222 | Q47: =INDEX('Compile Data'!$K$121:$AH$202,$O47,'Report - ALL (DASHBOARD)'!$W$4) -> 16941.88909 | R47: =INDEX('Compile Data'!$AK$121:$BH$202,$O47,'Report - ALL (DASHBOARD)'!$W$4) -> 15434.81875 | S47: =INDEX('Compile Data'!$BK$121:$CH$202,$O47,'Report - ALL (DASHBOARD)'!$W$4) -> 15374.93808 | T47: =INDEX('Compile Data'!$CK$121:$DH$202,$O47,'Report - ALL (DASHBOARD)'!$W$4) -> 15206.62734 | U47: =INDEX('Compile Data'!$DK$121:$EH$202,$O47,'Report - ALL (DASHBOARD)'!$W$4) -> 
A48: 1941 | B48: =INDEX('Compile Data'!$K$12:$AH$93,$A48-1921,'Report - ALL (DASHBOARD)'!$W$4) -> 26217.0802 | C48: =INDEX('Compile Data'!$AK$12:$BH$93,$A48-1921,'Report - ALL (DASHBOARD)'!$W$4) -> 26227.46927 | D48: =INDEX('Compile Data'!$BK$12:$CH$93,$A48-1921,'Report - ALL (DASHBOARD)'!$W$4) -> 26227.34836 | E48: =INDEX('Compile Data'!$CK$12:$DH$93,$A48-1921,'Report - ALL (DASHBOARD)'!$W$4) -> 26233.00808 | F48: =INDEX('Compile Data'!$DK$12:$EH$93,$A48-1921,'Report - ALL (DASHBOARD)'!$W$4) ->  | O48: 20 | P48: 0.2345679012 | Q48: =INDEX('Compile Data'!$K$121:$AH$202,$O48,'Report - ALL (DASHBOARD)'!$W$4) -> 16133.80911 | R48: =INDEX('Compile Data'!$AK$121:$BH$202,$O48,'Report - ALL (DASHBOARD)'!$W$4) -> 14490.74584 | S48: =INDEX('Compile Data'!$BK$121:$CH$202,$O48,'Report - ALL (DASHBOARD)'!$W$4) -> 14490.75441 | T48: =INDEX('Compile Data'!$CK$121:$DH$202,$O48,'Report - ALL (DASHBOARD)'!$W$4) -> 14490.95103 | U48: =INDEX('Compile Data'!$DK$121:$EH$202,$O48,'Report - ALL (DASHBOARD)'!$W$4) -> 
A49: 1942 | B49: =INDEX('Compile Data'!$K$12:$AH$93,$A49-1921,'Report - ALL (DASHBOARD)'!$W$4) -> 15458.67136 | C49: =INDEX('Compile Data'!$AK$12:$BH$93,$A49-1921,'Report - ALL (DASHBOARD)'!$W$4) -> 15455.59393 | D49: =INDEX('Compile Data'!$BK$12:$CH$93,$A49-1921,'Report - ALL (DASHBOARD)'!$W$4) -> 15454.568 | E49: =INDEX('Compile Data'!$CK$12:$DH$93,$A49-1921,'Report - ALL (DASHBOARD)'!$W$4) -> 15449.26921 | F49: =INDEX('Compile Data'!$DK$12:$EH$93,$A49-1921,'Report - ALL (DASHBOARD)'!$W$4) ->  | O49: 21 | P49: 0.2469135802 | Q49: =INDEX('Compile Data'!$K$121:$AH$202,$O49,'Report - ALL (DASHBOARD)'!$W$4) -> 15458.67136 | R49: =INDEX('Compile Data'!$AK$121:$BH$202,$O49,'Report - ALL (DASHBOARD)'!$W$4) -> 13659.62751 | S49: =INDEX('Compile Data'!$BK$121:$CH$202,$O49,'Report - ALL (DASHBOARD)'!$W$4) -> 13659.59426 | T49: =INDEX('Compile Data'!$CK$121:$DH$202,$O49,'Report - ALL (DASHBOARD)'!$W$4) -> 13659.63063 | U49: =INDEX('Compile Data'!$DK$121:$EH$202,$O49,'Report - ALL (DASHBOARD)'!$W$4) -> 
A50: 1943 | B50: =INDEX('Compile Data'!$K$12:$AH$93,$A50-1921,'Report - ALL (DASHBOARD)'!$W$4) -> 11669.84286 | C50: =INDEX('Compile Data'!$AK$12:$BH$93,$A50-1921,'Report - ALL (DASHBOARD)'!$W$4) -> 11613.39593 | D50: =INDEX('Compile Data'!$BK$12:$CH$93,$A50-1921,'Report - ALL (DASHBOARD)'!$W$4) -> 11612.27011 | E50: =INDEX('Compile Data'!$CK$12:$DH$93,$A50-1921,'Report - ALL (DASHBOARD)'!$W$4) -> 11612.39877 | F50: =INDEX('Compile Data'!$DK$12:$EH$93,$A50-1921,'Report - ALL (DASHBOARD)'!$W$4) ->  | O50: 22 | P50: 0.2592592593 | Q50: =INDEX('Compile Data'!$K$121:$AH$202,$O50,'Report - ALL (DASHBOARD)'!$W$4) -> 15180.61986 | R50: =INDEX('Compile Data'!$AK$121:$BH$202,$O50,'Report - ALL (DASHBOARD)'!$W$4) -> 13621.55239 | S50: =INDEX('Compile Data'!$BK$121:$CH$202,$O50,'Report - ALL (DASHBOARD)'!$W$4) -> 13621.12197 | T50: =INDEX('Compile Data'!$CK$121:$DH$202,$O50,'Report - ALL (DASHBOARD)'!$W$4) -> 13621.37049 | U50: =INDEX('Compile Data'!$DK$121:$EH$202,$O50,'Report - ALL (DASHBOARD)'!$W$4) -> 
A51: 1944 | B51: =INDEX('Compile Data'!$K$12:$AH$93,$A51-1921,'Report - ALL (DASHBOARD)'!$W$4) -> 4243.280314 | C51: =INDEX('Compile Data'!$AK$12:$BH$93,$A51-1921,'Report - ALL (DASHBOARD)'!$W$4) -> 4232.841769 | D51: =INDEX('Compile Data'!$BK$12:$CH$93,$A51-1921,'Report - ALL (DASHBOARD)'!$W$4) -> 4232.901397 | E51: =INDEX('Compile Data'!$CK$12:$DH$93,$A51-1921,'Report - ALL (DASHBOARD)'!$W$4) -> 4222.657957 | F51: =INDEX('Compile Data'!$DK$12:$EH$93,$A51-1921,'Report - ALL (DASHBOARD)'!$W$4) ->  | O51: 23 | P51: 0.2716049383 | Q51: =INDEX('Compile Data'!$K$121:$AH$202,$O51,'Report - ALL (DASHBOARD)'!$W$4) -> 13457.2059 | R51: =INDEX('Compile Data'!$AK$121:$BH$202,$O51,'Report - ALL (DASHBOARD)'!$W$4) -> 12569.59653 | S51: =INDEX('Compile Data'!$BK$121:$CH$202,$O51,'Report - ALL (DASHBOARD)'!$W$4) -> 12569.46022 | T51: =INDEX('Compile Data'!$CK$121:$DH$202,$O51,'Report - ALL (DASHBOARD)'!$W$4) -> 12504.04755 | U51: =INDEX('Compile Data'!$DK$121:$EH$202,$O51,'Report - ALL (DASHBOARD)'!$W$4) -> 
A52: 1945 | B52: =INDEX('Compile Data'!$K$12:$AH$93,$A52-1921,'Report - ALL (DASHBOARD)'!$W$4) -> 6564.083822 | C52: =INDEX('Compile Data'!$AK$12:$BH$93,$A52-1921,'Report - ALL (DASHBOARD)'!$W$4) -> 6570.09126 | D52: =INDEX('Compile Data'!$BK$12:$CH$93,$A52-1921,'Report - ALL (DASHBOARD)'!$W$4) -> 6570.14317 | E52: =INDEX('Compile Data'!$CK$12:$DH$93,$A52-1921,'Report - ALL (DASHBOARD)'!$W$4) -> 6555.221474 | F52: =INDEX('Compile Data'!$DK$12:$EH$93,$A52-1921,'Report - ALL (DASHBOARD)'!$W$4) ->  | O52: 24 | P52: 0.2839506173 | Q52: =INDEX('Compile Data'!$K$121:$AH$202,$O52,'Report - ALL (DASHBOARD)'!$W$4) -> 11728.43429 | R52: =INDEX('Compile Data'!$AK$121:$BH$202,$O52,'Report - ALL (DASHBOARD)'!$W$4) -> 11672.03643 | S52: =INDEX('Compile Data'!$BK$121:$CH$202,$O52,'Report - ALL (DASHBOARD)'!$W$4) -> 11672.06945 | T52: =INDEX('Compile Data'!$CK$121:$DH$202,$O52,'Report - ALL (DASHBOARD)'!$W$4) -> 11672.20143 | U52: =INDEX('Compile Data'!$DK$121:$EH$202,$O52,'Report - ALL (DASHBOARD)'!$W$4) -> 
A53: 1946 | B53: =INDEX('Compile Data'!$K$12:$AH$93,$A53-1921,'Report - ALL (DASHBOARD)'!$W$4) -> 7061.524753 | C53: =INDEX('Compile Data'!$AK$12:$BH$93,$A53-1921,'Report - ALL (DASHBOARD)'!$W$4) -> 7153.095757 | D53: =INDEX('Compile Data'!$BK$12:$CH$93,$A53-1921,'Report - ALL (DASHBOARD)'!$W$4) -> 7152.233154 | E53: =INDEX('Compile Data'!$CK$12:$DH$93,$A53-1921,'Report - ALL (DASHBOARD)'!$W$4) -> 7048.512332 | F53: =INDEX('Compile Data'!$DK$12:$EH$93,$A53-1921,'Report - ALL (DASHBOARD)'!$W$4) ->  | O53: 25 | P53: 0.2962962963 | Q53: =INDEX('Compile Data'!$K$121:$AH$202,$O53,'Report - ALL (DASHBOARD)'!$W$4) -> 11669.84286 | R53: =INDEX('Compile Data'!$AK$121:$BH$202,$O53,'Report - ALL (DASHBOARD)'!$W$4) -> 11613.39593 | S53: =INDEX('Compile Data'!$BK$121:$CH$202,$O53,'Report - ALL (DASHBOARD)'!$W$4) -> 11612.27011 | T53: =INDEX('Compile Data'!$CK$121:$DH$202,$O53,'Report - ALL (DASHBOARD)'!$W$4) -> 11612.39877 | U53: =INDEX('Compile Data'!$DK$121:$EH$202,$O53,'Report - ALL (DASHBOARD)'!$W$4) -> 
A54: 1947 | B54: =INDEX('Compile Data'!$K$12:$AH$93,$A54-1921,'Report - ALL (DASHBOARD)'!$W$4) -> 6505.409113 | C54: =INDEX('Compile Data'!$AK$12:$BH$93,$A54-1921,'Report - ALL (DASHBOARD)'!$W$4) -> 6503.395452 | D54: =INDEX('Compile Data'!$BK$12:$CH$93,$A54-1921,'Report - ALL (DASHBOARD)'!$W$4) -> 6510.586954 | E54: =INDEX('Compile Data'!$CK$12:$DH$93,$A54-1921,'Report - ALL (DASHBOARD)'!$W$4) -> 6495.610698 | F54: =INDEX('Compile Data'!$DK$12:$EH$93,$A54-1921,'Report - ALL (DASHBOARD)'!$W$4) ->  | O54: 26 | P54: 0.3086419753 | Q54: =INDEX('Compile Data'!$K$121:$AH$202,$O54,'Report - ALL (DASHBOARD)'!$W$4) -> 11194.4105 | R54: =INDEX('Compile Data'!$AK$121:$BH$202,$O54,'Report - ALL (DASHBOARD)'!$W$4) -> 10745.18361 | S54: =INDEX('Compile Data'!$BK$121:$CH$202,$O54,'Report - ALL (DASHBOARD)'!$W$4) -> 10943.75386 | T54: =INDEX('Compile Data'!$CK$121:$DH$202,$O54,'Report - ALL (DASHBOARD)'!$W$4) -> 10942.03319 | U54: =INDEX('Compile Data'!$DK$121:$EH$202,$O54,'Report - ALL (DASHBOARD)'!$W$4) -> 
A55: 1948 | B55: =INDEX('Compile Data'!$K$12:$AH$93,$A55-1921,'Report - ALL (DASHBOARD)'!$W$4) -> 16133.80911 | C55: =INDEX('Compile Data'!$AK$12:$BH$93,$A55-1921,'Report - ALL (DASHBOARD)'!$W$4) -> 15434.81875 | D55: =INDEX('Compile Data'!$BK$12:$CH$93,$A55-1921,'Report - ALL (DASHBOARD)'!$W$4) -> 15374.93808 | E55: =INDEX('Compile Data'!$CK$12:$DH$93,$A55-1921,'Report - ALL (DASHBOARD)'!$W$4) -> 15206.62734 | F55: =INDEX('Compile Data'!$DK$12:$EH$93,$A55-1921,'Report - ALL (DASHBOARD)'!$W$4) ->  | O55: 27 | P55: 0.3209876543 | Q55: =INDEX('Compile Data'!$K$121:$AH$202,$O55,'Report - ALL (DASHBOARD)'!$W$4) -> 11094.1094 | R55: =INDEX('Compile Data'!$AK$121:$BH$202,$O55,'Report - ALL (DASHBOARD)'!$W$4) -> 10656.15664 | S55: =INDEX('Compile Data'!$BK$121:$CH$202,$O55,'Report - ALL (DASHBOARD)'!$W$4) -> 10929.36423 | T55: =INDEX('Compile Data'!$CK$121:$DH$202,$O55,'Report - ALL (DASHBOARD)'!$W$4) -> 10929.5947 | U55: =INDEX('Compile Data'!$DK$121:$EH$202,$O55,'Report - ALL (DASHBOARD)'!$W$4) -> 
A56: 1949 | B56: =INDEX('Compile Data'!$K$12:$AH$93,$A56-1921,'Report - ALL (DASHBOARD)'!$W$4) -> 6564.350391 | C56: =INDEX('Compile Data'!$AK$12:$BH$93,$A56-1921,'Report - ALL (DASHBOARD)'!$W$4) -> 6552.552997 | D56: =INDEX('Compile Data'!$BK$12:$CH$93,$A56-1921,'Report - ALL (DASHBOARD)'!$W$4) -> 6550.677345 | E56: =INDEX('Compile Data'!$CK$12:$DH$93,$A56-1921,'Report - ALL (DASHBOARD)'!$W$4) -> 6578.333459 | F56: =INDEX('Compile Data'!$DK$12:$EH$93,$A56-1921,'Report - ALL (DASHBOARD)'!$W$4) ->  | O56: 28 | P56: 0.3333333333 | Q56: =INDEX('Compile Data'!$K$121:$AH$202,$O56,'Report - ALL (DASHBOARD)'!$W$4) -> 10767.10557 | R56: =INDEX('Compile Data'!$AK$121:$BH$202,$O56,'Report - ALL (DASHBOARD)'!$W$4) -> 10647.15374 | S56: =INDEX('Compile Data'!$BK$121:$CH$202,$O56,'Report - ALL (DASHBOARD)'!$W$4) -> 10745.20427 | T56: =INDEX('Compile Data'!$CK$121:$DH$202,$O56,'Report - ALL (DASHBOARD)'!$W$4) -> 10745.70277 | U56: =INDEX('Compile Data'!$DK$121:$EH$202,$O56,'Report - ALL (DASHBOARD)'!$W$4) -> 
A57: 1950 | B57: =INDEX('Compile Data'!$K$12:$AH$93,$A57-1921,'Report - ALL (DASHBOARD)'!$W$4) -> 7694.414432 | C57: =INDEX('Compile Data'!$AK$12:$BH$93,$A57-1921,'Report - ALL (DASHBOARD)'!$W$4) -> 7725.009995 | D57: =INDEX('Compile Data'!$BK$12:$CH$93,$A57-1921,'Report - ALL (DASHBOARD)'!$W$4) -> 7724.579436 | E57: =INDEX('Compile Data'!$CK$12:$DH$93,$A57-1921,'Report - ALL (DASHBOARD)'!$W$4) -> 7664.34759 | F57: =INDEX('Compile Data'!$DK$12:$EH$93,$A57-1921,'Report - ALL (DASHBOARD)'!$W$4) ->  | O57: 29 | P57: 0.3456790123 | Q57: =INDEX('Compile Data'!$K$121:$AH$202,$O57,'Report - ALL (DASHBOARD)'!$W$4) -> 10683.66411 | R57: =INDEX('Compile Data'!$AK$121:$BH$202,$O57,'Report - ALL (DASHBOARD)'!$W$4) -> 10630.875 | S57: =INDEX('Compile Data'!$BK$121:$CH$202,$O57,'Report - ALL (DASHBOARD)'!$W$4) -> 10700 | T57: =INDEX('Compile Data'!$CK$121:$DH$202,$O57,'Report - ALL (DASHBOARD)'!$W$4) -> 10700 | U57: =INDEX('Compile Data'!$DK$121:$EH$202,$O57,'Report - ALL (DASHBOARD)'!$W$4) -> 
A58: 1951 | B58: =INDEX('Compile Data'!$K$12:$AH$93,$A58-1921,'Report - ALL (DASHBOARD)'!$W$4) -> 6407.027106 | C58: =INDEX('Compile Data'!$AK$12:$BH$93,$A58-1921,'Report - ALL (DASHBOARD)'!$W$4) -> 6391.552264 | D58: =INDEX('Compile Data'!$BK$12:$CH$93,$A58-1921,'Report - ALL (DASHBOARD)'!$W$4) -> 6391.624459 | E58: =INDEX('Compile Data'!$CK$12:$DH$93,$A58-1921,'Report - ALL (DASHBOARD)'!$W$4) -> 6390.078783 | F58: =INDEX('Compile Data'!$DK$12:$EH$93,$A58-1921,'Report - ALL (DASHBOARD)'!$W$4) ->  | O58: 30 | P58: 0.3580246914 | Q58: =INDEX('Compile Data'!$K$121:$AH$202,$O58,'Report - ALL (DASHBOARD)'!$W$4) -> 10676.31459 | R58: =INDEX('Compile Data'!$AK$121:$BH$202,$O58,'Report - ALL (DASHBOARD)'!$W$4) -> 10614.84588 | S58: =INDEX('Compile Data'!$BK$121:$CH$202,$O58,'Report - ALL (DASHBOARD)'!$W$4) -> 10700 | T58: =INDEX('Compile Data'!$CK$121:$DH$202,$O58,'Report - ALL (DASHBOARD)'!$W$4) -> 10700 | U58: =INDEX('Compile Data'!$DK$121:$EH$202,$O58,'Report - ALL (DASHBOARD)'!$W$4) -> 
A59: 1952 | B59: =INDEX('Compile Data'!$K$12:$AH$93,$A59-1921,'Report - ALL (DASHBOARD)'!$W$4) -> 20432.18463 | C59: =INDEX('Compile Data'!$AK$12:$BH$93,$A59-1921,'Report - ALL (DASHBOARD)'!$W$4) -> 20410.27094 | D59: =INDEX('Compile Data'!$BK$12:$CH$93,$A59-1921,'Report - ALL (DASHBOARD)'!$W$4) -> 20410.21936 | E59: =INDEX('Compile Data'!$CK$12:$DH$93,$A59-1921,'Report - ALL (DASHBOARD)'!$W$4) -> 19117.87031 | F59: =INDEX('Compile Data'!$DK$12:$EH$93,$A59-1921,'Report - ALL (DASHBOARD)'!$W$4) ->  | O59: 31 | P59: 0.3703703704 | Q59: =INDEX('Compile Data'!$K$121:$AH$202,$O59,'Report - ALL (DASHBOARD)'!$W$4) -> 10274.74355 | R59: =INDEX('Compile Data'!$AK$121:$BH$202,$O59,'Report - ALL (DASHBOARD)'!$W$4) -> 10273.567 | S59: =INDEX('Compile Data'!$BK$121:$CH$202,$O59,'Report - ALL (DASHBOARD)'!$W$4) -> 10321.7215 | T59: =INDEX('Compile Data'!$CK$121:$DH$202,$O59,'Report - ALL (DASHBOARD)'!$W$4) -> 10313.06689 | U59: =INDEX('Compile Data'!$DK$121:$EH$202,$O59,'Report - ALL (DASHBOARD)'!$W$4) -> 
A60: 1953 | B60: =INDEX('Compile Data'!$K$12:$AH$93,$A60-1921,'Report - ALL (DASHBOARD)'!$W$4) -> 8465.199469 | C60: =INDEX('Compile Data'!$AK$12:$BH$93,$A60-1921,'Report - ALL (DASHBOARD)'!$W$4) -> 8433.500972 | D60: =INDEX('Compile Data'!$BK$12:$CH$93,$A60-1921,'Report - ALL (DASHBOARD)'!$W$4) -> 8461.852197 | E60: =INDEX('Compile Data'!$CK$12:$DH$93,$A60-1921,'Report - ALL (DASHBOARD)'!$W$4) -> 8461.579901 | F60: =INDEX('Compile Data'!$DK$12:$EH$93,$A60-1921,'Report - ALL (DASHBOARD)'!$W$4) ->  | O60: 32 | P60: 0.3827160494 | Q60: =INDEX('Compile Data'!$K$121:$AH$202,$O60,'Report - ALL (DASHBOARD)'!$W$4) -> 10129.78136 | R60: =INDEX('Compile Data'!$AK$121:$BH$202,$O60,'Report - ALL (DASHBOARD)'!$W$4) -> 9654.835174 | S60: =INDEX('Compile Data'!$BK$121:$CH$202,$O60,'Report - ALL (DASHBOARD)'!$W$4) -> 9701.369088 | T60: =INDEX('Compile Data'!$CK$121:$DH$202,$O60,'Report - ALL (DASHBOARD)'!$W$4) -> 9701.497597 | U60: =INDEX('Compile Data'!$DK$121:$EH$202,$O60,'Report - ALL (DASHBOARD)'!$W$4) -> 
A61: 1954 | B61: =INDEX('Compile Data'!$K$12:$AH$93,$A61-1921,'Report - ALL (DASHBOARD)'!$W$4) -> 20623.26693 | C61: =INDEX('Compile Data'!$AK$12:$BH$93,$A61-1921,'Report - ALL (DASHBOARD)'!$W$4) -> 20584.75717 | D61: =INDEX('Compile Data'!$BK$12:$CH$93,$A61-1921,'Report - ALL (DASHBOARD)'!$W$4) -> 20584.86134 | E61: =INDEX('Compile Data'!$CK$12:$DH$93,$A61-1921,'Report - ALL (DASHBOARD)'!$W$4) -> 20585.4611 | F61: =INDEX('Compile Data'!$DK$12:$EH$93,$A61-1921,'Report - ALL (DASHBOARD)'!$W$4) ->  | O61: 33 | P61: 0.3950617284 | Q61: =INDEX('Compile Data'!$K$121:$AH$202,$O61,'Report - ALL (DASHBOARD)'!$W$4) -> 9710.246101 | R61: =INDEX('Compile Data'!$AK$121:$BH$202,$O61,'Report - ALL (DASHBOARD)'!$W$4) -> 9567.548622 | S61: =INDEX('Compile Data'!$BK$121:$CH$202,$O61,'Report - ALL (DASHBOARD)'!$W$4) -> 9610.956538 | T61: =INDEX('Compile Data'!$CK$121:$DH$202,$O61,'Report - ALL (DASHBOARD)'!$W$4) -> 9609.740131 | U61: =INDEX('Compile Data'!$DK$121:$EH$202,$O61,'Report - ALL (DASHBOARD)'!$W$4) -> 
A62: 1955 | B62: =INDEX('Compile Data'!$K$12:$AH$93,$A62-1921,'Report - ALL (DASHBOARD)'!$W$4) -> 6000.1879 | C62: =INDEX('Compile Data'!$AK$12:$BH$93,$A62-1921,'Report - ALL (DASHBOARD)'!$W$4) -> 5992.47753 | D62: =INDEX('Compile Data'!$BK$12:$CH$93,$A62-1921,'Report - ALL (DASHBOARD)'!$W$4) -> 5991.088492 | E62: =INDEX('Compile Data'!$CK$12:$DH$93,$A62-1921,'Report - ALL (DASHBOARD)'!$W$4) -> 6004.97534 | F62: =INDEX('Compile Data'!$DK$12:$EH$93,$A62-1921,'Report - ALL (DASHBOARD)'!$W$4) ->  | O62: 34 | P62: 0.4074074074 | Q62: =INDEX('Compile Data'!$K$121:$AH$202,$O62,'Report - ALL (DASHBOARD)'!$W$4) -> 9560.063879 | R62: =INDEX('Compile Data'!$AK$121:$BH$202,$O62,'Report - ALL (DASHBOARD)'!$W$4) -> 8941.420189 | S62: =INDEX('Compile Data'!$BK$121:$CH$202,$O62,'Report - ALL (DASHBOARD)'!$W$4) -> 9451.94068 | T62: =INDEX('Compile Data'!$CK$121:$DH$202,$O62,'Report - ALL (DASHBOARD)'!$W$4) -> 9452.499498 | U62: =INDEX('Compile Data'!$DK$121:$EH$202,$O62,'Report - ALL (DASHBOARD)'!$W$4) -> 
A63: 1956 | B63: =INDEX('Compile Data'!$K$12:$AH$93,$A63-1921,'Report - ALL (DASHBOARD)'!$W$4) -> 10274.74355 | C63: =INDEX('Compile Data'!$AK$12:$BH$93,$A63-1921,'Report - ALL (DASHBOARD)'!$W$4) -> 10273.567 | D63: =INDEX('Compile Data'!$BK$12:$CH$93,$A63-1921,'Report - ALL (DASHBOARD)'!$W$4) -> 10321.7215 | E63: =INDEX('Compile Data'!$CK$12:$DH$93,$A63-1921,'Report - ALL (DASHBOARD)'!$W$4) -> 10313.06689 | F63: =INDEX('Compile Data'!$DK$12:$EH$93,$A63-1921,'Report - ALL (DASHBOARD)'!$W$4) ->  | O63: 35 | P63: 0.4197530864 | Q63: =INDEX('Compile Data'!$K$121:$AH$202,$O63,'Report - ALL (DASHBOARD)'!$W$4) -> 9444.256662 | R63: =INDEX('Compile Data'!$AK$121:$BH$202,$O63,'Report - ALL (DASHBOARD)'!$W$4) -> 8744.450021 | S63: =INDEX('Compile Data'!$BK$121:$CH$202,$O63,'Report - ALL (DASHBOARD)'!$W$4) -> 9328.085625 | T63: =INDEX('Compile Data'!$CK$121:$DH$202,$O63,'Report - ALL (DASHBOARD)'!$W$4) -> 9328.681954 | U63: =INDEX('Compile Data'!$DK$121:$EH$202,$O63,'Report - ALL (DASHBOARD)'!$W$4) -> 
A64: 1957 | B64: =INDEX('Compile Data'!$K$12:$AH$93,$A64-1921,'Report - ALL (DASHBOARD)'!$W$4) -> 6239.875239 | C64: =INDEX('Compile Data'!$AK$12:$BH$93,$A64-1921,'Report - ALL (DASHBOARD)'!$W$4) -> 6281.169574 | D64: =INDEX('Compile Data'!$BK$12:$CH$93,$A64-1921,'Report - ALL (DASHBOARD)'!$W$4) -> 6281.194267 | E64: =INDEX('Compile Data'!$CK$12:$DH$93,$A64-1921,'Report - ALL (DASHBOARD)'!$W$4) -> 6281.521572 | F64: =INDEX('Compile Data'!$DK$12:$EH$93,$A64-1921,'Report - ALL (DASHBOARD)'!$W$4) ->  | O64: 36 | P64: 0.4320987654 | Q64: =INDEX('Compile Data'!$K$121:$AH$202,$O64,'Report - ALL (DASHBOARD)'!$W$4) -> 9268.333442 | R64: =INDEX('Compile Data'!$AK$121:$BH$202,$O64,'Report - ALL (DASHBOARD)'!$W$4) -> 8559.066461 | S64: =INDEX('Compile Data'!$BK$121:$CH$202,$O64,'Report - ALL (DASHBOARD)'!$W$4) -> 8801.203618 | T64: =INDEX('Compile Data'!$CK$121:$DH$202,$O64,'Report - ALL (DASHBOARD)'!$W$4) -> 8787.879502 | U64: =INDEX('Compile Data'!$DK$121:$EH$202,$O64,'Report - ALL (DASHBOARD)'!$W$4) -> 
A65: 1958 | B65: =INDEX('Compile Data'!$K$12:$AH$93,$A65-1921,'Report - ALL (DASHBOARD)'!$W$4) -> 25085.43993 | C65: =INDEX('Compile Data'!$AK$12:$BH$93,$A65-1921,'Report - ALL (DASHBOARD)'!$W$4) -> 25073.9704 | D65: =INDEX('Compile Data'!$BK$12:$CH$93,$A65-1921,'Report - ALL (DASHBOARD)'!$W$4) -> 25073.80654 | E65: =INDEX('Compile Data'!$CK$12:$DH$93,$A65-1921,'Report - ALL (DASHBOARD)'!$W$4) -> 25074.89787 | F65: =INDEX('Compile Data'!$DK$12:$EH$93,$A65-1921,'Report - ALL (DASHBOARD)'!$W$4) ->  | O65: 37 | P65: 0.4444444444 | Q65: =INDEX('Compile Data'!$K$121:$AH$202,$O65,'Report - ALL (DASHBOARD)'!$W$4) -> 8753.080716 | R65: =INDEX('Compile Data'!$AK$121:$BH$202,$O65,'Report - ALL (DASHBOARD)'!$W$4) -> 8558.823543 | S65: =INDEX('Compile Data'!$BK$121:$CH$202,$O65,'Report - ALL (DASHBOARD)'!$W$4) -> 8743.939641 | T65: =INDEX('Compile Data'!$CK$121:$DH$202,$O65,'Report - ALL (DASHBOARD)'!$W$4) -> 8744.00728 | U65: =INDEX('Compile Data'!$DK$121:$EH$202,$O65,'Report - ALL (DASHBOARD)'!$W$4) -> 
A66: 1959 | B66: =INDEX('Compile Data'!$K$12:$AH$93,$A66-1921,'Report - ALL (DASHBOARD)'!$W$4) -> 4782.745392 | C66: =INDEX('Compile Data'!$AK$12:$BH$93,$A66-1921,'Report - ALL (DASHBOARD)'!$W$4) -> 4894.41758 | D66: =INDEX('Compile Data'!$BK$12:$CH$93,$A66-1921,'Report - ALL (DASHBOARD)'!$W$4) -> 4894.398073 | E66: =INDEX('Compile Data'!$CK$12:$DH$93,$A66-1921,'Report - ALL (DASHBOARD)'!$W$4) -> 4782.745392 | F66: =INDEX('Compile Data'!$DK$12:$EH$93,$A66-1921,'Report - ALL (DASHBOARD)'!$W$4) ->  | O66: 38 | P66: 0.4567901235 | Q66: =INDEX('Compile Data'!$K$121:$AH$202,$O66,'Report - ALL (DASHBOARD)'!$W$4) -> 8639.968274 | R66: =INDEX('Compile Data'!$AK$121:$BH$202,$O66,'Report - ALL (DASHBOARD)'!$W$4) -> 8543.587423 | S66: =INDEX('Compile Data'!$BK$121:$CH$202,$O66,'Report - ALL (DASHBOARD)'!$W$4) -> 8641.032537 | T66: =INDEX('Compile Data'!$CK$121:$DH$202,$O66,'Report - ALL (DASHBOARD)'!$W$4) -> 8641.183752 | U66: =INDEX('Compile Data'!$DK$121:$EH$202,$O66,'Report - ALL (DASHBOARD)'!$W$4) -> 
A67: 1960 | B67: =INDEX('Compile Data'!$K$12:$AH$93,$A67-1921,'Report - ALL (DASHBOARD)'!$W$4) -> 8324.581842 | C67: =INDEX('Compile Data'!$AK$12:$BH$93,$A67-1921,'Report - ALL (DASHBOARD)'!$W$4) -> 8558.823543 | D67: =INDEX('Compile Data'!$BK$12:$CH$93,$A67-1921,'Report - ALL (DASHBOARD)'!$W$4) -> 8308.505454 | E67: =INDEX('Compile Data'!$CK$12:$DH$93,$A67-1921,'Report - ALL (DASHBOARD)'!$W$4) -> 8318.676774 | F67: =INDEX('Compile Data'!$DK$12:$EH$93,$A67-1921,'Report - ALL (DASHBOARD)'!$W$4) ->  | O67: 39 | P67: 0.4691358025 | Q67: =INDEX('Compile Data'!$K$121:$AH$202,$O67,'Report - ALL (DASHBOARD)'!$W$4) -> 8465.199469 | R67: =INDEX('Compile Data'!$AK$121:$BH$202,$O67,'Report - ALL (DASHBOARD)'!$W$4) -> 8433.500972 | S67: =INDEX('Compile Data'!$BK$121:$CH$202,$O67,'Report - ALL (DASHBOARD)'!$W$4) -> 8461.852197 | T67: =INDEX('Compile Data'!$CK$121:$DH$202,$O67,'Report - ALL (DASHBOARD)'!$W$4) -> 8461.579901 | U67: =INDEX('Compile Data'!$DK$121:$EH$202,$O67,'Report - ALL (DASHBOARD)'!$W$4) -> 
A68: 1961 | B68: =INDEX('Compile Data'!$K$12:$AH$93,$A68-1921,'Report - ALL (DASHBOARD)'!$W$4) -> 7004.395681 | C68: =INDEX('Compile Data'!$AK$12:$BH$93,$A68-1921,'Report - ALL (DASHBOARD)'!$W$4) -> 7189.541103 | D68: =INDEX('Compile Data'!$BK$12:$CH$93,$A68-1921,'Report - ALL (DASHBOARD)'!$W$4) -> 7035.84618 | E68: =INDEX('Compile Data'!$CK$12:$DH$93,$A68-1921,'Report - ALL (DASHBOARD)'!$W$4) -> 7035.586472 | F68: =INDEX('Compile Data'!$DK$12:$EH$93,$A68-1921,'Report - ALL (DASHBOARD)'!$W$4) ->  | O68: 40 | P68: 0.4814814815 | Q68: =INDEX('Compile Data'!$K$121:$AH$202,$O68,'Report - ALL (DASHBOARD)'!$W$4) -> 8428.707722 | R68: =INDEX('Compile Data'!$AK$121:$BH$202,$O68,'Report - ALL (DASHBOARD)'!$W$4) -> 8400.274771 | S68: =INDEX('Compile Data'!$BK$121:$CH$202,$O68,'Report - ALL (DASHBOARD)'!$W$4) -> 8410.005425 | T68: =INDEX('Compile Data'!$CK$121:$DH$202,$O68,'Report - ALL (DASHBOARD)'!$W$4) -> 8416.083018 | U68: =INDEX('Compile Data'!$DK$121:$EH$202,$O68,'Report - ALL (DASHBOARD)'!$W$4) -> 
A69: 1962 | B69: =INDEX('Compile Data'!$K$12:$AH$93,$A69-1921,'Report - ALL (DASHBOARD)'!$W$4) -> 6889.40045 | C69: =INDEX('Compile Data'!$AK$12:$BH$93,$A69-1921,'Report - ALL (DASHBOARD)'!$W$4) -> 6898.852792 | D69: =INDEX('Compile Data'!$BK$12:$CH$93,$A69-1921,'Report - ALL (DASHBOARD)'!$W$4) -> 6875.363764 | E69: =INDEX('Compile Data'!$CK$12:$DH$93,$A69-1921,'Report - ALL (DASHBOARD)'!$W$4) -> 6865.581071 | F69: =INDEX('Compile Data'!$DK$12:$EH$93,$A69-1921,'Report - ALL (DASHBOARD)'!$W$4) ->  | O69: 41 | P69: 0.4938271605 | Q69: =INDEX('Compile Data'!$K$121:$AH$202,$O69,'Report - ALL (DASHBOARD)'!$W$4) -> 8380.777544 | R69: =INDEX('Compile Data'!$AK$121:$BH$202,$O69,'Report - ALL (DASHBOARD)'!$W$4) -> 8340.302061 | S69: =INDEX('Compile Data'!$BK$121:$CH$202,$O69,'Report - ALL (DASHBOARD)'!$W$4) -> 8369.815196 | T69: =INDEX('Compile Data'!$CK$121:$DH$202,$O69,'Report - ALL (DASHBOARD)'!$W$4) -> 8368.050754 | U69: =INDEX('Compile Data'!$DK$121:$EH$202,$O69,'Report - ALL (DASHBOARD)'!$W$4) -> 
A70: 1963 | B70: =INDEX('Compile Data'!$K$12:$AH$93,$A70-1921,'Report - ALL (DASHBOARD)'!$W$4) -> 25103.87995 | C70: =INDEX('Compile Data'!$AK$12:$BH$93,$A70-1921,'Report - ALL (DASHBOARD)'!$W$4) -> 24827.36718 | D70: =INDEX('Compile Data'!$BK$12:$CH$93,$A70-1921,'Report - ALL (DASHBOARD)'!$W$4) -> 24827.07296 | E70: =INDEX('Compile Data'!$CK$12:$DH$93,$A70-1921,'Report - ALL (DASHBOARD)'!$W$4) -> 24827.29696 | F70: =INDEX('Compile Data'!$DK$12:$EH$93,$A70-1921,'Report - ALL (DASHBOARD)'!$W$4) ->  | O70: 42 | P70: 0.5061728395 | Q70: =INDEX('Compile Data'!$K$121:$AH$202,$O70,'Report - ALL (DASHBOARD)'!$W$4) -> 8324.581842 | R70: =INDEX('Compile Data'!$AK$121:$BH$202,$O70,'Report - ALL (DASHBOARD)'!$W$4) -> 8161.377057 | S70: =INDEX('Compile Data'!$BK$121:$CH$202,$O70,'Report - ALL (DASHBOARD)'!$W$4) -> 8308.505454 | T70: =INDEX('Compile Data'!$CK$121:$DH$202,$O70,'Report - ALL (DASHBOARD)'!$W$4) -> 8318.676774 | U70: =INDEX('Compile Data'!$DK$121:$EH$202,$O70,'Report - ALL (DASHBOARD)'!$W$4) -> 
A71: 1964 | B71: =INDEX('Compile Data'!$K$12:$AH$93,$A71-1921,'Report - ALL (DASHBOARD)'!$W$4) -> 6191.846131 | C71: =INDEX('Compile Data'!$AK$12:$BH$93,$A71-1921,'Report - ALL (DASHBOARD)'!$W$4) -> 5728.336308 | D71: =INDEX('Compile Data'!$BK$12:$CH$93,$A71-1921,'Report - ALL (DASHBOARD)'!$W$4) -> 5725.083154 | E71: =INDEX('Compile Data'!$CK$12:$DH$93,$A71-1921,'Report - ALL (DASHBOARD)'!$W$4) -> 5725.664416 | F71: =INDEX('Compile Data'!$DK$12:$EH$93,$A71-1921,'Report - ALL (DASHBOARD)'!$W$4) ->  | O71: 43 | P71: 0.5185185185 | Q71: =INDEX('Compile Data'!$K$121:$AH$202,$O71,'Report - ALL (DASHBOARD)'!$W$4) -> 8177.675171 | R71: =INDEX('Compile Data'!$AK$121:$BH$202,$O71,'Report - ALL (DASHBOARD)'!$W$4) -> 8000 | S71: =INDEX('Compile Data'!$BK$121:$CH$202,$O71,'Report - ALL (DASHBOARD)'!$W$4) -> 8196.28463 | T71: =INDEX('Compile Data'!$CK$121:$DH$202,$O71,'Report - ALL (DASHBOARD)'!$W$4) -> 8196.812473 | U71: =INDEX('Compile Data'!$DK$121:$EH$202,$O71,'Report - ALL (DASHBOARD)'!$W$4) -> 
A72: 1965 | B72: =INDEX('Compile Data'!$K$12:$AH$93,$A72-1921,'Report - ALL (DASHBOARD)'!$W$4) -> 21740.46535 | C72: =INDEX('Compile Data'!$AK$12:$BH$93,$A72-1921,'Report - ALL (DASHBOARD)'!$W$4) -> 20247.64223 | D72: =INDEX('Compile Data'!$BK$12:$CH$93,$A72-1921,'Report - ALL (DASHBOARD)'!$W$4) -> 20248.44398 | E72: =INDEX('Compile Data'!$CK$12:$DH$93,$A72-1921,'Report - ALL (DASHBOARD)'!$W$4) -> 20278.07031 | F72: =INDEX('Compile Data'!$DK$12:$EH$93,$A72-1921,'Report - ALL (DASHBOARD)'!$W$4) ->  | O72: 44 | P72: 0.5308641975 | Q72: =INDEX('Compile Data'!$K$121:$AH$202,$O72,'Report - ALL (DASHBOARD)'!$W$4) -> 7864.164457 | R72: =INDEX('Compile Data'!$AK$121:$BH$202,$O72,'Report - ALL (DASHBOARD)'!$W$4) -> 8000 | S72: =INDEX('Compile Data'!$BK$121:$CH$202,$O72,'Report - ALL (DASHBOARD)'!$W$4) -> 7892.243575 | T72: =INDEX('Compile Data'!$CK$121:$DH$202,$O72,'Report - ALL (DASHBOARD)'!$W$4) -> 7892.142326 | U72: =INDEX('Compile Data'!$DK$121:$EH$202,$O72,'Report - ALL (DASHBOARD)'!$W$4) -> 
A73: 1966 | B73: =INDEX('Compile Data'!$K$12:$AH$93,$A73-1921,'Report - ALL (DASHBOARD)'!$W$4) -> 10767.10557 | C73: =INDEX('Compile Data'!$AK$12:$BH$93,$A73-1921,'Report - ALL (DASHBOARD)'!$W$4) -> 10745.18361 | D73: =INDEX('Compile Data'!$BK$12:$CH$93,$A73-1921,'Report - ALL (DASHBOARD)'!$W$4) -> 10745.20427 | E73: =INDEX('Compile Data'!$CK$12:$DH$93,$A73-1921,'Report - ALL (DASHBOARD)'!$W$4) -> 10745.70277 | F73: =INDEX('Compile Data'!$DK$12:$EH$93,$A73-1921,'Report - ALL (DASHBOARD)'!$W$4) ->  | O73: 45 | P73: 0.5432098765 | Q73: =INDEX('Compile Data'!$K$121:$AH$202,$O73,'Report - ALL (DASHBOARD)'!$W$4) -> 7847.788634 | R73: =INDEX('Compile Data'!$AK$121:$BH$202,$O73,'Report - ALL (DASHBOARD)'!$W$4) -> 8000 | S73: =INDEX('Compile Data'!$BK$121:$CH$202,$O73,'Report - ALL (DASHBOARD)'!$W$4) -> 7837.191748 | T73: =INDEX('Compile Data'!$CK$121:$DH$202,$O73,'Report - ALL (DASHBOARD)'!$W$4) -> 7837.581703 | U73: =INDEX('Compile Data'!$DK$121:$EH$202,$O73,'Report - ALL (DASHBOARD)'!$W$4) -> 
A74: 1967 | B74: =INDEX('Compile Data'!$K$12:$AH$93,$A74-1921,'Report - ALL (DASHBOARD)'!$W$4) -> 21227.84415 | C74: =INDEX('Compile Data'!$AK$12:$BH$93,$A74-1921,'Report - ALL (DASHBOARD)'!$W$4) -> 19607.93242 | D74: =INDEX('Compile Data'!$BK$12:$CH$93,$A74-1921,'Report - ALL (DASHBOARD)'!$W$4) -> 18708.08085 | E74: =INDEX('Compile Data'!$CK$12:$DH$93,$A74-1921,'Report - ALL (DASHBOARD)'!$W$4) -> 18706.97387 | F74: =INDEX('Compile Data'!$DK$12:$EH$93,$A74-1921,'Report - ALL (DASHBOARD)'!$W$4) ->  | O74: 46 | P74: 0.5555555556 | Q74: =INDEX('Compile Data'!$K$121:$AH$202,$O74,'Report - ALL (DASHBOARD)'!$W$4) -> 7821.287809 | R74: =INDEX('Compile Data'!$AK$121:$BH$202,$O74,'Report - ALL (DASHBOARD)'!$W$4) -> 7892.281789 | S74: =INDEX('Compile Data'!$BK$121:$CH$202,$O74,'Report - ALL (DASHBOARD)'!$W$4) -> 7821.998333 | T74: =INDEX('Compile Data'!$CK$121:$DH$202,$O74,'Report - ALL (DASHBOARD)'!$W$4) -> 7827.445759 | U74: =INDEX('Compile Data'!$DK$121:$EH$202,$O74,'Report - ALL (DASHBOARD)'!$W$4) -> 
A75: 1968 | B75: =INDEX('Compile Data'!$K$12:$AH$93,$A75-1921,'Report - ALL (DASHBOARD)'!$W$4) -> 5116.073214 | C75: =INDEX('Compile Data'!$AK$12:$BH$93,$A75-1921,'Report - ALL (DASHBOARD)'!$W$4) -> 5063.672976 | D75: =INDEX('Compile Data'!$BK$12:$CH$93,$A75-1921,'Report - ALL (DASHBOARD)'!$W$4) -> 5063.54461 | E75: =INDEX('Compile Data'!$CK$12:$DH$93,$A75-1921,'Report - ALL (DASHBOARD)'!$W$4) -> 5066.932253 | F75: =INDEX('Compile Data'!$DK$12:$EH$93,$A75-1921,'Report - ALL (DASHBOARD)'!$W$4) ->  | O75: 47 | P75: 0.5679012346 | Q75: =INDEX('Compile Data'!$K$121:$AH$202,$O75,'Report - ALL (DASHBOARD)'!$W$4) -> 7804.140725 | R75: =INDEX('Compile Data'!$AK$121:$BH$202,$O75,'Report - ALL (DASHBOARD)'!$W$4) -> 7821.290888 | S75: =INDEX('Compile Data'!$BK$121:$CH$202,$O75,'Report - ALL (DASHBOARD)'!$W$4) -> 7820.741043 | T75: =INDEX('Compile Data'!$CK$121:$DH$202,$O75,'Report - ALL (DASHBOARD)'!$W$4) -> 7821.041384 | U75: =INDEX('Compile Data'!$DK$121:$EH$202,$O75,'Report - ALL (DASHBOARD)'!$W$4) -> 
A76: 1969 | B76: =INDEX('Compile Data'!$K$12:$AH$93,$A76-1921,'Report - ALL (DASHBOARD)'!$W$4) -> 20625.93187 | C76: =INDEX('Compile Data'!$AK$12:$BH$93,$A76-1921,'Report - ALL (DASHBOARD)'!$W$4) -> 20589.73438 | D76: =INDEX('Compile Data'!$BK$12:$CH$93,$A76-1921,'Report - ALL (DASHBOARD)'!$W$4) -> 20589.52771 | E76: =INDEX('Compile Data'!$CK$12:$DH$93,$A76-1921,'Report - ALL (DASHBOARD)'!$W$4) -> 20589.9476 | F76: =INDEX('Compile Data'!$DK$12:$EH$93,$A76-1921,'Report - ALL (DASHBOARD)'!$W$4) ->  | O76: 48 | P76: 0.5802469136 | Q76: =INDEX('Compile Data'!$K$121:$AH$202,$O76,'Report - ALL (DASHBOARD)'!$W$4) -> 7721.986937 | R76: =INDEX('Compile Data'!$AK$121:$BH$202,$O76,'Report - ALL (DASHBOARD)'!$W$4) -> 7725.009995 | S76: =INDEX('Compile Data'!$BK$121:$CH$202,$O76,'Report - ALL (DASHBOARD)'!$W$4) -> 7724.579436 | T76: =INDEX('Compile Data'!$CK$121:$DH$202,$O76,'Report - ALL (DASHBOARD)'!$W$4) -> 7720.121851 | U76: =INDEX('Compile Data'!$DK$121:$EH$202,$O76,'Report - ALL (DASHBOARD)'!$W$4) -> 
A77: 1970 | B77: =INDEX('Compile Data'!$K$12:$AH$93,$A77-1921,'Report - ALL (DASHBOARD)'!$W$4) -> 7821.287809 | C77: =INDEX('Compile Data'!$AK$12:$BH$93,$A77-1921,'Report - ALL (DASHBOARD)'!$W$4) -> 7821.290888 | D77: =INDEX('Compile Data'!$BK$12:$CH$93,$A77-1921,'Report - ALL (DASHBOARD)'!$W$4) -> 7820.741043 | E77: =INDEX('Compile Data'!$CK$12:$DH$93,$A77-1921,'Report - ALL (DASHBOARD)'!$W$4) -> 7821.041384 | F77: =INDEX('Compile Data'!$DK$12:$EH$93,$A77-1921,'Report - ALL (DASHBOARD)'!$W$4) ->  | O77: 49 | P77: 0.5925925926 | Q77: =INDEX('Compile Data'!$K$121:$AH$202,$O77,'Report - ALL (DASHBOARD)'!$W$4) -> 7694.414432 | R77: =INDEX('Compile Data'!$AK$121:$BH$202,$O77,'Report - ALL (DASHBOARD)'!$W$4) -> 7719.969204 | S77: =INDEX('Compile Data'!$BK$121:$CH$202,$O77,'Report - ALL (DASHBOARD)'!$W$4) -> 7719.967242 | T77: =INDEX('Compile Data'!$CK$121:$DH$202,$O77,'Report - ALL (DASHBOARD)'!$W$4) -> 7664.34759 | U77: =INDEX('Compile Data'!$DK$121:$EH$202,$O77,'Report - ALL (DASHBOARD)'!$W$4) -> 
A78: 1971 | B78: =INDEX('Compile Data'!$K$12:$AH$93,$A78-1921,'Report - ALL (DASHBOARD)'!$W$4) -> 6961.541 | C78: =INDEX('Compile Data'!$AK$12:$BH$93,$A78-1921,'Report - ALL (DASHBOARD)'!$W$4) -> 6956.700911 | D78: =INDEX('Compile Data'!$BK$12:$CH$93,$A78-1921,'Report - ALL (DASHBOARD)'!$W$4) -> 6956.603007 | E78: =INDEX('Compile Data'!$CK$12:$DH$93,$A78-1921,'Report - ALL (DASHBOARD)'!$W$4) -> 6958.088369 | F78: =INDEX('Compile Data'!$DK$12:$EH$93,$A78-1921,'Report - ALL (DASHBOARD)'!$W$4) ->  | O78: 50 | P78: 0.6049382716 | Q78: =INDEX('Compile Data'!$K$121:$AH$202,$O78,'Report - ALL (DASHBOARD)'!$W$4) -> 7541.802401 | R78: =INDEX('Compile Data'!$AK$121:$BH$202,$O78,'Report - ALL (DASHBOARD)'!$W$4) -> 7550.351943 | S78: =INDEX('Compile Data'!$BK$121:$CH$202,$O78,'Report - ALL (DASHBOARD)'!$W$4) -> 7550.564613 | T78: =INDEX('Compile Data'!$CK$121:$DH$202,$O78,'Report - ALL (DASHBOARD)'!$W$4) -> 7550.222571 | U78: =INDEX('Compile Data'!$DK$121:$EH$202,$O78,'Report - ALL (DASHBOARD)'!$W$4) -> 
A79: 1972 | B79: =INDEX('Compile Data'!$K$12:$AH$93,$A79-1921,'Report - ALL (DASHBOARD)'!$W$4) -> 7864.164457 | C79: =INDEX('Compile Data'!$AK$12:$BH$93,$A79-1921,'Report - ALL (DASHBOARD)'!$W$4) -> 8000 | D79: =INDEX('Compile Data'!$BK$12:$CH$93,$A79-1921,'Report - ALL (DASHBOARD)'!$W$4) -> 7821.998333 | E79: =INDEX('Compile Data'!$CK$12:$DH$93,$A79-1921,'Report - ALL (DASHBOARD)'!$W$4) -> 7827.445759 | F79: =INDEX('Compile Data'!$DK$12:$EH$93,$A79-1921,'Report - ALL (DASHBOARD)'!$W$4) ->  | O79: 51 | P79: 0.6172839506 | Q79: =INDEX('Compile Data'!$K$121:$AH$202,$O79,'Report - ALL (DASHBOARD)'!$W$4) -> 7222.85006 | R79: =INDEX('Compile Data'!$AK$121:$BH$202,$O79,'Report - ALL (DASHBOARD)'!$W$4) -> 7224.498448 | S79: =INDEX('Compile Data'!$BK$121:$CH$202,$O79,'Report - ALL (DASHBOARD)'!$W$4) -> 7222.420837 | T79: =INDEX('Compile Data'!$CK$121:$DH$202,$O79,'Report - ALL (DASHBOARD)'!$W$4) -> 7209.306838 | U79: =INDEX('Compile Data'!$DK$121:$EH$202,$O79,'Report - ALL (DASHBOARD)'!$W$4) -> 
A80: 1973 | B80: =INDEX('Compile Data'!$K$12:$AH$93,$A80-1921,'Report - ALL (DASHBOARD)'!$W$4) -> 8380.777544 | C80: =INDEX('Compile Data'!$AK$12:$BH$93,$A80-1921,'Report - ALL (DASHBOARD)'!$W$4) -> 8340.302061 | D80: =INDEX('Compile Data'!$BK$12:$CH$93,$A80-1921,'Report - ALL (DASHBOARD)'!$W$4) -> 8369.815196 | E80: =INDEX('Compile Data'!$CK$12:$DH$93,$A80-1921,'Report - ALL (DASHBOARD)'!$W$4) -> 8368.050754 | F80: =INDEX('Compile Data'!$DK$12:$EH$93,$A80-1921,'Report - ALL (DASHBOARD)'!$W$4) ->  | O80: 52 | P80: 0.6296296296 | Q80: =INDEX('Compile Data'!$K$121:$AH$202,$O80,'Report - ALL (DASHBOARD)'!$W$4) -> 7197.494412 | R80: =INDEX('Compile Data'!$AK$121:$BH$202,$O80,'Report - ALL (DASHBOARD)'!$W$4) -> 7189.541103 | S80: =INDEX('Compile Data'!$BK$121:$CH$202,$O80,'Report - ALL (DASHBOARD)'!$W$4) -> 7160.630269 | T80: =INDEX('Compile Data'!$CK$121:$DH$202,$O80,'Report - ALL (DASHBOARD)'!$W$4) -> 7160.454454 | U80: =INDEX('Compile Data'!$DK$121:$EH$202,$O80,'Report - ALL (DASHBOARD)'!$W$4) -> 
A81: 1974 | B81: =INDEX('Compile Data'!$K$12:$AH$93,$A81-1921,'Report - ALL (DASHBOARD)'!$W$4) -> 22049.9684 | C81: =INDEX('Compile Data'!$AK$12:$BH$93,$A81-1921,'Report - ALL (DASHBOARD)'!$W$4) -> 22037.60963 | D81: =INDEX('Compile Data'!$BK$12:$CH$93,$A81-1921,'Report - ALL (DASHBOARD)'!$W$4) -> 22037.56645 | E81: =INDEX('Compile Data'!$CK$12:$DH$93,$A81-1921,'Report - ALL (DASHBOARD)'!$W$4) -> 22037.78643 | F81: =INDEX('Compile Data'!$DK$12:$EH$93,$A81-1921,'Report - ALL (DASHBOARD)'!$W$4) ->  | O81: 53 | P81: 0.6419753086 | Q81: =INDEX('Compile Data'!$K$121:$AH$202,$O81,'Report - ALL (DASHBOARD)'!$W$4) -> 7061.524753 | R81: =INDEX('Compile Data'!$AK$121:$BH$202,$O81,'Report - ALL (DASHBOARD)'!$W$4) -> 7160.350994 | S81: =INDEX('Compile Data'!$BK$121:$CH$202,$O81,'Report - ALL (DASHBOARD)'!$W$4) -> 7152.233154 | T81: =INDEX('Compile Data'!$CK$121:$DH$202,$O81,'Report - ALL (DASHBOARD)'!$W$4) -> 7048.512332 | U81: =INDEX('Compile Data'!$DK$121:$EH$202,$O81,'Report - ALL (DASHBOARD)'!$W$4) -> 
A82: 1975 | B82: =INDEX('Compile Data'!$K$12:$AH$93,$A82-1921,'Report - ALL (DASHBOARD)'!$W$4) -> 10683.66411 | C82: =INDEX('Compile Data'!$AK$12:$BH$93,$A82-1921,'Report - ALL (DASHBOARD)'!$W$4) -> 10614.84588 | D82: =INDEX('Compile Data'!$BK$12:$CH$93,$A82-1921,'Report - ALL (DASHBOARD)'!$W$4) -> 10929.36423 | E82: =INDEX('Compile Data'!$CK$12:$DH$93,$A82-1921,'Report - ALL (DASHBOARD)'!$W$4) -> 10929.5947 | F82: =INDEX('Compile Data'!$DK$12:$EH$93,$A82-1921,'Report - ALL (DASHBOARD)'!$W$4) ->  | O82: 54 | P82: 0.6543209877 | Q82: =INDEX('Compile Data'!$K$121:$AH$202,$O82,'Report - ALL (DASHBOARD)'!$W$4) -> 7004.395681 | R82: =INDEX('Compile Data'!$AK$121:$BH$202,$O82,'Report - ALL (DASHBOARD)'!$W$4) -> 7153.095757 | S82: =INDEX('Compile Data'!$BK$121:$CH$202,$O82,'Report - ALL (DASHBOARD)'!$W$4) -> 7035.84618 | T82: =INDEX('Compile Data'!$CK$121:$DH$202,$O82,'Report - ALL (DASHBOARD)'!$W$4) -> 7035.586472 | U82: =INDEX('Compile Data'!$DK$121:$EH$202,$O82,'Report - ALL (DASHBOARD)'!$W$4) -> 
A83: 1976 | B83: =INDEX('Compile Data'!$K$12:$AH$93,$A83-1921,'Report - ALL (DASHBOARD)'!$W$4) -> 5640.608167 | C83: =INDEX('Compile Data'!$AK$12:$BH$93,$A83-1921,'Report - ALL (DASHBOARD)'!$W$4) -> 5620.654074 | D83: =INDEX('Compile Data'!$BK$12:$CH$93,$A83-1921,'Report - ALL (DASHBOARD)'!$W$4) -> 5620.521226 | E83: =INDEX('Compile Data'!$CK$12:$DH$93,$A83-1921,'Report - ALL (DASHBOARD)'!$W$4) -> 5620.739484 | F83: =INDEX('Compile Data'!$DK$12:$EH$93,$A83-1921,'Report - ALL (DASHBOARD)'!$W$4) ->  | O83: 55 | P83: 0.6666666667 | Q83: =INDEX('Compile Data'!$K$121:$AH$202,$O83,'Report - ALL (DASHBOARD)'!$W$4) -> 6961.541 | R83: =INDEX('Compile Data'!$AK$121:$BH$202,$O83,'Report - ALL (DASHBOARD)'!$W$4) -> 6956.700911 | S83: =INDEX('Compile Data'!$BK$121:$CH$202,$O83,'Report - ALL (DASHBOARD)'!$W$4) -> 6956.603007 | T83: =INDEX('Compile Data'!$CK$121:$DH$202,$O83,'Report - ALL (DASHBOARD)'!$W$4) -> 6958.088369 | U83: =INDEX('Compile Data'!$DK$121:$EH$202,$O83,'Report - ALL (DASHBOARD)'!$W$4) -> 
A84: 1977 | B84: =INDEX('Compile Data'!$K$12:$AH$93,$A84-1921,'Report - ALL (DASHBOARD)'!$W$4) -> 6894.712142 | C84: =INDEX('Compile Data'!$AK$12:$BH$93,$A84-1921,'Report - ALL (DASHBOARD)'!$W$4) -> 6053.310471 | D84: =INDEX('Compile Data'!$BK$12:$CH$93,$A84-1921,'Report - ALL (DASHBOARD)'!$W$4) -> 6053.973141 | E84: =INDEX('Compile Data'!$CK$12:$DH$93,$A84-1921,'Report - ALL (DASHBOARD)'!$W$4) -> 6053.9975 | F84: =INDEX('Compile Data'!$DK$12:$EH$93,$A84-1921,'Report - ALL (DASHBOARD)'!$W$4) ->  | O84: 56 | P84: 0.6790123457 | Q84: =INDEX('Compile Data'!$K$121:$AH$202,$O84,'Report - ALL (DASHBOARD)'!$W$4) -> 6894.712142 | R84: =INDEX('Compile Data'!$AK$121:$BH$202,$O84,'Report - ALL (DASHBOARD)'!$W$4) -> 6898.852792 | S84: =INDEX('Compile Data'!$BK$121:$CH$202,$O84,'Report - ALL (DASHBOARD)'!$W$4) -> 6875.363764 | T84: =INDEX('Compile Data'!$CK$121:$DH$202,$O84,'Report - ALL (DASHBOARD)'!$W$4) -> 6865.581071 | U84: =INDEX('Compile Data'!$DK$121:$EH$202,$O84,'Report - ALL (DASHBOARD)'!$W$4) -> 
A85: 1978 | B85: =INDEX('Compile Data'!$K$12:$AH$93,$A85-1921,'Report - ALL (DASHBOARD)'!$W$4) -> 19891.63288 | C85: =INDEX('Compile Data'!$AK$12:$BH$93,$A85-1921,'Report - ALL (DASHBOARD)'!$W$4) -> 17502.7311 | D85: =INDEX('Compile Data'!$BK$12:$CH$93,$A85-1921,'Report - ALL (DASHBOARD)'!$W$4) -> 17502.66021 | E85: =INDEX('Compile Data'!$CK$12:$DH$93,$A85-1921,'Report - ALL (DASHBOARD)'!$W$4) -> 17502.86656 | F85: =INDEX('Compile Data'!$DK$12:$EH$93,$A85-1921,'Report - ALL (DASHBOARD)'!$W$4) ->  | O85: 57 | P85: 0.6913580247 | Q85: =INDEX('Compile Data'!$K$121:$AH$202,$O85,'Report - ALL (DASHBOARD)'!$W$4) -> 6889.40045 | R85: =INDEX('Compile Data'!$AK$121:$BH$202,$O85,'Report - ALL (DASHBOARD)'!$W$4) -> 6746.147787 | S85: =INDEX('Compile Data'!$BK$121:$CH$202,$O85,'Report - ALL (DASHBOARD)'!$W$4) -> 6744.433094 | T85: =INDEX('Compile Data'!$CK$121:$DH$202,$O85,'Report - ALL (DASHBOARD)'!$W$4) -> 6742.882664 | U85: =INDEX('Compile Data'!$DK$121:$EH$202,$O85,'Report - ALL (DASHBOARD)'!$W$4) -> 
A86: 1979 | B86: =INDEX('Compile Data'!$K$12:$AH$93,$A86-1921,'Report - ALL (DASHBOARD)'!$W$4) -> 8428.707722 | C86: =INDEX('Compile Data'!$AK$12:$BH$93,$A86-1921,'Report - ALL (DASHBOARD)'!$W$4) -> 8000 | D86: =INDEX('Compile Data'!$BK$12:$CH$93,$A86-1921,'Report - ALL (DASHBOARD)'!$W$4) -> 8410.005425 | E86: =INDEX('Compile Data'!$CK$12:$DH$93,$A86-1921,'Report - ALL (DASHBOARD)'!$W$4) -> 8416.083018 | F86: =INDEX('Compile Data'!$DK$12:$EH$93,$A86-1921,'Report - ALL (DASHBOARD)'!$W$4) ->  | O86: 58 | P86: 0.7037037037 | Q86: =INDEX('Compile Data'!$K$121:$AH$202,$O86,'Report - ALL (DASHBOARD)'!$W$4) -> 6743.971111 | R86: =INDEX('Compile Data'!$AK$121:$BH$202,$O86,'Report - ALL (DASHBOARD)'!$W$4) -> 6679.358394 | S86: =INDEX('Compile Data'!$BK$121:$CH$202,$O86,'Report - ALL (DASHBOARD)'!$W$4) -> 6679.4444 | T86: =INDEX('Compile Data'!$CK$121:$DH$202,$O86,'Report - ALL (DASHBOARD)'!$W$4) -> 6682.911365 | U86: =INDEX('Compile Data'!$DK$121:$EH$202,$O86,'Report - ALL (DASHBOARD)'!$W$4) -> 
A87: 1980 | B87: =INDEX('Compile Data'!$K$12:$AH$93,$A87-1921,'Report - ALL (DASHBOARD)'!$W$4) -> 9560.063879 | C87: =INDEX('Compile Data'!$AK$12:$BH$93,$A87-1921,'Report - ALL (DASHBOARD)'!$W$4) -> 9567.548622 | D87: =INDEX('Compile Data'!$BK$12:$CH$93,$A87-1921,'Report - ALL (DASHBOARD)'!$W$4) -> 9610.956538 | E87: =INDEX('Compile Data'!$CK$12:$DH$93,$A87-1921,'Report - ALL (DASHBOARD)'!$W$4) -> 9609.740131 | F87: =INDEX('Compile Data'!$DK$12:$EH$93,$A87-1921,'Report - ALL (DASHBOARD)'!$W$4) ->  | O87: 59 | P87: 0.7160493827 | Q87: =INDEX('Compile Data'!$K$121:$AH$202,$O87,'Report - ALL (DASHBOARD)'!$W$4) -> 6659.823627 | R87: =INDEX('Compile Data'!$AK$121:$BH$202,$O87,'Report - ALL (DASHBOARD)'!$W$4) -> 6570.09126 | S87: =INDEX('Compile Data'!$BK$121:$CH$202,$O87,'Report - ALL (DASHBOARD)'!$W$4) -> 6570.14317 | T87: =INDEX('Compile Data'!$CK$121:$DH$202,$O87,'Report - ALL (DASHBOARD)'!$W$4) -> 6578.333459 | U87: =INDEX('Compile Data'!$DK$121:$EH$202,$O87,'Report - ALL (DASHBOARD)'!$W$4) -> 
A88: 1981 | B88: =INDEX('Compile Data'!$K$12:$AH$93,$A88-1921,'Report - ALL (DASHBOARD)'!$W$4) -> 7721.986937 | C88: =INDEX('Compile Data'!$AK$12:$BH$93,$A88-1921,'Report - ALL (DASHBOARD)'!$W$4) -> 7719.969204 | D88: =INDEX('Compile Data'!$BK$12:$CH$93,$A88-1921,'Report - ALL (DASHBOARD)'!$W$4) -> 7719.967242 | E88: =INDEX('Compile Data'!$CK$12:$DH$93,$A88-1921,'Report - ALL (DASHBOARD)'!$W$4) -> 7720.121851 | F88: =INDEX('Compile Data'!$DK$12:$EH$93,$A88-1921,'Report - ALL (DASHBOARD)'!$W$4) ->  | O88: 60 | P88: 0.7283950617 | Q88: =INDEX('Compile Data'!$K$121:$AH$202,$O88,'Report - ALL (DASHBOARD)'!$W$4) -> 6564.350391 | R88: =INDEX('Compile Data'!$AK$121:$BH$202,$O88,'Report - ALL (DASHBOARD)'!$W$4) -> 6556.429969 | S88: =INDEX('Compile Data'!$BK$121:$CH$202,$O88,'Report - ALL (DASHBOARD)'!$W$4) -> 6556.441501 | T88: =INDEX('Compile Data'!$CK$121:$DH$202,$O88,'Report - ALL (DASHBOARD)'!$W$4) -> 6560.205228 | U88: =INDEX('Compile Data'!$DK$121:$EH$202,$O88,'Report - ALL (DASHBOARD)'!$W$4) -> 
A89: 1982 | B89: =INDEX('Compile Data'!$K$12:$AH$93,$A89-1921,'Report - ALL (DASHBOARD)'!$W$4) -> 24284.94284 | C89: =INDEX('Compile Data'!$AK$12:$BH$93,$A89-1921,'Report - ALL (DASHBOARD)'!$W$4) -> 24278.0842 | D89: =INDEX('Compile Data'!$BK$12:$CH$93,$A89-1921,'Report - ALL (DASHBOARD)'!$W$4) -> 24282.51713 | E89: =INDEX('Compile Data'!$CK$12:$DH$93,$A89-1921,'Report - ALL (DASHBOARD)'!$W$4) -> 24283.04904 | F89: =INDEX('Compile Data'!$DK$12:$EH$93,$A89-1921,'Report - ALL (DASHBOARD)'!$W$4) ->  | O89: 61 | P89: 0.7407407407 | Q89: =INDEX('Compile Data'!$K$121:$AH$202,$O89,'Report - ALL (DASHBOARD)'!$W$4) -> 6564.083822 | R89: =INDEX('Compile Data'!$AK$121:$BH$202,$O89,'Report - ALL (DASHBOARD)'!$W$4) -> 6552.552997 | S89: =INDEX('Compile Data'!$BK$121:$CH$202,$O89,'Report - ALL (DASHBOARD)'!$W$4) -> 6550.677345 | T89: =INDEX('Compile Data'!$CK$121:$DH$202,$O89,'Report - ALL (DASHBOARD)'!$W$4) -> 6555.221474 | U89: =INDEX('Compile Data'!$DK$121:$EH$202,$O89,'Report - ALL (DASHBOARD)'!$W$4) -> 
A90: 1983 | B90: =INDEX('Compile Data'!$K$12:$AH$93,$A90-1921,'Report - ALL (DASHBOARD)'!$W$4) -> 22972.82303 | C90: =INDEX('Compile Data'!$AK$12:$BH$93,$A90-1921,'Report - ALL (DASHBOARD)'!$W$4) -> 22970.49607 | D90: =INDEX('Compile Data'!$BK$12:$CH$93,$A90-1921,'Report - ALL (DASHBOARD)'!$W$4) -> 22970.43415 | E90: =INDEX('Compile Data'!$CK$12:$DH$93,$A90-1921,'Report - ALL (DASHBOARD)'!$W$4) -> 22970.46491 | F90: =INDEX('Compile Data'!$DK$12:$EH$93,$A90-1921,'Report - ALL (DASHBOARD)'!$W$4) ->  | O90: 62 | P90: 0.7530864198 | Q90: =INDEX('Compile Data'!$K$121:$AH$202,$O90,'Report - ALL (DASHBOARD)'!$W$4) -> 6505.409113 | R90: =INDEX('Compile Data'!$AK$121:$BH$202,$O90,'Report - ALL (DASHBOARD)'!$W$4) -> 6503.395452 | S90: =INDEX('Compile Data'!$BK$121:$CH$202,$O90,'Report - ALL (DASHBOARD)'!$W$4) -> 6510.586954 | T90: =INDEX('Compile Data'!$CK$121:$DH$202,$O90,'Report - ALL (DASHBOARD)'!$W$4) -> 6495.610698 | U90: =INDEX('Compile Data'!$DK$121:$EH$202,$O90,'Report - ALL (DASHBOARD)'!$W$4) -> 
A91: 1984 | B91: =INDEX('Compile Data'!$K$12:$AH$93,$A91-1921,'Report - ALL (DASHBOARD)'!$W$4) -> 8639.968274 | C91: =INDEX('Compile Data'!$AK$12:$BH$93,$A91-1921,'Report - ALL (DASHBOARD)'!$W$4) -> 8559.066461 | D91: =INDEX('Compile Data'!$BK$12:$CH$93,$A91-1921,'Report - ALL (DASHBOARD)'!$W$4) -> 8641.032537 | E91: =INDEX('Compile Data'!$CK$12:$DH$93,$A91-1921,'Report - ALL (DASHBOARD)'!$W$4) -> 8641.183752 | F91: =INDEX('Compile Data'!$DK$12:$EH$93,$A91-1921,'Report - ALL (DASHBOARD)'!$W$4) ->  | O91: 63 | P91: 0.7654320988 | Q91: =INDEX('Compile Data'!$K$121:$AH$202,$O91,'Report - ALL (DASHBOARD)'!$W$4) -> 6407.027106 | R91: =INDEX('Compile Data'!$AK$121:$BH$202,$O91,'Report - ALL (DASHBOARD)'!$W$4) -> 6391.552264 | S91: =INDEX('Compile Data'!$BK$121:$CH$202,$O91,'Report - ALL (DASHBOARD)'!$W$4) -> 6391.624459 | T91: =INDEX('Compile Data'!$CK$121:$DH$202,$O91,'Report - ALL (DASHBOARD)'!$W$4) -> 6390.078783 | U91: =INDEX('Compile Data'!$DK$121:$EH$202,$O91,'Report - ALL (DASHBOARD)'!$W$4) -> 
A92: 1985 | B92: =INDEX('Compile Data'!$K$12:$AH$93,$A92-1921,'Report - ALL (DASHBOARD)'!$W$4) -> 6210.729354 | C92: =INDEX('Compile Data'!$AK$12:$BH$93,$A92-1921,'Report - ALL (DASHBOARD)'!$W$4) -> 6199.845112 | D92: =INDEX('Compile Data'!$BK$12:$CH$93,$A92-1921,'Report - ALL (DASHBOARD)'!$W$4) -> 6199.796637 | E92: =INDEX('Compile Data'!$CK$12:$DH$93,$A92-1921,'Report - ALL (DASHBOARD)'!$W$4) -> 6178.469118 | F92: =INDEX('Compile Data'!$DK$12:$EH$93,$A92-1921,'Report - ALL (DASHBOARD)'!$W$4) ->  | O92: 64 | P92: 0.7777777778 | Q92: =INDEX('Compile Data'!$K$121:$AH$202,$O92,'Report - ALL (DASHBOARD)'!$W$4) -> 6239.875239 | R92: =INDEX('Compile Data'!$AK$121:$BH$202,$O92,'Report - ALL (DASHBOARD)'!$W$4) -> 6281.169574 | S92: =INDEX('Compile Data'!$BK$121:$CH$202,$O92,'Report - ALL (DASHBOARD)'!$W$4) -> 6281.194267 | T92: =INDEX('Compile Data'!$CK$121:$DH$202,$O92,'Report - ALL (DASHBOARD)'!$W$4) -> 6281.521572 | U92: =INDEX('Compile Data'!$DK$121:$EH$202,$O92,'Report - ALL (DASHBOARD)'!$W$4) -> 
A93: 1986 | B93: =INDEX('Compile Data'!$K$12:$AH$93,$A93-1921,'Report - ALL (DASHBOARD)'!$W$4) -> 7804.140725 | C93: =INDEX('Compile Data'!$AK$12:$BH$93,$A93-1921,'Report - ALL (DASHBOARD)'!$W$4) -> 8000 | D93: =INDEX('Compile Data'!$BK$12:$CH$93,$A93-1921,'Report - ALL (DASHBOARD)'!$W$4) -> 7837.191748 | E93: =INDEX('Compile Data'!$CK$12:$DH$93,$A93-1921,'Report - ALL (DASHBOARD)'!$W$4) -> 7837.581703 | F93: =INDEX('Compile Data'!$DK$12:$EH$93,$A93-1921,'Report - ALL (DASHBOARD)'!$W$4) ->  | O93: 65 | P93: =(O93-1)/81 -> 0.7901234568 | Q93: =INDEX('Compile Data'!$K$121:$AH$202,$O93,'Report - ALL (DASHBOARD)'!$W$4) -> 6210.729354 | R93: =INDEX('Compile Data'!$AK$121:$BH$202,$O93,'Report - ALL (DASHBOARD)'!$W$4) -> 6199.845112 | S93: =INDEX('Compile Data'!$BK$121:$CH$202,$O93,'Report - ALL (DASHBOARD)'!$W$4) -> 6199.796637 | T93: =INDEX('Compile Data'!$CK$121:$DH$202,$O93,'Report - ALL (DASHBOARD)'!$W$4) -> 6178.469118 | U93: =INDEX('Compile Data'!$DK$121:$EH$202,$O93,'Report - ALL (DASHBOARD)'!$W$4) -> 
A94: 1987 | B94: =INDEX('Compile Data'!$K$12:$AH$93,$A94-1921,'Report - ALL (DASHBOARD)'!$W$4) -> 7847.788634 | C94: =INDEX('Compile Data'!$AK$12:$BH$93,$A94-1921,'Report - ALL (DASHBOARD)'!$W$4) -> 7892.281789 | D94: =INDEX('Compile Data'!$BK$12:$CH$93,$A94-1921,'Report - ALL (DASHBOARD)'!$W$4) -> 7892.243575 | E94: =INDEX('Compile Data'!$CK$12:$DH$93,$A94-1921,'Report - ALL (DASHBOARD)'!$W$4) -> 7892.142326 | F94: =INDEX('Compile Data'!$DK$12:$EH$93,$A94-1921,'Report - ALL (DASHBOARD)'!$W$4) ->  | O94: 66 | P94: 0.8024691358 | Q94: =INDEX('Compile Data'!$K$121:$AH$202,$O94,'Report - ALL (DASHBOARD)'!$W$4) -> 6191.846131 | R94: =INDEX('Compile Data'!$AK$121:$BH$202,$O94,'Report - ALL (DASHBOARD)'!$W$4) -> 6053.310471 | S94: =INDEX('Compile Data'!$BK$121:$CH$202,$O94,'Report - ALL (DASHBOARD)'!$W$4) -> 6053.973141 | T94: =INDEX('Compile Data'!$CK$121:$DH$202,$O94,'Report - ALL (DASHBOARD)'!$W$4) -> 6053.9975 | U94: =INDEX('Compile Data'!$DK$121:$EH$202,$O94,'Report - ALL (DASHBOARD)'!$W$4) -> 
A95: =A94+1 -> 1988 | B95: =INDEX('Compile Data'!$K$12:$AH$93,$A95-1921,'Report - ALL (DASHBOARD)'!$W$4) -> 4756.719086 | C95: =INDEX('Compile Data'!$AK$12:$BH$93,$A95-1921,'Report - ALL (DASHBOARD)'!$W$4) -> 4809.912616 | D95: =INDEX('Compile Data'!$BK$12:$CH$93,$A95-1921,'Report - ALL (DASHBOARD)'!$W$4) -> 4808.940017 | E95: =INDEX('Compile Data'!$CK$12:$DH$93,$A95-1921,'Report - ALL (DASHBOARD)'!$W$4) -> 4809.10354 | F95: =INDEX('Compile Data'!$DK$12:$EH$93,$A95-1921,'Report - ALL (DASHBOARD)'!$W$4) ->  | O95: 67 | P95: 0.8148148148 | Q95: =INDEX('Compile Data'!$K$121:$AH$202,$O95,'Report - ALL (DASHBOARD)'!$W$4) -> 6000.1879 | R95: =INDEX('Compile Data'!$AK$121:$BH$202,$O95,'Report - ALL (DASHBOARD)'!$W$4) -> 5992.47753 | S95: =INDEX('Compile Data'!$BK$121:$CH$202,$O95,'Report - ALL (DASHBOARD)'!$W$4) -> 5991.088492 | T95: =INDEX('Compile Data'!$CK$121:$DH$202,$O95,'Report - ALL (DASHBOARD)'!$W$4) -> 6004.97534 | U95: =INDEX('Compile Data'!$DK$121:$EH$202,$O95,'Report - ALL (DASHBOARD)'!$W$4) -> 
A96: 1989 | B96: =INDEX('Compile Data'!$K$12:$AH$93,$A96-1921,'Report - ALL (DASHBOARD)'!$W$4) -> 9268.333442 | C96: =INDEX('Compile Data'!$AK$12:$BH$93,$A96-1921,'Report - ALL (DASHBOARD)'!$W$4) -> 8543.587423 | D96: =INDEX('Compile Data'!$BK$12:$CH$93,$A96-1921,'Report - ALL (DASHBOARD)'!$W$4) -> 9328.085625 | E96: =INDEX('Compile Data'!$CK$12:$DH$93,$A96-1921,'Report - ALL (DASHBOARD)'!$W$4) -> 9328.681954 | F96: =INDEX('Compile Data'!$DK$12:$EH$93,$A96-1921,'Report - ALL (DASHBOARD)'!$W$4) ->  | O96: 68 | P96: 0.8271604938 | Q96: =INDEX('Compile Data'!$K$121:$AH$202,$O96,'Report - ALL (DASHBOARD)'!$W$4) -> 5640.608167 | R96: =INDEX('Compile Data'!$AK$121:$BH$202,$O96,'Report - ALL (DASHBOARD)'!$W$4) -> 5728.336308 | S96: =INDEX('Compile Data'!$BK$121:$CH$202,$O96,'Report - ALL (DASHBOARD)'!$W$4) -> 5725.083154 | T96: =INDEX('Compile Data'!$CK$121:$DH$202,$O96,'Report - ALL (DASHBOARD)'!$W$4) -> 5725.664416 | U96: =INDEX('Compile Data'!$DK$121:$EH$202,$O96,'Report - ALL (DASHBOARD)'!$W$4) -> 
A97: 1990 | B97: =INDEX('Compile Data'!$K$12:$AH$93,$A97-1921,'Report - ALL (DASHBOARD)'!$W$4) -> 4449.231103 | C97: =INDEX('Compile Data'!$AK$12:$BH$93,$A97-1921,'Report - ALL (DASHBOARD)'!$W$4) -> 4436.402669 | D97: =INDEX('Compile Data'!$BK$12:$CH$93,$A97-1921,'Report - ALL (DASHBOARD)'!$W$4) -> 4442.223381 | E97: =INDEX('Compile Data'!$CK$12:$DH$93,$A97-1921,'Report - ALL (DASHBOARD)'!$W$4) -> 4446.72465 | F97: =INDEX('Compile Data'!$DK$12:$EH$93,$A97-1921,'Report - ALL (DASHBOARD)'!$W$4) ->  | O97: 69 | P97: 0.8395061728 | Q97: =INDEX('Compile Data'!$K$121:$AH$202,$O97,'Report - ALL (DASHBOARD)'!$W$4) -> 5549.640815 | R97: =INDEX('Compile Data'!$AK$121:$BH$202,$O97,'Report - ALL (DASHBOARD)'!$W$4) -> 5620.654074 | S97: =INDEX('Compile Data'!$BK$121:$CH$202,$O97,'Report - ALL (DASHBOARD)'!$W$4) -> 5620.521226 | T97: =INDEX('Compile Data'!$CK$121:$DH$202,$O97,'Report - ALL (DASHBOARD)'!$W$4) -> 5620.739484 | U97: =INDEX('Compile Data'!$DK$121:$EH$202,$O97,'Report - ALL (DASHBOARD)'!$W$4) -> 
A98: 1991 | B98: =INDEX('Compile Data'!$K$12:$AH$93,$A98-1921,'Report - ALL (DASHBOARD)'!$W$4) -> 7541.802401 | C98: =INDEX('Compile Data'!$AK$12:$BH$93,$A98-1921,'Report - ALL (DASHBOARD)'!$W$4) -> 7550.351943 | D98: =INDEX('Compile Data'!$BK$12:$CH$93,$A98-1921,'Report - ALL (DASHBOARD)'!$W$4) -> 7550.564613 | E98: =INDEX('Compile Data'!$CK$12:$DH$93,$A98-1921,'Report - ALL (DASHBOARD)'!$W$4) -> 7550.222571 | F98: =INDEX('Compile Data'!$DK$12:$EH$93,$A98-1921,'Report - ALL (DASHBOARD)'!$W$4) ->  | O98: 70 | P98: 0.8518518519 | Q98: =INDEX('Compile Data'!$K$121:$AH$202,$O98,'Report - ALL (DASHBOARD)'!$W$4) -> 5483.18405 | R98: =INDEX('Compile Data'!$AK$121:$BH$202,$O98,'Report - ALL (DASHBOARD)'!$W$4) -> 5495.150153 | S98: =INDEX('Compile Data'!$BK$121:$CH$202,$O98,'Report - ALL (DASHBOARD)'!$W$4) -> 5495.20084 | T98: =INDEX('Compile Data'!$CK$121:$DH$202,$O98,'Report - ALL (DASHBOARD)'!$W$4) -> 5495.773782 | U98: =INDEX('Compile Data'!$DK$121:$EH$202,$O98,'Report - ALL (DASHBOARD)'!$W$4) -> 
A99: 1992 | B99: =INDEX('Compile Data'!$K$12:$AH$93,$A99-1921,'Report - ALL (DASHBOARD)'!$W$4) -> 7197.494412 | C99: =INDEX('Compile Data'!$AK$12:$BH$93,$A99-1921,'Report - ALL (DASHBOARD)'!$W$4) -> 7160.350994 | D99: =INDEX('Compile Data'!$BK$12:$CH$93,$A99-1921,'Report - ALL (DASHBOARD)'!$W$4) -> 7160.630269 | E99: =INDEX('Compile Data'!$CK$12:$DH$93,$A99-1921,'Report - ALL (DASHBOARD)'!$W$4) -> 7160.454454 | F99: =INDEX('Compile Data'!$DK$12:$EH$93,$A99-1921,'Report - ALL (DASHBOARD)'!$W$4) ->  | O99: 71 | P99: 0.8641975309 | Q99: =INDEX('Compile Data'!$K$121:$AH$202,$O99,'Report - ALL (DASHBOARD)'!$W$4) -> 5481.61072 | R99: =INDEX('Compile Data'!$AK$121:$BH$202,$O99,'Report - ALL (DASHBOARD)'!$W$4) -> 5479.441313 | S99: =INDEX('Compile Data'!$BK$121:$CH$202,$O99,'Report - ALL (DASHBOARD)'!$W$4) -> 5479.440604 | T99: =INDEX('Compile Data'!$CK$121:$DH$202,$O99,'Report - ALL (DASHBOARD)'!$W$4) -> 5479.43922 | U99: =INDEX('Compile Data'!$DK$121:$EH$202,$O99,'Report - ALL (DASHBOARD)'!$W$4) -> 
A100: 1993 | B100: =INDEX('Compile Data'!$K$12:$AH$93,$A100-1921,'Report - ALL (DASHBOARD)'!$W$4) -> 18130.00677 | C100: =INDEX('Compile Data'!$AK$12:$BH$93,$A100-1921,'Report - ALL (DASHBOARD)'!$W$4) -> 14490.74584 | D100: =INDEX('Compile Data'!$BK$12:$CH$93,$A100-1921,'Report - ALL (DASHBOARD)'!$W$4) -> 14490.75441 | E100: =INDEX('Compile Data'!$CK$12:$DH$93,$A100-1921,'Report - ALL (DASHBOARD)'!$W$4) -> 14490.95103 | F100: =INDEX('Compile Data'!$DK$12:$EH$93,$A100-1921,'Report - ALL (DASHBOARD)'!$W$4) ->  | O100: 72 | P100: 0.8765432099 | Q100: =INDEX('Compile Data'!$K$121:$AH$202,$O100,'Report - ALL (DASHBOARD)'!$W$4) -> 5417.140342 | R100: =INDEX('Compile Data'!$AK$121:$BH$202,$O100,'Report - ALL (DASHBOARD)'!$W$4) -> 5403.102796 | S100: =INDEX('Compile Data'!$BK$121:$CH$202,$O100,'Report - ALL (DASHBOARD)'!$W$4) -> 5403.179121 | T100: =INDEX('Compile Data'!$CK$121:$DH$202,$O100,'Report - ALL (DASHBOARD)'!$W$4) -> 5403.303792 | U100: =INDEX('Compile Data'!$DK$121:$EH$202,$O100,'Report - ALL (DASHBOARD)'!$W$4) -> 
A101: 1994 | B101: =INDEX('Compile Data'!$K$12:$AH$93,$A101-1921,'Report - ALL (DASHBOARD)'!$W$4) -> 4082.215187 | C101: =INDEX('Compile Data'!$AK$12:$BH$93,$A101-1921,'Report - ALL (DASHBOARD)'!$W$4) -> 4082.215187 | D101: =INDEX('Compile Data'!$BK$12:$CH$93,$A101-1921,'Report - ALL (DASHBOARD)'!$W$4) -> 4082.215187 | E101: =INDEX('Compile Data'!$CK$12:$DH$93,$A101-1921,'Report - ALL (DASHBOARD)'!$W$4) -> 4082.215187 | F101: =INDEX('Compile Data'!$DK$12:$EH$93,$A101-1921,'Report - ALL (DASHBOARD)'!$W$4) ->  | O101: 73 | P101: 0.8888888889 | Q101: =INDEX('Compile Data'!$K$121:$AH$202,$O101,'Report - ALL (DASHBOARD)'!$W$4) -> 5116.073214 | R101: =INDEX('Compile Data'!$AK$121:$BH$202,$O101,'Report - ALL (DASHBOARD)'!$W$4) -> 5200.991643 | S101: =INDEX('Compile Data'!$BK$121:$CH$202,$O101,'Report - ALL (DASHBOARD)'!$W$4) -> 5201.061131 | T101: =INDEX('Compile Data'!$CK$121:$DH$202,$O101,'Report - ALL (DASHBOARD)'!$W$4) -> 5231.813588 | U101: =INDEX('Compile Data'!$DK$121:$EH$202,$O101,'Report - ALL (DASHBOARD)'!$W$4) -> 
A102: 1995 | B102: =INDEX('Compile Data'!$K$12:$AH$93,$A102-1921,'Report - ALL (DASHBOARD)'!$W$4) -> 16941.88909 | C102: =INDEX('Compile Data'!$AK$12:$BH$93,$A102-1921,'Report - ALL (DASHBOARD)'!$W$4) -> 13621.55239 | D102: =INDEX('Compile Data'!$BK$12:$CH$93,$A102-1921,'Report - ALL (DASHBOARD)'!$W$4) -> 13621.12197 | E102: =INDEX('Compile Data'!$CK$12:$DH$93,$A102-1921,'Report - ALL (DASHBOARD)'!$W$4) -> 13621.37049 | F102: =INDEX('Compile Data'!$DK$12:$EH$93,$A102-1921,'Report - ALL (DASHBOARD)'!$W$4) ->  | O102: 74 | P102: 0.9012345679 | Q102: =INDEX('Compile Data'!$K$121:$AH$202,$O102,'Report - ALL (DASHBOARD)'!$W$4) -> 4995.332653 | R102: =INDEX('Compile Data'!$AK$121:$BH$202,$O102,'Report - ALL (DASHBOARD)'!$W$4) -> 5063.672976 | S102: =INDEX('Compile Data'!$BK$121:$CH$202,$O102,'Report - ALL (DASHBOARD)'!$W$4) -> 5063.54461 | T102: =INDEX('Compile Data'!$CK$121:$DH$202,$O102,'Report - ALL (DASHBOARD)'!$W$4) -> 5066.932253 | U102: =INDEX('Compile Data'!$DK$121:$EH$202,$O102,'Report - ALL (DASHBOARD)'!$W$4) -> 
A103: 1996 | B103: =INDEX('Compile Data'!$K$12:$AH$93,$A103-1921,'Report - ALL (DASHBOARD)'!$W$4) -> 10676.31459 | C103: =INDEX('Compile Data'!$AK$12:$BH$93,$A103-1921,'Report - ALL (DASHBOARD)'!$W$4) -> 10630.875 | D103: =INDEX('Compile Data'!$BK$12:$CH$93,$A103-1921,'Report - ALL (DASHBOARD)'!$W$4) -> 10943.75386 | E103: =INDEX('Compile Data'!$CK$12:$DH$93,$A103-1921,'Report - ALL (DASHBOARD)'!$W$4) -> 10942.03319 | F103: =INDEX('Compile Data'!$DK$12:$EH$93,$A103-1921,'Report - ALL (DASHBOARD)'!$W$4) ->  | O103: 75 | P103: 0.9135802469 | Q103: =INDEX('Compile Data'!$K$121:$AH$202,$O103,'Report - ALL (DASHBOARD)'!$W$4) -> 4782.745392 | R103: =INDEX('Compile Data'!$AK$121:$BH$202,$O103,'Report - ALL (DASHBOARD)'!$W$4) -> 4894.41758 | S103: =INDEX('Compile Data'!$BK$121:$CH$202,$O103,'Report - ALL (DASHBOARD)'!$W$4) -> 4894.398073 | T103: =INDEX('Compile Data'!$CK$121:$DH$202,$O103,'Report - ALL (DASHBOARD)'!$W$4) -> 4809.10354 | U103: =INDEX('Compile Data'!$DK$121:$EH$202,$O103,'Report - ALL (DASHBOARD)'!$W$4) -> 
A104: 1997 | B104: =INDEX('Compile Data'!$K$12:$AH$93,$A104-1921,'Report - ALL (DASHBOARD)'!$W$4) -> 6743.971111 | C104: =INDEX('Compile Data'!$AK$12:$BH$93,$A104-1921,'Report - ALL (DASHBOARD)'!$W$4) -> 6746.147787 | D104: =INDEX('Compile Data'!$BK$12:$CH$93,$A104-1921,'Report - ALL (DASHBOARD)'!$W$4) -> 6744.433094 | E104: =INDEX('Compile Data'!$CK$12:$DH$93,$A104-1921,'Report - ALL (DASHBOARD)'!$W$4) -> 6742.882664 | F104: =INDEX('Compile Data'!$DK$12:$EH$93,$A104-1921,'Report - ALL (DASHBOARD)'!$W$4) ->  | O104: 76 | P104: 0.9259259259 | Q104: =INDEX('Compile Data'!$K$121:$AH$202,$O104,'Report - ALL (DASHBOARD)'!$W$4) -> 4756.719086 | R104: =INDEX('Compile Data'!$AK$121:$BH$202,$O104,'Report - ALL (DASHBOARD)'!$W$4) -> 4809.912616 | S104: =INDEX('Compile Data'!$BK$121:$CH$202,$O104,'Report - ALL (DASHBOARD)'!$W$4) -> 4808.940017 | T104: =INDEX('Compile Data'!$CK$121:$DH$202,$O104,'Report - ALL (DASHBOARD)'!$W$4) -> 4782.745392 | U104: =INDEX('Compile Data'!$DK$121:$EH$202,$O104,'Report - ALL (DASHBOARD)'!$W$4) -> 
A105: 1998 | B105: =INDEX('Compile Data'!$K$12:$AH$93,$A105-1921,'Report - ALL (DASHBOARD)'!$W$4) -> 18768.00039 | C105: =INDEX('Compile Data'!$AK$12:$BH$93,$A105-1921,'Report - ALL (DASHBOARD)'!$W$4) -> 18286.59613 | D105: =INDEX('Compile Data'!$BK$12:$CH$93,$A105-1921,'Report - ALL (DASHBOARD)'!$W$4) -> 18286.95064 | E105: =INDEX('Compile Data'!$CK$12:$DH$93,$A105-1921,'Report - ALL (DASHBOARD)'!$W$4) -> 18287.01973 | F105: =INDEX('Compile Data'!$DK$12:$EH$93,$A105-1921,'Report - ALL (DASHBOARD)'!$W$4) ->  | O105: 77 | P105: 0.9382716049 | Q105: =INDEX('Compile Data'!$K$121:$AH$202,$O105,'Report - ALL (DASHBOARD)'!$W$4) -> 4548.736641 | R105: =INDEX('Compile Data'!$AK$121:$BH$202,$O105,'Report - ALL (DASHBOARD)'!$W$4) -> 4613.1833 | S105: =INDEX('Compile Data'!$BK$121:$CH$202,$O105,'Report - ALL (DASHBOARD)'!$W$4) -> 4693.960106 | T105: =INDEX('Compile Data'!$CK$121:$DH$202,$O105,'Report - ALL (DASHBOARD)'!$W$4) -> 4643.398577 | U105: =INDEX('Compile Data'!$DK$121:$EH$202,$O105,'Report - ALL (DASHBOARD)'!$W$4) -> 
A106: 1999 | B106: =INDEX('Compile Data'!$K$12:$AH$93,$A106-1921,'Report - ALL (DASHBOARD)'!$W$4) -> 11728.43429 | C106: =INDEX('Compile Data'!$AK$12:$BH$93,$A106-1921,'Report - ALL (DASHBOARD)'!$W$4) -> 11672.03643 | D106: =INDEX('Compile Data'!$BK$12:$CH$93,$A106-1921,'Report - ALL (DASHBOARD)'!$W$4) -> 11672.06945 | E106: =INDEX('Compile Data'!$CK$12:$DH$93,$A106-1921,'Report - ALL (DASHBOARD)'!$W$4) -> 11672.20143 | F106: =INDEX('Compile Data'!$DK$12:$EH$93,$A106-1921,'Report - ALL (DASHBOARD)'!$W$4) ->  | O106: 78 | P106: 0.950617284 | Q106: =INDEX('Compile Data'!$K$121:$AH$202,$O106,'Report - ALL (DASHBOARD)'!$W$4) -> 4449.231103 | R106: =INDEX('Compile Data'!$AK$121:$BH$202,$O106,'Report - ALL (DASHBOARD)'!$W$4) -> 4436.402669 | S106: =INDEX('Compile Data'!$BK$121:$CH$202,$O106,'Report - ALL (DASHBOARD)'!$W$4) -> 4442.223381 | T106: =INDEX('Compile Data'!$CK$121:$DH$202,$O106,'Report - ALL (DASHBOARD)'!$W$4) -> 4446.72465 | U106: =INDEX('Compile Data'!$DK$121:$EH$202,$O106,'Report - ALL (DASHBOARD)'!$W$4) -> 
A107: 2000 | B107: =INDEX('Compile Data'!$K$12:$AH$93,$A107-1921,'Report - ALL (DASHBOARD)'!$W$4) -> 9710.246101 | C107: =INDEX('Compile Data'!$AK$12:$BH$93,$A107-1921,'Report - ALL (DASHBOARD)'!$W$4) -> 9654.835174 | D107: =INDEX('Compile Data'!$BK$12:$CH$93,$A107-1921,'Report - ALL (DASHBOARD)'!$W$4) -> 9701.369088 | E107: =INDEX('Compile Data'!$CK$12:$DH$93,$A107-1921,'Report - ALL (DASHBOARD)'!$W$4) -> 9701.497597 | F107: =INDEX('Compile Data'!$DK$12:$EH$93,$A107-1921,'Report - ALL (DASHBOARD)'!$W$4) ->  | O107: 79 | P107: 0.962962963 | Q107: =INDEX('Compile Data'!$K$121:$AH$202,$O107,'Report - ALL (DASHBOARD)'!$W$4) -> 4243.280314 | R107: =INDEX('Compile Data'!$AK$121:$BH$202,$O107,'Report - ALL (DASHBOARD)'!$W$4) -> 4232.841769 | S107: =INDEX('Compile Data'!$BK$121:$CH$202,$O107,'Report - ALL (DASHBOARD)'!$W$4) -> 4232.901397 | T107: =INDEX('Compile Data'!$CK$121:$DH$202,$O107,'Report - ALL (DASHBOARD)'!$W$4) -> 4222.657957 | U107: =INDEX('Compile Data'!$DK$121:$EH$202,$O107,'Report - ALL (DASHBOARD)'!$W$4) -> 
A108: 2001 | B108: =INDEX('Compile Data'!$K$12:$AH$93,$A108-1921,'Report - ALL (DASHBOARD)'!$W$4) -> 5417.140342 | C108: =INDEX('Compile Data'!$AK$12:$BH$93,$A108-1921,'Report - ALL (DASHBOARD)'!$W$4) -> 5403.102796 | D108: =INDEX('Compile Data'!$BK$12:$CH$93,$A108-1921,'Report - ALL (DASHBOARD)'!$W$4) -> 5403.179121 | E108: =INDEX('Compile Data'!$CK$12:$DH$93,$A108-1921,'Report - ALL (DASHBOARD)'!$W$4) -> 5403.303792 | F108: =INDEX('Compile Data'!$DK$12:$EH$93,$A108-1921,'Report - ALL (DASHBOARD)'!$W$4) ->  | O108: 80 | P108: 0.975308642 | Q108: =INDEX('Compile Data'!$K$121:$AH$202,$O108,'Report - ALL (DASHBOARD)'!$W$4) -> 4197.813091 | R108: =INDEX('Compile Data'!$AK$121:$BH$202,$O108,'Report - ALL (DASHBOARD)'!$W$4) -> 4082.215187 | S108: =INDEX('Compile Data'!$BK$121:$CH$202,$O108,'Report - ALL (DASHBOARD)'!$W$4) -> 4082.215187 | T108: =INDEX('Compile Data'!$CK$121:$DH$202,$O108,'Report - ALL (DASHBOARD)'!$W$4) -> 4082.215187 | U108: =INDEX('Compile Data'!$DK$121:$EH$202,$O108,'Report - ALL (DASHBOARD)'!$W$4) -> 
A109: 2002 | B109: =INDEX('Compile Data'!$K$12:$AH$93,$A109-1921,'Report - ALL (DASHBOARD)'!$W$4) -> 8177.675171 | C109: =INDEX('Compile Data'!$AK$12:$BH$93,$A109-1921,'Report - ALL (DASHBOARD)'!$W$4) -> 8161.377057 | D109: =INDEX('Compile Data'!$BK$12:$CH$93,$A109-1921,'Report - ALL (DASHBOARD)'!$W$4) -> 8196.28463 | E109: =INDEX('Compile Data'!$CK$12:$DH$93,$A109-1921,'Report - ALL (DASHBOARD)'!$W$4) -> 8196.812473 | F109: =INDEX('Compile Data'!$DK$12:$EH$93,$A109-1921,'Report - ALL (DASHBOARD)'!$W$4) ->  | O109: 81 | P109: 0.987654321 | Q109: =INDEX('Compile Data'!$K$121:$AH$202,$O109,'Report - ALL (DASHBOARD)'!$W$4) -> 4082.215187 | R109: =INDEX('Compile Data'!$AK$121:$BH$202,$O109,'Report - ALL (DASHBOARD)'!$W$4) -> 4014.144355 | S109: =INDEX('Compile Data'!$BK$121:$CH$202,$O109,'Report - ALL (DASHBOARD)'!$W$4) -> 4014.449969 | T109: =INDEX('Compile Data'!$CK$121:$DH$202,$O109,'Report - ALL (DASHBOARD)'!$W$4) -> 4016.056316 | U109: =INDEX('Compile Data'!$DK$121:$EH$202,$O109,'Report - ALL (DASHBOARD)'!$W$4) -> 
A110: 2003 | B110: =INDEX('Compile Data'!$K$12:$AH$93,$A110-1921,'Report - ALL (DASHBOARD)'!$W$4) -> 15180.61986 | C110: =INDEX('Compile Data'!$AK$12:$BH$93,$A110-1921,'Report - ALL (DASHBOARD)'!$W$4) -> 13659.62751 | D110: =INDEX('Compile Data'!$BK$12:$CH$93,$A110-1921,'Report - ALL (DASHBOARD)'!$W$4) -> 13659.59426 | E110: =INDEX('Compile Data'!$CK$12:$DH$93,$A110-1921,'Report - ALL (DASHBOARD)'!$W$4) -> 13659.63063 | F110: =INDEX('Compile Data'!$DK$12:$EH$93,$A110-1921,'Report - ALL (DASHBOARD)'!$W$4) ->  | O110: 82 | P110: 1 | Q110: =INDEX('Compile Data'!$K$121:$AH$202,$O110,'Report - ALL (DASHBOARD)'!$W$4) -> 4054.867217 | R110: =INDEX('Compile Data'!$AK$121:$BH$202,$O110,'Report - ALL (DASHBOARD)'!$W$4) -> 3926.762744 | S110: =INDEX('Compile Data'!$BK$121:$CH$202,$O110,'Report - ALL (DASHBOARD)'!$W$4) -> 3926.800204 | T110: =INDEX('Compile Data'!$CK$121:$DH$202,$O110,'Report - ALL (DASHBOARD)'!$W$4) -> 3942.834638 | U110: =INDEX('Compile Data'!$DK$121:$EH$202,$O110,'Report - ALL (DASHBOARD)'!$W$4) -> 

Sheet Compile Data
B1: =Control!$B$5 -> NAA 111820 | C1: =Control!$B$6 -> ALT1 rev01 PEA | D1: =Control!$B$7 -> ALT1 rev01 PEA WilkSl 10700 A-M | E1: =Control!$B$8 -> ALT1 rev01 PEA WilkSl 10700 F-M | F1: =Control!$B$9 -> 0 | AD1: =$B$8 -> PER-AVER | BD1: =$C$8 -> PER-AVER | CD1: ='Compile Data'!$D$8 -> PER-AVER | DD1: ='Compile Data'!$E$8 -> PER-AVER | ED1: ='Compile Data'!$F$8 -> PER-AVER
A2: Index: | B2: ='Report - ALL (DASHBOARD)'!W2 -> 74 | C2: =B2 -> 74 | D2: 74 | E2: 74 | F2: 74
A3: Convert? | B3: =IF('Report - ALL (DASHBOARD)'!W5,1,0) -> 0 | C3: 0 | D3: 0 | E3: 0 | F3: 0
A4: Column: | B4: =TRIM(VLOOKUP(B$2+2,DSSPathnames!$H$7:$K$189,2)) -> BX | C4: BX | D4: BX | E4: BX | F4: BX
A5: Title: | B5: =TRIM(VLOOKUP(B$2+2,DSSPathnames!$H$7:$K$189,4)) -> Sac R near Wilkins Slough (flow) | C5: =TRIM(VLOOKUP(C$2+2,DSSPathnames!$H$7:$K$189,4)) -> Sac R near Wilkins Slough (flow) | D5: =TRIM(VLOOKUP(D$2+2,DSSPathnames!$H$7:$K$189,4)) -> Sac R near Wilkins Slough (flow) | E5: =TRIM(VLOOKUP(E$2+2,DSSPathnames!$H$7:$K$189,4)) -> Sac R near Wilkins Slough (flow) | F5: =TRIM(VLOOKUP(F$2+2,DSSPathnames!$H$7:$K$189,4)) -> Sac R near Wilkins Slough (flow)
A6: Parameter: | B6: =INDIRECT(CONCATENATE("'",B$1,"'!",B$4,2)) -> C129 | C6: =INDIRECT(CONCATENATE("'",C$1,"'!",C$4,2)) -> C129 | D6: =INDIRECT(CONCATENATE("'",D$1,"'!",D$4,2)) -> C129 | E6: =INDIRECT(CONCATENATE("'",E$1,"'!",E$4,2)) -> C129 | F6: =INDIRECT(CONCATENATE("'",F$1,"'!",F$4,2)) -> 
B7: =INDIRECT(CONCATENATE("'",B$1,"'!",B$4,3)) -> FLOW-CHANNEL | C7: =INDIRECT(CONCATENATE("'",C$1,"'!",C$4,3)) -> FLOW-CHANNEL | D7: =INDIRECT(CONCATENATE("'",D$1,"'!",D$4,3)) -> FLOW-CHANNEL | E7: =INDIRECT(CONCATENATE("'",E$1,"'!",E$4,3)) -> FLOW-CHANNEL | F7: =INDIRECT(CONCATENATE("'",F$1,"'!",F$4,3)) -> 
A8: Type: | B8: =TRIM(VLOOKUP(B$2+2,DSSPathnames!$H$7:$K$189,3)) -> PER-AVER | C8: =TRIM(VLOOKUP(C$2+2,DSSPathnames!$H$7:$K$189,3)) -> PER-AVER | D8: =TRIM(VLOOKUP(D$2+2,DSSPathnames!$H$7:$K$189,3)) -> PER-AVER | E8: =TRIM(VLOOKUP(E$2+2,DSSPathnames!$H$7:$K$189,3)) -> PER-AVER | F8: =TRIM(VLOOKUP(F$2+2,DSSPathnames!$H$7:$K$189,3)) -> PER-AVER | J8: =CONCATENATE(TRIM(B$1),": ",TRIM(B$5)," - ",TRIM(B$6)," ",TRIM(B$7)," (",TRIM(B$10),") ",TRIM(B$11)) -> NAA 111820: Sac R near Wilkins Slough (flow) - C129 FLOW-CHANNEL (CFS) | AJ8: =CONCATENATE(TRIM(C$1),": ",TRIM(C$5)," - ",TRIM(C$6)," ",TRIM(C$7)," (",TRIM(C$10),") ",TRIM(C$11)) -> ALT1 rev01 PEA: Sac R near Wilkins Slough (flow) - C129 FLOW-CHANNEL (CFS) | BJ8: =CONCATENATE(TRIM('Compile Data'!D$1),": ",TRIM('Compile Data'!D$5)," - ",TRIM('Compile Data'!D$6)," ",TRIM('Compile Data'!D$7)," (",TRIM('Compile Data'!D$10),") ",TRIM('Compile Data'!D$11)) -> ALT1 rev01 PEA WilkSl 10700 A-M: Sac R near Wilkins Slough (flow) - C129 FLOW-CHANNEL (CFS) | CJ8: =CONCATENATE(TRIM('Compile Data'!E$1),": ",TRIM('Compile Data'!E$5)," - ",TRIM('Compile Data'!E$6)," ",TRIM('Compile Data'!E$7)," (",TRIM('Compile Data'!E$10),") ",TRIM('Compile Data'!E$11)) -> ALT1 rev01 PEA WilkSl 10700 F-M: Sac R near Wilkins Slough (flow) - C129 FLOW-CHANNEL (CFS) | DJ8: =CONCATENATE(TRIM('Compile Data'!F$1),": ",TRIM('Compile Data'!F$5)," - ",TRIM('Compile Data'!F$6)," ",TRIM('Compile Data'!F$7)," (",TRIM('Compile Data'!F$10),") ",TRIM('Compile Data'!F$11)) -> 
A9: Units-native: | B9: =TRIM(INDIRECT(CONCATENATE("'",B$1,"'!",B$4,11))) -> CFS | C9: =TRIM(INDIRECT(CONCATENATE("'",C$1,"'!",C$4,11))) -> CFS | D9: =TRIM(INDIRECT(CONCATENATE("'",D$1,"'!",D$4,11))) -> CFS | E9: =TRIM(INDIRECT(CONCATENATE("'",E$1,"'!",E$4,11))) -> CFS | F9: =TRIM(INDIRECT(CONCATENATE("'",F$1,"'!",F$4,11))) -> 
A10: Units-shown: | B10: =IF(AND(B$3>0,B$9="CFS"),"TAF",B$9) -> CFS | C10: =IF(AND(C$3>0,C$9="CFS"),"TAF",C$9) -> CFS | D10: =IF(AND(D$3>0,D$9="CFS"),"TAF",D$9) -> CFS | E10: =IF(AND(E$3>0,E$9="CFS"),"TAF",E$9) -> CFS | F10: =IF(AND(F$3>0,F$9="CFS"),"TAF",F$9) ->  | X10: Jan-Dec | Y10: Mar-Feb | Z10: Oct-Sep | AB10: Nov-Mar | AC10: Aug-Oct | AD10: Oct-Jan | AE10: Dec-Feb | AF10: Mar-Jun | AG10: Jun-Sep | AH10: Sep-Nov | AX10: Jan-Dec | AY10: Mar-Feb | AZ10: Oct-Sep | BB10: Nov-Mar | BC10: Aug-Oct | BD10: Oct-Jan | BE10: Dec-Feb | BF10: Mar-Jun | BG10: Jun-Sep | BH10: Sep-Nov | BX10: Jan-Dec | BY10: Mar-Feb | BZ10: Oct-Sep | CB10: Nov-Mar | CC10: Aug-Oct | CD10: Oct-Jan | CE10: Dec-Feb | CF10: Mar-Jun | CG10: Jun-Sep | CH10: Sep-Nov | CX10: Jan-Dec | CY10: Mar-Feb | CZ10: Oct-Sep | DB10: Nov-Mar | DC10: Aug-Oct | DD10: Oct-Jan | DE10: Dec-Feb | DF10: Mar-Jun | DG10: Jun-Sep | DH10: Sep-Nov | DX10: Jan-Dec | DY10: Mar-Feb | DZ10: Oct-Sep | EB10: Nov-Mar | EC10: Aug-Oct | ED10: Oct-Jan | EE10: Dec-Feb | EF10: Mar-Jun | EG10: Jun-Sep | EH10: Sep-Nov
A11: Date | B11: =IF(ISNUMBER(FIND("PRV",B$6)),"SHIFTED","") ->  | C11: =IF(ISNUMBER(FIND("PRV",C$6)),"SHIFTED","") ->  | D11: =IF(ISNUMBER(FIND("PRV",D$6)),"SHIFTED","") ->  | E11: =IF(ISNUMBER(FIND("PRV",E$6)),"SHIFTED","") ->  | F11: =IF(ISNUMBER(FIND("PRV",F$6)),"SHIFTED","") ->  | J11: YEAR | K11: OCT | L11: NOV | M11: DEC | N11: JAN | O11: FEB | P11: MAR | Q11: APR | R11: MAY | S11: JUN | T11: JUL | U11: AUG | V11: SEP | X11: =IF(AND($B$10="TAF",$B$8="PER-AVER"),"TOT","AVG") -> AVG | Y11: =IF(AND($B$10="TAF",$B$8="PER-AVER"),"TOT","AVG") -> AVG | Z11: =IF(AND($B$10="TAF",$B$8="PER-AVER"),"TOT","AVG") -> AVG | AB11: =IF(AND($B$10="TAF",$B$8="PER-AVER"),"TOT","AVG") -> AVG | AC11: AVG | AD11: AVG | AE11: AVG | AF11: AVG | AG11: AVG | AH11: AVG | AJ11: YEAR | AK11: OCT | AL11: NOV | AM11: DEC | AN11: JAN | AO11: FEB | AP11: MAR | AQ11: APR | AR11: MAY | AS11: JUN | AT11: JUL | AU11: AUG | AV11: SEP | AX11: =IF(AND($C$10="TAF",$C$8="PER-AVER"),"TOT","AVG") -> AVG | AY11: =IF(AND($C$10="TAF",$C$8="PER-AVER"),"TOT","AVG") -> AVG | AZ11: =IF(AND($C$10="TAF",$C$8="PER-AVER"),"TOT","AVG") -> AVG | BB11: =IF(AND($B$10="TAF",$B$8="PER-AVER"),"TOT","AVG") -> AVG | BC11: =IF(AND($B$10="TAF",$B$8="PER-AVER"),"TOT","AVG") -> AVG | BD11: =IF(AND($C$10="TAF",$C$8="PER-AVER"),"TOT","AVG") -> AVG | BE11: =IF(AND($C$10="TAF",$C$8="PER-AVER"),"TOT","AVG") -> AVG | BF11: =IF(AND($C$10="TAF",$C$8="PER-AVER"),"TOT","AVG") -> AVG | BG11: =IF(AND($C$10="TAF",$C$8="PER-AVER"),"TOT","AVG") -> AVG | BH11: =IF(AND($C$10="TAF",$C$8="PER-AVER"),"TOT","AVG") -> AVG | BJ11: YEAR | BK11: OCT | BL11: NOV | BM11: DEC | BN11: JAN | BO11: FEB | BP11: MAR | BQ11: APR | BR11: MAY | BS11: JUN | BT11: JUL | BU11: AUG | BV11: SEP | BX11: =IF(AND('Compile Data'!$D$10="TAF",'Compile Data'!$D$8="PER-AVER"),"TOT","AVG") -> AVG | BY11: =IF(AND('Compile Data'!$D$10="TAF",'Compile Data'!$D$8="PER-AVER"),"TOT","AVG") -> AVG | BZ11: =IF(AND('Compile Data'!$D$10="TAF",'Compile Data'!$D$8="PER-AVER"),"TOT","AVG") -> AVG | CB11: =IF(AND($B$10="TAF",$B$8="PER-AVER"),"TOT","AVG") -> AVG | CC11: =IF(AND($B$10="TAF",$B$8="PER-AVER"),"TOT","AVG") -> AVG | CD11: =IF(AND('Compile Data'!$D$10="TAF",'Compile Data'!$D$8="PER-AVER"),"TOT","AVG") -> AVG | CE11: =IF(AND('Compile Data'!$D$10="TAF",'Compile Data'!$D$8="PER-AVER"),"TOT","AVG") -> AVG | CF11: =IF(AND('Compile Data'!$D$10="TAF",'Compile Data'!$D$8="PER-AVER"),"TOT","AVG") -> AVG | CG11: =IF(AND('Compile Data'!$D$10="TAF",'Compile Data'!$D$8="PER-AVER"),"TOT","AVG") -> AVG | CH11: =IF(AND('Compile Data'!$D$10="TAF",'Compile Data'!$D$8="PER-AVER"),"TOT","AVG") -> AVG | CJ11: YEAR | CK11: OCT | CL11: NOV | CM11: DEC | CN11: JAN | CO11: FEB | CP11: MAR | CQ11: APR | CR11: MAY | CS11: JUN | CT11: JUL | CU11: AUG | CV11: SEP | CX11: =IF(AND('Compile Data'!$E$10="TAF",'Compile Data'!$E$8="PER-AVER"),"TOT","AVG") -> AVG | CY11: =IF(AND('Compile Data'!$E$10="TAF",'Compile Data'!$E$8="PER-AVER"),"TOT","AVG") -> AVG | CZ11: =IF(AND('Compile Data'!$E$10="TAF",'Compile Data'!$E$8="PER-AVER"),"TOT","AVG") -> AVG | DB11: =IF(AND($B$10="TAF",$B$8="PER-AVER"),"TOT","AVG") -> AVG | DC11: =IF(AND($B$10="TAF",$B$8="PER-AVER"),"TOT","AVG") -> AVG | DD11: =IF(AND('Compile Data'!$E$10="TAF",'Compile Data'!$E$8="PER-AVER"),"TOT","AVG") -> AVG | DE11: =IF(AND('Compile Data'!$E$10="TAF",'Compile Data'!$E$8="PER-AVER"),"TOT","AVG") -> AVG | DF11: =IF(AND('Compile Data'!$E$10="TAF",'Compile Data'!$E$8="PER-AVER"),"TOT","AVG") -> AVG | DG11: =IF(AND('Compile Data'!$E$10="TAF",'Compile Data'!$E$8="PER-AVER"),"TOT","AVG") -> AVG | DH11: =IF(AND('Compile Data'!$E$10="TAF",'Compile Data'!$E$8="PER-AVER"),"TOT","AVG") -> AVG | DJ11: YEAR | DK11: OCT | DL11: NOV | DM11: DEC | DN11: JAN | DO11: FEB | DP11: MAR | DQ11: APR | DR11: MAY | DS11: JUN | DT11: JUL | DU11: AUG | DV11: SEP | DX11: =IF(AND('Compile Data'!$F$10="TAF",'Compile Data'!$F$8="PER-AVER"),"TOT","AVG") ->  | DY11: =IF(AND('Compile Data'!$F$10="TAF",'Compile Data'!$F$8="PER-AVER"),"TOT","AVG") ->  | DZ11: =IF(AND('Compile Data'!$F$10="TAF",'Compile Data'!$F$8="PER-AVER"),"TOT","AVG") ->  | EB11: =IF(AND($B$10="TAF",$B$8="PER-AVER"),"TOT","AVG") -> AVG | EC11: =IF(AND($B$10="TAF",$B$8="PER-AVER"),"TOT","AVG") -> AVG | ED11: =IF(AND('Compile Data'!$F$10="TAF",'Compile Data'!$F$8="PER-AVER"),"TOT","AVG") ->  | EE11: =IF(AND('Compile Data'!$F$10="TAF",'Compile Data'!$F$8="PER-AVER"),"TOT","AVG") ->  | EF11: =IF(AND('Compile Data'!$F$10="TAF",'Compile Data'!$F$8="PER-AVER"),"TOT","AVG") ->  | EG11: =IF(AND('Compile Data'!$F$10="TAF",'Compile Data'!$F$8="PER-AVER"),"TOT","AVG") ->  | EH11: =IF(AND('Compile Data'!$F$10="TAF",'Compile Data'!$F$8="PER-AVER"),"TOT","AVG") -> 
A12: 1921-09-30 | J12: 1922 | K12: =B13 -> 5432.924101 | L12: =B14 -> 4897.393447 | M12: =B15 -> 9056.72117 | N12: =B16 -> 6841.110244 | O12: =B17 -> 16399.41625 | P12: =B18 -> 8735.451195 | Q12: =B19 -> 10129.78136 | R12: =B20 -> 8028.714348 | S12: =B21 -> 5001.628418 | T12: =B22 -> 4589.447014 | U12: =B23 -> 4518.243477 | V12: =B24 -> 4893.942476 | X12: =IF(X$11="AVG",AVERAGE(N12:V12,K13:M13),SUM(N12:V12,K13:M13)) -> 8057.878962 | Y12: =IF(Y$11="AVG",AVERAGE(P12:V12,K13:O13),SUM(P12:V12,K13:O13)) -> 7677.322168 | Z12: =IF(Z$11="AVG",AVERAGE(K12:V12),SUM(K12:V12)) -> 7377.064458 | AB12: =IF(AB$11="AVG",IF(AD$1="INST-VAL",AVERAGE(K12:O12,L12:P12),AVERAGE(L12:P12)),SUM(L12:P12)) -> 9186.018461 | AC12: =IF(AC$11="AVG",IF(AD$1="INST-VAL",AVERAGE(T12:V12,U12:V12,K13),AVERAGE(U12:V12,K13)),SUM(U12:V12,K13)) -> 5450.47263 | AD12: =IF(AD$11="AVG",IF(AD$1="INST-VAL",AVERAGE(V11,K12:M12,K12:N12),AVERAGE(K12:N12)),SUM(K12:N12)) -> 6557.037241 | AE12: =IF(AE$11="AVG",IF(AD$1="INST-VAL",AVERAGE(L12:N12,M12:O12),AVERAGE(M12:O12)),SUM(M12:O12)) -> 10765.74922 | AF12: =IF(AF$11="AVG",IF(AD$1="INST-VAL",AVERAGE(O12:R12,P12:S12),AVERAGE(P12:S12)),SUM(P12:S12)) -> 7973.89383 | AG12: =IF(AG$11="AVG",IF(AD$1="INST-VAL",AVERAGE(R12:U12,S12:V12),AVERAGE(S12:V12)),SUM(S12:V12)) -> 4750.815346 | AH12: =IF(AH$11="AVG",IF(AD$1="INST-VAL",AVERAGE(U12:V12,K13,V12,K13:L13),AVERAGE(V12,K13:L13)),SUM(V12,K13:L13)) -> 6000.337194 | AJ12: 1922 | AK12: ='Compile Data'!C13 -> 5488.723392 | AL12: ='Compile Data'!C14 -> 4897.393447 | AM12: ='Compile Data'!C15 -> 9060.072922 | AN12: ='Compile Data'!C16 -> 6840.387712 | AO12: ='Compile Data'!C17 -> 15942.96879 | AP12: ='Compile Data'!C18 -> 9713.861933 | AQ12: ='Compile Data'!C19 -> 8744.450021 | AR12: ='Compile Data'!C20 -> 8058.879791 | AS12: ='Compile Data'!C21 -> 5001.628418 | AT12: ='Compile Data'!C22 -> 4589.447014 | AU12: ='Compile Data'!C23 -> 4518.243477 | AV12: ='Compile Data'!C24 -> 5217.105859 | AX12: =IF(AX$11="AVG",AVERAGE(AN12:AV12,AK13:AM13),SUM(AN12:AV12,AK13:AM13)) -> 7940.455536 | AY12: =IF(AY$11="AVG",AVERAGE(AP12:AV12,AK13:AO13),SUM(AP12:AV12,AK13:AO13)) -> 7553.595522 | AZ12: =IF(AZ$11="AVG",AVERAGE(AK12:AV12),SUM(AK12:AV12)) -> 7339.430231 | BB12: =IF(BB$11="AVG",IF(BD$1="INST-VAL",AVERAGE(AK12:AO12,AL12:AP12),AVERAGE(AL12:AP12)),SUM(AL12:AP12)) -> 9290.936961 | BC12: =IF(BC$11="AVG",IF(BD$1="INST-VAL",AVERAGE(AT12:AV12,AU12:AV12,AK13),AVERAGE(AU12:AV12,AK13)),SUM(AU12:AV12,AK13)) -> 5551.210919 | BD12: =IF(BD$11="AVG",IF(BD$1="INST-VAL",AVERAGE(AV11,AK12:AM12,AK12:AN12),AVERAGE(AK12:AN12)),SUM(AK12:AN12)) -> 6571.644368 | BE12: =IF(BE$11="AVG",IF(BD$1="INST-VAL",AVERAGE(AL12:AN12,AM12:AO12),AVERAGE(AM12:AO12)),SUM(AM12:AO12)) -> 10614.47647 | BF12: =IF(BF$11="AVG",IF(BD$1="INST-VAL",AVERAGE(AO12:AR12,AP12:AS12),AVERAGE(AP12:AS12)),SUM(AP12:AS12)) -> 7879.705041 | BG12: =IF(BG$11="AVG",IF(BD$1="INST-VAL",AVERAGE(AR12:AU12,AS12:AV12),AVERAGE(AS12:AV12)),SUM(AS12:AV12)) -> 4831.606192 | BH12: =IF(BH$11="AVG",IF(BD$1="INST-VAL",AVERAGE(AU12:AV12,AK13,AV12,AK13:AL13),AVERAGE(AV12,AK13:AL13)),SUM(AV12,AK13:AL13)) -> 5793.17046 | BJ12: 1922 | BK12: ='Compile Data'!D13 -> 5488.723392 | BL12: ='Compile Data'!D14 -> 4897.393447 | BM12: ='Compile Data'!D15 -> 9060.072922 | BN12: ='Compile Data'!D16 -> 6840.387712 | BO12: ='Compile Data'!D17 -> 15942.96879 | BP12: ='Compile Data'!D18 -> 9713.861933 | BQ12: ='Compile Data'!D19 -> 8801.203618 | BR12: ='Compile Data'!D20 -> 8624.986062 | BS12: ='Compile Data'!D21 -> 5001.628418 | BT12: ='Compile Data'!D22 -> 4589.447014 | BU12: ='Compile Data'!D23 -> 4518.243477 | BV12: ='Compile Data'!D24 -> 5180.925327 | BX12: =IF(BX$11="AVG",AVERAGE(BN12:BV12,BK13:BM13),SUM(BN12:BV12,BK13:BM13)) -> 7992.559636 | BY12: =IF(BY$11="AVG",AVERAGE(BP12:BV12,BK13:BO13),SUM(BP12:BV12,BK13:BO13)) -> 7605.997015 | BZ12: =IF(BZ$11="AVG",AVERAGE(BK12:BV12),SUM(BK12:BV12)) -> 7388.320176 | CB12: =IF(CB$11="AVG",IF(CD$1="INST-VAL",AVERAGE(BK12:BO12,BL12:BP12),AVERAGE(BL12:BP12)),SUM(BL12:BP12)) -> 9290.936961 | CC12: =IF(CC$11="AVG",IF(CD$1="INST-VAL",AVERAGE(BT12:BV12,BU12:BV12,BK13),AVERAGE(BU12:BV12,BK13)),SUM(BU12:BV12,BK13)) -> 5540.371768 | CD12: =IF(CD$11="AVG",IF(CD$1="INST-VAL",AVERAGE(BV11,BK12:BM12,BK12:BN12),AVERAGE(BK12:BN12)),SUM(BK12:BN12)) -> 6571.644368 | CE12: =IF(CE$11="AVG",IF(CD$1="INST-VAL",AVERAGE(BL12:BN12,BM12:BO12),AVERAGE(BM12:BO12)),SUM(BM12:BO12)) -> 10614.47647 | CF12: =IF(CF$11="AVG",IF(CD$1="INST-VAL",AVERAGE(BO12:BR12,BP12:BS12),AVERAGE(BP12:BS12)),SUM(BP12:BS12)) -> 8035.420008 | CG12: =IF(CG$11="AVG",IF(CD$1="INST-VAL",AVERAGE(BR12:BU12,BS12:BV12),AVERAGE(BS12:BV12)),SUM(BS12:BV12)) -> 4822.561059 | CH12: =IF(CH$11="AVG",IF(CD$1="INST-VAL",AVERAGE(BU12:BV12,BK13,BV12,BK13:BL13),AVERAGE(BV12,BK13:BL13)),SUM(BV12,BK13:BL13)) -> 5794.52775 | CJ12: 1922 | CK12: ='Compile Data'!E13 -> 5488.723392 | CL12: ='Compile Data'!E14 -> 4897.393447 | CM12: ='Compile Data'!E15 -> 9060.072922 | CN12: ='Compile Data'!E16 -> 6840.387712 | CO12: ='Compile Data'!E17 -> 15942.96879 | CP12: ='Compile Data'!E18 -> 9967.228478 | CQ12: ='Compile Data'!E19 -> 8787.879502 | CR12: ='Compile Data'!E20 -> 8630.898974 | CS12: ='Compile Data'!E21 -> 5001.628418 | CT12: ='Compile Data'!E22 -> 4589.447014 | CU12: ='Compile Data'!E23 -> 4518.243477 | CV12: ='Compile Data'!E24 -> 5169.172912 | CX12: =IF(CX$11="AVG",AVERAGE(CN12:CV12,CK13:CM13),SUM(CN12:CV12,CK13:CM13)) -> 8013.083961 | CY12: =IF(CY$11="AVG",AVERAGE(CP12:CV12,CK13:CO13),SUM(CP12:CV12,CK13:CO13)) -> 7626.614555 | CZ12: =IF(CZ$11="AVG",AVERAGE(CK12:CV12),SUM(CK12:CV12)) -> 7407.837087 | DB12: =IF(DB$11="AVG",IF(DD$1="INST-VAL",AVERAGE(CK12:CO12,CL12:CP12),AVERAGE(CL12:CP12)),SUM(CL12:CP12)) -> 9341.61027 | DC12: =IF(DC$11="AVG",IF(DD$1="INST-VAL",AVERAGE(CT12:CV12,CU12:CV12,CK13),AVERAGE(CU12:CV12,CK13)),SUM(CU12:CV12,CK13)) -> 5536.761668 | DD12: =IF(DD$11="AVG",IF(DD$1="INST-VAL",AVERAGE(CV11,CK12:CM12,CK12:CN12),AVERAGE(CK12:CN12)),SUM(CK12:CN12)) -> 6571.644368 | DE12: =IF(DE$11="AVG",IF(DD$1="INST-VAL",AVERAGE(CL12:CN12,CM12:CO12),AVERAGE(CM12:CO12)),SUM(CM12:CO12)) -> 10614.47647 | DF12: =IF(DF$11="AVG",IF(DD$1="INST-VAL",AVERAGE(CO12:CR12,CP12:CS12),AVERAGE(CP12:CS12)),SUM(CP12:CS12)) -> 8096.908843 | DG12: =IF(DG$11="AVG",IF(DD$1="INST-VAL",AVERAGE(CR12:CU12,CS12:CV12),AVERAGE(CS12:CV12)),SUM(CS12:CV12)) -> 4819.622955 | DH12: =IF(DH$11="AVG",IF(DD$1="INST-VAL",AVERAGE(CU12:CV12,CK13,CV12,CK13:CL13),AVERAGE(CV12,CK13:CL13)),SUM(CV12,CK13:CL13)) -> 5794.84312 | DJ12: 1922 | DK12: ='Compile Data'!F13 ->  | DL12: ='Compile Data'!F14 ->  | DM12: ='Compile Data'!F15 ->  | DN12: ='Compile Data'!F16 ->  | DO12: ='Compile Data'!F17 ->  | DP12: ='Compile Data'!F18 ->  | DQ12: ='Compile Data'!F19 ->  | DR12: ='Compile Data'!F20 ->  | DS12: ='Compile Data'!F21 ->  | DT12: ='Compile Data'!F22 ->  | DU12: ='Compile Data'!F23 ->  | DV12: ='Compile Data'!F24 ->  | DX12: =IF(DX$11="AVG",AVERAGE(DN12:DV12,DK13:DM13),SUM(DN12:DV12,DK13:DM13)) ->  | DY12: =IF(DY$11="AVG",AVERAGE(DP12:DV12,DK13:DO13),SUM(DP12:DV12,DK13:DO13)) ->  | DZ12: =IF(DZ$11="AVG",AVERAGE(DK12:DV12),SUM(DK12:DV12)) ->  | EB12: =IF(EB$11="AVG",IF(ED$1="INST-VAL",AVERAGE(DK12:DO12,DL12:DP12),AVERAGE(DL12:DP12)),SUM(DL12:DP12)) ->  | EC12: =IF(EC$11="AVG",IF(ED$1="INST-VAL",AVERAGE(DT12:DV12,DU12:DV12,DK13),AVERAGE(DU12:DV12,DK13)),SUM(DU12:DV12,DK13)) ->  | ED12: =IF(ED$11="AVG",IF(ED$1="INST-VAL",AVERAGE(DV11,DK12:DM12,DK12:DN12),AVERAGE(DK12:DN12)),SUM(DK12:DN12)) ->  | EE12: =IF(EE$11="AVG",IF(ED$1="INST-VAL",AVERAGE(DL12:DN12,DM12:DO12),AVERAGE(DM12:DO12)),SUM(DM12:DO12)) ->  | EF12: =IF(EF$11="AVG",IF(ED$1="INST-VAL",AVERAGE(DO12:DR12,DP12:DS12),AVERAGE(DP12:DS12)),SUM(DP12:DS12)) ->  | EG12: =IF(EG$11="AVG",IF(ED$1="INST-VAL",AVERAGE(DR12:DU12,DS12:DV12),AVERAGE(DS12:DV12)),SUM(DS12:DV12)) ->  | EH12: =IF(EH$11="AVG",IF(ED$1="INST-VAL",AVERAGE(DU12:DV12,DK13,DV12,DK13:DL13),AVERAGE(DV12,DK13:DL13)),SUM(DV12,DK13:DL13)) -> 
A13: 1921-10-31 | B13: =INDIRECT(CONCATENATE("'",B$1,"'!",B$4,(YEAR($A13)-1921)*12+MONTH($A13)+3+IF(ISNUMBER(FIND("PRV",B$6)),1,0)))*IF(AND(B$3>0,TRIM(B$9)="CFS"),Conv_Flags!$C13,1) -> 5432.924101 | C13: =INDIRECT(CONCATENATE("'",C$1,"'!",C$4,(YEAR($A13)-1921)*12+MONTH($A13)+3+IF(ISNUMBER(FIND("PRV",C$6)),1,0)))*IF(AND(C$3>0,TRIM(C$9)="CFS"),Conv_Flags!$C13,1) -> 5488.723392 | D13: =INDIRECT(CONCATENATE("'",D$1,"'!",D$4,(YEAR($A13)-1921)*12+MONTH($A13)+3+IF(ISNUMBER(FIND("PRV",D$6)),1,0)))*IF(AND(D$3>0,TRIM(D$9)="CFS"),Conv_Flags!$C13,1) -> 5488.723392 | E13: =INDIRECT(CONCATENATE("'",E$1,"'!",E$4,(YEAR($A13)-1921)*12+MONTH($A13)+3+IF(ISNUMBER(FIND("PRV",E$6)),1,0)))*IF(AND(E$3>0,TRIM(E$9)="CFS"),Conv_Flags!$C13,1) -> 5488.723392 | F13: =INDIRECT(CONCATENATE("'",F$1,"'!",F$4,(YEAR($A13)-1921)*12+MONTH($A13)+3+IF(ISNUMBER(FIND("PRV",F$6)),1,0)))*IF(AND(F$3>0,TRIM(F$9)="CFS"),Conv_Flags!$C13,1) ->  | J13: 1923 | K13: =B25 -> 6939.231939 | L13: =B26 -> 6167.837169 | M13: =B27 -> 14449.74365 | N13: =B28 -> 10356.34545 | O13: =B29 -> 8317.499521 | P13: =B30 -> 5332.530675 | Q13: =B31 -> 8753.080716 | R13: =B32 -> 4164.864166 | S13: =B33 -> 4091.439484 | T13: =B34 -> 4008.944968 | U13: =B35 -> 4010.148067 | V13: =B36 -> 4574.303807 | X13: 5773.1029 | Y13: 5285.281109 | Z13: 6763.830801 | AB13: =IF(AB$11="AVG",IF(AD$1="INST-VAL",AVERAGE(K13:O13,L13:P13),AVERAGE(L13:P13)),SUM(L13:P13)) -> 8924.791294 | AC13: =IF(AC$11="AVG",IF(AD$1="INST-VAL",AVERAGE(T13:V13,U13:V13,K14),AVERAGE(U13:V13,K14)),SUM(U13:V13,K14)) -> 4375.24354 | AD13: =IF(AD$11="AVG",IF(AD$1="INST-VAL",AVERAGE(V12,K13:M13,K13:N13),AVERAGE(K13:N13)),SUM(K13:N13)) -> 9478.289553 | AE13: 11041.19621 | AF13: 5585.47876 | AG13: 4171.209081 | AH13: 4541.841786 | AJ13: 1923 | AK13: ='Compile Data'!C25 -> 6918.283423 | AL13: ='Compile Data'!C26 -> 5244.122098 | AM13: ='Compile Data'!C27 -> 14496.0879 | AN13: ='Compile Data'!C28 -> 9927.913478 | AO13: ='Compile Data'!C29 -> 8213.12285 | AP13: ='Compile Data'!C30 -> 5328.732006 | AQ13: ='Compile Data'!C31 -> 8400.274771 | AR13: ='Compile Data'!C32 -> 4164.864166 | AS13: ='Compile Data'!C33 -> 5016.355239 | AT13: ='Compile Data'!C34 -> 4047.213621 | AU13: ='Compile Data'!C35 -> 4176.107964 | AV13: ='Compile Data'!C36 -> 4096.47868 | AX13: 5794.883995 | AY13: 5338.590414 | AZ13: 6669.129683 | BB13: =IF(BB$11="AVG",IF(BD$1="INST-VAL",AVERAGE(AK13:AO13,AL13:AP13),AVERAGE(AL13:AP13)),SUM(AL13:AP13)) -> 8641.995667 | BC13: =IF(BC$11="AVG",IF(BD$1="INST-VAL",AVERAGE(AT13:AV13,AU13:AV13,AK14),AVERAGE(AU13:AV13,AK14)),SUM(AU13:AV13,AK14)) -> 4403.147381 | BD13: 9146.601725 | BE13: 10879.04141 | BF13: 5727.556546 | BG13: 4334.038876 | BH13: 4514.580429 | BJ13: 1923 | BK13: ='Compile Data'!D25 -> 6921.946502 | BL13: ='Compile Data'!D26 -> 5280.711421 | BM13: ='Compile Data'!D27 -> 14494.40536 | BN13: ='Compile Data'!D28 -> 9928.713359 | BO13: ='Compile Data'!D29 -> 8215.891696 | BP13: ='Compile Data'!D30 -> 5328.814726 | BQ13: ='Compile Data'!D31 -> 8743.939641 | BR13: ='Compile Data'!D32 -> 4164.864166 | BS13: ='Compile Data'!D33 -> 5016.355239 | BT13: ='Compile Data'!D34 -> 4047.378742 | BU13: ='Compile Data'!D35 -> 4174.805795 | BV13: ='Compile Data'!D36 -> 4096.47868 | BX13: 5824.128118 | BY13: 5367.49328 | BZ13: 6701.19211 | CB13: =IF(CB$11="AVG",IF(CD$1="INST-VAL",AVERAGE(BK13:BO13,BL13:BP13),AVERAGE(BL13:BP13)),SUM(BL13:BP13)) -> 8649.707312 | CC13: =IF(CC$11="AVG",IF(CD$1="INST-VAL",AVERAGE(BT13:BV13,BU13:BV13,BK14),AVERAGE(BU13:BV13,BK14)),SUM(BU13:BV13,BK14)) -> 4402.972167 | CD13: 9156.44416 | CE13: 10879.67014 | CF13: 5813.493443 | CG13: 4333.754614 | CH13: 4514.839272 | CJ13: 1923 | CK13: ='Compile Data'!E25 -> 6922.868615 | CL13: ='Compile Data'!E26 -> 5292.487832 | CM13: ='Compile Data'!E27 -> 14493.79581 | CN13: ='Compile Data'!E28 -> 9928.940562 | CO13: ='Compile Data'!E29 -> 8216.783062 | CP13: ='Compile Data'!E30 -> 5328.83422 | CQ13: ='Compile Data'!E31 -> 8744.00728 | CR13: ='Compile Data'!E32 -> 4164.864166 | CS13: ='Compile Data'!E33 -> 5016.355239 | CT13: ='Compile Data'!E34 -> 4047.378742 | CU13: ='Compile Data'!E35 -> 4174.841799 | CV13: ='Compile Data'!E36 -> 4096.47868 | CX13: 5824.241509 | CY13: 5380.258085 | CZ13: 6702.303001 | DB13: 8652.168297 | DC13: 4402.995611 | DD13: 9159.523205 | DE13: 10879.83981 | DF13: 5813.515226 | DG13: 4333.763615 | DH13: 4514.850715 | DJ13: 1923 | DK13: ='Compile Data'!F25 ->  | DL13: ='Compile Data'!F26 ->  | DM13: ='Compile Data'!F27 ->  | DN13: ='Compile Data'!F28 ->  | DO13: ='Compile Data'!F29 ->  | DP13: ='Compile Data'!F30 ->  | DQ13: ='Compile Data'!F31 ->  | DR13: ='Compile Data'!F32 ->  | DS13: ='Compile Data'!F33 ->  | DT13: ='Compile Data'!F34 ->  | DU13: ='Compile Data'!F35 ->  | DV13: ='Compile Data'!F36 -> 
A14: 1921-11-30 | B14: =INDIRECT(CONCATENATE("'",B$1,"'!",B$4,(YEAR($A14)-1921)*12+MONTH($A14)+3+IF(ISNUMBER(FIND("PRV",B$6)),1,0)))*IF(AND(B$3>0,TRIM(B$9)="CFS"),Conv_Flags!$C14,1) -> 4897.393447 | C14: =INDIRECT(CONCATENATE("'",C$1,"'!",C$4,(YEAR($A14)-1921)*12+MONTH($A14)+3+IF(ISNUMBER(FIND("PRV",C$6)),1,0)))*IF(AND(C$3>0,TRIM(C$9)="CFS"),Conv_Flags!$C14,1) -> 4897.393447 | D14: =INDIRECT(CONCATENATE("'",D$1,"'!",D$4,(YEAR($A14)-1921)*12+MONTH($A14)+3+IF(ISNUMBER(FIND("PRV",D$6)),1,0)))*IF(AND(D$3>0,TRIM(D$9)="CFS"),Conv_Flags!$C14,1) -> 4897.393447 | E14: =INDIRECT(CONCATENATE("'",E$1,"'!",E$4,(YEAR($A14)-1921)*12+MONTH($A14)+3+IF(ISNUMBER(FIND("PRV",E$6)),1,0)))*IF(AND(E$3>0,TRIM(E$9)="CFS"),Conv_Flags!$C14,1) -> 4897.393447 | F14: =INDIRECT(CONCATENATE("'",F$1,"'!",F$4,(YEAR($A14)-1921)*12+MONTH($A14)+3+IF(ISNUMBER(FIND("PRV",F$6)),1,0)))*IF(AND(F$3>0,TRIM(F$9)="CFS"),Conv_Flags!$C14,1) ->  | J14: 1924 | K14: =B37 -> 4541.278745 | L14: =B38 -> 4509.942804 | M14: =B39 -> 6616.856394 | N14: =B40 -> 5180.410312 | O14: =B41 -> 7639.57317 | P14: =B42 -> 8167.710673 | Q14: =B43 -> 4054.867217 | R14: =B44 -> 3421.579828 | S14: =B45 -> 5014.863476 | T14: =B46 -> 4245.219135 | U14: =B47 -> 3891.296367 | V14: =B48 -> 4605.447802 | X14: 5154.188335 | Y14: 6691.140446 | Z14: 5157.420494 | AB14: =IF(AB$11="AVG",IF(AD$1="INST-VAL",AVERAGE(K14:O14,L14:P14),AVERAGE(L14:P14)),SUM(L14:P14)) -> 6422.898671 | AC14: =IF(AC$11="AVG",IF(AD$1="INST-VAL",AVERAGE(T14:V14,U14:V14,K15),AVERAGE(U14:V14,K15)),SUM(U14:V14,K15)) -> 4055.398966 | AD14: =IF(AD$11="AVG",IF(AD$1="INST-VAL",AVERAGE(V13,K14:M14,K14:N14),AVERAGE(K14:N14)),SUM(K14:N14)) -> 5212.122064 | AE14: 6478.946626 | AF14: 5164.755299 | AG14: 4439.206695 | AH14: 4243.069718 | AJ14: 1924 | AK14: ='Compile Data'!C37 -> 4936.855498 | AL14: ='Compile Data'!C38 -> 4510.407109 | AM14: ='Compile Data'!C39 -> 6720.282557 | AN14: ='Compile Data'!C40 -> 5176.157672 | AO14: ='Compile Data'!C41 -> 7489.355684 | AP14: ='Compile Data'!C42 -> 8311.960165 | AQ14: ='Compile Data'!C43 -> 4014.144355 | AR14: ='Compile Data'!C44 -> 3421.579828 | AS14: ='Compile Data'!C45 -> 5312.065653 | AT14: ='Compile Data'!C46 -> 5281.757587 | AU14: ='Compile Data'!C47 -> 4368.852055 | AV14: ='Compile Data'!C48 -> 4798.584423 | AX14: 5410.465294 | AY14: 6921.270518 | AZ14: 5361.833549 | BB14: =IF(BB$11="AVG",IF(BD$1="INST-VAL",AVERAGE(AK14:AO14,AL14:AP14),AVERAGE(AL14:AP14)),SUM(AL14:AP14)) -> 6441.632638 | BC14: 4478.128559 | BD14: 5335.925709 | BE14: 6461.931971 | BF14: 5264.9375 | BG14: 4940.31493 | BH14: 4688.087474 | BJ14: 1924 | BK14: ='Compile Data'!D37 -> 4937.632026 | BL14: ='Compile Data'!D38 -> 4510.407109 | BM14: ='Compile Data'!D39 -> 6724.256238 | BN14: ='Compile Data'!D40 -> 5175.259407 | BO14: ='Compile Data'!D41 -> 7489.727585 | BP14: ='Compile Data'!D42 -> 8297.249422 | BQ14: ='Compile Data'!D43 -> 4014.449969 | BR14: ='Compile Data'!D44 -> 3421.579828 | BS14: ='Compile Data'!D45 -> 5261.181146 | BT14: ='Compile Data'!D46 -> 5278.54558 | BU14: ='Compile Data'!D47 -> 4369.465369 | BV14: ='Compile Data'!D48 -> 4798.583659 | BX14: 5375.06506 | BY14: 6885.236766 | BZ14: 5356.528111 | CB14: =IF(CB$11="AVG",IF(CD$1="INST-VAL",AVERAGE(BK14:BO14,BL14:BP14),AVERAGE(BL14:BP14)),SUM(BL14:BP14)) -> 6439.379952 | CC14: 4478.332615 | CD14: 5336.888695 | CE14: 6463.081076 | CF14: 5248.615091 | CG14: 4926.943938 | CH14: 4561.770312 | CJ14: 1924 | CK14: ='Compile Data'!E37 -> 4937.666355 | CL14: ='Compile Data'!E38 -> 4510.407109 | CM14: ='Compile Data'!E39 -> 6724.340892 | CN14: ='Compile Data'!E40 -> 5175.176218 | CO14: ='Compile Data'!E41 -> 7642.746315 | CP14: ='Compile Data'!E42 -> 8293.400625 | CQ14: ='Compile Data'!E43 -> 4016.056316 | CR14: ='Compile Data'!E44 -> 3421.579828 | CS14: ='Compile Data'!E45 -> 5215.23889 | CT14: ='Compile Data'!E46 -> 5278.352673 | CU14: ='Compile Data'!E47 -> 4369.738889 | CV14: ='Compile Data'!E48 -> 4798.71643 | CX14: 5375.391077 | CY14: 6872.620266 | CZ14: 5365.285045 | DB14: 6469.214232 | DC14: 4478.521879 | DD14: 5336.897643 | DE14: 6514.087808 | DF14: 5236.568915 | DG14: 4915.511721 | DH14: 4526.130695 | DJ14: 1924 | DK14: ='Compile Data'!F37 ->  | DL14: ='Compile Data'!F38 ->  | DM14: ='Compile Data'!F39 ->  | DN14: ='Compile Data'!F40 ->  | DO14: ='Compile Data'!F41 ->  | DP14: ='Compile Data'!F42 ->  | DQ14: ='Compile Data'!F43 ->  | DR14: ='Compile Data'!F44 ->  | DS14: ='Compile Data'!F45 ->  | DT14: ='Compile Data'!F46 ->  | DU14: ='Compile Data'!F47 ->  | DV14: ='Compile Data'!F48 -> 
A15: 1921-12-31 | B15: =INDIRECT(CONCATENATE("'",B$1,"'!",B$4,(YEAR($A15)-1921)*12+MONTH($A15)+3+IF(ISNUMBER(FIND("PRV",B$6)),1,0)))*IF(AND(B$3>0,TRIM(B$9)="CFS"),Conv_Flags!$C15,1) -> 9056.72117 | C15: =INDIRECT(CONCATENATE("'",C$1,"'!",C$4,(YEAR($A15)-1921)*12+MONTH($A15)+3+IF(ISNUMBER(FIND("PRV",C$6)),1,0)))*IF(AND(C$3>0,TRIM(C$9)="CFS"),Conv_Flags!$C15,1) -> 9060.072922 | D15: =INDIRECT(CONCATENATE("'",D$1,"'!",D$4,(YEAR($A15)-1921)*12+MONTH($A15)+3+IF(ISNUMBER(FIND("PRV",D$6)),1,0)))*IF(AND(D$3>0,TRIM(D$9)="CFS"),Conv_Flags!$C15,1) -> 9060.072922 | E15: =INDIRECT(CONCATENATE("'",E$1,"'!",E$4,(YEAR($A15)-1921)*12+MONTH($A15)+3+IF(ISNUMBER(FIND("PRV",E$6)),1,0)))*IF(AND(E$3>0,TRIM(E$9)="CFS"),Conv_Flags!$C15,1) -> 9060.072922 | F15: =INDIRECT(CONCATENATE("'",F$1,"'!",F$4,(YEAR($A15)-1921)*12+MONTH($A15)+3+IF(ISNUMBER(FIND("PRV",F$6)),1,0)))*IF(AND(F$3>0,TRIM(F$9)="CFS"),Conv_Flags!$C15,1) ->  | J15: 1925 | K15: =B49 -> 3669.452728 | L15: =B50 -> 4454.308625 | M15: =B51 -> 7505.530686 | N15: =B52 -> 6012.204451 | O15: =B53 -> 25251.20436 | P15: =B54 -> 7706.541462 | Q15: =B55 -> 13457.2059 | R15: =B56 -> 3856.49176 | S15: =B57 -> 4925.918073 | T15: =B58 -> 5927.353218 | U15: =B59 -> 4015.727275 | V15: =B60 -> 4525.547146 | X15: 7535.083389 | Y15: 7469.432643 | Z15: 7608.95714 | AB15: =IF(AB$11="AVG",IF(AD$1="INST-VAL",AVERAGE(K15:O15,L15:P15),AVERAGE(L15:P15)),SUM(L15:P15)) -> 10185.95792 | AC15: 4353.762828 | AD15: 5410.374122 | AE15: 12922.97983 | AF15: 7486.539298 | AG15: 4848.636428 | AH15: 4543.999674 | AJ15: 1925 | AK15: ='Compile Data'!C49 -> 4266.949198 | AL15: ='Compile Data'!C50 -> 4998.728799 | AM15: ='Compile Data'!C51 -> 7485.448103 | AN15: ='Compile Data'!C52 -> 6027.586705 | AO15: ='Compile Data'!C53 -> 24767.58935 | AP15: ='Compile Data'!C54 -> 6495.15966 | AQ15: ='Compile Data'!C55 -> 12569.59653 | AR15: ='Compile Data'!C56 -> 4456.49176 | AS15: ='Compile Data'!C57 -> 4789.17663 | AT15: ='Compile Data'!C58 -> 5820.145765 | AU15: ='Compile Data'!C59 -> 4335.805592 | AV15: ='Compile Data'!C60 -> 4657.45746 | AX15: 7406.168133 | AY15: 7173.970871 | AZ15: 7555.844629 | BB15: =IF(BB$11="AVG",IF(BD$1="INST-VAL",AVERAGE(AK15:AO15,AL15:AP15),AVERAGE(AL15:AP15)),SUM(AL15:AP15)) -> 9954.902524 | BC15: =IF(BC$11="AVG",IF(BD$1="INST-VAL",AVERAGE(AT15:AV15,AU15:AV15,AK16),AVERAGE(AU15:AV15,AK16)),SUM(AU15:AV15,AK16)) -> 4532.064842 | BD15: 5694.678201 | BE15: 12760.20805 | BF15: 7077.606145 | BG15: 4900.646362 | BH15: 4634.934881 | BJ15: 1925 | BK15: ='Compile Data'!D49 -> 4266.948817 | BL15: ='Compile Data'!D50 -> 4619.77846 | BM15: ='Compile Data'!D51 -> 7508.011481 | BN15: ='Compile Data'!D52 -> 6020.590983 | BO15: ='Compile Data'!D53 -> 24766.45648 | BP15: ='Compile Data'!D54 -> 6493.981427 | BQ15: ='Compile Data'!D55 -> 12569.46022 | BR15: ='Compile Data'!D56 -> 4456.49176 | BS15: ='Compile Data'!D57 -> 4768.497067 | BT15: ='Compile Data'!D58 -> 5811.429382 | BU15: ='Compile Data'!D59 -> 4332.138921 | BV15: ='Compile Data'!D60 -> 4657.443326 | BX15: 7402.569509 | BY15: 7171.076912 | BZ15: 7522.60236 | CB15: 9881.763766 | CC15: 4530.832514 | CD15: 5603.832435 | CE15: 12765.01965 | CF15: 7072.107617 | CG15: 4892.377174 | CH15: 4634.916389 | CJ15: 1925 | CK15: ='Compile Data'!E49 -> 4267.110317 | CL15: ='Compile Data'!E50 -> 4512.565338 | CM15: ='Compile Data'!E51 -> 7514.011083 | CN15: ='Compile Data'!E52 -> 6018.570052 | CO15: ='Compile Data'!E53 -> 24766.10274 | CP15: ='Compile Data'!E54 -> 7739.177412 | CQ15: ='Compile Data'!E55 -> 12504.04755 | CR15: ='Compile Data'!E56 -> 4456.49176 | CS15: ='Compile Data'!E57 -> 4716.954875 | CT15: ='Compile Data'!E58 -> 5798.884225 | CU15: ='Compile Data'!E59 -> 4028.514912 | CV15: ='Compile Data'!E60 -> 4642.291992 | CX15: 7461.32968 | CY15: 7237.156955 | CZ15: 7580.393522 | DB15: 10110.08533 | DC15: 4418.709353 | DD15: 5578.064198 | DE15: 12766.22796 | DF15: 7354.167899 | DG15: 4796.661501 | DH15: 4614.043906 | DJ15: 1925 | DK15: ='Compile Data'!F49 ->  | DL15: ='Compile Data'!F50 ->  | DM15: ='Compile Data'!F51 ->  | DN15: ='Compile Data'!F52 ->  | DO15: ='Compile Data'!F53 ->  | DP15: ='Compile Data'!F54 ->  | DQ15: ='Compile Data'!F55 ->  | DR15: ='Compile Data'!F56 ->  | DS15: ='Compile Data'!F57 ->  | DT15: ='Compile Data'!F58 ->  | DU15: ='Compile Data'!F59 ->  | DV15: ='Compile Data'!F60 -> 
A16: 1922-01-31 | B16: =INDIRECT(CONCATENATE("'",B$1,"'!",B$4,(YEAR($A16)-1921)*12+MONTH($A16)+3+IF(ISNUMBER(FIND("PRV",B$6)),1,0)))*IF(AND(B$3>0,TRIM(B$9)="CFS"),Conv_Flags!$C16,1) -> 6841.110244 | C16: =INDIRECT(CONCATENATE("'",C$1,"'!",C$4,(YEAR($A16)-1921)*12+MONTH($A16)+3+IF(ISNUMBER(FIND("PRV",C$6)),1,0)))*IF(AND(C$3>0,TRIM(C$9)="CFS"),Conv_Flags!$C16,1) -> 6840.387712 | D16: =INDIRECT(CONCATENATE("'",D$1,"'!",D$4,(YEAR($A16)-1921)*12+MONTH($A16)+3+IF(ISNUMBER(FIND("PRV",D$6)),1,0)))*IF(AND(D$3>0,TRIM(D$9)="CFS"),Conv_Flags!$C16,1) -> 6840.387712 | E16: =INDIRECT(CONCATENATE("'",E$1,"'!",E$4,(YEAR($A16)-1921)*12+MONTH($A16)+3+IF(ISNUMBER(FIND("PRV",E$6)),1,0)))*IF(AND(E$3>0,TRIM(E$9)="CFS"),Conv_Flags!$C16,1) -> 6840.387712 | F16: =INDIRECT(CONCATENATE("'",F$1,"'!",F$4,(YEAR($A16)-1921)*12+MONTH($A16)+3+IF(ISNUMBER(FIND("PRV",F$6)),1,0)))*IF(AND(F$3>0,TRIM(F$9)="CFS"),Conv_Flags!$C16,1) ->  | J16: 1926 | K16: =B61 -> 4520.014063 | L16: =B62 -> 4586.437813 | M16: =B63 -> 5636.355156 | N16: =B64 -> 8309.653341 | O16: =B65 -> 22165.94651 | P16: =B66 -> 7818.018198 | Q16: =B67 -> 9444.256662 | R16: =B68 -> 5667.291645 | S16: =B69 -> 4762.326388 | T16: =B70 -> 5910.290502 | U16: =B71 -> 3991.367337 | V16: =B72 -> 3911.791038 | X16: 8395.680784 | Y16: 9607.86799 | Z16: 7226.979055 | AB16: 9703.282204 | AC16: 4263.078504 | AD16: 5763.115093 | AE16: 12037.31834 | AF16: 6922.973223 | AG16: 4643.943816 | AH16: 6354.106159 | AJ16: 1926 | AK16: ='Compile Data'!C61 -> 4602.931474 | AL16: ='Compile Data'!C62 -> 4644.415708 | AM16: ='Compile Data'!C63 -> 5707.660959 | AN16: ='Compile Data'!C64 -> 6491.168457 | AO16: ='Compile Data'!C65 -> 21517.64045 | AP16: ='Compile Data'!C66 -> 7659.508982 | AQ16: ='Compile Data'!C67 -> 8941.420189 | AR16: ='Compile Data'!C68 -> 5803.203322 | AS16: ='Compile Data'!C69 -> 5000 | AT16: ='Compile Data'!C70 -> 5724.111494 | AU16: ='Compile Data'!C71 -> 3983.855826 | AV16: ='Compile Data'!C72 -> 4407.021783 | AX16: 8088.299316 | AY16: 9368.442675 | AZ16: 7040.244887 | BB16: 9204.078912 | BC16: 4520.713126 | BD16: 5361.54415 | BE16: 11238.82329 | BF16: 6851.033123 | BG16: 4778.747276 | BH16: 6273.198218 | BJ16: 1926 | BK16: ='Compile Data'!D61 -> 4602.915295 | BL16: ='Compile Data'!D62 -> 4644.390545 | BM16: ='Compile Data'!D63 -> 5707.038704 | BN16: ='Compile Data'!D64 -> 6491.168457 | BO16: ='Compile Data'!D65 -> 21517.96785 | BP16: ='Compile Data'!D66 -> 7204.927092 | BQ16: ='Compile Data'!D67 -> 9451.94068 | BR16: ='Compile Data'!D68 -> 5710.929606 | BS16: ='Compile Data'!D69 -> 5000 | BT16: ='Compile Data'!D70 -> 5704.309394 | BU16: ='Compile Data'!D71 -> 4023.382907 | BV16: ='Compile Data'!D72 -> 4468.160951 | BX16: 8094.772331 | BY16: 9392.62064 | BZ16: 7043.927623 | CB16: 9113.098529 | CC16: 4519.283482 | CD16: 5361.37825 | CE16: 11238.725 | CF16: 6841.949344 | CG16: 4798.963313 | CH16: 6260.992974 | CJ16: 1926 | CK16: ='Compile Data'!E61 -> 4585.321156 | CL16: ='Compile Data'!E62 -> 4614.518572 | CM16: ='Compile Data'!E63 -> 5665.080908 | CN16: ='Compile Data'!E64 -> 6567.752116 | CO16: ='Compile Data'!E65 -> 21526.84799 | CP16: ='Compile Data'!E66 -> 7213.659796 | CQ16: ='Compile Data'!E67 -> 9452.499498 | CR16: ='Compile Data'!E68 -> 5707.19746 | CS16: ='Compile Data'!E69 -> 5000 | CT16: ='Compile Data'!E70 -> 5709.982314 | CU16: ='Compile Data'!E71 -> 4013.684558 | CV16: ='Compile Data'!E72 -> 4465.598507 | CX16: 8101.518881 | CY16: 9384.671132 | CZ16: 7043.511906 | DB16: 9117.571876 | DC16: 4513.969464 | DD16: 5358.168188 | DE16: 11253.227 | DF16: 6843.339189 | DG16: 4797.316345 | DH16: 6258.995825 | DJ16: 1926 | DK16: ='Compile Data'!F61 ->  | DL16: ='Compile Data'!F62 ->  | DM16: ='Compile Data'!F63 ->  | DN16: ='Compile Data'!F64 ->  | DO16: ='Compile Data'!F65 ->  | DP16: ='Compile Data'!F66 ->  | DQ16: ='Compile Data'!F67 ->  | DR16: ='Compile Data'!F68 ->  | DS16: ='Compile Data'!F69 ->  | DT16: ='Compile Data'!F70 ->  | DU16: ='Compile Data'!F71 ->  | DV16: ='Compile Data'!F72 -> 
A17: 1922-02-28 | B17: =INDIRECT(CONCATENATE("'",B$1,"'!",B$4,(YEAR($A17)-1921)*12+MONTH($A17)+3+IF(ISNUMBER(FIND("PRV",B$6)),1,0)))*IF(AND(B$3>0,TRIM(B$9)="CFS"),Conv_Flags!$C17,1) -> 16399.41625 | C17: =INDIRECT(CONCATENATE("'",C$1,"'!",C$4,(YEAR($A17)-1921)*12+MONTH($A17)+3+IF(ISNUMBER(FIND("PRV",C$6)),1,0)))*IF(AND(C$3>0,TRIM(C$9)="CFS"),Conv_Flags!$C17,1) -> 15942.96879 | D17: =INDIRECT(CONCATENATE("'",D$1,"'!",D$4,(YEAR($A17)-1921)*12+MONTH($A17)+3+IF(ISNUMBER(FIND("PRV",D$6)),1,0)))*IF(AND(D$3>0,TRIM(D$9)="CFS"),Conv_Flags!$C17,1) -> 15942.96879 | E17: =INDIRECT(CONCATENATE("'",E$1,"'!",E$4,(YEAR($A17)-1921)*12+MONTH($A17)+3+IF(ISNUMBER(FIND("PRV",E$6)),1,0)))*IF(AND(E$3>0,TRIM(E$9)="CFS"),Conv_Flags!$C17,1) -> 15942.96879 | F17: =INDIRECT(CONCATENATE("'",F$1,"'!",F$4,(YEAR($A17)-1921)*12+MONTH($A17)+3+IF(ISNUMBER(FIND("PRV",F$6)),1,0)))*IF(AND(F$3>0,TRIM(F$9)="CFS"),Conv_Flags!$C17,1) ->  | J17: 1927 | K17: =B73 -> 4886.077139 | L17: =B74 -> 10264.4503 | M17: =B75 -> 13616.70035 | N17: =B76 -> 18012.36626 | O17: =B77 -> 27009.48006 | P17: =B78 -> 15953.83374 | Q17: =B79 -> 19493.68537 | R17: =B80 -> 7392.880617 | S17: =B81 -> 4714.141846 | T17: =B82 -> 6690.776405 | U17: =B83 -> 4735.74505 | V17: =B84 -> 8080.337639 | X17: 11217.98367 | Y17: 9602.356698 | Z17: 11737.53956 | AB17: 16971.36614 | AC17: 6165.022858 | AD17: 11694.89851 | AE17: 19546.18222 | AF17: 11888.63539 | AG17: 6055.250235 | AH17: 7367.720388 | AJ17: 1927 | AK17: ='Compile Data'!C73 -> 5171.26177 | AL17: ='Compile Data'!C74 -> 9241.3111 | AM17: ='Compile Data'!C75 -> 13119.08842 | AN17: ='Compile Data'!C76 -> 16428.71673 | AO17: ='Compile Data'!C77 -> 26941.81249 | AP17: ='Compile Data'!C78 -> 13775.06766 | AQ17: ='Compile Data'!C79 -> 17972.54329 | AR17: ='Compile Data'!C80 -> 7406.843791 | AS17: ='Compile Data'!C81 -> 4714.141846 | AT17: ='Compile Data'!C82 -> 6669.583958 | AU17: ='Compile Data'!C83 -> 4725.609057 | AV17: ='Compile Data'!C84 -> 8097.489723 | AX17: 10674.10207 | AY17: 9136.872801 | AZ17: 11188.62249 | BB17: 15901.19928 | BC17: 6165.515158 | BD17: 10990.0945 | BE17: 18829.87255 | BF17: 10967.14915 | BG17: 6051.706146 | BH17: 7001.046985 | BJ17: 1927 | BK17: ='Compile Data'!D73 -> 5066.306588 | BL17: ='Compile Data'!D74 -> 9248.511384 | BM17: ='Compile Data'!D75 -> 13249.66307 | BN17: ='Compile Data'!D76 -> 16645.06029 | BO17: ='Compile Data'!D77 -> 26938.25573 | BP17: ='Compile Data'!D78 -> 13314.72502 | BQ17: ='Compile Data'!D79 -> 17985.15907 | BR17: ='Compile Data'!D80 -> 7402.552582 | BS17: ='Compile Data'!D81 -> 4714.141846 | BT17: ='Compile Data'!D82 -> 6668.731606 | BU17: ='Compile Data'!D83 -> 4725.43193 | BV17: ='Compile Data'!D84 -> 8097.657438 | BX17: 10654.29005 | BY17: 9099.360103 | BZ17: 11171.34971 | CB17: =IF(CB$11="AVG",IF(CD$1="INST-VAL",AVERAGE(BK17:BO17,BL17:BP17),AVERAGE(BL17:BP17)),SUM(BL17:BP17)) -> 15879.2431 | CC17: =IF(CC$11="AVG",IF(CD$1="INST-VAL",AVERAGE(BT17:BV17,BU17:BV17,BK18),AVERAGE(BU17:BV17,BK18)),SUM(BU17:BV17,BK18)) -> 6165.51457 | CD17: 11052.38533 | CE17: 18944.32636 | CF17: 10854.14463 | CG17: 6051.490705 | CH17: 7001.86749 | CJ17: 1927 | CK17: ='Compile Data'!E73 -> 5062.625328 | CL17: ='Compile Data'!E74 -> 9248.763639 | CM17: ='Compile Data'!E75 -> 13249.61537 | CN17: ='Compile Data'!E76 -> 16552.02633 | CO17: ='Compile Data'!E77 -> 26940.40078 | CP17: ='Compile Data'!E78 -> 13777.44937 | CQ17: ='Compile Data'!E79 -> 17973.80439 | CR17: ='Compile Data'!E80 -> 7407.831926 | CS17: ='Compile Data'!E81 -> 4714.141846 | CT17: ='Compile Data'!E82 -> 6669.99418 | CU17: ='Compile Data'!E83 -> 4725.831545 | CV17: ='Compile Data'!E84 -> 8097.837835 | CX17: 10684.94764 | CY17: 9137.621844 | CZ17: 11201.69354 | DB17: 15953.6511 | DC17: 6165.754963 | DD17: 11028.25767 | DE17: 18914.01416 | DF17: 10968.30688 | DG17: 6051.951352 | DH17: 7001.962077 | DJ17: 1927 | DK17: ='Compile Data'!F73 ->  | DL17: ='Compile Data'!F74 ->  | DM17: ='Compile Data'!F75 ->  | DN17: ='Compile Data'!F76 ->  | DO17: ='Compile Data'!F77 ->  | DP17: ='Compile Data'!F78 ->  | DQ17: ='Compile Data'!F79 ->  | DR17: ='Compile Data'!F80 ->  | DS17: ='Compile Data'!F81 ->  | DT17: ='Compile Data'!F82 ->  | DU17: ='Compile Data'!F83 ->  | DV17: ='Compile Data'!F84 -> 
A18: 1922-03-31 | B18: =INDIRECT(CONCATENATE("'",B$1,"'!",B$4,(YEAR($A18)-1921)*12+MONTH($A18)+3+IF(ISNUMBER(FIND("PRV",B$6)),1,0)))*IF(AND(B$3>0,TRIM(B$9)="CFS"),Conv_Flags!$C18,1) -> 8735.451195 | C18: =INDIRECT(CONCATENATE("'",C$1,"'!",C$4,(YEAR($A18)-1921)*12+MONTH($A18)+3+IF(ISNUMBER(FIND("PRV",C$6)),1,0)))*IF(AND(C$3>0,TRIM(C$9)="CFS"),Conv_Flags!$C18,1) -> 9713.861933 | D18: =INDIRECT(CONCATENATE("'",D$1,"'!",D$4,(YEAR($A18)-1921)*12+MONTH($A18)+3+IF(ISNUMBER(FIND("PRV",D$6)),1,0)))*IF(AND(D$3>0,TRIM(D$9)="CFS"),Conv_Flags!$C18,1) -> 9713.861933 | E18: =INDIRECT(CONCATENATE("'",E$1,"'!",E$4,(YEAR($A18)-1921)*12+MONTH($A18)+3+IF(ISNUMBER(FIND("PRV",E$6)),1,0)))*IF(AND(E$3>0,TRIM(E$9)="CFS"),Conv_Flags!$C18,1) -> 9967.228478 | F18: =INDIRECT(CONCATENATE("'",F$1,"'!",F$4,(YEAR($A18)-1921)*12+MONTH($A18)+3+IF(ISNUMBER(FIND("PRV",F$6)),1,0)))*IF(AND(F$3>0,TRIM(F$9)="CFS"),Conv_Flags!$C18,1) ->  | J18: 1928 | K18: =B85 -> 5678.985884 | L18: =B86 -> 8343.837639 | M18: =B87 -> 8509.733516 | N18: =B88 -> 9527.375334 | O18: =B89 -> 16106.94733 | P18: =B90 -> 21676.2355 | Q18: =B91 -> 11194.4105 | R18: =B92 -> 5538.958735 | S18: =B93 -> 7659.210695 | T18: =B94 -> 9482.474782 | U18: =B95 -> 6979.483824 | V18: =B96 -> 9788.688 | X18: 9755.003735 | Y18: 8941.836925 | Z18: 10040.52848 | AB18: 12832.82586 | AC18: 7509.959494 | AD18: 8014.983093 | AE18: 11381.35206 | AF18: 11517.20386 | AG18: 8477.464325 | AH18: 7659.576998 | AJ18: 1928 | AK18: ='Compile Data'!C85 -> 5673.446694 | AL18: ='Compile Data'!C86 -> 7232.204537 | AM18: ='Compile Data'!C87 -> 8451.76502 | AN18: ='Compile Data'!C88 -> 9154.738419 | AO18: ='Compile Data'!C89 -> 15769.03962 | AP18: ='Compile Data'!C90 -> 20485.10168 | AQ18: ='Compile Data'!C91 -> 10656.15664 | AR18: ='Compile Data'!C92 -> 5673.953752 | AS18: ='Compile Data'!C93 -> 7766.161575 | AT18: ='Compile Data'!C94 -> 9508.518419 | AU18: ='Compile Data'!C95 -> 6818.708686 | AV18: ='Compile Data'!C96 -> 9550.735119 | AX18: 9552.501788 | AY18: 8777.464691 | AZ18: 9728.377514 | BB18: 12218.56986 | BC18: 7273.707919 | BD18: 7628.038667 | BE18: 11125.18102 | BF18: 11145.34341 | BG18: 8411.03095 | BH18: 7610.473284 | BJ18: 1928 | BK18: ='Compile Data'!D85 -> 5673.454341 | BL18: ='Compile Data'!D86 -> 7234.490692 | BM18: ='Compile Data'!D87 -> 8451.820062 | BN18: ='Compile Data'!D88 -> 9154.933767 | BO18: ='Compile Data'!D89 -> 15769.22288 | BP18: ='Compile Data'!D90 -> 20485.27151 | BQ18: ='Compile Data'!D91 -> 10700 | BR18: ='Compile Data'!D92 -> 5672.190735 | BS18: ='Compile Data'!D93 -> 7760.301236 | BT18: ='Compile Data'!D94 -> 9509.344273 | BU18: ='Compile Data'!D95 -> 6820.482566 | BV18: ='Compile Data'!D96 -> 9551.534047 | BX18: 9555.884791 | BY18: 8780.842703 | BZ18: 9731.920508 | CB18: 12219.14778 | CC18: 7274.592662 | CD18: 7628.674715 | CE18: 11125.32557 | CF18: 11154.44087 | CG18: 8410.41553 | CH18: 7610.786923 | CJ18: 1928 | CK18: ='Compile Data'!E85 -> 5673.595509 | CL18: ='Compile Data'!E86 -> 7234.452887 | CM18: ='Compile Data'!E87 -> 8452.005143 | CN18: ='Compile Data'!E88 -> 9155.1147 | CO18: ='Compile Data'!E89 -> 15769.40281 | CP18: ='Compile Data'!E90 -> 20485.43945 | CQ18: ='Compile Data'!E91 -> 10700 | CR18: ='Compile Data'!E92 -> 5670.358665 | CS18: ='Compile Data'!E93 -> 7753.303558 | CT18: ='Compile Data'!E94 -> 9509.969225 | CU18: ='Compile Data'!E95 -> 6822.940199 | CV18: ='Compile Data'!E96 -> 9552.642442 | CX18: 9555.593549 | CY18: 8801.714331 | CZ18: 9731.602049 | DB18: =IF(DB$11="AVG",IF(DD$1="INST-VAL",AVERAGE(CK18:CO18,CL18:CP18),AVERAGE(CL18:CP18)),SUM(CL18:CP18)) -> 12219.283 | DC18: =IF(DC$11="AVG",IF(DD$1="INST-VAL",AVERAGE(CT18:CV18,CU18:CV18,CK19),AVERAGE(CU18:CV18,CK19)),SUM(CU18:CV18,CK19)) -> 7275.831723 | DD18: 7628.79206 | DE18: 11125.50755 | DF18: 11152.27542 | DG18: 8409.713856 | DH18: 7611.231633 | DJ18: 1928 | DK18: ='Compile Data'!F85 ->  | DL18: ='Compile Data'!F86 ->  | DM18: ='Compile Data'!F87 ->  | DN18: ='Compile Data'!F88 ->  | DO18: ='Compile Data'!F89 ->  | DP18: ='Compile Data'!F90 ->  | DQ18: ='Compile Data'!F91 ->  | DR18: ='Compile Data'!F92 ->  | DS18: ='Compile Data'!F93 ->  | DT18: ='Compile Data'!F94 ->  | DU18: ='Compile Data'!F95 ->  | DV18: ='Compile Data'!F96 ->  | EB18: =IF(EB$11="AVG",IF(ED$1="INST-VAL",AVERAGE(DK18:DO18,DL18:DP18),AVERAGE(DL18:DP18)),SUM(DL18:DP18)) ->  | EC18: =IF(EC$11="AVG",IF(ED$1="INST-VAL",AVERAGE(DT18:DV18,DU18:DV18,DK19),AVERAGE(DU18:DV18,DK19)),SUM(DU18:DV18,DK19)) -> 
A19: 1922-04-30 | B19: =INDIRECT(CONCATENATE("'",B$1,"'!",B$4,(YEAR($A19)-1921)*12+MONTH($A19)+3+IF(ISNUMBER(FIND("PRV",B$6)),1,0)))*IF(AND(B$3>0,TRIM(B$9)="CFS"),Conv_Flags!$C19,1) -> 10129.78136 | C19: =INDIRECT(CONCATENATE("'",C$1,"'!",C$4,(YEAR($A19)-1921)*12+MONTH($A19)+3+IF(ISNUMBER(FIND("PRV",C$6)),1,0)))*IF(AND(C$3>0,TRIM(C$9)="CFS"),Conv_Flags!$C19,1) -> 8744.450021 | D19: =INDIRECT(CONCATENATE("'",D$1,"'!",D$4,(YEAR($A19)-1921)*12+MONTH($A19)+3+IF(ISNUMBER(FIND("PRV",D$6)),1,0)))*IF(AND(D$3>0,TRIM(D$9)="CFS"),Conv_Flags!$C19,1) -> 8801.203618 | E19: =INDIRECT(CONCATENATE("'",E$1,"'!",E$4,(YEAR($A19)-1921)*12+MONTH($A19)+3+IF(ISNUMBER(FIND("PRV",E$6)),1,0)))*IF(AND(E$3>0,TRIM(E$9)="CFS"),Conv_Flags!$C19,1) -> 8787.879502 | F19: =INDIRECT(CONCATENATE("'",F$1,"'!",F$4,(YEAR($A19)-1921)*12+MONTH($A19)+3+IF(ISNUMBER(FIND("PRV",F$6)),1,0)))*IF(AND(F$3>0,TRIM(F$9)="CFS"),Conv_Flags!$C19,1) ->  | J19: 1929 | K19: =B97 -> 5761.706658 | L19: =B98 -> 7428.336336 | M19: =B99 -> 5916.21713 | N19: =B100 -> 5657.150104 | O19: =B101 -> 10219.17083 | P19: =B102 -> 5616.917272 | Q19: =B103 -> 5483.18405 | R19: =B104 -> 5215.105791 | S19: =B105 -> 4961.296689 | T19: =B106 -> 3705.542005 | U19: =B107 -> 5922.576558 | V19: =B108 -> 3867.194299 | X19: 6009.79118 | Y19: 6610.567278 | Z19: 5812.866477 | AB19: 6967.558335 | AC19: 4915.110782 | AD19: 6190.852557 | AE19: 7264.179356 | AF19: 5319.125951 | AG19: 4614.152388 | AH19: 4679.121169 | AJ19: 1929 | AK19: ='Compile Data'!C97 -> 5451.679951 | AL19: ='Compile Data'!C98 -> 7829.004782 | AM19: ='Compile Data'!C99 -> 5966.222811 | AN19: ='Compile Data'!C100 -> 5655.658475 | AO19: ='Compile Data'!C101 -> 9967.674401 | AP19: ='Compile Data'!C102 -> 5626.450269 | AQ19: ='Compile Data'!C103 -> 5479.441313 | AR19: ='Compile Data'!C104 -> 4370.833539 | AS19: ='Compile Data'!C105 -> 5403.542697 | AT19: ='Compile Data'!C106 -> 4721.705143 | AU19: ='Compile Data'!C107 -> 6752.920096 | AV19: ='Compile Data'!C108 -> 4534.882522 | AX19: 6240.470559 | AY19: 6817.388322 | AZ19: 5980.001333 | BB19: 7009.002148 | BC19: 5617.27307 | BD19: 6225.641505 | BE19: 7196.518562 | BF19: 5220.066955 | BG19: 5353.262615 | BH19: 5175.043909 | BJ19: 1929 | BK19: ='Compile Data'!D97 -> 5451.761373 | BL19: ='Compile Data'!D98 -> 7829.065349 | BM19: ='Compile Data'!D99 -> 5966.509769 | BN19: ='Compile Data'!D100 -> 5655.810557 | BO19: ='Compile Data'!D101 -> 9967.841032 | BP19: ='Compile Data'!D102 -> 5626.607736 | BQ19: ='Compile Data'!D103 -> 5479.440604 | BR19: ='Compile Data'!D104 -> 4370.04106 | BS19: ='Compile Data'!D105 -> 5401.568267 | BT19: ='Compile Data'!D106 -> 4719.269471 | BU19: ='Compile Data'!D107 -> 6752.817246 | BV19: ='Compile Data'!D108 -> 4534.882634 | BX19: 6239.740684 | BY19: 6816.635826 | BZ19: 5979.634592 | CB19: 7009.166889 | CC19: 5615.857997 | CD19: 6225.786762 | CE19: 7196.720453 | CF19: 5219.414417 | CG19: 5352.134405 | CH19: 5173.662964 | CJ19: 1929 | CK19: ='Compile Data'!E97 -> 5451.912527 | CL19: ='Compile Data'!E98 -> 7829.13993 | CM19: ='Compile Data'!E99 -> 5966.899092 | CN19: ='Compile Data'!E100 -> 5656.0173 | CO19: ='Compile Data'!E101 -> 10221.94959 | CP19: ='Compile Data'!E102 -> 5616.977394 | CQ19: ='Compile Data'!E103 -> 5479.43922 | CR19: ='Compile Data'!E104 -> 4369.656119 | CS19: ='Compile Data'!E105 -> 5399.184908 | CT19: ='Compile Data'!E106 -> 4731.129194 | CU19: ='Compile Data'!E107 -> 6734.59134 | CV19: ='Compile Data'!E108 -> 4534.816378 | CX19: 6261.236327 | CY19: 6817.023295 | CZ19: 5999.309416 | DB19: 7058.19666 | DC19: 5617.217457 | DD19: 6225.992212 | DE19: 7281.621993 | DF19: 5216.31441 | DG19: 5349.930455 | DH19: 5181.09831 | DJ19: 1929 | DK19: ='Compile Data'!F97 ->  | DL19: ='Compile Data'!F98 ->  | DM19: ='Compile Data'!F99 ->  | DN19: ='Compile Data'!F100 ->  | DO19: ='Compile Data'!F101 ->  | DP19: ='Compile Data'!F102 ->  | DQ19: ='Compile Data'!F103 ->  | DR19: ='Compile Data'!F104 ->  | DS19: ='Compile Data'!F105 ->  | DT19: ='Compile Data'!F106 ->  | DU19: ='Compile Data'!F107 ->  | DV19: ='Compile Data'!F108 -> 
A20: 1922-05-31 | B20: =INDIRECT(CONCATENATE("'",B$1,"'!",B$4,(YEAR($A20)-1921)*12+MONTH($A20)+3+IF(ISNUMBER(FIND("PRV",B$6)),1,0)))*IF(AND(B$3>0,TRIM(B$9)="CFS"),Conv_Flags!$C20,1) -> 8028.714348 | C20: =INDIRECT(CONCATENATE("'",C$1,"'!",C$4,(YEAR($A20)-1921)*12+MONTH($A20)+3+IF(ISNUMBER(FIND("PRV",C$6)),1,0)))*IF(AND(C$3>0,TRIM(C$9)="CFS"),Conv_Flags!$C20,1) -> 8058.879791 | D20: =INDIRECT(CONCATENATE("'",D$1,"'!",D$4,(YEAR($A20)-1921)*12+MONTH($A20)+3+IF(ISNUMBER(FIND("PRV",D$6)),1,0)))*IF(AND(D$3>0,TRIM(D$9)="CFS"),Conv_Flags!$C20,1) -> 8624.986062 | E20: =INDIRECT(CONCATENATE("'",E$1,"'!",E$4,(YEAR($A20)-1921)*12+MONTH($A20)+3+IF(ISNUMBER(FIND("PRV",E$6)),1,0)))*IF(AND(E$3>0,TRIM(E$9)="CFS"),Conv_Flags!$C20,1) -> 8630.898974 | F20: =INDIRECT(CONCATENATE("'",F$1,"'!",F$4,(YEAR($A20)-1921)*12+MONTH($A20)+3+IF(ISNUMBER(FIND("PRV",F$6)),1,0)))*IF(AND(F$3>0,TRIM(F$9)="CFS"),Conv_Flags!$C20,1) ->  | J20: 1930 | K20: =B109 -> 4955.561488 | L20: =B110 -> 5214.60772 | M20: =B111 -> 11299.18735 | N20: =B112 -> 9593.380411 | O20: =B113 -> 13492.25369 | P20: =B114 -> 14678.95318 | Q20: =B115 -> 5481.61072 | R20: =B116 -> 3528.398285 | S20: =B117 -> 3335.266762 | T20: =B118 -> 3284.370934 | U20: =B119 -> 4173.292354 | V20: =B120 -> 3289.278034 | X20: 6212.765367 | Y20: 5507.990861 | Z20: 6860.513411 | AB20: 10855.67647 | AC20: 4055.924504 | AD20: 7765.684243 | AE20: 11461.60715 | AF20: 6756.057237 | AG20: 3520.552021 | AH20: 4095.172826 | AJ20: 1930 | AK20: ='Compile Data'!C109 -> 5564.016591 | AL20: ='Compile Data'!C110 -> 5426.232612 | AM20: ='Compile Data'!C111 -> 11382.28905 | AN20: ='Compile Data'!C112 -> 9275.906806 | AO20: ='Compile Data'!C113 -> 13270.43923 | AP20: ='Compile Data'!C114 -> 13825.3461 | AQ20: ='Compile Data'!C115 -> 5495.150153 | AR20: ='Compile Data'!C116 -> 3528.398285 | AS20: ='Compile Data'!C117 -> 3335.266762 | AT20: ='Compile Data'!C118 -> 3594.29042 | AU20: ='Compile Data'!C119 -> 3264.521138 | AV20: ='Compile Data'!C120 -> 3314.825546 | AX20: 6020.999953 | AY20: 5302.835401 | AZ20: 6773.056891 | BB20: 10636.04276 | BC20: 3638.090543 | BD20: 7912.111264 | BE20: 11309.54503 | BF20: 6546.040325 | BG20: 3377.225967 | BH20: 3988.260345 | BJ20: 1930 | BK20: ='Compile Data'!D109 -> 5559.87411 | BL20: ='Compile Data'!D110 -> 5426.232149 | BM20: ='Compile Data'!D111 -> 11382.50334 | BN20: ='Compile Data'!D112 -> 9275.901469 | BO20: ='Compile Data'!D113 -> 13270.49182 | BP20: ='Compile Data'!D114 -> 13825.4242 | BQ20: ='Compile Data'!D115 -> 5495.20084 | BR20: ='Compile Data'!D116 -> 3528.398285 | BS20: ='Compile Data'!D117 -> 3335.266762 | BT20: ='Compile Data'!D118 -> 3647.617782 | BU20: ='Compile Data'!D119 -> 3420.026641 | BV20: ='Compile Data'!D120 -> 3314.836839 | BX20: 6038.740303 | BY20: 5320.628651 | BZ20: 6790.147854 | CB20: 10636.1106 | CC20: 3690.814486 | CD20: 7911.127767 | CE20: 11309.63221 | CF20: 6546.072523 | CG20: 3429.437006 | CH20: 3989.131974 | CJ20: 1930 | CK20: ='Compile Data'!E109 -> 5582.244654 | CL20: ='Compile Data'!E110 -> 5426.2339 | CM20: ='Compile Data'!E111 -> 11382.59593 | CN20: ='Compile Data'!E112 -> 9276.518544 | CO20: ='Compile Data'!E113 -> 13270.89196 | CP20: ='Compile Data'!E114 -> 13825.70886 | CQ20: ='Compile Data'!E115 -> 5495.773782 | CR20: ='Compile Data'!E116 -> 3528.398285 | CS20: ='Compile Data'!E117 -> 3335.266762 | CT20: ='Compile Data'!E118 -> 3554.535269 | CU20: ='Compile Data'!E119 -> 3264.514749 | CV20: ='Compile Data'!E120 -> 3314.797447 | CX20: 6016.606331 | CY20: 5355.702835 | CZ20: 6771.456679 | DB20: 10636.38984 | DC20: 3633.067488 | DD20: 7916.898257 | DE20: 11310.00215 | DF20: 6546.286923 | DG20: 3367.278557 | DH20: 3983.346865 | DJ20: 1930 | DK20: ='Compile Data'!F109 ->  | DL20: ='Compile Data'!F110 ->  | DM20: ='Compile Data'!F111 ->  | DN20: ='Compile Data'!F112 ->  | DO20: ='Compile Data'!F113 ->  | DP20: ='Compile Data'!F114 ->  | DQ20: ='Compile Data'!F115 ->  | DR20: ='Compile Data'!F116 ->  | DS20: ='Compile Data'!F117 ->  | DT20: ='Compile Data'!F118 ->  | DU20: ='Compile Data'!F119 ->  | DV20: ='Compile Data'!F120 -> 
A21: 1922-06-30 | B21: =INDIRECT(CONCATENATE("'",B$1,"'!",B$4,(YEAR($A21)-1921)*12+MONTH($A21)+3+IF(ISNUMBER(FIND("PRV",B$6)),1,0)))*IF(AND(B$3>0,TRIM(B$9)="CFS"),Conv_Flags!$C21,1) -> 5001.628418 | C21: =INDIRECT(CONCATENATE("'",C$1,"'!",C$4,(YEAR($A21)-1921)*12+MONTH($A21)+3+IF(ISNUMBER(FIND("PRV",C$6)),1,0)))*IF(AND(C$3>0,TRIM(C$9)="CFS"),Conv_Flags!$C21,1) -> 5001.628418 | D21: =INDIRECT(CONCATENATE("'",D$1,"'!",D$4,(YEAR($A21)-1921)*12+MONTH($A21)+3+IF(ISNUMBER(FIND("PRV",D$6)),1,0)))*IF(AND(D$3>0,TRIM(D$9)="CFS"),Conv_Flags!$C21,1) -> 5001.628418 | E21: =INDIRECT(CONCATENATE("'",E$1,"'!",E$4,(YEAR($A21)-1921)*12+MONTH($A21)+3+IF(ISNUMBER(FIND("PRV",E$6)),1,0)))*IF(AND(E$3>0,TRIM(E$9)="CFS"),Conv_Flags!$C21,1) -> 5001.628418 | F21: =INDIRECT(CONCATENATE("'",F$1,"'!",F$4,(YEAR($A21)-1921)*12+MONTH($A21)+3+IF(ISNUMBER(FIND("PRV",F$6)),1,0)))*IF(AND(F$3>0,TRIM(F$9)="CFS"),Conv_Flags!$C21,1) ->  | J21: 1931 | K21: =B121 -> 4705.203123 | L21: =B122 -> 4291.03732 | M21: =B123 -> 4700.139589 | N21: =B124 -> 8472.12636 | O21: =B125 -> 6156.213673 | P21: =B126 -> 5240.027574 | Q21: =B127 -> 4197.813091 | R21: =B128 -> 3319.405746 | S21: =B129 -> 3284.9254 | T21: =B130 -> 3620.286639 | U21: =B131 -> 3851.258445 | V21: =B132 -> 4634.043882 | X21: 5466.074456 | Y21: 5489.017364 | Z21: 4706.04007 | AB21: 5771.908903 | AC21: 4506.969347 | AD21: 5542.126598 | AE21: 6442.826541 | AF21: 4010.542953 | AG21: 3847.628592 | AH21: 4768.060479 | AJ21: 1931 | AK21: ='Compile Data'!C121 -> 4334.924945 | AL21: ='Compile Data'!C122 -> 4315.030545 | AM21: ='Compile Data'!C123 -> 4697.899503 | AN21: ='Compile Data'!C124 -> 8464.628252 | AO21: ='Compile Data'!C125 -> 5463.743167 | AP21: ='Compile Data'!C126 -> 5269.969462 | AQ21: ='Compile Data'!C127 -> 3926.762744 | AR21: ='Compile Data'!C128 -> 3319.405746 | AS21: ='Compile Data'!C129 -> 3284.9254 | AT21: ='Compile Data'!C130 -> 3543.963187 | AU21: ='Compile Data'!C131 -> 3894.661394 | AV21: ='Compile Data'!C132 -> 4683.049924 | AX21: 5292.672384 | AY21: 5232.945764 | AZ21: 4599.913689 | BB21: 5642.254186 | BC21: 4412.29521 | BD21: 5453.120811 | BE21: 6208.756974 | BF21: 3950.265838 | BG21: 3851.649976 | BH21: 4585.134382 | BJ21: 1931 | BK21: ='Compile Data'!D121 -> 4337.579977 | BL21: ='Compile Data'!D122 -> 4314.979107 | BM21: ='Compile Data'!D123 -> 4699.159912 | BN21: ='Compile Data'!D124 -> 8465.244421 | BO21: ='Compile Data'!D125 -> 5463.809047 | BP21: ='Compile Data'!D126 -> 5270.234668 | BQ21: ='Compile Data'!D127 -> 3926.800204 | BR21: ='Compile Data'!D128 -> 3319.405746 | BS21: ='Compile Data'!D129 -> 3284.9254 | BT21: ='Compile Data'!D130 -> 3544.368816 | BU21: ='Compile Data'!D131 -> 3894.703862 | BV21: ='Compile Data'!D132 -> 4683.049367 | BX21: 5292.920522 | BY21: 5233.254159 | BZ21: 4600.355044 | CB21: 5642.685431 | CC21: 4412.787086 | CD21: 5454.240854 | CE21: 6209.40446 | CF21: 3950.341505 | CG21: 3851.761861 | CH21: 4585.606227 | CJ21: 1931 | CK21: ='Compile Data'!E121 -> 4319.890267 | CL21: ='Compile Data'!E122 -> 4315.35288 | CM21: ='Compile Data'!E123 -> 4697.627167 | CN21: ='Compile Data'!E124 -> 8464.604956 | CO21: ='Compile Data'!E125 -> 6151.9636 | CP21: ='Compile Data'!E126 -> 5235.291447 | CQ21: ='Compile Data'!E127 -> 3942.834638 | CR21: ='Compile Data'!E128 -> 3319.405746 | CS21: ='Compile Data'!E129 -> 3284.9254 | CT21: ='Compile Data'!E130 -> 3384.206563 | CU21: ='Compile Data'!E131 -> 3789.273227 | CV21: ='Compile Data'!E132 -> 4634.014954 | CX21: 5321.187749 | CY21: 5313.298112 | CZ21: 4628.28257 | DB21: 5772.96801 | DC21: 4354.851049 | DD21: 5449.368817 | DE21: 6438.065241 | DF21: 3945.614308 | DG21: 3773.105036 | DH21: 4564.987837 | DJ21: 1931 | DK21: ='Compile Data'!F121 ->  | DL21: ='Compile Data'!F122 ->  | DM21: ='Compile Data'!F123 ->  | DN21: ='Compile Data'!F124 ->  | DO21: ='Compile Data'!F125 ->  | DP21: ='Compile Data'!F126 ->  | DQ21: ='Compile Data'!F127 ->  | DR21: ='Compile Data'!F128 ->  | DS21: ='Compile Data'!F129 ->  | DT21: ='Compile Data'!F130 ->  | DU21: ='Compile Data'!F131 ->  | DV21: ='Compile Data'!F132 -> 
A22: 1922-07-31 | B22: =INDIRECT(CONCATENATE("'",B$1,"'!",B$4,(YEAR($A22)-1921)*12+MONTH($A22)+3+IF(ISNUMBER(FIND("PRV",B$6)),1,0)))*IF(AND(B$3>0,TRIM(B$9)="CFS"),Conv_Flags!$C22,1) -> 4589.447014 | C22: =INDIRECT(CONCATENATE("'",C$1,"'!",C$4,(YEAR($A22)-1921)*12+MONTH($A22)+3+IF(ISNUMBER(FIND("PRV",C$6)),1,0)))*IF(AND(C$3>0,TRIM(C$9)="CFS"),Conv_Flags!$C22,1) -> 4589.447014 | D22: =INDIRECT(CONCATENATE("'",D$1,"'!",D$4,(YEAR($A22)-1921)*12+MONTH($A22)+3+IF(ISNUMBER(FIND("PRV",D$6)),1,0)))*IF(AND(D$3>0,TRIM(D$9)="CFS"),Conv_Flags!$C22,1) -> 4589.447014 | E22: =INDIRECT(CONCATENATE("'",E$1,"'!",E$4,(YEAR($A22)-1921)*12+MONTH($A22)+3+IF(ISNUMBER(FIND("PRV",E$6)),1,0)))*IF(AND(E$3>0,TRIM(E$9)="CFS"),Conv_Flags!$C22,1) -> 4589.447014 | F22: =INDIRECT(CONCATENATE("'",F$1,"'!",F$4,(YEAR($A22)-1921)*12+MONTH($A22)+3+IF(ISNUMBER(FIND("PRV",F$6)),1,0)))*IF(AND(F$3>0,TRIM(F$9)="CFS"),Conv_Flags!$C22,1) ->  | J22: 1932 | K22: =B133 -> 5035.605713 | L22: =B134 -> 4634.531842 | M22: =B135 -> 13146.6551 | N22: =B136 -> 8100.929714 | O22: =B137 -> 6802.725223 | P22: =B138 -> 8101.060354 | Q22: =B139 -> 4995.332653 | R22: =B140 -> 3691.68512 | S22: =B141 -> 3560.690094 | T22: =B142 -> 3441.378609 | U22: =B143 -> 3404.78006 | V22: =B144 -> 3515.49195 | X22: 4776.263117 | Y22: 4656.327236 | Z22: 5702.572203 | AB22: 8157.180447 | AC22: 3441.492752 | AD22: 7729.430593 | AE22: 9350.103346 | AF22: 5087.192055 | AG22: 3480.585178 | AH22: 3457.104711 | AJ22: 1932 | AK22: ='Compile Data'!C133 -> 4659.174311 | AL22: ='Compile Data'!C134 -> 4413.178912 | AM22: ='Compile Data'!C135 -> 12588.60611 | AN22: ='Compile Data'!C136 -> 7724.0417 | AO22: ='Compile Data'!C137 -> 5487.610271 | AP22: ='Compile Data'!C138 -> 8150.868753 | AQ22: ='Compile Data'!C139 -> 5200.991643 | AR22: ='Compile Data'!C140 -> 3691.68512 | AS22: ='Compile Data'!C141 -> 3560.690094 | AT22: ='Compile Data'!C142 -> 3441.378609 | AU22: ='Compile Data'!C143 -> 3416.418818 | AV22: ='Compile Data'!C144 -> 3564.578957 | AX22: 4672.222029 | AY22: 4645.068217 | AZ22: 5491.601942 | BB22: 7672.86115 | BC22: 3481.547912 | BD22: 7346.250259 | BE22: 8600.086028 | BF22: 5151.058903 | BG22: 3495.766619 | BH22: 3507.593101 | BJ22: 1932 | BK22: ='Compile Data'!D133 -> 4660.608027 | BL22: ='Compile Data'!D134 -> 4413.161288 | BM22: ='Compile Data'!D135 -> 12588.73541 | BN22: ='Compile Data'!D136 -> 7725.425241 | BO22: ='Compile Data'!D137 -> 5487.631869 | BP22: ='Compile Data'!D138 -> 8151.172725 | BQ22: ='Compile Data'!D139 -> 5201.061131 | BR22: ='Compile Data'!D140 -> 3691.68512 | BS22: ='Compile Data'!D141 -> 3560.690094 | BT22: ='Compile Data'!D142 -> 3441.378609 | BU22: ='Compile Data'!D143 -> 3416.41891 | BV22: ='Compile Data'!D144 -> 3564.671337 | BX22: 4672.392421 | BY22: 4645.128411 | BZ22: 5491.886647 | CB22: 7673.225308 | CC22: 3481.578893 | CD22: 7346.982493 | CE22: 8600.597508 | CF22: 5151.152268 | CG22: 3495.789737 | CH22: 3507.65427 | CJ22: 1932 | CK22: ='Compile Data'!E133 -> 4641.264967 | CL22: ='Compile Data'!E134 -> 4419.683591 | CM22: ='Compile Data'!E135 -> 12586.78389 | CN22: ='Compile Data'!E136 -> 7711.502347 | CO22: ='Compile Data'!E137 -> 6810.390575 | CP22: ='Compile Data'!E138 -> 8083.465954 | CQ22: ='Compile Data'!E139 -> 5231.813588 | CR22: ='Compile Data'!E140 -> 3691.68512 | CS22: ='Compile Data'!E141 -> 3560.690094 | CT22: ='Compile Data'!E142 -> 3441.378609 | CU22: ='Compile Data'!E143 -> 3409.247229 | CV22: ='Compile Data'!E144 -> 3534.798821 | CX22: 4768.748944 | CY22: 4680.644196 | CZ22: 5593.558732 | DB22: 7922.365272 | DC22: 3456.999596 | DD22: 7339.8087 | DE22: 9036.225605 | DF22: 5141.913689 | DG22: 3486.528688 | DH22: 3476.662219 | DJ22: 1932 | DK22: ='Compile Data'!F133 ->  | DL22: ='Compile Data'!F134 ->  | DM22: ='Compile Data'!F135 ->  | DN22: ='Compile Data'!F136 ->  | DO22: ='Compile Data'!F137 ->  | DP22: ='Compile Data'!F138 ->  | DQ22: ='Compile Data'!F139 ->  | DR22: ='Compile Data'!F140 ->  | DS22: ='Compile Data'!F141 ->  | DT22: ='Compile Data'!F142 ->  | DU22: ='Compile Data'!F143 ->  | DV22: ='Compile Data'!F144 -> 
A23: 1922-08-31 | B23: =INDIRECT(CONCATENATE("'",B$1,"'!",B$4,(YEAR($A23)-1921)*12+MONTH($A23)+3+IF(ISNUMBER(FIND("PRV",B$6)),1,0)))*IF(AND(B$3>0,TRIM(B$9)="CFS"),Conv_Flags!$C23,1) -> 4518.243477 | C23: =INDIRECT(CONCATENATE("'",C$1,"'!",C$4,(YEAR($A23)-1921)*12+MONTH($A23)+3+IF(ISNUMBER(FIND("PRV",C$6)),1,0)))*IF(AND(C$3>0,TRIM(C$9)="CFS"),Conv_Flags!$C23,1) -> 4518.243477 | D23: =INDIRECT(CONCATENATE("'",D$1,"'!",D$4,(YEAR($A23)-1921)*12+MONTH($A23)+3+IF(ISNUMBER(FIND("PRV",D$6)),1,0)))*IF(AND(D$3>0,TRIM(D$9)="CFS"),Conv_Flags!$C23,1) -> 4518.243477 | E23: =INDIRECT(CONCATENATE("'",E$1,"'!",E$4,(YEAR($A23)-1921)*12+MONTH($A23)+3+IF(ISNUMBER(FIND("PRV",E$6)),1,0)))*IF(AND(E$3>0,TRIM(E$9)="CFS"),Conv_Flags!$C23,1) -> 4518.243477 | F23: =INDIRECT(CONCATENATE("'",F$1,"'!",F$4,(YEAR($A23)-1921)*12+MONTH($A23)+3+IF(ISNUMBER(FIND("PRV",F$6)),1,0)))*IF(AND(F$3>0,TRIM(F$9)="CFS"),Conv_Flags!$C23,1) ->  | J23: 1933 | K23: =B145 -> 3404.206247 | L23: =B146 -> 3451.615936 | M23: =B147 -> 4845.261447 | N23: =B148 -> 7886.121634 | O23: =B149 -> 5578.302728 | P23: =B150 -> 10317.29995 | Q23: =B151 -> 5549.640815 | R23: =B152 -> 4442.561817 | S23: =B153 -> 3648.95206 | T23: =B154 -> 3698.07281 | U23: =B155 -> 5273.468611 | V23: =B156 -> 3991.108427 | X23: 5737.989512 | Y23: 6310.436009 | Z23: 5173.884374 | AB23: 6415.72034 | AC23: 4702.72104 | AD23: 4896.801316 | AE23: 6103.228603 | AF23: 5989.613661 | AG23: 4152.900477 | AH23: 4494.398096 | AJ23: 1933 | AK23: ='Compile Data'!C145 -> 3463.645961 | AL23: ='Compile Data'!C146 -> 3494.554386 | AM23: ='Compile Data'!C147 -> 4870.200038 | AN23: ='Compile Data'!C148 -> 7885.80623 | AO23: ='Compile Data'!C149 -> 5000 | AP23: ='Compile Data'!C150 -> 10346.06344 | AQ23: ='Compile Data'!C151 -> 6556.429969 | AR23: ='Compile Data'!C152 -> 3377.374512 | AS23: ='Compile Data'!C153 -> 3709.751496 | AT23: ='Compile Data'!C154 -> 3749.650815 | AU23: ='Compile Data'!C155 -> 5361.350729 | AV23: ='Compile Data'!C156 -> 4060.422957 | AX23: 5606.1004 | AY23: 6166.049524 | AZ23: 5156.270878 | BB23: 6319.324819 | BC23: 4808.292278 | BD23: 4928.551654 | BE23: 5918.668756 | BF23: 5997.404855 | BG23: 4220.293999 | BH23: 4501.914715 | BJ23: 1933 | BK23: ='Compile Data'!D145 -> 3463.646431 | BL23: ='Compile Data'!D146 -> 3494.645043 | BM23: ='Compile Data'!D147 -> 4870.282541 | BN23: ='Compile Data'!D148 -> 7885.888986 | BO23: ='Compile Data'!D149 -> 5000 | BP23: ='Compile Data'!D150 -> 10346.14795 | BQ23: ='Compile Data'!D151 -> 6556.441501 | BR23: ='Compile Data'!D152 -> 3377.374512 | BS23: ='Compile Data'!D153 -> 3710.191099 | BT23: ='Compile Data'!D154 -> 3749.734297 | BU23: ='Compile Data'!D155 -> 5361.365892 | BV23: ='Compile Data'!D156 -> 4060.407611 | BX23: 5606.234173 | BY23: 6166.149447 | BZ23: 5156.343822 | CB23: 6319.392904 | CC23: 4808.286939 | CD23: 4928.61575 | CE23: 5918.723842 | CF23: 5997.538765 | CG23: 4220.424725 | CH23: 4502.239255 | CJ23: 1933 | CK23: ='Compile Data'!E145 -> 3426.952738 | CL23: ='Compile Data'!E146 -> 3468.235098 | CM23: ='Compile Data'!E147 -> 4854.827153 | CN23: ='Compile Data'!E148 -> 7886.000168 | CO23: ='Compile Data'!E149 -> 5578.635783 | CP23: ='Compile Data'!E150 -> 10316.42843 | CQ23: ='Compile Data'!E151 -> 6560.205228 | CR23: ='Compile Data'!E152 -> 3567.740977 | CS23: ='Compile Data'!E153 -> 3712.647182 | CT23: ='Compile Data'!E154 -> 3750.118011 | CU23: ='Compile Data'!E155 -> 5254.792615 | CV23: ='Compile Data'!E156 -> 3922.802421 | CX23: 5642.278744 | CY23: 6171.480332 | CZ23: 5191.615484 | DB23: 6420.825327 | DC23: 4680.337451 | DD23: 4909.00379 | DE23: 6106.487702 | DF23: 6039.255455 | DG23: 4160.090057 | DH23: 4437.950265 | DJ23: 1933 | DK23: ='Compile Data'!F145 ->  | DL23: ='Compile Data'!F146 ->  | DM23: ='Compile Data'!F147 ->  | DN23: ='Compile Data'!F148 ->  | DO23: ='Compile Data'!F149 ->  | DP23: ='Compile Data'!F150 ->  | DQ23: ='Compile Data'!F151 ->  | DR23: ='Compile Data'!F152 ->  | DS23: ='Compile Data'!F153 ->  | DT23: ='Compile Data'!F154 ->  | DU23: ='Compile Data'!F155 ->  | DV23: ='Compile Data'!F156 -> 
A24: 1922-09-30 | B24: =INDIRECT(CONCATENATE("'",B$1,"'!",B$4,(YEAR($A24)-1921)*12+MONTH($A24)+3+IF(ISNUMBER(FIND("PRV",B$6)),1,0)))*IF(AND(B$3>0,TRIM(B$9)="CFS"),Conv_Flags!$C24,1) -> 4893.942476 | C24: =INDIRECT(CONCATENATE("'",C$1,"'!",C$4,(YEAR($A24)-1921)*12+MONTH($A24)+3+IF(ISNUMBER(FIND("PRV",C$6)),1,0)))*IF(AND(C$3>0,TRIM(C$9)="CFS"),Conv_Flags!$C24,1) -> 5217.105859 | D24: =INDIRECT(CONCATENATE("'",D$1,"'!",D$4,(YEAR($A24)-1921)*12+MONTH($A24)+3+IF(ISNUMBER(FIND("PRV",D$6)),1,0)))*IF(AND(D$3>0,TRIM(D$9)="CFS"),Conv_Flags!$C24,1) -> 5180.925327 | E24: =INDIRECT(CONCATENATE("'",E$1,"'!",E$4,(YEAR($A24)-1921)*12+MONTH($A24)+3+IF(ISNUMBER(FIND("PRV",E$6)),1,0)))*IF(AND(E$3>0,TRIM(E$9)="CFS"),Conv_Flags!$C24,1) -> 5169.172912 | F24: =INDIRECT(CONCATENATE("'",F$1,"'!",F$4,(YEAR($A24)-1921)*12+MONTH($A24)+3+IF(ISNUMBER(FIND("PRV",F$6)),1,0)))*IF(AND(F$3>0,TRIM(F$9)="CFS"),Conv_Flags!$C24,1) ->  | J24: 1934 | K24: =B157 -> 4843.586082 | L24: =B158 -> 4648.499781 | M24: =B159 -> 8978.259423 | N24: =B160 -> 9310.346684 | O24: =B161 -> 11023.43564 | P24: =B162 -> 7545.435955 | Q24: =B163 -> 4548.736641 | R24: =B164 -> 3439.832801 | S24: =B165 -> 5485.610045 | T24: =B166 -> 4040.889167 | U24: =B167 -> 5850.266301 | V24: =B168 -> 3828.780582 | X24: 6086.447937 | Y24: 6538.053946 | Z24: 6128.639925 | AB24: 8301.195497 | AC24: 4832.787927 | AD24: 6945.172993 | AE24: 9770.680582 | AF24: 5254.90386 | AG24: 4801.386524 | AH24: 5292.296257 | AJ24: 1934 | AK24: ='Compile Data'!C157 -> 5003.103148 | AL24: ='Compile Data'!C158 -> 4442.21804 | AM24: ='Compile Data'!C159 -> 7781.033467 | AN24: ='Compile Data'!C160 -> 9114.50013 | AO24: ='Compile Data'!C161 -> 10490.69558 | AP24: ='Compile Data'!C162 -> 7559.315017 | AQ24: ='Compile Data'!C163 -> 4613.1833 | AR24: ='Compile Data'!C164 -> 3558.619293 | AS24: ='Compile Data'!C165 -> 5473.331894 | AT24: ='Compile Data'!C166 -> 4270.680785 | AU24: ='Compile Data'!C167 -> 6198.323905 | AV24: ='Compile Data'!C168 -> 4300.734213 | AX24: 6200.76043 | AY24: 6673.581717 | AZ24: 6067.144898 | BB24: 7877.552447 | BC24: 5368.957871 | BD24: 6585.213696 | BE24: 9128.74306 | BF24: 5301.112376 | BG24: 5060.767699 | BH24: 5723.25936 | BJ24: 1934 | BK24: ='Compile Data'!D157 -> 5003.087313 | BL24: ='Compile Data'!D158 -> 4443.222842 | BM24: ='Compile Data'!D159 -> 7780.948068 | BN24: ='Compile Data'!D160 -> 9114.593856 | BO24: ='Compile Data'!D161 -> 10490.27842 | BP24: ='Compile Data'!D162 -> 7541.858707 | BQ24: ='Compile Data'!D163 -> 4693.960106 | BR24: ='Compile Data'!D164 -> 3558.619293 | BS24: ='Compile Data'!D165 -> 5591.665362 | BT24: ='Compile Data'!D166 -> 4281.130342 | BU24: ='Compile Data'!D167 -> 6227.238491 | BV24: ='Compile Data'!D168 -> 4362.204526 | BX24: 6229.925464 | BY24: 6702.909397 | BZ24: 6090.733944 | CB24: 7874.180379 | CC24: 5401.58001 | CD24: 6585.46302 | CE24: 9128.606782 | CF24: 5346.525867 | CG24: 5115.55968 | CH24: 5757.276118 | CJ24: 1934 | CK24: ='Compile Data'!E157 -> 4863.417317 | CL24: ='Compile Data'!E158 -> 4527.631057 | CM24: ='Compile Data'!E159 -> 7766.925731 | CN24: ='Compile Data'!E160 -> 9115.055007 | CO24: ='Compile Data'!E161 -> 10700 | CP24: ='Compile Data'!E162 -> 7552.328232 | CQ24: ='Compile Data'!E163 -> 4643.398577 | CR24: ='Compile Data'!E164 -> 3558.619293 | CS24: ='Compile Data'!E165 -> 5539.302058 | CT24: ='Compile Data'!E166 -> 4267.447509 | CU24: ='Compile Data'!E167 -> 6147.031457 | CV24: ='Compile Data'!E168 -> 4229.01018 | CX24: 6210.217336 | CY24: 6665.495783 | CZ24: 6075.847201 | DB24: 7932.388005 | DC24: 5317.15633 | DD24: 6568.257278 | DE24: 9193.993579 | DF24: 5323.41204 | DG24: 5045.697801 | DH24: 5682.976384 | DJ24: 1934 | DK24: ='Compile Data'!F157 ->  | DL24: ='Compile Data'!F158 ->  | DM24: ='Compile Data'!F159 ->  | DN24: ='Compile Data'!F160 ->  | DO24: ='Compile Data'!F161 ->  | DP24: ='Compile Data'!F162 ->  | DQ24: ='Compile Data'!F163 ->  | DR24: ='Compile Data'!F164 ->  | DS24: ='Compile Data'!F165 ->  | DT24: ='Compile Data'!F166 ->  | DU24: ='Compile Data'!F167 ->  | DV24: ='Compile Data'!F168 -> 
A25: 1922-10-31 | B25: =INDIRECT(CONCATENATE("'",B$1,"'!",B$4,(YEAR($A25)-1921)*12+MONTH($A25)+3+IF(ISNUMBER(FIND("PRV",B$6)),1,0)))*IF(AND(B$3>0,TRIM(B$9)="CFS"),Conv_Flags!$C25,1) -> 6939.231939 | C25: =INDIRECT(CONCATENATE("'",C$1,"'!",C$4,(YEAR($A25)-1921)*12+MONTH($A25)+3+IF(ISNUMBER(FIND("PRV",C$6)),1,0)))*IF(AND(C$3>0,TRIM(C$9)="CFS"),Conv_Flags!$C25,1) -> 6918.283423 | D25: =INDIRECT(CONCATENATE("'",D$1,"'!",D$4,(YEAR($A25)-1921)*12+MONTH($A25)+3+IF(ISNUMBER(FIND("PRV",D$6)),1,0)))*IF(AND(D$3>0,TRIM(D$9)="CFS"),Conv_Flags!$C25,1) -> 6921.946502 | E25: =INDIRECT(CONCATENATE("'",E$1,"'!",E$4,(YEAR($A25)-1921)*12+MONTH($A25)+3+IF(ISNUMBER(FIND("PRV",E$6)),1,0)))*IF(AND(E$3>0,TRIM(E$9)="CFS"),Conv_Flags!$C25,1) -> 6922.868615 | F25: =INDIRECT(CONCATENATE("'",F$1,"'!",F$4,(YEAR($A25)-1921)*12+MONTH($A25)+3+IF(ISNUMBER(FIND("PRV",F$6)),1,0)))*IF(AND(F$3>0,TRIM(F$9)="CFS"),Conv_Flags!$C25,1) ->  | J25: 1935 | K25: =B169 -> 4819.316896 | L25: =B170 -> 7228.791291 | M25: =B171 -> 5915.933236 | N25: =B172 -> 15498.43317 | O25: =B173 -> 10254.62127 | P25: =B174 -> 13383.47977 | Q25: =B175 -> 22168.76357 | R25: =B176 -> 3819.754639 | S25: =B177 -> 3488.136948 | T25: =B178 -> 3293.520596 | U25: =B179 -> 3267.163408 | V25: =B180 -> 3714.289644 | X25: 7596.605304 | Y25: 8498.346507 | Z25: 8071.017036 | AB25: 10456.25175 | AC25: 3524.861485 | AD25: 8365.618648 | AE25: 10556.32922 | AF25: 10715.03373 | AG25: 3440.777649 | AH25: 3525.711467 | AJ25: 1935 | AK25: ='Compile Data'!C169 -> 5607.815496 | AL25: ='Compile Data'!C170 -> 7261.228373 | AM25: ='Compile Data'!C171 -> 5960.697169 | AN25: ='Compile Data'!C172 -> 15000 | AO25: ='Compile Data'!C173 -> 10279.05116 | AP25: ='Compile Data'!C174 -> 12511.85435 | AQ25: ='Compile Data'!C175 -> 20509.09926 | AR25: ='Compile Data'!C176 -> 3969.754639 | AS25: ='Compile Data'!C177 -> 3638.136948 | AT25: ='Compile Data'!C178 -> 3443.520596 | AU25: ='Compile Data'!C179 -> 3441.773198 | AV25: ='Compile Data'!C180 -> 3724.024705 | AX25: 7425.8656 | AY25: 8281.216054 | AZ25: 7945.579658 | BB25: 10202.56621 | BC25: 3618.945009 | BD25: 8457.435259 | BE25: 10413.24944 | BF25: 10157.2113 | BG25: 3561.863862 | BH25: 3619.995179 | BJ25: 1935 | BK25: ='Compile Data'!D169 -> 5615.297013 | BL25: ='Compile Data'!D170 -> 7294.326816 | BM25: ='Compile Data'!D171 -> 5987.932637 | BN25: ='Compile Data'!D172 -> 15000 | BO25: ='Compile Data'!D173 -> 10280.67948 | BP25: ='Compile Data'!D174 -> 12512.59654 | BQ25: ='Compile Data'!D175 -> 20509.62002 | BR25: ='Compile Data'!D176 -> 3969.754639 | BS25: ='Compile Data'!D177 -> 3638.136948 | BT25: ='Compile Data'!D178 -> 3443.520596 | BU25: ='Compile Data'!D179 -> 3453.244274 | BV25: ='Compile Data'!D180 -> 3729.543724 | BX25: 7433.475824 | BY25: 8282.198122 | BZ25: 7952.887724 | CB25: 10215.10709 | CC25: 3639.284355 | CD25: 8474.389116 | CE25: 10422.8707 | CF25: 10157.52704 | CG25: 3566.111385 | CH25: 3636.499128 | CJ25: 1935 | CK25: ='Compile Data'!E169 -> 5575.427355 | CL25: ='Compile Data'!E170 -> 7244.491617 | CM25: ='Compile Data'!E171 -> 5950.496745 | CN25: ='Compile Data'!E172 -> 15000 | CO25: ='Compile Data'!E173 -> 10278.39637 | CP25: ='Compile Data'!E174 -> 12511.73029 | CQ25: ='Compile Data'!E175 -> 20509.10628 | CR25: ='Compile Data'!E176 -> 3969.754639 | CS25: ='Compile Data'!E177 -> 3638.136948 | CT25: ='Compile Data'!E178 -> 3443.520596 | CU25: ='Compile Data'!E179 -> 3438.427466 | CV25: ='Compile Data'!E180 -> 3722.204338 | CX25: 7423.664056 | CY25: 8284.077871 | CZ25: 7940.141054 | DB25: 10197.02301 | DC25: 3613.0523 | DD25: 8442.603929 | DE25: 10409.63104 | DF25: 10157.18204 | DG25: 3560.572337 | DH25: 3615.119723 | DJ25: 1935 | DK25: ='Compile Data'!F169 ->  | DL25: ='Compile Data'!F170 ->  | DM25: ='Compile Data'!F171 ->  | DN25: ='Compile Data'!F172 ->  | DO25: ='Compile Data'!F173 ->  | DP25: ='Compile Data'!F174 ->  | DQ25: ='Compile Data'!F175 ->  | DR25: ='Compile Data'!F176 ->  | DS25: ='Compile Data'!F177 ->  | DT25: ='Compile Data'!F178 ->  | DU25: ='Compile Data'!F179 ->  | DV25: ='Compile Data'!F180 -> 
A26: 1922-11-30 | B26: =INDIRECT(CONCATENATE("'",B$1,"'!",B$4,(YEAR($A26)-1921)*12+MONTH($A26)+3+IF(ISNUMBER(FIND("PRV",B$6)),1,0)))*IF(AND(B$3>0,TRIM(B$9)="CFS"),Conv_Flags!$C26,1) -> 6167.837169 | C26: =INDIRECT(CONCATENATE("'",C$1,"'!",C$4,(YEAR($A26)-1921)*12+MONTH($A26)+3+IF(ISNUMBER(FIND("PRV",C$6)),1,0)))*IF(AND(C$3>0,TRIM(C$9)="CFS"),Conv_Flags!$C26,1) -> 5244.122098 | D26: =INDIRECT(CONCATENATE("'",D$1,"'!",D$4,(YEAR($A26)-1921)*12+MONTH($A26)+3+IF(ISNUMBER(FIND("PRV",D$6)),1,0)))*IF(AND(D$3>0,TRIM(D$9)="CFS"),Conv_Flags!$C26,1) -> 5280.711421 | E26: =INDIRECT(CONCATENATE("'",E$1,"'!",E$4,(YEAR($A26)-1921)*12+MONTH($A26)+3+IF(ISNUMBER(FIND("PRV",E$6)),1,0)))*IF(AND(E$3>0,TRIM(E$9)="CFS"),Conv_Flags!$C26,1) -> 5292.487832 | F26: =INDIRECT(CONCATENATE("'",F$1,"'!",F$4,(YEAR($A26)-1921)*12+MONTH($A26)+3+IF(ISNUMBER(FIND("PRV",F$6)),1,0)))*IF(AND(F$3>0,TRIM(F$9)="CFS"),Conv_Flags!$C26,1) ->  | J26: 1936 | K26: =B181 -> 3593.131403 | L26: =B182 -> 3269.713354 | M26: =B183 -> 5408.255894 | N26: =B184 -> 16474.8439 | O26: =B185 -> 20099.10497 | P26: =B186 -> 8180.316961 | Q26: =B187 -> 7222.85006 | R26: =B188 -> 3557.282135 | S26: =B189 -> 3681.898651 | T26: =B190 -> 4571.463768 | U26: =B191 -> 4510.344488 | V26: =B192 -> 4513.420122 | X26: 7206.544903 | Y26: 5832.651897 | Z26: 7090.218809 | AB26: 10686.44702 | AC26: 4515.099873 | AD26: 7186.486138 | AE26: 13994.06825 | AF26: 5660.586952 | AG26: 4319.281757 | AH26: 4521.640109 | AJ26: 1936 | AK26: ='Compile Data'!C181 -> 3691.037122 | AL26: ='Compile Data'!C182 -> 3444.923711 | AM26: ='Compile Data'!C183 -> 5457.211512 | AN26: ='Compile Data'!C184 -> 15875.91604 | AO26: ='Compile Data'!C185 -> 19667.34057 | AP26: ='Compile Data'!C186 -> 7866.163153 | AQ26: ='Compile Data'!C187 -> 7224.498448 | AR26: ='Compile Data'!C188 -> 3557.282135 | AS26: ='Compile Data'!C189 -> 3681.898651 | AT26: ='Compile Data'!C190 -> 5265.817703 | AU26: ='Compile Data'!C191 -> 4510.344488 | AV26: ='Compile Data'!C192 -> 4602.513275 | AX26: 7175.299788 | AY26: 5804.416693 | AZ26: 7070.412234 | BB26: 10462.311 | BC26: 4555.911456 | BD26: 7117.272095 | BE26: 13666.82271 | BF26: 5582.460597 | BG26: 4515.143529 | BH26: 4591.511935 | BJ26: 1936 | BK26: ='Compile Data'!D181 -> 3735.065068 | BL26: ='Compile Data'!D182 -> 3444.888591 | BM26: ='Compile Data'!D183 -> 5484.660014 | BN26: ='Compile Data'!D184 -> 15875.63639 | BO26: ='Compile Data'!D185 -> 19589.71066 | BP26: ='Compile Data'!D186 -> 7869.43725 | BQ26: ='Compile Data'!D187 -> 7222.420837 | BR26: ='Compile Data'!D188 -> 3557.282135 | BS26: ='Compile Data'!D189 -> 3681.898651 | BT26: ='Compile Data'!D190 -> 5014.217837 | BU26: ='Compile Data'!D191 -> 4510.344488 | BV26: ='Compile Data'!D192 -> 4656.093714 | BX26: 7159.989508 | BY26: 5795.720207 | BZ26: 7053.471303 | CB26: 10452.86658 | CC26: 4566.234274 | CD26: 7135.062515 | CE26: 13650.00235 | CF26: 5582.759718 | CG26: 4465.638673 | CH26: 4587.980607 | CJ26: 1936 | CK26: ='Compile Data'!E181 -> 3678.525097 | CL26: ='Compile Data'!E182 -> 3444.629735 | CM26: ='Compile Data'!E183 -> 5449.536905 | CN26: ='Compile Data'!E184 -> 15876.10335 | CO26: ='Compile Data'!E185 -> 19727.25881 | CP26: ='Compile Data'!E186 -> 8187.168759 | CQ26: ='Compile Data'!E187 -> 7209.306838 | CR26: ='Compile Data'!E188 -> 3557.282135 | CS26: ='Compile Data'!E189 -> 3681.898651 | CT26: ='Compile Data'!E190 -> 5013.003271 | CU26: ='Compile Data'!E191 -> 4510.344488 | CV26: ='Compile Data'!E192 -> 4657.350306 | CX26: 7182.683461 | CY26: 5807.251015 | CZ26: 7082.700695 | DB26: 10536.93951 | DC26: 4566.34761 | DD26: 7112.198771 | DE26: 13684.29969 | DF26: 5658.914096 | DG26: 4465.649179 | DH26: 4581.131589 | DJ26: 1936 | DK26: ='Compile Data'!F181 ->  | DL26: ='Compile Data'!F182 ->  | DM26: ='Compile Data'!F183 ->  | DN26: ='Compile Data'!F184 ->  | DO26: ='Compile Data'!F185 ->  | DP26: ='Compile Data'!F186 ->  | DQ26: ='Compile Data'!F187 ->  | DR26: ='Compile Data'!F188 ->  | DS26: ='Compile Data'!F189 ->  | DT26: ='Compile Data'!F190 ->  | DU26: ='Compile Data'!F191 ->  | DV26: ='Compile Data'!F192 -> 
A27: 1922-12-31 | B27: =INDIRECT(CONCATENATE("'",B$1,"'!",B$4,(YEAR($A27)-1921)*12+MONTH($A27)+3+IF(ISNUMBER(FIND("PRV",B$6)),1,0)))*IF(AND(B$3>0,TRIM(B$9)="CFS"),Conv_Flags!$C27,1) -> 14449.74365 | C27: =INDIRECT(CONCATENATE("'",C$1,"'!",C$4,(YEAR($A27)-1921)*12+MONTH($A27)+3+IF(ISNUMBER(FIND("PRV",C$6)),1,0)))*IF(AND(C$3>0,TRIM(C$9)="CFS"),Conv_Flags!$C27,1) -> 14496.0879 | D27: =INDIRECT(CONCATENATE("'",D$1,"'!",D$4,(YEAR($A27)-1921)*12+MONTH($A27)+3+IF(ISNUMBER(FIND("PRV",D$6)),1,0)))*IF(AND(D$3>0,TRIM(D$9)="CFS"),Conv_Flags!$C27,1) -> 14494.40536 | E27: =INDIRECT(CONCATENATE("'",E$1,"'!",E$4,(YEAR($A27)-1921)*12+MONTH($A27)+3+IF(ISNUMBER(FIND("PRV",E$6)),1,0)))*IF(AND(E$3>0,TRIM(E$9)="CFS"),Conv_Flags!$C27,1) -> 14493.79581 | F27: =INDIRECT(CONCATENATE("'",F$1,"'!",F$4,(YEAR($A27)-1921)*12+MONTH($A27)+3+IF(ISNUMBER(FIND("PRV",F$6)),1,0)))*IF(AND(F$3>0,TRIM(F$9)="CFS"),Conv_Flags!$C27,1) ->  | J27: 1937 | K27: =B193 -> 4521.535009 | L27: =B194 -> 4529.965197 | M27: =B195 -> 4615.513573 | N27: =B196 -> 6098.426956 | O27: =B197 -> 13988.80584 | P27: =B198 -> 16769.684 | Q27: =B199 -> 11094.1094 | R27: =B200 -> 3761.64975 | S27: =B201 -> 3645.150589 | T27: =B202 -> 5290.170369 | U27: =B203 -> 4513.100894 | V27: =B204 -> 4507.598291 | X27: 9495.971635 | Y27: 11102.0366 | Z27: 6944.642489 | AB27: 9200.479113 | AC27: 4571.352238 | AD27: 4941.360184 | AE27: 8234.24879 | AF27: 8817.648434 | AG27: 4489.005036 | AH27: 9781.175518 | AJ27: 1937 | AK27: ='Compile Data'!C193 -> 4554.876605 | AL27: ='Compile Data'!C194 -> 4617.145926 | AM27: ='Compile Data'!C195 -> 4679.800471 | AN27: ='Compile Data'!C196 -> 6097.101341 | AO27: ='Compile Data'!C197 -> 12995.55812 | AP27: ='Compile Data'!C198 -> 14558.59962 | AQ27: ='Compile Data'!C199 -> 10647.15374 | AR27: ='Compile Data'!C200 -> 3761.64975 | AS27: ='Compile Data'!C201 -> 3645.150589 | AT27: ='Compile Data'!C202 -> 5495.998198 | AU27: ='Compile Data'!C203 -> 4513.100894 | AV27: ='Compile Data'!C204 -> 4519.026314 | AX27: 9168.172825 | AY27: 10805.23049 | AZ27: 6673.763464 | BB27: 8589.641095 | BC27: 4575.161579 | BD27: 4987.231086 | BE27: 7924.153311 | BF27: 8153.138424 | BG27: 4543.318999 | BH27: 9801.156279 | BJ27: 1937 | BK27: ='Compile Data'!D193 -> 4532.264619 | BL27: ='Compile Data'!D194 -> 4575.583487 | BM27: ='Compile Data'!D195 -> 4834.984035 | BN27: ='Compile Data'!D196 -> 6087.654296 | BO27: ='Compile Data'!D197 -> 13006.46114 | BP27: ='Compile Data'!D198 -> 14559.95531 | BQ27: ='Compile Data'!D199 -> 10700 | BR27: ='Compile Data'!D200 -> 3761.64975 | BS27: ='Compile Data'!D201 -> 3645.150589 | BT27: ='Compile Data'!D202 -> 5151.600269 | BU27: ='Compile Data'!D203 -> 4513.100894 | BV27: ='Compile Data'!D204 -> 4507.396686 | BX27: 9127.865389 | BY27: 10764.50158 | BZ27: 6656.316756 | CB27: 8612.927653 | CC27: 4571.285036 | CD27: 5007.621609 | CE27: 7976.366489 | CF27: 8166.688912 | CG27: 4454.312109 | CH27: 9734.936912 | CJ27: 1937 | CK27: ='Compile Data'!E193 -> 4531.348036 | CL27: ='Compile Data'!E194 -> 4554.696426 | CM27: ='Compile Data'!E195 -> 4686.440465 | CN27: ='Compile Data'!E196 -> 6095.857503 | CO27: ='Compile Data'!E197 -> 13002.3153 | CP27: ='Compile Data'!E198 -> 14558.61891 | CQ27: ='Compile Data'!E199 -> 10700 | CR27: ='Compile Data'!E200 -> 3761.64975 | CS27: ='Compile Data'!E201 -> 3645.150589 | CT27: ='Compile Data'!E202 -> 5245.795497 | CU27: ='Compile Data'!E203 -> 4513.100894 | CV27: ='Compile Data'!E204 -> 4507.396686 | CX27: 9138.838733 | CY27: 10775.24153 | CZ27: 6650.197505 | DB27: 8579.585721 | DC27: 4571.285036 | DD27: 4967.085607 | DE27: 7928.204423 | DF27: 8166.354812 | DG27: 4477.860916 | DH27: 9746.654197 | DJ27: 1937 | DK27: ='Compile Data'!F193 ->  | DL27: ='Compile Data'!F194 ->  | DM27: ='Compile Data'!F195 ->  | DN27: ='Compile Data'!F196 ->  | DO27: ='Compile Data'!F197 ->  | DP27: ='Compile Data'!F198 ->  | DQ27: ='Compile Data'!F199 ->  | DR27: ='Compile Data'!F200 ->  | DS27: ='Compile Data'!F201 ->  | DT27: ='Compile Data'!F202 ->  | DU27: ='Compile Data'!F203 ->  | DV27: ='Compile Data'!F204 -> 
A28: 1923-01-31 | B28: =INDIRECT(CONCATENATE("'",B$1,"'!",B$4,(YEAR($A28)-1921)*12+MONTH($A28)+3+IF(ISNUMBER(FIND("PRV",B$6)),1,0)))*IF(AND(B$3>0,TRIM(B$9)="CFS"),Conv_Flags!$C28,1) -> 10356.34545 | C28: =INDIRECT(CONCATENATE("'",C$1,"'!",C$4,(YEAR($A28)-1921)*12+MONTH($A28)+3+IF(ISNUMBER(FIND("PRV",C$6)),1,0)))*IF(AND(C$3>0,TRIM(C$9)="CFS"),Conv_Flags!$C28,1) -> 9927.913478 | D28: =INDIRECT(CONCATENATE("'",D$1,"'!",D$4,(YEAR($A28)-1921)*12+MONTH($A28)+3+IF(ISNUMBER(FIND("PRV",D$6)),1,0)))*IF(AND(D$3>0,TRIM(D$9)="CFS"),Conv_Flags!$C28,1) -> 9928.713359 | E28: =INDIRECT(CONCATENATE("'",E$1,"'!",E$4,(YEAR($A28)-1921)*12+MONTH($A28)+3+IF(ISNUMBER(FIND("PRV",E$6)),1,0)))*IF(AND(E$3>0,TRIM(E$9)="CFS"),Conv_Flags!$C28,1) -> 9928.940562 | F28: =INDIRECT(CONCATENATE("'",F$1,"'!",F$4,(YEAR($A28)-1921)*12+MONTH($A28)+3+IF(ISNUMBER(FIND("PRV",F$6)),1,0)))*IF(AND(F$3>0,TRIM(F$9)="CFS"),Conv_Flags!$C28,1) ->  | J28: 1938 | K28: =B205 -> 4693.357529 | L28: =B206 -> 20142.57073 | M28: =B207 -> 19447.03528 | N28: =B208 -> 12204.86097 | O28: =B209 -> 27155.15142 | P28: =B210 -> 27271.35512 | Q28: =B211 -> 23998.91014 | R28: =B212 -> 15227.7687 | S28: =B213 -> 5801.322549 | T28: =B214 -> 4642.426819 | U28: =B215 -> 5968.340157 | V28: =B216 -> 10218.46554 | X28: 12959.94001 | Y28: 10636.33259 | Z28: 14730.96375 | AB28: 21244.1947 | AC28: 8367.350293 | AD28: 14121.95613 | AE28: 19602.34922 | AF28: 18074.83913 | AG28: 6657.638767 | AH28: 8302.240885 | AJ28: 1938 | AK28: ='Compile Data'!C205 -> 4693.357529 | AL28: ='Compile Data'!C206 -> 20191.085 | AM28: ='Compile Data'!C207 -> 18900.29282 | AN28: ='Compile Data'!C208 -> 11659.62222 | AO28: ='Compile Data'!C209 -> 27077.72924 | AP28: ='Compile Data'!C210 -> 27207.23472 | AQ28: ='Compile Data'!C211 -> 22695.40036 | AR28: ='Compile Data'!C212 -> 15000 | AS28: ='Compile Data'!C213 -> 5076.712646 | AT28: ='Compile Data'!C214 -> 4642.426819 | AU28: ='Compile Data'!C215 -> 5962.296697 | AV28: ='Compile Data'!C216 -> 10204.53183 | AX28: 12667.66494 | AY28: 10314.34837 | AZ28: 14442.55749 | BB28: 21007.1928 | BC28: 8358.348531 | BD28: 13861.08939 | BE28: 19212.54809 | BF28: 17494.83693 | BG28: 6471.491999 | BH28: 8213.135878 | BJ28: 1938 | BK28: ='Compile Data'!D205 -> 4693.357529 | BL28: ='Compile Data'!D206 -> 20004.05652 | BM28: ='Compile Data'!D207 -> 18904.00169 | BN28: ='Compile Data'!D208 -> 11656.66902 | BO28: ='Compile Data'!D209 -> 27077.08068 | BP28: ='Compile Data'!D210 -> 27206.99587 | BQ28: ='Compile Data'!D211 -> 22695.22522 | BR28: ='Compile Data'!D212 -> 15000 | BS28: ='Compile Data'!D213 -> 5076.712646 | BT28: ='Compile Data'!D214 -> 4642.426819 | BU28: ='Compile Data'!D215 -> 5962.525995 | BV28: ='Compile Data'!D216 -> 10204.67724 | BX28: 12667.15895 | BY28: 10314.17406 | BZ28: 14426.97744 | CB28: 20969.76076 | CC28: 8358.527603 | CD28: 13814.52119 | CE28: 19212.5838 | CF28: 17494.73343 | CG28: 6471.585675 | CH28: 8213.223382 | CJ28: 1938 | CK28: ='Compile Data'!E205 -> 4693.357529 | CL28: ='Compile Data'!E206 -> 20039.20838 | CM28: ='Compile Data'!E207 -> 18903.61376 | CN28: ='Compile Data'!E208 -> 11657.51094 | CO28: ='Compile Data'!E209 -> 27077.49547 | CP28: ='Compile Data'!E210 -> 27207.2968 | CQ28: ='Compile Data'!E211 -> 22695.5171 | CR28: ='Compile Data'!E212 -> 15000 | CS28: ='Compile Data'!E213 -> 5076.712646 | CT28: ='Compile Data'!E214 -> 4642.426819 | CU28: ='Compile Data'!E215 -> 5962.951982 | CV28: ='Compile Data'!E216 -> 10204.85705 | CX28: 12667.38817 | CY28: 10395.65371 | CZ28: 14430.07904 | DB28: 20977.02507 | DC28: 8358.793979 | DD28: 13823.42265 | DE28: 19212.87339 | DF28: 17494.88164 | DG28: 6471.737125 | DH28: 8213.314869 | DJ28: 1938 | DK28: ='Compile Data'!F205 ->  | DL28: ='Compile Data'!F206 ->  | DM28: ='Compile Data'!F207 ->  | DN28: ='Compile Data'!F208 ->  | DO28: ='Compile Data'!F209 ->  | DP28: ='Compile Data'!F210 ->  | DQ28: ='Compile Data'!F211 ->  | DR28: ='Compile Data'!F212 ->  | DS28: ='Compile Data'!F213 ->  | DT28: ='Compile Data'!F214 ->  | DU28: ='Compile Data'!F215 ->  | DV28: ='Compile Data'!F216 -> 
A29: 1923-02-28 | B29: =INDIRECT(CONCATENATE("'",B$1,"'!",B$4,(YEAR($A29)-1921)*12+MONTH($A29)+3+IF(ISNUMBER(FIND("PRV",B$6)),1,0)))*IF(AND(B$3>0,TRIM(B$9)="CFS"),Conv_Flags!$C29,1) -> 8317.499521 | C29: =INDIRECT(CONCATENATE("'",C$1,"'!",C$4,(YEAR($A29)-1921)*12+MONTH($A29)+3+IF(ISNUMBER(FIND("PRV",C$6)),1,0)))*IF(AND(C$3>0,TRIM(C$9)="CFS"),Conv_Flags!$C29,1) -> 8213.12285 | D29: =INDIRECT(CONCATENATE("'",D$1,"'!",D$4,(YEAR($A29)-1921)*12+MONTH($A29)+3+IF(ISNUMBER(FIND("PRV",D$6)),1,0)))*IF(AND(D$3>0,TRIM(D$9)="CFS"),Conv_Flags!$C29,1) -> 8215.891696 | E29: =INDIRECT(CONCATENATE("'",E$1,"'!",E$4,(YEAR($A29)-1921)*12+MONTH($A29)+3+IF(ISNUMBER(FIND("PRV",E$6)),1,0)))*IF(AND(E$3>0,TRIM(E$9)="CFS"),Conv_Flags!$C29,1) -> 8216.783062 | F29: =INDIRECT(CONCATENATE("'",F$1,"'!",F$4,(YEAR($A29)-1921)*12+MONTH($A29)+3+IF(ISNUMBER(FIND("PRV",F$6)),1,0)))*IF(AND(F$3>0,TRIM(F$9)="CFS"),Conv_Flags!$C29,1) ->  | J29: 1939 | K29: =B217 -> 8915.24518 | L29: =B218 -> 5773.011932 | M29: =B219 -> 8342.421563 | N29: =B220 -> 5384.039983 | O29: =B221 -> 6092.683433 | P29: =B222 -> 5559.414765 | Q29: =B223 -> 6659.823627 | R29: =B224 -> 4018.180466 | S29: =B225 -> 5880.129418 | T29: =B226 -> 7551.34564 | U29: =B227 -> 5826.370621 | V29: =B228 -> 4985.809639 | X29: 5741.862931 | Y29: 8024.778289 | Z29: 6249.039689 | AB29: 6230.314335 | AC29: 5408.50196 | AD29: 7103.679665 | AE29: 6606.38166 | AF29: 5529.387069 | AG29: 6060.913829 | AH29: 5304.448621 | AJ29: 1939 | AK29: ='Compile Data'!C217 -> 8908.217063 | AL29: ='Compile Data'!C218 -> 5526.658737 | AM29: ='Compile Data'!C219 -> 8051.14898 | AN29: ='Compile Data'!C220 -> 5393.966168 | AO29: ='Compile Data'!C221 -> 5103.586447 | AP29: ='Compile Data'!C222 -> 5590.793691 | AQ29: ='Compile Data'!C223 -> 6679.358394 | AR29: ='Compile Data'!C224 -> 4235.597794 | AS29: ='Compile Data'!C225 -> 6301.498945 | AT29: ='Compile Data'!C226 -> 8262.753516 | AU29: ='Compile Data'!C227 -> 5559.255765 | AV29: ='Compile Data'!C228 -> 3556.732914 | AX29: 5843.062508 | AY29: 8153.305722 | AZ29: 6097.464034 | BB29: 5933.230804 | BC29: 4843.437021 | BD29: 6969.997737 | BE29: 6182.900531 | BF29: 5701.812206 | BG29: 5920.060285 | BH29: 4978.425758 | BJ29: 1939 | BK29: ='Compile Data'!D217 -> 8908.379574 | BL29: ='Compile Data'!D218 -> 5526.613332 | BM29: ='Compile Data'!D219 -> 8048.601007 | BN29: ='Compile Data'!D220 -> 5394.29278 | BO29: ='Compile Data'!D221 -> 5103.638262 | BP29: ='Compile Data'!D222 -> 5590.894895 | BQ29: ='Compile Data'!D223 -> 6679.4444 | BR29: ='Compile Data'!D224 -> 4236.264772 | BS29: ='Compile Data'!D225 -> 6303.955069 | BT29: ='Compile Data'!D226 -> 8265.724699 | BU29: ='Compile Data'!D227 -> 5558.948913 | BV29: ='Compile Data'!D228 -> 3556.996076 | BX29: 5847.684713 | BY29: 8157.4106 | BZ29: 6097.812815 | CB29: 5932.808055 | CC29: 4843.415556 | CD29: 6969.471673 | CE29: 6182.17735 | CF29: 5702.639784 | CG29: 5921.406189 | CH29: 4992.17887 | CJ29: 1939 | CK29: ='Compile Data'!E217 -> 8908.572903 | CL29: ='Compile Data'!E218 -> 5526.514651 | CM29: ='Compile Data'!E219 -> 8048.801655 | CN29: ='Compile Data'!E220 -> 5394.464632 | CO29: ='Compile Data'!E221 -> 6079.728319 | CP29: ='Compile Data'!E222 -> 5542.141269 | CQ29: ='Compile Data'!E223 -> 6682.911365 | CR29: ='Compile Data'!E224 -> 4245.50382 | CS29: ='Compile Data'!E225 -> 5690.343957 | CT29: ='Compile Data'!E226 -> 8115.84112 | CU29: ='Compile Data'!E227 -> 5634.430406 | CV29: ='Compile Data'!E228 -> 3544.471328 | CX29: 5880.129679 | CY29: 8107.304214 | CZ29: 6117.810452 | DB29: 6118.330105 | DC29: 4864.366638 | DD29: 6969.58846 | DE29: 6507.664869 | DF29: 5540.225103 | DG29: 5746.271703 | DH29: 5021.542334 | DJ29: 1939 | DK29: ='Compile Data'!F217 ->  | DL29: ='Compile Data'!F218 ->  | DM29: ='Compile Data'!F219 ->  | DN29: ='Compile Data'!F220 ->  | DO29: ='Compile Data'!F221 ->  | DP29: ='Compile Data'!F222 ->  | DQ29: ='Compile Data'!F223 ->  | DR29: ='Compile Data'!F224 ->  | DS29: ='Compile Data'!F225 ->  | DT29: ='Compile Data'!F226 ->  | DU29: ='Compile Data'!F227 ->  | DV29: ='Compile Data'!F228 -> 
A30: 1923-03-31 | B30: =INDIRECT(CONCATENATE("'",B$1,"'!",B$4,(YEAR($A30)-1921)*12+MONTH($A30)+3+IF(ISNUMBER(FIND("PRV",B$6)),1,0)))*IF(AND(B$3>0,TRIM(B$9)="CFS"),Conv_Flags!$C30,1) -> 5332.530675 | C30: =INDIRECT(CONCATENATE("'",C$1,"'!",C$4,(YEAR($A30)-1921)*12+MONTH($A30)+3+IF(ISNUMBER(FIND("PRV",C$6)),1,0)))*IF(AND(C$3>0,TRIM(C$9)="CFS"),Conv_Flags!$C30,1) -> 5328.732006 | D30: =INDIRECT(CONCATENATE("'",D$1,"'!",D$4,(YEAR($A30)-1921)*12+MONTH($A30)+3+IF(ISNUMBER(FIND("PRV",D$6)),1,0)))*IF(AND(D$3>0,TRIM(D$9)="CFS"),Conv_Flags!$C30,1) -> 5328.814726 | E30: =INDIRECT(CONCATENATE("'",E$1,"'!",E$4,(YEAR($A30)-1921)*12+MONTH($A30)+3+IF(ISNUMBER(FIND("PRV",E$6)),1,0)))*IF(AND(E$3>0,TRIM(E$9)="CFS"),Conv_Flags!$C30,1) -> 5328.83422 | F30: =INDIRECT(CONCATENATE("'",F$1,"'!",F$4,(YEAR($A30)-1921)*12+MONTH($A30)+3+IF(ISNUMBER(FIND("PRV",F$6)),1,0)))*IF(AND(F$3>0,TRIM(F$9)="CFS"),Conv_Flags!$C30,1) ->  | J30: 1940 | K30: =B229 -> 5413.325621 | L30: =B230 -> 5514.210604 | M30: =B231 -> 6017.021351 | N30: =B232 -> 17456.98512 | O30: =B233 -> 21414.7226 | P30: =B234 -> 22572.80301 | Q30: =B235 -> 17167.5635 | R30: =B236 -> 4314.692505 | S30: =B237 -> 4655.887873 | T30: =B238 -> 8788.791769 | U30: =B239 -> 4371.885348 | V30: =B240 -> 7219.620749 | X30: 11571.41439 | Y30: 12758.98095 | Z30: 10408.95917 | AB30: 14595.14854 | AC30: 5844.373898 | AD30: 8600.385674 | AE30: 14962.90969 | AF30: 12177.73672 | AG30: 6259.046435 | AH30: 6611.551132 | AJ30: 1940 | AK30: ='Compile Data'!C229 -> 5414.322385 | AL30: ='Compile Data'!C230 -> 5964.221975 | AM30: ='Compile Data'!C231 -> 8054.662098 | AN30: ='Compile Data'!C232 -> 17005.37977 | AO30: ='Compile Data'!C233 -> 21215.09142 | AP30: ='Compile Data'!C234 -> 22065.94502 | AQ30: ='Compile Data'!C235 -> 15632.97103 | AR30: ='Compile Data'!C236 -> 4314.692505 | AS30: ='Compile Data'!C237 -> 4791.811572 | AT30: ='Compile Data'!C238 -> 8868.010112 | AU30: ='Compile Data'!C239 -> 4413.975572 | AV30: ='Compile Data'!C240 -> 7118.935335 | AX30: 11352.65313 | AY30: 12566.46349 | AZ30: 10405.00157 | BB30: 14861.06006 | BC30: 5752.608364 | BD30: 9109.646556 | BE30: 15425.04443 | BF30: 11701.35503 | BG30: 6298.183148 | BH30: 6555.05551 | BJ30: 1940 | BK30: ='Compile Data'!D229 -> 5414.30168 | BL30: ='Compile Data'!D230 -> 6005.238855 | BM30: ='Compile Data'!D231 -> 8062.516151 | BN30: ='Compile Data'!D232 -> 17005.8863 | BO30: ='Compile Data'!D233 -> 21208.75539 | BP30: ='Compile Data'!D234 -> 22066.47748 | BQ30: ='Compile Data'!D235 -> 15633.17258 | BR30: ='Compile Data'!D236 -> 4314.692505 | BS30: ='Compile Data'!D237 -> 4791.868067 | BT30: ='Compile Data'!D238 -> 8868.160325 | BU30: ='Compile Data'!D239 -> 4414.887178 | BV30: ='Compile Data'!D240 -> 7118.858698 | BX30: 11352.38017 | BY30: 12566.70701 | BZ30: 10408.7346 | CB30: 14869.77483 | CC30: 5752.927391 | CD30: 9121.985745 | CE30: 15425.71928 | CF30: 11701.55266 | CG30: 6298.443567 | CH30: 6556.12495 | CJ30: 1940 | CK30: ='Compile Data'!E229 -> 5414.198181 | CL30: ='Compile Data'!E230 -> 6105.957493 | CM30: ='Compile Data'!E231 -> 8111.564259 | CN30: ='Compile Data'!E232 -> 17005.20708 | CO30: ='Compile Data'!E233 -> 21195.08029 | CP30: ='Compile Data'!E234 -> 22067.67351 | CQ30: ='Compile Data'!E235 -> 15633.61397 | CR30: ='Compile Data'!E236 -> 4314.692505 | CS30: ='Compile Data'!E237 -> 4791.841883 | CT30: ='Compile Data'!E238 -> 8868.412116 | CU30: ='Compile Data'!E239 -> 4419.437907 | CV30: ='Compile Data'!E240 -> 7118.877461 | CX30: 11351.81263 | CY30: 12567.4054 | CZ30: 10420.54639 | DB30: 14897.09653 | DC30: 5754.560853 | DD30: 9159.231754 | DE30: 15437.28388 | DF30: 11701.95547 | DG30: 6299.642342 | DH30: 6561.1647 | DJ30: 1940 | DK30: ='Compile Data'!F229 ->  | DL30: ='Compile Data'!F230 ->  | DM30: ='Compile Data'!F231 ->  | DN30: ='Compile Data'!F232 ->  | DO30: ='Compile Data'!F233 ->  | DP30: ='Compile Data'!F234 ->  | DQ30: ='Compile Data'!F235 ->  | DR30: ='Compile Data'!F236 ->  | DS30: ='Compile Data'!F237 ->  | DT30: ='Compile Data'!F238 ->  | DU30: ='Compile Data'!F239 ->  | DV30: ='Compile Data'!F240 -> 
A31: 1923-04-30 | B31: =INDIRECT(CONCATENATE("'",B$1,"'!",B$4,(YEAR($A31)-1921)*12+MONTH($A31)+3+IF(ISNUMBER(FIND("PRV",B$6)),1,0)))*IF(AND(B$3>0,TRIM(B$9)="CFS"),Conv_Flags!$C31,1) -> 8753.080716 | C31: =INDIRECT(CONCATENATE("'",C$1,"'!",C$4,(YEAR($A31)-1921)*12+MONTH($A31)+3+IF(ISNUMBER(FIND("PRV",C$6)),1,0)))*IF(AND(C$3>0,TRIM(C$9)="CFS"),Conv_Flags!$C31,1) -> 8400.274771 | D31: =INDIRECT(CONCATENATE("'",D$1,"'!",D$4,(YEAR($A31)-1921)*12+MONTH($A31)+3+IF(ISNUMBER(FIND("PRV",D$6)),1,0)))*IF(AND(D$3>0,TRIM(D$9)="CFS"),Conv_Flags!$C31,1) -> 8743.939641 | E31: =INDIRECT(CONCATENATE("'",E$1,"'!",E$4,(YEAR($A31)-1921)*12+MONTH($A31)+3+IF(ISNUMBER(FIND("PRV",E$6)),1,0)))*IF(AND(E$3>0,TRIM(E$9)="CFS"),Conv_Flags!$C31,1) -> 8744.00728 | F31: =INDIRECT(CONCATENATE("'",F$1,"'!",F$4,(YEAR($A31)-1921)*12+MONTH($A31)+3+IF(ISNUMBER(FIND("PRV",F$6)),1,0)))*IF(AND(F$3>0,TRIM(F$9)="CFS"),Conv_Flags!$C31,1) ->  | J31: 1941 | K31: =B241 -> 5941.615596 | L31: =B242 -> 6673.417049 | M31: =B243 -> 18278.98761 | N31: =B244 -> 26593.32621 | O31: =B245 -> 26529.18019 | P31: =B246 -> 23670.17288 | Q31: =B247 -> 26217.0802 | R31: =B248 -> 17764.46919 | S31: =B249 -> 5809.39202 | T31: =B250 -> 7223.292912 | U31: =B251 -> 6655.382431 | V31: =B252 -> 9799.724029 | X31: 15451.78389 | Y31: 15010.4708 | Z31: 15096.33669 | AB31: 20349.01679 | AC31: 8055.161233 | AD31: 14371.83662 | AE31: 23800.498 | AF31: 18365.27857 | AG31: 7371.947848 | AH31: 7519.255694 | AJ31: 1941 | AK31: ='Compile Data'!C241 -> 5724.914184 | AL31: ='Compile Data'!C242 -> 6821.317012 | AM31: ='Compile Data'!C243 -> 18258.79398 | AN31: ='Compile Data'!C244 -> 26394.1046 | AO31: ='Compile Data'!C245 -> 26392.09096 | AP31: ='Compile Data'!C246 -> 23006.22728 | AQ31: ='Compile Data'!C247 -> 26227.46927 | AR31: ='Compile Data'!C248 -> 17627.48717 | AS31: ='Compile Data'!C249 -> 5650.972128 | AT31: ='Compile Data'!C250 -> 7224.017828 | AU31: ='Compile Data'!C251 -> 6648.065766 | AV31: ='Compile Data'!C252 -> 9838.36776 | AX31: 15343.13473 | AY31: 14899.14438 | AZ31: 14984.48566 | BB31: 20174.50677 | BC31: 8064.291681 | BD31: 14299.78244 | BE31: 23681.66318 | BF31: 18128.03896 | BG31: 7340.35587 | BH31: 7514.936425 | BJ31: 1941 | BK31: ='Compile Data'!D241 -> 5725.036297 | BL31: ='Compile Data'!D242 -> 6824.479855 | BM31: ='Compile Data'!D243 -> 18256.28733 | BN31: ='Compile Data'!D244 -> 26394.3303 | BO31: ='Compile Data'!D245 -> 26392.23353 | BP31: ='Compile Data'!D246 -> 23018.3707 | BQ31: ='Compile Data'!D247 -> 26227.34836 | BR31: ='Compile Data'!D248 -> 17627.83114 | BS31: ='Compile Data'!D249 -> 5650.860922 | BT31: ='Compile Data'!D250 -> 7224.198412 | BU31: ='Compile Data'!D251 -> 6648.196177 | BV31: ='Compile Data'!D252 -> 9838.491847 | BX31: 15344.24187 | BY31: 14888.41757 | BZ31: 14985.63874 | CB31: 20177.14035 | CC31: 8064.413973 | CD31: 14300.03345 | CE31: 23680.95039 | CF31: 18131.10278 | CG31: 7340.43684 | CH31: 7515.015248 | CJ31: 1941 | CK31: ='Compile Data'!E241 -> 5725.367191 | CL31: ='Compile Data'!E242 -> 6839.249449 | CM31: ='Compile Data'!E243 -> 18242.29818 | CN31: ='Compile Data'!E244 -> 26394.99068 | CO31: ='Compile Data'!E245 -> 26392.40991 | CP31: ='Compile Data'!E246 -> 22755.76579 | CQ31: ='Compile Data'!E247 -> 26233.00808 | CR31: ='Compile Data'!E248 -> 17625.80416 | CS31: ='Compile Data'!E249 -> 5646.351582 | CT31: ='Compile Data'!E250 -> 7223.308028 | CU31: ='Compile Data'!E251 -> 6647.652801 | CV31: ='Compile Data'!E252 -> 9838.26077 | CX31: 15322.21999 | CY31: 14866.33636 | CZ31: 14963.70555 | DB31: 20124.9428 | DC31: 8064.135275 | DD31: 14300.47637 | DE31: 23676.56626 | DF31: 18065.2324 | DG31: 7338.893295 | DH31: 7514.917675 | DJ31: 1941 | DK31: ='Compile Data'!F241 ->  | DL31: ='Compile Data'!F242 ->  | DM31: ='Compile Data'!F243 ->  | DN31: ='Compile Data'!F244 ->  | DO31: ='Compile Data'!F245 ->  | DP31: ='Compile Data'!F246 ->  | DQ31: ='Compile Data'!F247 ->  | DR31: ='Compile Data'!F248 ->  | DS31: ='Compile Data'!F249 ->  | DT31: ='Compile Data'!F250 ->  | DU31: ='Compile Data'!F251 ->  | DV31: ='Compile Data'!F252 -> 
A32: 1923-05-31 | B32: =INDIRECT(CONCATENATE("'",B$1,"'!",B$4,(YEAR($A32)-1921)*12+MONTH($A32)+3+IF(ISNUMBER(FIND("PRV",B$6)),1,0)))*IF(AND(B$3>0,TRIM(B$9)="CFS"),Conv_Flags!$C32,1) -> 4164.864166 | C32: =INDIRECT(CONCATENATE("'",C$1,"'!",C$4,(YEAR($A32)-1921)*12+MONTH($A32)+3+IF(ISNUMBER(FIND("PRV",C$6)),1,0)))*IF(AND(C$3>0,TRIM(C$9)="CFS"),Conv_Flags!$C32,1) -> 4164.864166 | D32: =INDIRECT(CONCATENATE("'",D$1,"'!",D$4,(YEAR($A32)-1921)*12+MONTH($A32)+3+IF(ISNUMBER(FIND("PRV",D$6)),1,0)))*IF(AND(D$3>0,TRIM(D$9)="CFS"),Conv_Flags!$C32,1) -> 4164.864166 | E32: =INDIRECT(CONCATENATE("'",E$1,"'!",E$4,(YEAR($A32)-1921)*12+MONTH($A32)+3+IF(ISNUMBER(FIND("PRV",E$6)),1,0)))*IF(AND(E$3>0,TRIM(E$9)="CFS"),Conv_Flags!$C32,1) -> 4164.864166 | F32: =INDIRECT(CONCATENATE("'",F$1,"'!",F$4,(YEAR($A32)-1921)*12+MONTH($A32)+3+IF(ISNUMBER(FIND("PRV",F$6)),1,0)))*IF(AND(F$3>0,TRIM(F$9)="CFS"),Conv_Flags!$C32,1) ->  | J32: 1942 | K32: =B253 -> 7710.377239 | L32: =B254 -> 5047.665812 | M32: =B255 -> 22401.34357 | N32: =B256 -> 21797.32497 | O32: =B257 -> 26029.4243 | P32: =B258 -> 9557.65244 | Q32: =B259 -> 15458.67136 | R32: =B260 -> 11593.55344 | S32: =B261 -> 6462.086559 | T32: =B262 -> 5254.219605 | U32: =B263 -> 5890.927944 | V32: =B264 -> 9256.535605 | X32: 11412.77649 | Y32: 11258.22331 | Z32: 12204.9819 | AB32: 16966.68222 | AC32: 7634.976016 | AD32: 14239.1779 | AE32: 23409.36428 | AF32: 10767.99095 | AG32: 6715.942428 | AH32: 7732.489203 | AJ32: 1942 | AK32: ='Compile Data'!C253 -> 7706.441516 | AL32: ='Compile Data'!C254 -> 5000 | AM32: ='Compile Data'!C255 -> 22402.37245 | AN32: ='Compile Data'!C256 -> 21421.59035 | AO32: ='Compile Data'!C257 -> 26036.72108 | AP32: ='Compile Data'!C258 -> 9537.230096 | AQ32: ='Compile Data'!C259 -> 15455.59393 | AR32: ='Compile Data'!C260 -> 11500.04153 | AS32: ='Compile Data'!C261 -> 6297.509409 | AT32: ='Compile Data'!C262 -> 5260.67278 | AU32: ='Compile Data'!C263 -> 5885.986393 | AV32: ='Compile Data'!C264 -> 9254.162329 | AX32: 11291.21248 | AY32: 11155.34563 | AZ32: 12146.52682 | BB32: 16879.58279 | BC32: 7632.056579 | BD32: 14132.60108 | BE32: 23286.89463 | BF32: 10697.59374 | BG32: 6674.582728 | BH32: 7448.245603 | BJ32: 1942 | BK32: ='Compile Data'!D253 -> 7706.553895 | BL32: ='Compile Data'!D254 -> 5000 | BM32: ='Compile Data'!D255 -> 22402.4871 | BN32: ='Compile Data'!D256 -> 21276.59787 | BO32: ='Compile Data'!D257 -> 26040.07437 | BP32: ='Compile Data'!D258 -> 9534.851715 | BQ32: ='Compile Data'!D259 -> 15454.568 | BR32: ='Compile Data'!D260 -> 11499.50697 | BS32: ='Compile Data'!D261 -> 6297.260382 | BT32: ='Compile Data'!D262 -> 5260.590679 | BU32: ='Compile Data'!D263 -> 5885.978601 | BV32: ='Compile Data'!D264 -> 9254.196446 | BX32: 11279.069 | BY32: 11145.14339 | BZ32: 12134.38884 | CB32: 16850.80221 | CC32: 7632.08352 | CD32: 14096.40972 | CE32: 23239.71978 | CF32: 10696.54677 | CG32: 6674.506527 | CH32: 7448.286394 | CJ32: 1942 | CK32: ='Compile Data'!E253 -> 7706.492254 | CL32: ='Compile Data'!E254 -> 5000 | CM32: ='Compile Data'!E255 -> 22402.59578 | CN32: ='Compile Data'!E256 -> 21276.57061 | CO32: ='Compile Data'!E257 -> 26040.22647 | CP32: ='Compile Data'!E258 -> 9548.284593 | CQ32: ='Compile Data'!E259 -> 15449.26921 | CR32: ='Compile Data'!E260 -> 11497.52327 | CS32: ='Compile Data'!E261 -> 6300.17439 | CT32: ='Compile Data'!E262 -> 5260.601399 | CU32: ='Compile Data'!E263 -> 5886.181575 | CV32: ='Compile Data'!E264 -> 9254.361403 | CX32: 11279.89562 | CY32: 11145.98461 | CZ32: 12135.19008 | DB32: 16853.53549 | DC32: 7632.254622 | DD32: 14096.41466 | DE32: 23239.79762 | DF32: 10698.81287 | DG32: 6675.329692 | DH32: 7448.413332 | DJ32: 1942 | DK32: ='Compile Data'!F253 ->  | DL32: ='Compile Data'!F254 ->  | DM32: ='Compile Data'!F255 ->  | DN32: ='Compile Data'!F256 ->  | DO32: ='Compile Data'!F257 ->  | DP32: ='Compile Data'!F258 ->  | DQ32: ='Compile Data'!F259 ->  | DR32: ='Compile Data'!F260 ->  | DS32: ='Compile Data'!F261 ->  | DT32: ='Compile Data'!F262 ->  | DU32: ='Compile Data'!F263 ->  | DV32: ='Compile Data'!F264 -> 
A33: 1923-06-30 | B33: =INDIRECT(CONCATENATE("'",B$1,"'!",B$4,(YEAR($A33)-1921)*12+MONTH($A33)+3+IF(ISNUMBER(FIND("PRV",B$6)),1,0)))*IF(AND(B$3>0,TRIM(B$9)="CFS"),Conv_Flags!$C33,1) -> 4091.439484 | C33: =INDIRECT(CONCATENATE("'",C$1,"'!",C$4,(YEAR($A33)-1921)*12+MONTH($A33)+3+IF(ISNUMBER(FIND("PRV",C$6)),1,0)))*IF(AND(C$3>0,TRIM(C$9)="CFS"),Conv_Flags!$C33,1) -> 5016.355239 | D33: =INDIRECT(CONCATENATE("'",D$1,"'!",D$4,(YEAR($A33)-1921)*12+MONTH($A33)+3+IF(ISNUMBER(FIND("PRV",D$6)),1,0)))*IF(AND(D$3>0,TRIM(D$9)="CFS"),Conv_Flags!$C33,1) -> 5016.355239 | E33: =INDIRECT(CONCATENATE("'",E$1,"'!",E$4,(YEAR($A33)-1921)*12+MONTH($A33)+3+IF(ISNUMBER(FIND("PRV",E$6)),1,0)))*IF(AND(E$3>0,TRIM(E$9)="CFS"),Conv_Flags!$C33,1) -> 5016.355239 | F33: =INDIRECT(CONCATENATE("'",F$1,"'!",F$4,(YEAR($A33)-1921)*12+MONTH($A33)+3+IF(ISNUMBER(FIND("PRV",F$6)),1,0)))*IF(AND(F$3>0,TRIM(F$9)="CFS"),Conv_Flags!$C33,1) ->  | J33: 1943 | K33: =B265 -> 7757.464498 | L33: =B266 -> 6183.467505 | M33: =B267 -> 11711.98969 | N33: =B268 -> 23318.60466 | O33: =B269 -> 22653.50642 | P33: =B270 -> 23182.82419 | Q33: =B271 -> 11669.84286 | R33: =B272 -> 6760.543985 | S33: =B273 -> 4802.1427 | T33: =B274 -> 9338.573745 | U33: =B275 -> 4511.948033 | V33: =B276 -> 7409.837813 | X33: 11020.83367 | Y33: 8739.055688 | Z33: 11608.39551 | AB33: 17410.07849 | AC33: 5675.819329 | AD33: 12242.88159 | AE33: 19228.03359 | AF33: 11603.83843 | AG33: 6515.625573 | AH33: 6641.512003 | AJ33: 1943 | AK33: ='Compile Data'!C265 -> 7756.021014 | AL33: ='Compile Data'!C266 -> 5334.553466 | AM33: ='Compile Data'!C267 -> 11754.46739 | AN33: ='Compile Data'!C268 -> 23178.09075 | AO33: ='Compile Data'!C269 -> 22649.81847 | AP33: ='Compile Data'!C270 -> 23177.21182 | AQ33: ='Compile Data'!C271 -> 11613.39593 | AR33: ='Compile Data'!C272 -> 6759.629738 | AS33: ='Compile Data'!C273 -> 5005.349287 | AT33: ='Compile Data'!C274 -> 9323.138454 | AU33: ='Compile Data'!C275 -> 4511.948033 | AV33: ='Compile Data'!C276 -> 7085.471695 | AX33: 10972.47562 | AY33: 8659.536709 | AZ33: 11512.42467 | BB33: 17218.82838 | BC33: 5565.048425 | BD33: 12005.78315 | BE33: 19194.12554 | BF33: 11638.89669 | BG33: 6481.476867 | BH33: 6429.479942 | BJ33: 1943 | BK33: ='Compile Data'!D265 -> 7756.075515 | BL33: ='Compile Data'!D266 -> 5334.587221 | BM33: ='Compile Data'!D267 -> 11754.54023 | BN33: ='Compile Data'!D268 -> 23055.42736 | BO33: ='Compile Data'!D269 -> 22654.13756 | BP33: ='Compile Data'!D270 -> 23175.71937 | BQ33: ='Compile Data'!D271 -> 11612.27011 | BR33: ='Compile Data'!D272 -> 6759.099107 | BS33: ='Compile Data'!D273 -> 5005.198774 | BT33: ='Compile Data'!D274 -> 9323.032801 | BU33: ='Compile Data'!D275 -> 4511.948033 | BV33: ='Compile Data'!D276 -> 7085.559197 | BX33: 10962.34157 | BY33: 8659.274423 | BZ33: 11502.29961 | CB33: 17194.88235 | CC33: 5565.078392 | CD33: 11975.15758 | CE33: 19154.70172 | CF33: 11638.07184 | CG33: 6481.434701 | CH33: 6429.520025 | CJ33: 1943 | CK33: ='Compile Data'!E265 -> 7756.220887 | CL33: ='Compile Data'!E266 -> 5334.657704 | CM33: ='Compile Data'!E267 -> 11754.67589 | CN33: ='Compile Data'!E268 -> 23055.58042 | CO33: ='Compile Data'!E269 -> 22654.28462 | CP33: ='Compile Data'!E270 -> 23175.85239 | CQ33: ='Compile Data'!E271 -> 11612.39877 | CR33: ='Compile Data'!E272 -> 6759.224089 | CS33: ='Compile Data'!E273 -> 5005.219169 | CT33: ='Compile Data'!E274 -> 9323.161801 | CU33: ='Compile Data'!E275 -> 4511.948033 | CV33: ='Compile Data'!E276 -> 7085.307822 | CX33: 10962.38408 | CY33: 8659.311997 | CZ33: 11502.37763 | DB33: 17195.0102 | DC33: 5564.9957 | DD33: 11975.28373 | DE33: 19154.84698 | DF33: 11638.1736 | DG33: 6481.409206 | DH33: 6429.453575 | DJ33: 1943 | DK33: ='Compile Data'!F265 ->  | DL33: ='Compile Data'!F266 ->  | DM33: ='Compile Data'!F267 ->  | DN33: ='Compile Data'!F268 ->  | DO33: ='Compile Data'!F269 ->  | DP33: ='Compile Data'!F270 ->  | DQ33: ='Compile Data'!F271 ->  | DR33: ='Compile Data'!F272 ->  | DS33: ='Compile Data'!F273 ->  | DT33: ='Compile Data'!F274 ->  | DU33: ='Compile Data'!F275 ->  | DV33: ='Compile Data'!F276 -> 
A34: 1923-07-31 | B34: =INDIRECT(CONCATENATE("'",B$1,"'!",B$4,(YEAR($A34)-1921)*12+MONTH($A34)+3+IF(ISNUMBER(FIND("PRV",B$6)),1,0)))*IF(AND(B$3>0,TRIM(B$9)="CFS"),Conv_Flags!$C34,1) -> 4008.944968 | C34: =INDIRECT(CONCATENATE("'",C$1,"'!",C$4,(YEAR($A34)-1921)*12+MONTH($A34)+3+IF(ISNUMBER(FIND("PRV",C$6)),1,0)))*IF(AND(C$3>0,TRIM(C$9)="CFS"),Conv_Flags!$C34,1) -> 4047.213621 | D34: =INDIRECT(CONCATENATE("'",D$1,"'!",D$4,(YEAR($A34)-1921)*12+MONTH($A34)+3+IF(ISNUMBER(FIND("PRV",D$6)),1,0)))*IF(AND(D$3>0,TRIM(D$9)="CFS"),Conv_Flags!$C34,1) -> 4047.378742 | E34: =INDIRECT(CONCATENATE("'",E$1,"'!",E$4,(YEAR($A34)-1921)*12+MONTH($A34)+3+IF(ISNUMBER(FIND("PRV",E$6)),1,0)))*IF(AND(E$3>0,TRIM(E$9)="CFS"),Conv_Flags!$C34,1) -> 4047.378742 | F34: =INDIRECT(CONCATENATE("'",F$1,"'!",F$4,(YEAR($A34)-1921)*12+MONTH($A34)+3+IF(ISNUMBER(FIND("PRV",F$6)),1,0)))*IF(AND(F$3>0,TRIM(F$9)="CFS"),Conv_Flags!$C34,1) ->  | J34: 1944 | K34: =B277 -> 5105.672142 | L34: =B278 -> 7409.026054 | M34: =B279 -> 6087.481414 | N34: =B280 -> 6848.01224 | O34: =B281 -> 11742.76308 | P34: =B282 -> 9348.69092 | Q34: =B283 -> 4243.280314 | R34: =B284 -> 4119.900781 | S34: =B285 -> 5413.73114 | T34: =B286 -> 5836.871728 | U34: =B287 -> 4684.15155 | V34: =B288 -> 4556.885028 | X34: 6443.796634 | Y34: 7226.574115 | Z34: 6283.038866 | AB34: 8287.194742 | AC34: 4830.775051 | AD34: 6362.547962 | AE34: 8226.085579 | AF34: 5781.400789 | AG34: 5122.909861 | AH34: 5406.781693 | AJ34: 1944 | AK34: ='Compile Data'!C277 -> 5097.725547 | AL34: ='Compile Data'!C278 -> 7105.242584 | AM34: ='Compile Data'!C279 -> 6162.685169 | AN34: ='Compile Data'!C280 -> 6834.363033 | AO34: ='Compile Data'!C281 -> 11238.27921 | AP34: ='Compile Data'!C282 -> 9167.528079 | AQ34: ='Compile Data'!C283 -> 4232.841769 | AR34: ='Compile Data'!C284 -> 4039.641541 | AS34: ='Compile Data'!C285 -> 5714.742699 | AT34: ='Compile Data'!C286 -> 5957.657913 | AU34: ='Compile Data'!C287 -> 4752.160767 | AV34: ='Compile Data'!C288 -> 5033.96756 | AX34: 6490.163993 | AY34: 7319.882955 | AZ34: 6278.069656 | BB34: 8101.619615 | BC34: 5065.911006 | BD34: 6300.004083 | BE34: 8078.442471 | BF34: 5788.688522 | BG34: 5364.632235 | BH34: 5701.775869 | BJ34: 1944 | BK34: ='Compile Data'!D277 -> 5097.727945 | BL34: ='Compile Data'!D278 -> 7105.272932 | BM34: ='Compile Data'!D279 -> 6162.705713 | BN34: ='Compile Data'!D280 -> 6834.421195 | BO34: ='Compile Data'!D281 -> 11238.3379 | BP34: ='Compile Data'!D282 -> 9167.584361 | BQ34: ='Compile Data'!D283 -> 4232.901397 | BR34: ='Compile Data'!D284 -> 4039.663084 | BS34: ='Compile Data'!D285 -> 5714.777767 | BT34: ='Compile Data'!D286 -> 5957.673714 | BU34: ='Compile Data'!D287 -> 4752.169433 | BV34: ='Compile Data'!D288 -> 5033.984083 | BX34: 6490.202094 | BY34: 7319.925906 | BZ34: 6278.101627 | CB34: 8101.66442 | CC34: 5065.926436 | CD34: 6300.031946 | CE34: 8078.48827 | CF34: 5788.731652 | CG34: 5364.651249 | CH34: 5701.806951 | CJ34: 1944 | CK34: ='Compile Data'!E277 -> 5097.731244 | CL34: ='Compile Data'!E278 -> 7105.321659 | CM34: ='Compile Data'!E279 -> 6162.578946 | CN34: ='Compile Data'!E280 -> 6834.549615 | CO34: ='Compile Data'!E281 -> 11238.45042 | CP34: ='Compile Data'!E282 -> 9364.640597 | CQ34: ='Compile Data'!E283 -> 4222.657957 | CR34: ='Compile Data'!E284 -> 4039.576898 | CS34: ='Compile Data'!E285 -> 5720.834813 | CT34: ='Compile Data'!E286 -> 5965.880293 | CU34: ='Compile Data'!E287 -> 4761.213801 | CV34: ='Compile Data'!E288 -> 5038.868979 | CX34: 6507.079908 | CY34: 7336.408234 | CZ34: 6296.025435 | DB34: 8141.108248 | DC34: 5066.011316 | DD34: 6300.045366 | DE34: 8078.526328 | DF34: 5836.927566 | DG34: 5371.699471 | DH34: 5699.240083 | DJ34: 1944 | DK34: ='Compile Data'!F277 ->  | DL34: ='Compile Data'!F278 ->  | DM34: ='Compile Data'!F279 ->  | DN34: ='Compile Data'!F280 ->  | DO34: ='Compile Data'!F281 ->  | DP34: ='Compile Data'!F282 ->  | DQ34: ='Compile Data'!F283 ->  | DR34: ='Compile Data'!F284 ->  | DS34: ='Compile Data'!F285 ->  | DT34: ='Compile Data'!F286 ->  | DU34: ='Compile Data'!F287 ->  | DV34: ='Compile Data'!F288 -> 
A35: 1923-08-31 | B35: =INDIRECT(CONCATENATE("'",B$1,"'!",B$4,(YEAR($A35)-1921)*12+MONTH($A35)+3+IF(ISNUMBER(FIND("PRV",B$6)),1,0)))*IF(AND(B$3>0,TRIM(B$9)="CFS"),Conv_Flags!$C35,1) -> 4010.148067 | C35: =INDIRECT(CONCATENATE("'",C$1,"'!",C$4,(YEAR($A35)-1921)*12+MONTH($A35)+3+IF(ISNUMBER(FIND("PRV",C$6)),1,0)))*IF(AND(C$3>0,TRIM(C$9)="CFS"),Conv_Flags!$C35,1) -> 4176.107964 | D35: =INDIRECT(CONCATENATE("'",D$1,"'!",D$4,(YEAR($A35)-1921)*12+MONTH($A35)+3+IF(ISNUMBER(FIND("PRV",D$6)),1,0)))*IF(AND(D$3>0,TRIM(D$9)="CFS"),Conv_Flags!$C35,1) -> 4174.805795 | E35: =INDIRECT(CONCATENATE("'",E$1,"'!",E$4,(YEAR($A35)-1921)*12+MONTH($A35)+3+IF(ISNUMBER(FIND("PRV",E$6)),1,0)))*IF(AND(E$3>0,TRIM(E$9)="CFS"),Conv_Flags!$C35,1) -> 4174.841799 | F35: =INDIRECT(CONCATENATE("'",F$1,"'!",F$4,(YEAR($A35)-1921)*12+MONTH($A35)+3+IF(ISNUMBER(FIND("PRV",F$6)),1,0)))*IF(AND(F$3>0,TRIM(F$9)="CFS"),Conv_Flags!$C35,1) ->  | J35: 1945 | K35: =B289 -> 5251.288576 | L35: =B290 -> 6412.171475 | M35: =B291 -> 8867.812768 | N35: =B292 -> 6349.393581 | O35: =B293 -> 21634.71152 | P35: =B294 -> 9992.372022 | Q35: =B295 -> 6564.083822 | R35: =B296 -> 5996.372241 | S35: =B297 -> 5221.232292 | T35: =B298 -> 5918.850041 | U35: =B299 -> 4529.880001 | V35: =B300 -> 4906.299518 | X35: 9137.762087 | Y35: 9077.626134 | Z35: 7637.038988 | AB35: 10651.29227 | AC35: 4797.591883 | AD35: 6720.1666 | AE35: 12283.97262 | AF35: 6943.515094 | AG35: 5144.065463 | AH35: 6779.269003 | AJ35: 1945 | AK35: ='Compile Data'!C289 -> 5411.604689 | AL35: ='Compile Data'!C290 -> 6659.755356 | AM35: ='Compile Data'!C291 -> 8839.425302 | AN35: ='Compile Data'!C292 -> 6384.039413 | AO35: ='Compile Data'!C293 -> 21645.23037 | AP35: ='Compile Data'!C294 -> 9617.793934 | AQ35: ='Compile Data'!C295 -> 6570.09126 | AR35: ='Compile Data'!C296 -> 5991.742445 | AS35: ='Compile Data'!C297 -> 5312.114231 | AT35: ='Compile Data'!C298 -> 6273.873944 | AU35: ='Compile Data'!C299 -> 4615.119906 | AV35: ='Compile Data'!C300 -> 5015.917804 | AX35: 9216.819008 | AY35: 9099.13545 | AZ35: 7694.725721 | BB35: 10629.24888 | BC35: 5110.924526 | BD35: 6823.70619 | BE35: 12289.56503 | BF35: 6872.935468 | BG35: 5304.256471 | BH35: 7023.264245 | BJ35: 1945 | BK35: ='Compile Data'!D289 -> 5411.62579 | BL35: ='Compile Data'!D290 -> 6659.810978 | BM35: ='Compile Data'!D291 -> 8839.475431 | BN35: ='Compile Data'!D292 -> 6384.089939 | BO35: ='Compile Data'!D293 -> 21645.3549 | BP35: ='Compile Data'!D294 -> 9617.839403 | BQ35: ='Compile Data'!D295 -> 6570.14317 | BR35: ='Compile Data'!D296 -> 5991.791536 | BS35: ='Compile Data'!D297 -> 5312.123786 | BT35: ='Compile Data'!D298 -> 6273.765326 | BU35: ='Compile Data'!D299 -> 4614.975771 | BV35: ='Compile Data'!D300 -> 5016.664367 | BX35: 9216.852257 | BY35: 9099.245212 | BZ35: 7694.805033 | CB35: 10629.31413 | CC35: 5110.675064 | CD35: 6823.750535 | CE35: 12289.64009 | CF35: 6872.974474 | CG35: 5304.382312 | CH35: 7023.364743 | CJ35: 1945 | CK35: ='Compile Data'!E289 -> 5397.951169 | CL35: ='Compile Data'!E290 -> 6660.900103 | CM35: ='Compile Data'!E291 -> 8839.434252 | CN35: ='Compile Data'!E292 -> 6384.168763 | CO35: ='Compile Data'!E293 -> 21640.77118 | CP35: ='Compile Data'!E294 -> 9990.482184 | CQ35: ='Compile Data'!E295 -> 6555.221474 | CR35: ='Compile Data'!E296 -> 5998.35445 | CS35: ='Compile Data'!E297 -> 5307.497381 | CT35: ='Compile Data'!E298 -> 6271.956127 | CU35: ='Compile Data'!E299 -> 4613.054615 | CV35: ='Compile Data'!E300 -> 5023.100751 | CX35: 9244.902457 | CY35: 9128.786638 | CZ35: 7723.574371 | DB35: 10703.1513 | DC35: 5101.068627 | DD35: 6820.613572 | DE35: 12288.12473 | DF35: 6962.888872 | DG35: 5303.902219 | DH35: 7018.588702 | DJ35: 1945 | DK35: ='Compile Data'!F289 ->  | DL35: ='Compile Data'!F290 ->  | DM35: ='Compile Data'!F291 ->  | DN35: ='Compile Data'!F292 ->  | DO35: ='Compile Data'!F293 ->  | DP35: ='Compile Data'!F294 ->  | DQ35: ='Compile Data'!F295 ->  | DR35: ='Compile Data'!F296 ->  | DS35: ='Compile Data'!F297 ->  | DT35: ='Compile Data'!F298 ->  | DU35: ='Compile Data'!F299 ->  | DV35: ='Compile Data'!F300 -> 
A36: 1923-09-30 | B36: =INDIRECT(CONCATENATE("'",B$1,"'!",B$4,(YEAR($A36)-1921)*12+MONTH($A36)+3+IF(ISNUMBER(FIND("PRV",B$6)),1,0)))*IF(AND(B$3>0,TRIM(B$9)="CFS"),Conv_Flags!$C36,1) -> 4574.303807 | C36: =INDIRECT(CONCATENATE("'",C$1,"'!",C$4,(YEAR($A36)-1921)*12+MONTH($A36)+3+IF(ISNUMBER(FIND("PRV",C$6)),1,0)))*IF(AND(C$3>0,TRIM(C$9)="CFS"),Conv_Flags!$C36,1) -> 4096.47868 | D36: =INDIRECT(CONCATENATE("'",D$1,"'!",D$4,(YEAR($A36)-1921)*12+MONTH($A36)+3+IF(ISNUMBER(FIND("PRV",D$6)),1,0)))*IF(AND(D$3>0,TRIM(D$9)="CFS"),Conv_Flags!$C36,1) -> 4096.47868 | E36: =INDIRECT(CONCATENATE("'",E$1,"'!",E$4,(YEAR($A36)-1921)*12+MONTH($A36)+3+IF(ISNUMBER(FIND("PRV",E$6)),1,0)))*IF(AND(E$3>0,TRIM(E$9)="CFS"),Conv_Flags!$C36,1) -> 4096.47868 | F36: =INDIRECT(CONCATENATE("'",F$1,"'!",F$4,(YEAR($A36)-1921)*12+MONTH($A36)+3+IF(ISNUMBER(FIND("PRV",F$6)),1,0)))*IF(AND(F$3>0,TRIM(F$9)="CFS"),Conv_Flags!$C36,1) ->  | J36: 1946 | K36: =B301 -> 4956.59613 | L36: =B302 -> 10474.91136 | M36: =B303 -> 23108.44251 | N36: =B304 -> 19909.32805 | O36: =B305 -> 7353.145614 | P36: =B306 -> 7534.423202 | Q36: =B307 -> 7061.524753 | R36: =B308 -> 4988.341565 | S36: =B309 -> 5485.07793 | T36: =B310 -> 6913.360868 | U36: =B311 -> 4507.683271 | V36: =B312 -> 5064.269331 | X36: 7260.433952 | Y36: 6139.26454 | Z36: 8946.425383 | AB36: 13676.05015 | AC36: 4981.115037 | AD36: 14612.31951 | AE36: 16790.30539 | AF36: 6267.341862 | AG36: 5492.59785 | AH36: 5270.268548 | AJ36: 1946 | AK36: ='Compile Data'!C301 -> 5701.735868 | AL36: ='Compile Data'!C302 -> 10352.13906 | AM36: ='Compile Data'!C303 -> 23122.02986 | AN36: ='Compile Data'!C304 -> 19191.91505 | AO36: ='Compile Data'!C305 -> 7425.152036 | AP36: ='Compile Data'!C306 -> 5776.118241 | AQ36: ='Compile Data'!C307 -> 7153.095757 | AR36: ='Compile Data'!C308 -> 4961.992149 | AS36: ='Compile Data'!C309 -> 5839.214877 | AT36: ='Compile Data'!C310 -> 6860.616337 | AU36: ='Compile Data'!C311 -> 4541.771753 | AV36: ='Compile Data'!C312 -> 5110.237659 | AX36: 7105.830284 | AY36: 5941.043182 | AZ36: 8836.334887 | BB36: 13173.47085 | BC36: 5037.107542 | BD36: 14591.95496 | BE36: 16579.69898 | BF36: 5932.605256 | BG36: 5587.960156 | BH36: 5319.245583 | BJ36: 1946 | BK36: ='Compile Data'!D301 -> 5700.385055 | BL36: ='Compile Data'!D302 -> 10353.04481 | BM36: ='Compile Data'!D303 -> 23122.04903 | BN36: ='Compile Data'!D304 -> 19191.96073 | BO36: ='Compile Data'!D305 -> 7426.199564 | BP36: ='Compile Data'!D306 -> 5776.109836 | BQ36: ='Compile Data'!D307 -> 7152.233154 | BR36: ='Compile Data'!D308 -> 4962.027757 | BS36: ='Compile Data'!D309 -> 5839.229351 | BT36: ='Compile Data'!D310 -> 6860.640298 | BU36: ='Compile Data'!D311 -> 4541.692965 | BV36: ='Compile Data'!D312 -> 5110.60341 | BX36: 7105.891111 | BY36: 5941.017115 | BZ36: 8836.347996 | CB36: 13173.87279 | CC36: 5037.237181 | CD36: 14591.8599 | CE36: 16580.06977 | CF36: 5932.400024 | CG36: 5588.041506 | CH36: 5319.402446 | CJ36: 1946 | CK36: ='Compile Data'!E301 -> 5667.050514 | CL36: ='Compile Data'!E302 -> 10365.61484 | CM36: ='Compile Data'!E303 -> 23121.55721 | CN36: ='Compile Data'!E304 -> 19191.97963 | CO36: ='Compile Data'!E305 -> 7439.570488 | CP36: ='Compile Data'!E306 -> 7520.427727 | CQ36: ='Compile Data'!E307 -> 7048.512332 | CR36: ='Compile Data'!E308 -> 4896.98179 | CS36: ='Compile Data'!E309 -> 5844.898665 | CT36: ='Compile Data'!E310 -> 6874.956528 | CU36: ='Compile Data'!E311 -> 4529.891343 | CV36: ='Compile Data'!E312 -> 5020.093282 | CX36: 7228.471693 | CY36: 6159.902451 | CZ36: 8960.127862 | DB36: 13527.82998 | DC36: 4992.208889 | DD36: 14586.55055 | DE36: 16584.36911 | DF36: 6327.705128 | DG36: 5567.459954 | DH36: 5277.673704 | DJ36: 1946 | DK36: ='Compile Data'!F301 ->  | DL36: ='Compile Data'!F302 ->  | DM36: ='Compile Data'!F303 ->  | DN36: ='Compile Data'!F304 ->  | DO36: ='Compile Data'!F305 ->  | DP36: ='Compile Data'!F306 ->  | DQ36: ='Compile Data'!F307 ->  | DR36: ='Compile Data'!F308 ->  | DS36: ='Compile Data'!F309 ->  | DT36: ='Compile Data'!F310 ->  | DU36: ='Compile Data'!F311 ->  | DV36: ='Compile Data'!F312 -> 
A37: 1923-10-31 | B37: =INDIRECT(CONCATENATE("'",B$1,"'!",B$4,(YEAR($A37)-1921)*12+MONTH($A37)+3+IF(ISNUMBER(FIND("PRV",B$6)),1,0)))*IF(AND(B$3>0,TRIM(B$9)="CFS"),Conv_Flags!$C37,1) -> 4541.278745 | C37: =INDIRECT(CONCATENATE("'",C$1,"'!",C$4,(YEAR($A37)-1921)*12+MONTH($A37)+3+IF(ISNUMBER(FIND("PRV",C$6)),1,0)))*IF(AND(C$3>0,TRIM(C$9)="CFS"),Conv_Flags!$C37,1) -> 4936.855498 | D37: =INDIRECT(CONCATENATE("'",D$1,"'!",D$4,(YEAR($A37)-1921)*12+MONTH($A37)+3+IF(ISNUMBER(FIND("PRV",D$6)),1,0)))*IF(AND(D$3>0,TRIM(D$9)="CFS"),Conv_Flags!$C37,1) -> 4937.632026 | E37: =INDIRECT(CONCATENATE("'",E$1,"'!",E$4,(YEAR($A37)-1921)*12+MONTH($A37)+3+IF(ISNUMBER(FIND("PRV",E$6)),1,0)))*IF(AND(E$3>0,TRIM(E$9)="CFS"),Conv_Flags!$C37,1) -> 4937.666355 | F37: =INDIRECT(CONCATENATE("'",F$1,"'!",F$4,(YEAR($A37)-1921)*12+MONTH($A37)+3+IF(ISNUMBER(FIND("PRV",F$6)),1,0)))*IF(AND(F$3>0,TRIM(F$9)="CFS"),Conv_Flags!$C37,1) ->  | J37: 1947 | K37: =B313 -> 5371.392508 | L37: =B314 -> 5375.143806 | M37: =B315 -> 7561.516519 | N37: =B316 -> 4528.625216 | O37: =B317 -> 9279.815509 | P37: =B318 -> 9590.527342 | Q37: =B319 -> 6505.409113 | R37: =B320 -> 4526.167117 | S37: =B321 -> 8038.876329 | T37: =B322 -> 7121.995782 | U37: =B323 -> 4406.214724 | V37: =B324 -> 4794.474812 | X37: 6315.5093 | Y37: 6494.429348 | Z37: 6425.013231 | AB37: 7267.125678 | AC37: 4986.331502 | AD37: 5709.169512 | AE37: 7123.319081 | AF37: 7165.244975 | AG37: 6090.390412 | AH37: 5204.919785 | AJ37: 1947 | AK37: ='Compile Data'!C313 -> 5459.313215 | AL37: ='Compile Data'!C314 -> 5388.185874 | AM37: ='Compile Data'!C315 -> 7562.350465 | AN37: ='Compile Data'!C316 -> 4528.625216 | AO37: ='Compile Data'!C317 -> 8110.996637 | AP37: ='Compile Data'!C318 -> 8765.335654 | AQ37: ='Compile Data'!C319 -> 6503.395452 | AR37: ='Compile Data'!C320 -> 4514.935147 | AS37: ='Compile Data'!C321 -> 7320.627651 | AT37: ='Compile Data'!C322 -> 7568.425148 | AU37: ='Compile Data'!C323 -> 4892.815813 | AV37: ='Compile Data'!C324 -> 5570.486352 | AX37: 6196.734031 | AY37: 6460.913482 | AZ37: 6348.791052 | BB37: 6871.098769 | BC37: 5329.136317 | BD37: 5734.618693 | BE37: 6733.990773 | BF37: 6776.073476 | BG37: 6338.088741 | BH37: 5403.475548 | BJ37: 1947 | BK37: ='Compile Data'!D313 -> 5459.415166 | BL37: ='Compile Data'!D314 -> 5388.188762 | BM37: ='Compile Data'!D315 -> 7562.392342 | BN37: ='Compile Data'!D316 -> 4528.625216 | BO37: ='Compile Data'!D317 -> 8111.047129 | BP37: ='Compile Data'!D318 -> 8765.3722 | BQ37: ='Compile Data'!D319 -> 6510.586954 | BR37: ='Compile Data'!D320 -> 4519.209811 | BS37: ='Compile Data'!D321 -> 7278.450762 | BT37: ='Compile Data'!D322 -> 7581.537594 | BU37: ='Compile Data'!D323 -> 4895.089453 | BV37: ='Compile Data'!D324 -> 5625.272306 | BX37: 6190.637018 | BY37: 6451.31485 | BZ37: 6352.098975 | CB37: 6871.12513 | CC37: 5342.48872 | CD37: 5734.655371 | CE37: 6734.021562 | CF37: 6768.404932 | CG37: 6345.087529 | CH37: 5426.750115 | CJ37: 1947 | CK37: ='Compile Data'!E313 -> 5426.642042 | CL37: ='Compile Data'!E314 -> 5386.285789 | CM37: ='Compile Data'!E315 -> 7561.420706 | CN37: ='Compile Data'!E316 -> 4528.625216 | CO37: ='Compile Data'!E317 -> 9280.093992 | CP37: ='Compile Data'!E318 -> 9590.65913 | CQ37: ='Compile Data'!E319 -> 6495.610698 | CR37: ='Compile Data'!E320 -> 4522.12967 | CS37: ='Compile Data'!E321 -> 7269.295208 | CT37: ='Compile Data'!E322 -> 7596.374938 | CU37: ='Compile Data'!E323 -> 4899.917086 | CV37: ='Compile Data'!E324 -> 5581.296602 | CX37: 6348.049113 | CY37: 6510.320982 | CZ37: 6511.529256 | DB37: 7269.416966 | DC37: 5348.450904 | DD37: 5725.743438 | DE37: 7123.379971 | DF37: 6969.423676 | DG37: 6336.720958 | DH37: 5412.997756 | DJ37: 1947 | DK37: ='Compile Data'!F313 ->  | DL37: ='Compile Data'!F314 ->  | DM37: ='Compile Data'!F315 ->  | DN37: ='Compile Data'!F316 ->  | DO37: ='Compile Data'!F317 ->  | DP37: ='Compile Data'!F318 ->  | DQ37: ='Compile Data'!F319 ->  | DR37: ='Compile Data'!F320 ->  | DS37: ='Compile Data'!F321 ->  | DT37: ='Compile Data'!F322 ->  | DU37: ='Compile Data'!F323 ->  | DV37: ='Compile Data'!F324 -> 
A38: 1923-11-30 | B38: =INDIRECT(CONCATENATE("'",B$1,"'!",B$4,(YEAR($A38)-1921)*12+MONTH($A38)+3+IF(ISNUMBER(FIND("PRV",B$6)),1,0)))*IF(AND(B$3>0,TRIM(B$9)="CFS"),Conv_Flags!$C38,1) -> 4509.942804 | C38: =INDIRECT(CONCATENATE("'",C$1,"'!",C$4,(YEAR($A38)-1921)*12+MONTH($A38)+3+IF(ISNUMBER(FIND("PRV",C$6)),1,0)))*IF(AND(C$3>0,TRIM(C$9)="CFS"),Conv_Flags!$C38,1) -> 4510.407109 | D38: =INDIRECT(CONCATENATE("'",D$1,"'!",D$4,(YEAR($A38)-1921)*12+MONTH($A38)+3+IF(ISNUMBER(FIND("PRV",D$6)),1,0)))*IF(AND(D$3>0,TRIM(D$9)="CFS"),Conv_Flags!$C38,1) -> 4510.407109 | E38: =INDIRECT(CONCATENATE("'",E$1,"'!",E$4,(YEAR($A38)-1921)*12+MONTH($A38)+3+IF(ISNUMBER(FIND("PRV",E$6)),1,0)))*IF(AND(E$3>0,TRIM(E$9)="CFS"),Conv_Flags!$C38,1) -> 4510.407109 | F38: =INDIRECT(CONCATENATE("'",F$1,"'!",F$4,(YEAR($A38)-1921)*12+MONTH($A38)+3+IF(ISNUMBER(FIND("PRV",F$6)),1,0)))*IF(AND(F$3>0,TRIM(F$9)="CFS"),Conv_Flags!$C38,1) ->  | J38: 1948 | K38: =B325 -> 5758.304971 | L38: =B326 -> 5061.979573 | M38: =B327 -> 6173.721114 | N38: =B328 -> 9696.010535 | O38: =B329 -> 6259.470769 | P38: =B330 -> 9520.923156 | Q38: =B331 -> 16133.80911 | R38: =B332 -> 16790.79445 | S38: =B333 -> 8435.525126 | T38: =B334 -> 5974.519121 | U38: =B335 -> 4532.563065 | V38: =B336 -> 7243.688337 | X38: 8493.996138 | Y38: 8120.743392 | Z38: 8465.10911 | AB38: 7342.421029 | AC38: 6073.685041 | AD38: 6672.504048 | AE38: 7376.400806 | AF38: 12720.26296 | AG38: 6546.573912 | AH38: 6126.313319 | AJ38: 1948 | AK38: ='Compile Data'!C325 -> 5524.106784 | AL38: ='Compile Data'!C326 -> 5115.833506 | AM38: ='Compile Data'!C327 -> 5945.22501 | AN38: ='Compile Data'!C328 -> 9714.315527 | AO38: ='Compile Data'!C329 -> 6095.459739 | AP38: ='Compile Data'!C330 -> 7313.076198 | AQ38: ='Compile Data'!C331 -> 15434.81875 | AR38: ='Compile Data'!C332 -> 15000 | AS38: ='Compile Data'!C333 -> 6536.571986 | AT38: ='Compile Data'!C334 -> 6195.036118 | AU38: ='Compile Data'!C335 -> 4568.961481 | AV38: ='Compile Data'!C336 -> 7631.171078 | AX38: 8017.081307 | AY38: 7564.70283 | AZ38: 7922.881348 | BB38: 6836.781996 | BC38: 6305.870009 | BD38: 6574.870207 | BE38: 7251.666759 | BF38: 11071.11673 | BG38: 6232.935166 | BH38: 6351.658936 | BJ38: 1948 | BK38: ='Compile Data'!D325 -> 5507.104402 | BL38: ='Compile Data'!D326 -> 5147.873635 | BM38: ='Compile Data'!D327 -> 5817.47475 | BN38: ='Compile Data'!D328 -> 9722.759198 | BO38: ='Compile Data'!D329 -> 6045.047137 | BP38: ='Compile Data'!D330 -> 7315.242955 | BQ38: ='Compile Data'!D331 -> 15374.93808 | BR38: ='Compile Data'!D332 -> 15000 | BS38: ='Compile Data'!D333 -> 6535.280722 | BT38: ='Compile Data'!D334 -> 6179.973517 | BU38: ='Compile Data'!D335 -> 4568.767995 | BV38: ='Compile Data'!D336 -> 7606.764459 | BX38: 8011.850804 | BY38: 7562.861395 | BZ38: 7901.768904 | CB38: 6809.679535 | CC38: 6310.876575 | CD38: 6548.802996 | CE38: 7195.093695 | CF38: 11056.36544 | CG38: 6222.696673 | CH38: 6357.256572 | CJ38: 1948 | CK38: ='Compile Data'!E325 -> 5564.139023 | CL38: ='Compile Data'!E326 -> 5093.557642 | CM38: ='Compile Data'!E327 -> 5754.890153 | CN38: ='Compile Data'!E328 -> 9726.555962 | CO38: ='Compile Data'!E329 -> 6029.425674 | CP38: ='Compile Data'!E330 -> 9530.431838 | CQ38: ='Compile Data'!E331 -> 15206.62734 | CR38: ='Compile Data'!E332 -> 15000 | CS38: ='Compile Data'!E333 -> 6557.709105 | CT38: ='Compile Data'!E334 -> 5368.46775 | CU38: ='Compile Data'!E335 -> 4557.614121 | CV38: ='Compile Data'!E336 -> 8318.843827 | CX38: 8149.768462 | CY38: 7794.23817 | CZ38: 8059.02187 | DB38: 7226.972254 | DC38: 6509.725023 | DD38: 6534.785695 | DE38: 7170.290596 | DF38: 11573.69207 | DG38: 6200.658701 | DH38: 6558.316963 | DJ38: 1948 | DK38: ='Compile Data'!F325 ->  | DL38: ='Compile Data'!F326 ->  | DM38: ='Compile Data'!F327 ->  | DN38: ='Compile Data'!F328 ->  | DO38: ='Compile Data'!F329 ->  | DP38: ='Compile Data'!F330 ->  | DQ38: ='Compile Data'!F331 ->  | DR38: ='Compile Data'!F332 ->  | DS38: ='Compile Data'!F333 ->  | DT38: ='Compile Data'!F334 ->  | DU38: ='Compile Data'!F335 ->  | DV38: ='Compile Data'!F336 -> 
A39: 1923-12-31 | B39: =INDIRECT(CONCATENATE("'",B$1,"'!",B$4,(YEAR($A39)-1921)*12+MONTH($A39)+3+IF(ISNUMBER(FIND("PRV",B$6)),1,0)))*IF(AND(B$3>0,TRIM(B$9)="CFS"),Conv_Flags!$C39,1) -> 6616.856394 | C39: =INDIRECT(CONCATENATE("'",C$1,"'!",C$4,(YEAR($A39)-1921)*12+MONTH($A39)+3+IF(ISNUMBER(FIND("PRV",C$6)),1,0)))*IF(AND(C$3>0,TRIM(C$9)="CFS"),Conv_Flags!$C39,1) -> 6720.282557 | D39: =INDIRECT(CONCATENATE("'",D$1,"'!",D$4,(YEAR($A39)-1921)*12+MONTH($A39)+3+IF(ISNUMBER(FIND("PRV",D$6)),1,0)))*IF(AND(D$3>0,TRIM(D$9)="CFS"),Conv_Flags!$C39,1) -> 6724.256238 | E39: =INDIRECT(CONCATENATE("'",E$1,"'!",E$4,(YEAR($A39)-1921)*12+MONTH($A39)+3+IF(ISNUMBER(FIND("PRV",E$6)),1,0)))*IF(AND(E$3>0,TRIM(E$9)="CFS"),Conv_Flags!$C39,1) -> 6724.340892 | F39: =INDIRECT(CONCATENATE("'",F$1,"'!",F$4,(YEAR($A39)-1921)*12+MONTH($A39)+3+IF(ISNUMBER(FIND("PRV",F$6)),1,0)))*IF(AND(F$3>0,TRIM(F$9)="CFS"),Conv_Flags!$C39,1) ->  | J39: 1949 | K39: =B337 -> 6444.80372 | L39: =B338 -> 4690.447899 | M39: =B339 -> 6205.398374 | N39: =B340 -> 5115.403928 | O39: =B341 -> 6361.044422 | P39: =B342 -> 23648.31717 | Q39: =B343 -> 6564.350391 | R39: =B344 -> 6376.595799 | S39: =B345 -> 4731.695981 | T39: =B346 -> 7250.034502 | U39: =B347 -> 4629.055005 | V39: =B348 -> 4734.960313 | X39: 7130.395424 | Y39: 8264.596867 | Z39: 7229.342292 | AB39: 9204.122358 | AC39: 4709.74294 | AD39: 5614.01348 | AE39: 5893.948908 | AF39: 10330.23983 | AG39: 5336.43645 | AH39: 4870.55188 | AJ39: 1949 | AK39: ='Compile Data'!C337 -> 6717.477468 | AL39: ='Compile Data'!C338 -> 4706.328262 | AM39: ='Compile Data'!C339 -> 6291.759073 | AN39: ='Compile Data'!C340 -> 5114.175409 | AO39: ='Compile Data'!C341 -> 5267.058133 | AP39: ='Compile Data'!C342 -> 22761.17798 | AQ39: ='Compile Data'!C343 -> 6552.552997 | AR39: ='Compile Data'!C344 -> 5871.538383 | AS39: ='Compile Data'!C345 -> 5368.5257 | AT39: ='Compile Data'!C346 -> 8405.654987 | AU39: ='Compile Data'!C347 -> 5696.341985 | AV39: ='Compile Data'!C348 -> 5003.84553 | AX39: 7159.461534 | AY39: 8168.882212 | AZ39: 7313.036325 | BB39: 8828.099771 | BC39: 5180.1955 | BD39: 5707.435053 | BE39: 5557.664205 | BF39: 10138.44876 | BG39: 6118.592051 | BH39: 4918.364242 | BJ39: 1949 | BK39: ='Compile Data'!D337 -> 6757.097273 | BL39: ='Compile Data'!D338 -> 4707.907986 | BM39: ='Compile Data'!D339 -> 6328.430325 | BN39: ='Compile Data'!D340 -> 5112.271924 | BO39: ='Compile Data'!D341 -> 5267.661506 | BP39: ='Compile Data'!D342 -> 22745.37473 | BQ39: ='Compile Data'!D343 -> 6550.677345 | BR39: ='Compile Data'!D344 -> 5871.516216 | BS39: ='Compile Data'!D345 -> 5406.452783 | BT39: ='Compile Data'!D346 -> 8415.518736 | BU39: ='Compile Data'!D347 -> 5696.33716 | BV39: ='Compile Data'!D348 -> 5005.729957 | BX39: 7174.700569 | BY39: 8184.146062 | BZ39: 7322.081329 | CB39: 8832.329295 | CC39: 5234.022372 | CD39: 5726.426877 | CE39: 5569.454585 | CF39: 10143.50527 | CG39: 6131.009659 | CH39: 4970.357172 | CJ39: 1949 | CK39: ='Compile Data'!E337 -> 6652.71712 | CL39: ='Compile Data'!E338 -> 4703.38994 | CM39: ='Compile Data'!E339 -> 6145.438868 | CN39: ='Compile Data'!E340 -> 5126.422268 | CO39: ='Compile Data'!E341 -> 6363.195862 | CP39: ='Compile Data'!E342 -> 22753.91815 | CQ39: ='Compile Data'!E343 -> 6578.333459 | CR39: ='Compile Data'!E344 -> 5689.695342 | CS39: ='Compile Data'!E345 -> 5403.372676 | CT39: ='Compile Data'!E346 -> 8517.037597 | CU39: ='Compile Data'!E347 -> 5677.912678 | CV39: ='Compile Data'!E348 -> 5201.407256 | CX39: 7282.858138 | CY39: 8199.772337 | CZ39: 7401.070102 | DB39: 9018.473018 | DC39: 5303.295279 | DD39: 5656.992049 | DE39: 5878.352333 | DF39: 10106.32991 | DG39: 6199.932552 | DH39: 5026.705876 | DJ39: 1949 | DK39: ='Compile Data'!F337 ->  | DL39: ='Compile Data'!F338 ->  | DM39: ='Compile Data'!F339 ->  | DN39: ='Compile Data'!F340 ->  | DO39: ='Compile Data'!F341 ->  | DP39: ='Compile Data'!F342 ->  | DQ39: ='Compile Data'!F343 ->  | DR39: ='Compile Data'!F344 ->  | DS39: ='Compile Data'!F345 ->  | DT39: ='Compile Data'!F346 ->  | DU39: ='Compile Data'!F347 ->  | DV39: ='Compile Data'!F348 -> 
A40: 1924-01-31 | B40: =INDIRECT(CONCATENATE("'",B$1,"'!",B$4,(YEAR($A40)-1921)*12+MONTH($A40)+3+IF(ISNUMBER(FIND("PRV",B$6)),1,0)))*IF(AND(B$3>0,TRIM(B$9)="CFS"),Conv_Flags!$C40,1) -> 5180.410312 | C40: =INDIRECT(CONCATENATE("'",C$1,"'!",C$4,(YEAR($A40)-1921)*12+MONTH($A40)+3+IF(ISNUMBER(FIND("PRV",C$6)),1,0)))*IF(AND(C$3>0,TRIM(C$9)="CFS"),Conv_Flags!$C40,1) -> 5176.157672 | D40: =INDIRECT(CONCATENATE("'",D$1,"'!",D$4,(YEAR($A40)-1921)*12+MONTH($A40)+3+IF(ISNUMBER(FIND("PRV",D$6)),1,0)))*IF(AND(D$3>0,TRIM(D$9)="CFS"),Conv_Flags!$C40,1) -> 5175.259407 | E40: =INDIRECT(CONCATENATE("'",E$1,"'!",E$4,(YEAR($A40)-1921)*12+MONTH($A40)+3+IF(ISNUMBER(FIND("PRV",E$6)),1,0)))*IF(AND(E$3>0,TRIM(E$9)="CFS"),Conv_Flags!$C40,1) -> 5175.176218 | F40: =INDIRECT(CONCATENATE("'",F$1,"'!",F$4,(YEAR($A40)-1921)*12+MONTH($A40)+3+IF(ISNUMBER(FIND("PRV",F$6)),1,0)))*IF(AND(F$3>0,TRIM(F$9)="CFS"),Conv_Flags!$C40,1) ->  | J40: 1950 | K40: =B349 -> 4765.213502 | L40: =B350 -> 5111.481827 | M40: =B351 -> 6276.592258 | N40: =B352 -> 10319.63555 | O40: =B353 -> 14767.23012 | P40: =B354 -> 8666.99812 | Q40: =B355 -> 7694.414432 | R40: =B356 -> 3545.15126 | S40: =B357 -> 3541.373276 | T40: =B358 -> 3457.603832 | U40: =B359 -> 4509.098179 | V40: =B360 -> 4560.875378 | X40: 8979.638925 | Y40: 10368.45271 | Z40: 6434.638977 | AB40: 9028.387574 | AC40: 5974.904499 | AD40: 6618.230783 | AE40: 10454.48597 | AF40: 5861.984272 | AG40: 4017.237666 | AH40: 9545.34808 | AJ40: 1950 | AK40: ='Compile Data'!C349 -> 4840.398985 | AL40: ='Compile Data'!C350 -> 4910.84821 | AM40: ='Compile Data'!C351 -> 6121.420108 | AN40: ='Compile Data'!C352 -> 8315.369983 | AO40: ='Compile Data'!C353 -> 14178.9117 | AP40: ='Compile Data'!C354 -> 7114.340578 | AQ40: ='Compile Data'!C355 -> 7725.009995 | AR40: ='Compile Data'!C356 -> 4645.15126 | AS40: ='Compile Data'!C357 -> 3541.373276 | AT40: ='Compile Data'!C358 -> 5295.33615 | AU40: ='Compile Data'!C359 -> 4529.000735 | AV40: ='Compile Data'!C360 -> 4560.875378 | AX40: 8783.076685 | AY40: 10159.53729 | AZ40: 6314.836363 | BB40: 8128.178115 | BC40: 5860.19693 | BD40: 6047.009322 | BE40: 9538.567262 | BF40: 5756.468777 | BG40: 4481.646385 | BH40: 9428.742406 | BJ40: 1950 | BK40: ='Compile Data'!D349 -> 5000 | BL40: ='Compile Data'!D350 -> 4905.341559 | BM40: ='Compile Data'!D351 -> 6119.524908 | BN40: ='Compile Data'!D352 -> 8317.465232 | BO40: ='Compile Data'!D353 -> 14175.81411 | BP40: ='Compile Data'!D354 -> 7114.952496 | BQ40: ='Compile Data'!D355 -> 7724.579436 | BR40: ='Compile Data'!D356 -> 4645.15126 | BS40: ='Compile Data'!D357 -> 3541.373276 | BT40: ='Compile Data'!D358 -> 5295.358978 | BU40: ='Compile Data'!D359 -> 4529.027932 | BV40: ='Compile Data'!D360 -> 4560.875378 | BX40: 8788.59977 | BY40: 10165.21921 | BZ40: 6327.45538 | CB40: 8126.619661 | CC40: 5883.632955 | CD40: 6085.582925 | CE40: 9537.601417 | CF40: 5756.514117 | CG40: 4481.658891 | CH40: 9450.697034 | CJ40: 1950 | CK40: ='Compile Data'!E349 -> 5030.565903 | CL40: ='Compile Data'!E350 -> 4848.14447 | CM40: ='Compile Data'!E351 -> 6204.291993 | CN40: ='Compile Data'!E352 -> 8314.293415 | CO40: ='Compile Data'!E353 -> 14178.2951 | CP40: ='Compile Data'!E354 -> 8645.874149 | CQ40: ='Compile Data'!E355 -> 7664.34759 | CR40: ='Compile Data'!E356 -> 3545.15126 | CS40: ='Compile Data'!E357 -> 3541.373276 | CT40: ='Compile Data'!E358 -> 5580.8037 | CU40: ='Compile Data'!E359 -> 4521.236624 | CV40: ='Compile Data'!E360 -> 4560.875378 | CX40: 8798.085491 | CY40: 10174.102 | CZ40: 6386.271072 | DB40: 8438.179826 | DC40: 5694.440256 | DD40: 6099.323945 | DE40: 9565.626837 | DF40: 5849.186569 | DG40: 4551.072244 | DH40: 9275.690477 | DJ40: 1950 | DK40: ='Compile Data'!F349 ->  | DL40: ='Compile Data'!F350 ->  | DM40: ='Compile Data'!F351 ->  | DN40: ='Compile Data'!F352 ->  | DO40: ='Compile Data'!F353 ->  | DP40: ='Compile Data'!F354 ->  | DQ40: ='Compile Data'!F355 ->  | DR40: ='Compile Data'!F356 ->  | DS40: ='Compile Data'!F357 ->  | DT40: ='Compile Data'!F358 ->  | DU40: ='Compile Data'!F359 ->  | DV40: ='Compile Data'!F360 -> 
A41: 1924-02-29 | B41: =INDIRECT(CONCATENATE("'",B$1,"'!",B$4,(YEAR($A41)-1921)*12+MONTH($A41)+3+IF(ISNUMBER(FIND("PRV",B$6)),1,0)))*IF(AND(B$3>0,TRIM(B$9)="CFS"),Conv_Flags!$C41,1) -> 7639.57317 | C41: =INDIRECT(CONCATENATE("'",C$1,"'!",C$4,(YEAR($A41)-1921)*12+MONTH($A41)+3+IF(ISNUMBER(FIND("PRV",C$6)),1,0)))*IF(AND(C$3>0,TRIM(C$9)="CFS"),Conv_Flags!$C41,1) -> 7489.355684 | D41: =INDIRECT(CONCATENATE("'",D$1,"'!",D$4,(YEAR($A41)-1921)*12+MONTH($A41)+3+IF(ISNUMBER(FIND("PRV",D$6)),1,0)))*IF(AND(D$3>0,TRIM(D$9)="CFS"),Conv_Flags!$C41,1) -> 7489.727585 | E41: =INDIRECT(CONCATENATE("'",E$1,"'!",E$4,(YEAR($A41)-1921)*12+MONTH($A41)+3+IF(ISNUMBER(FIND("PRV",E$6)),1,0)))*IF(AND(E$3>0,TRIM(E$9)="CFS"),Conv_Flags!$C41,1) -> 7642.746315 | F41: =INDIRECT(CONCATENATE("'",F$1,"'!",F$4,(YEAR($A41)-1921)*12+MONTH($A41)+3+IF(ISNUMBER(FIND("PRV",F$6)),1,0)))*IF(AND(F$3>0,TRIM(F$9)="CFS"),Conv_Flags!$C41,1) ->  | J41: 1951 | K41: =B361 -> 8854.739941 | L41: =B362 -> 15220.42892 | M41: =B363 -> 22618.11809 | N41: =B364 -> 20503.49169 | O41: =B365 -> 21249.13936 | P41: =B366 -> 11570.56052 | Q41: =B367 -> 6407.027106 | R41: =B368 -> 5365.078156 | S41: =B369 -> 5010.463677 | T41: =B370 -> 8741.369873 | U41: =B371 -> 5969.594618 | V41: =B372 -> 8079.919603 | X41: 10618.22897 | Y41: 11299.08751 | Z41: 11632.4943 | AB41: 18232.34772 | AC41: 6601.319316 | AD41: 16799.19466 | AE41: 21456.91638 | AF41: 7088.282366 | AG41: 6950.336943 | AH41: 7189.704649 | AJ41: 1951 | AK41: ='Compile Data'!C361 -> 8490.714677 | AL41: ='Compile Data'!C362 -> 15234.63716 | AM41: ='Compile Data'!C363 -> 21766.19933 | AN41: ='Compile Data'!C364 -> 18583.69919 | AO41: ='Compile Data'!C365 -> 20428.10972 | AP41: ='Compile Data'!C366 -> 11015.48845 | AQ41: ='Compile Data'!C367 -> 6391.552264 | AR41: ='Compile Data'!C368 -> 5338.516833 | AS41: ='Compile Data'!C369 -> 5170.211219 | AT41: ='Compile Data'!C370 -> 8727.469308 | AU41: ='Compile Data'!C371 -> 5972.915591 | AV41: ='Compile Data'!C372 -> 7790.444537 | AX41: 10380.95389 | AY41: 11203.43776 | AZ41: 11242.49652 | BB41: 17405.62677 | BC41: 6438.943417 | BD41: 16018.81259 | BE41: 20259.33608 | BF41: 6978.942192 | BG41: 6915.260164 | BH41: 7026.392769 | BJ41: 1951 | BK41: ='Compile Data'!D361 -> 8560.995557 | BL41: ='Compile Data'!D362 -> 15230.22017 | BM41: ='Compile Data'!D363 -> 21767.38342 | BN41: ='Compile Data'!D364 -> 18584.36343 | BO41: ='Compile Data'!D365 -> 20428.34919 | BP41: ='Compile Data'!D366 -> 11015.67307 | BQ41: ='Compile Data'!D367 -> 6391.624459 | BR41: ='Compile Data'!D368 -> 5338.524936 | BS41: ='Compile Data'!D369 -> 5170.181525 | BT41: ='Compile Data'!D370 -> 8727.423103 | BU41: ='Compile Data'!D371 -> 5972.878164 | BV41: ='Compile Data'!D372 -> 7790.32878 | BX41: 10381.02448 | BY41: 11203.43541 | BZ41: 11248.16215 | CB41: 17405.19785 | CC41: 6438.87768 | CD41: 16035.74064 | CE41: 20260.03201 | CF41: 6979.000996 | CG41: 6915.202893 | CH41: 7026.322747 | CJ41: 1951 | CK41: ='Compile Data'!E361 -> 8001.208766 | CL41: ='Compile Data'!E362 -> 15264.98729 | CM41: ='Compile Data'!E363 -> 21758.57935 | CN41: ='Compile Data'!E364 -> 18579.20112 | CO41: ='Compile Data'!E365 -> 20425.58546 | CP41: ='Compile Data'!E366 -> 11034.505 | CQ41: ='Compile Data'!E367 -> 6390.078783 | CR41: ='Compile Data'!E368 -> 5338.63907 | CS41: ='Compile Data'!E369 -> 5173.175668 | CT41: ='Compile Data'!E370 -> 8727.582353 | CU41: ='Compile Data'!E371 -> 5975.0674 | CV41: ='Compile Data'!E372 -> 7795.342348 | CX41: 10382.98501 | CY41: 11206.13063 | CZ41: 11205.32938 | DB41: 17412.57164 | DC41: 6443.892075 | DD41: 15900.99413 | DE41: 20254.45531 | DF41: 6984.099631 | DG41: 6917.791942 | DH41: 7030.592487 | DJ41: 1951 | DK41: ='Compile Data'!F361 ->  | DL41: ='Compile Data'!F362 ->  | DM41: ='Compile Data'!F363 ->  | DN41: ='Compile Data'!F364 ->  | DO41: ='Compile Data'!F365 ->  | DP41: ='Compile Data'!F366 ->  | DQ41: ='Compile Data'!F367 ->  | DR41: ='Compile Data'!F368 ->  | DS41: ='Compile Data'!F369 ->  | DT41: ='Compile Data'!F370 ->  | DU41: ='Compile Data'!F371 ->  | DV41: ='Compile Data'!F372 -> 
A42: 1924-03-31 | B42: =INDIRECT(CONCATENATE("'",B$1,"'!",B$4,(YEAR($A42)-1921)*12+MONTH($A42)+3+IF(ISNUMBER(FIND("PRV",B$6)),1,0)))*IF(AND(B$3>0,TRIM(B$9)="CFS"),Conv_Flags!$C42,1) -> 8167.710673 | C42: =INDIRECT(CONCATENATE("'",C$1,"'!",C$4,(YEAR($A42)-1921)*12+MONTH($A42)+3+IF(ISNUMBER(FIND("PRV",C$6)),1,0)))*IF(AND(C$3>0,TRIM(C$9)="CFS"),Conv_Flags!$C42,1) -> 8311.960165 | D42: =INDIRECT(CONCATENATE("'",D$1,"'!",D$4,(YEAR($A42)-1921)*12+MONTH($A42)+3+IF(ISNUMBER(FIND("PRV",D$6)),1,0)))*IF(AND(D$3>0,TRIM(D$9)="CFS"),Conv_Flags!$C42,1) -> 8297.249422 | E42: =INDIRECT(CONCATENATE("'",E$1,"'!",E$4,(YEAR($A42)-1921)*12+MONTH($A42)+3+IF(ISNUMBER(FIND("PRV",E$6)),1,0)))*IF(AND(E$3>0,TRIM(E$9)="CFS"),Conv_Flags!$C42,1) -> 8293.400625 | F42: =INDIRECT(CONCATENATE("'",F$1,"'!",F$4,(YEAR($A42)-1921)*12+MONTH($A42)+3+IF(ISNUMBER(FIND("PRV",F$6)),1,0)))*IF(AND(F$3>0,TRIM(F$9)="CFS"),Conv_Flags!$C42,1) ->  | J42: 1952 | K42: =B373 -> 5754.443727 | L42: =B374 -> 7734.750617 | M42: =B375 -> 21032.90864 | N42: =B376 -> 25506.00756 | O42: =B377 -> 24416.92607 | P42: =B378 -> 23391.59963 | Q42: =B379 -> 20432.18463 | R42: =B380 -> 11072.59914 | S42: =B381 -> 6127.4002 | T42: =B382 -> 7717.742401 | U42: =B383 -> 6537.759079 | V42: =B384 -> 10848.93188 | X42: 14392.46095 | Y42: 13301.41308 | Z42: 14214.4378 | AB42: 20416.4385 | AC42: 8425.972254 | AD42: 15007.02764 | AE42: 23651.94742 | AF42: 15255.9459 | AG42: 7807.95839 | AH42: 8283.436918 | AJ42: 1952 | AK42: ='Compile Data'!C373 -> 5553.470124 | AL42: ='Compile Data'!C374 -> 7735.263646 | AM42: ='Compile Data'!C375 -> 21864.30583 | AN42: ='Compile Data'!C376 -> 25040.26398 | AO42: ='Compile Data'!C377 -> 23841.35131 | AP42: ='Compile Data'!C378 -> 22733.09186 | AQ42: ='Compile Data'!C379 -> 20410.27094 | AR42: ='Compile Data'!C380 -> 10921.16559 | AS42: ='Compile Data'!C381 -> 5963.350811 | AT42: ='Compile Data'!C382 -> 7489.077598 | AU42: ='Compile Data'!C383 -> 6541.023007 | AV42: ='Compile Data'!C384 -> 10840.39969 | AX42: 14194.48085 | AY42: 13180.04479 | AZ42: 14077.75287 | BB42: 20242.85533 | BC42: 8424.513918 | BD42: 15048.3259 | BE42: 23581.97371 | BF42: 15006.9698 | BG42: 7708.462776 | BH42: 8198.454314 | BJ42: 1952 | BK42: ='Compile Data'!D373 -> 5553.426095 | BL42: ='Compile Data'!D374 -> 7735.213367 | BM42: ='Compile Data'!D375 -> 21864.3076 | BN42: ='Compile Data'!D376 -> 25040.28221 | BO42: ='Compile Data'!D377 -> 23841.36166 | BP42: ='Compile Data'!D378 -> 22734.98133 | BQ42: ='Compile Data'!D379 -> 20410.21936 | BR42: ='Compile Data'!D380 -> 10921.11202 | BS42: ='Compile Data'!D381 -> 5963.281237 | BT42: ='Compile Data'!D382 -> 7489.005756 | BU42: ='Compile Data'!D383 -> 6540.946061 | BV42: ='Compile Data'!D384 -> 10840.31779 | BX42: 14194.59372 | BY42: 13180.14961 | BZ42: 14077.87121 | CB42: 20243.22923 | CC42: 8424.433337 | CD42: 15048.30732 | CE42: 23581.98383 | CF42: 15007.39849 | CG42: 7708.387711 | CH42: 8198.385974 | CJ42: 1952 | CK42: ='Compile Data'!E373 -> 5561.266478 | CL42: ='Compile Data'!E374 -> 7735.168634 | CM42: ='Compile Data'!E375 -> 21860.20782 | CN42: ='Compile Data'!E376 -> 25040.79892 | CO42: ='Compile Data'!E377 -> 23841.73509 | CP42: ='Compile Data'!E378 -> 21759.68544 | CQ42: ='Compile Data'!E379 -> 19117.87031 | CR42: ='Compile Data'!E380 -> 10938.41788 | CS42: ='Compile Data'!E381 -> 5932.299554 | CT42: ='Compile Data'!E382 -> 7468.868057 | CU42: ='Compile Data'!E383 -> 6534.126773 | CV42: ='Compile Data'!E384 -> 10836.28041 | CX42: 14001.72482 | CY42: 12989.65657 | CZ42: 13885.56045 | DB42: 20047.51918 | DC42: 8420.136077 | DD42: 15049.36046 | DE42: 23580.91394 | DF42: 14437.0683 | DG42: 7692.893698 | DH42: 8196.213916 | DJ42: 1952 | DK42: ='Compile Data'!F373 ->  | DL42: ='Compile Data'!F374 ->  | DM42: ='Compile Data'!F375 ->  | DN42: ='Compile Data'!F376 ->  | DO42: ='Compile Data'!F377 ->  | DP42: ='Compile Data'!F378 ->  | DQ42: ='Compile Data'!F379 ->  | DR42: ='Compile Data'!F380 ->  | DS42: ='Compile Data'!F381 ->  | DT42: ='Compile Data'!F382 ->  | DU42: ='Compile Data'!F383 ->  | DV42: ='Compile Data'!F384 -> 
A43: 1924-04-30 | B43: =INDIRECT(CONCATENATE("'",B$1,"'!",B$4,(YEAR($A43)-1921)*12+MONTH($A43)+3+IF(ISNUMBER(FIND("PRV",B$6)),1,0)))*IF(AND(B$3>0,TRIM(B$9)="CFS"),Conv_Flags!$C43,1) -> 4054.867217 | C43: =INDIRECT(CONCATENATE("'",C$1,"'!",C$4,(YEAR($A43)-1921)*12+MONTH($A43)+3+IF(ISNUMBER(FIND("PRV",C$6)),1,0)))*IF(AND(C$3>0,TRIM(C$9)="CFS"),Conv_Flags!$C43,1) -> 4014.144355 | D43: =INDIRECT(CONCATENATE("'",D$1,"'!",D$4,(YEAR($A43)-1921)*12+MONTH($A43)+3+IF(ISNUMBER(FIND("PRV",D$6)),1,0)))*IF(AND(D$3>0,TRIM(D$9)="CFS"),Conv_Flags!$C43,1) -> 4014.449969 | E43: =INDIRECT(CONCATENATE("'",E$1,"'!",E$4,(YEAR($A43)-1921)*12+MONTH($A43)+3+IF(ISNUMBER(FIND("PRV",E$6)),1,0)))*IF(AND(E$3>0,TRIM(E$9)="CFS"),Conv_Flags!$C43,1) -> 4016.056316 | F43: =INDIRECT(CONCATENATE("'",F$1,"'!",F$4,(YEAR($A43)-1921)*12+MONTH($A43)+3+IF(ISNUMBER(FIND("PRV",F$6)),1,0)))*IF(AND(F$3>0,TRIM(F$9)="CFS"),Conv_Flags!$C43,1) ->  | J43: 1953 | K43: =B385 -> 7891.225803 | L43: =B386 -> 6110.153073 | M43: =B387 -> 22657.00194 | N43: =B388 -> 26501.08115 | O43: =B389 -> 10329.278 | P43: =B390 -> 10182.81088 | Q43: =B391 -> 8465.199469 | R43: =B392 -> 11285.9127 | S43: =B393 -> 7813.736088 | T43: =B394 -> 7717.346984 | U43: =B395 -> 5670.248237 | V43: =B396 -> 10865.92861 | X43: 10388.51564 | Y43: 11019.14183 | Z43: 11290.82691 | AB43: 15156.06501 | AC43: 8347.199042 | AD43: 15789.86549 | AE43: 19829.12036 | AF43: 9436.914785 | AG43: 8016.81498 | AH43: 9666.150173 | AJ43: 1953 | AK43: ='Compile Data'!C385 -> 7892.119061 | AL43: ='Compile Data'!C386 -> 5862.844195 | AM43: ='Compile Data'!C387 -> 22798.8121 | AN43: ='Compile Data'!C388 -> 26393.50782 | AO43: ='Compile Data'!C389 -> 10314.87484 | AP43: ='Compile Data'!C390 -> 10148.28471 | AQ43: ='Compile Data'!C391 -> 8433.500972 | AR43: ='Compile Data'!C392 -> 11189.56713 | AS43: ='Compile Data'!C393 -> 7633.755739 | AT43: ='Compile Data'!C394 -> 7720.801422 | AU43: ='Compile Data'!C395 -> 5668.435271 | AV43: ='Compile Data'!C396 -> 10863.1271 | AX43: 10200.58546 | AY43: 10829.77607 | AZ43: 11243.30253 | BB43: 15103.66473 | BC43: 8345.175549 | BD43: 15736.82079 | BE43: 19835.73159 | BF43: 9351.277136 | BG43: 7971.529883 | BH43: 9137.268861 | BJ43: 1953 | BK43: ='Compile Data'!D385 -> 7892.03616 | BL43: ='Compile Data'!D386 -> 5862.803972 | BM43: ='Compile Data'!D387 -> 22798.77704 | BN43: ='Compile Data'!D388 -> 26393.53442 | BO43: ='Compile Data'!D389 -> 10314.78021 | BP43: ='Compile Data'!D390 -> 10148.20439 | BQ43: ='Compile Data'!D391 -> 8461.852197 | BR43: ='Compile Data'!D392 -> 11160.54699 | BS43: ='Compile Data'!D393 -> 7635.063962 | BT43: ='Compile Data'!D394 -> 7720.724163 | BU43: ='Compile Data'!D395 -> 5668.322096 | BV43: ='Compile Data'!D396 -> 10863.05677 | BX43: 10200.77467 | BY43: 10830.45295 | BZ43: 11243.30853 | CB43: 15103.62001 | CC43: 8345.087727 | CD43: 15736.7879 | CE43: 19835.69722 | CF43: 9351.416885 | CG43: 7971.791747 | CH43: 9137.208328 | CJ43: 1953 | CK43: ='Compile Data'!E385 -> 7890.001051 | CL43: ='Compile Data'!E386 -> 5862.36029 | CM43: ='Compile Data'!E387 -> 22798.25407 | CN43: ='Compile Data'!E388 -> 26393.53739 | CO43: ='Compile Data'!E389 -> 10344.17766 | CP43: ='Compile Data'!E390 -> 10174.38948 | CQ43: ='Compile Data'!E391 -> 8461.579901 | CR43: ='Compile Data'!E392 -> 11100.69252 | CS43: ='Compile Data'!E393 -> 7637.307935 | CT43: ='Compile Data'!E394 -> 7720.547939 | CU43: ='Compile Data'!E395 -> 5668.309 | CV43: ='Compile Data'!E396 -> 10863.24164 | CX43: 10195.72041 | CY43: 10826.77883 | CZ43: 11242.86657 | DB43: 15114.54378 | DC43: 8345.219903 | DD43: 15736.0382 | DE43: 19845.32304 | DF43: 9343.492458 | DG43: 7972.351629 | DH43: 9137.292873 | DJ43: 1953 | DK43: ='Compile Data'!F385 ->  | DL43: ='Compile Data'!F386 ->  | DM43: ='Compile Data'!F387 ->  | DN43: ='Compile Data'!F388 ->  | DO43: ='Compile Data'!F389 ->  | DP43: ='Compile Data'!F390 ->  | DQ43: ='Compile Data'!F391 ->  | DR43: ='Compile Data'!F392 ->  | DS43: ='Compile Data'!F393 ->  | DT43: ='Compile Data'!F394 ->  | DU43: ='Compile Data'!F395 ->  | DV43: ='Compile Data'!F396 -> 
A44: 1924-05-31 | B44: =INDIRECT(CONCATENATE("'",B$1,"'!",B$4,(YEAR($A44)-1921)*12+MONTH($A44)+3+IF(ISNUMBER(FIND("PRV",B$6)),1,0)))*IF(AND(B$3>0,TRIM(B$9)="CFS"),Conv_Flags!$C44,1) -> 3421.579828 | C44: =INDIRECT(CONCATENATE("'",C$1,"'!",C$4,(YEAR($A44)-1921)*12+MONTH($A44)+3+IF(ISNUMBER(FIND("PRV",C$6)),1,0)))*IF(AND(C$3>0,TRIM(C$9)="CFS"),Conv_Flags!$C44,1) -> 3421.579828 | D44: =INDIRECT(CONCATENATE("'",D$1,"'!",D$4,(YEAR($A44)-1921)*12+MONTH($A44)+3+IF(ISNUMBER(FIND("PRV",D$6)),1,0)))*IF(AND(D$3>0,TRIM(D$9)="CFS"),Conv_Flags!$C44,1) -> 3421.579828 | E44: =INDIRECT(CONCATENATE("'",E$1,"'!",E$4,(YEAR($A44)-1921)*12+MONTH($A44)+3+IF(ISNUMBER(FIND("PRV",E$6)),1,0)))*IF(AND(E$3>0,TRIM(E$9)="CFS"),Conv_Flags!$C44,1) -> 3421.579828 | F44: =INDIRECT(CONCATENATE("'",F$1,"'!",F$4,(YEAR($A44)-1921)*12+MONTH($A44)+3+IF(ISNUMBER(FIND("PRV",F$6)),1,0)))*IF(AND(F$3>0,TRIM(F$9)="CFS"),Conv_Flags!$C44,1) ->  | J44: 1954 | K44: =B397 -> 8505.420277 | L44: =B398 -> 9627.101628 | M44: =B399 -> 7698.123655 | N44: =B400 -> 20179.18281 | O44: =B401 -> 24218.69061 | P44: =B402 -> 21704.76027 | Q44: =B403 -> 20623.26693 | R44: =B404 -> 6190.800851 | S44: =B405 -> 7174.423937 | T44: =B406 -> 9678.602365 | U44: =B407 -> 7198.927499 | V44: =B408 -> 8538.820207 | X44: 12797.60037 | Y44: 10444.61658 | Z44: 12611.51009 | AB44: 16685.57179 | AC44: 7136.606138 | AD44: =IF(AD$11="AVG",IF(AD$1="INST-VAL",AVERAGE(V43,K44:M44,K44:N44),AVERAGE(K44:N44)),SUM(K44:N44)) -> 11502.45709 | AE44: 17365.33236 | AF44: 13923.313 | AG44: 8147.693502 | AH44: 7909.526449 | AJ44: 1954 | AK44: ='Compile Data'!C397 -> 8503.964276 | AL44: ='Compile Data'!C398 -> 8044.715208 | AM44: ='Compile Data'!C399 -> 7492.491063 | AN44: ='Compile Data'!C400 -> 20085.32516 | AO44: ='Compile Data'!C401 -> 24173.34475 | AP44: ='Compile Data'!C402 -> 21695.54244 | AQ44: ='Compile Data'!C403 -> 20584.75717 | AR44: ='Compile Data'!C404 -> 5904.503916 | AS44: ='Compile Data'!C405 -> 7183.268347 | AT44: ='Compile Data'!C406 -> 9736.91829 | AU44: ='Compile Data'!C407 -> 7112.120037 | AV44: ='Compile Data'!C408 -> 8126.870622 | AX44: 12889.95096 | AY44: 10485.68521 | AZ44: 12386.98511 | BB44: 16298.28372 | BC44: 6905.454437 | BD44: 11031.62393 | BE44: 17250.38699 | BF44: 13842.01797 | BG44: 8039.794324 | BH44: 7707.663818 | BJ44: 1954 | BK44: ='Compile Data'!D397 -> 8503.884319 | BL44: ='Compile Data'!D398 -> 8044.683899 | BM44: ='Compile Data'!D399 -> 7494.64257 | BN44: ='Compile Data'!D400 -> 20083.4696 | BO44: ='Compile Data'!D401 -> 24180.98448 | BP44: ='Compile Data'!D402 -> 21695.24619 | BQ44: ='Compile Data'!D403 -> 20584.86134 | BR44: ='Compile Data'!D404 -> 5904.508372 | BS44: ='Compile Data'!D405 -> 7183.236968 | BT44: ='Compile Data'!D406 -> 9736.859809 | BU44: ='Compile Data'!D407 -> 7111.951955 | BV44: ='Compile Data'!D408 -> 8126.85893 | BX44: 12890.38063 | BY44: 10485.62325 | BZ44: 12387.59904 | CB44: 16299.80535 | CC44: 6905.376224 | CD44: =IF(CD$11="AVG",IF(CD$1="INST-VAL",AVERAGE(BV43,BK44:BM44,BK44:BN44),AVERAGE(BK44:BN44)),SUM(BK44:BN44)) -> 11031.6701 | CE44: =IF(CE$11="AVG",IF(CD$1="INST-VAL",AVERAGE(BL44:BN44,BM44:BO44),AVERAGE(BM44:BO44)),SUM(BM44:BO44)) -> 17253.03222 | CF44: =IF(CF$11="AVG",IF(CD$1="INST-VAL",AVERAGE(BO44:BR44,BP44:BS44),AVERAGE(BP44:BS44)),SUM(BP44:BS44)) -> 13841.96322 | CG44: =IF(CG$11="AVG",IF(CD$1="INST-VAL",AVERAGE(BR44:BU44,BS44:BV44),AVERAGE(BS44:BV44)),SUM(BS44:BV44)) -> 8039.726915 | CH44: =IF(CH$11="AVG",IF(CD$1="INST-VAL",AVERAGE(BU44:BV44,BK45,BV44,BK45:BL45),AVERAGE(BV44,BK45:BL45)),SUM(BV44,BK45:BL45)) -> 7707.631162 | CJ44: 1954 | CK44: ='Compile Data'!E397 -> 8504.109068 | CL44: ='Compile Data'!E398 -> 8044.527909 | CM44: ='Compile Data'!E399 -> 7436.224491 | CN44: ='Compile Data'!E400 -> 20130.99022 | CO44: ='Compile Data'!E401 -> 24179.42588 | CP44: ='Compile Data'!E402 -> 21695.42885 | CQ44: ='Compile Data'!E403 -> 20585.4611 | CR44: ='Compile Data'!E404 -> 6209.87175 | CS44: ='Compile Data'!E405 -> 7180.724048 | CT44: ='Compile Data'!E406 -> 9743.661631 | CU44: ='Compile Data'!E407 -> 7118.419443 | CV44: ='Compile Data'!E408 -> 8115.89946 | CX44: 12919.69688 | CY44: 10555.12091 | CZ44: 12412.06199 | DB44: 16297.31947 | DC44: 6904.17946 | DD44: 11028.96292 | DE44: 17248.8802 | DF44: 13917.87144 | DG44: 8039.676146 | DH44: 7703.866054 | DJ44: 1954 | DK44: ='Compile Data'!F397 ->  | DL44: ='Compile Data'!F398 ->  | DM44: ='Compile Data'!F399 ->  | DN44: ='Compile Data'!F400 ->  | DO44: ='Compile Data'!F401 ->  | DP44: ='Compile Data'!F402 ->  | DQ44: ='Compile Data'!F403 ->  | DR44: ='Compile Data'!F404 ->  | DS44: ='Compile Data'!F405 ->  | DT44: ='Compile Data'!F406 ->  | DU44: ='Compile Data'!F407 ->  | DV44: ='Compile Data'!F408 -> 
A45: 1924-06-30 | B45: =INDIRECT(CONCATENATE("'",B$1,"'!",B$4,(YEAR($A45)-1921)*12+MONTH($A45)+3+IF(ISNUMBER(FIND("PRV",B$6)),1,0)))*IF(AND(B$3>0,TRIM(B$9)="CFS"),Conv_Flags!$C45,1) -> 5014.863476 | C45: =INDIRECT(CONCATENATE("'",C$1,"'!",C$4,(YEAR($A45)-1921)*12+MONTH($A45)+3+IF(ISNUMBER(FIND("PRV",C$6)),1,0)))*IF(AND(C$3>0,TRIM(C$9)="CFS"),Conv_Flags!$C45,1) -> 5312.065653 | D45: =INDIRECT(CONCATENATE("'",D$1,"'!",D$4,(YEAR($A45)-1921)*12+MONTH($A45)+3+IF(ISNUMBER(FIND("PRV",D$6)),1,0)))*IF(AND(D$3>0,TRIM(D$9)="CFS"),Conv_Flags!$C45,1) -> 5261.181146 | E45: =INDIRECT(CONCATENATE("'",E$1,"'!",E$4,(YEAR($A45)-1921)*12+MONTH($A45)+3+IF(ISNUMBER(FIND("PRV",E$6)),1,0)))*IF(AND(E$3>0,TRIM(E$9)="CFS"),Conv_Flags!$C45,1) -> 5215.23889 | F45: =INDIRECT(CONCATENATE("'",F$1,"'!",F$4,(YEAR($A45)-1921)*12+MONTH($A45)+3+IF(ISNUMBER(FIND("PRV",F$6)),1,0)))*IF(AND(F$3>0,TRIM(F$9)="CFS"),Conv_Flags!$C45,1) ->  | J45: 1955 | K45: =B409 -> 5672.070707 | L45: =B410 -> 9517.688432 | M45: =B411 -> 12873.96981 | N45: =B412 -> 9735.076207 | O45: =B413 -> 6426.991727 | P45: =B414 -> 6127.812181 | Q45: =B415 -> 6000.1879 | R45: =B416 -> 4743.66182 | S45: =B417 -> 8357.43144 | T45: =B418 -> 7512.921353 | U45: =B419 -> 5606.193778 | V45: =B420 -> 4574.528366 | X45: 7632.17769 | Y45: 10211.38472 | Z45: 7262.37781 | AB45: 8936.307672 | AC45: 4968.535964 | AD45: 9449.70129 | AE45: 9678.679249 | AF45: 6307.273335 | AG45: 6512.768735 | AH45: 5288.213588 | AJ45: 1955 | AK45: ='Compile Data'!C409 -> 5477.372652 | AL45: ='Compile Data'!C410 -> 9518.748182 | AM45: ='Compile Data'!C411 -> 15080.63991 | AN45: ='Compile Data'!C412 -> 9466.31497 | AO45: ='Compile Data'!C413 -> 5941.165957 | AP45: ='Compile Data'!C414 -> 6160.898984 | AQ45: ='Compile Data'!C415 -> 5992.47753 | AR45: ='Compile Data'!C416 -> 4736.621563 | AS45: ='Compile Data'!C417 -> 7700.079454 | AT45: ='Compile Data'!C418 -> 8954.166154 | AU45: ='Compile Data'!C419 -> 6257.266808 | AV45: ='Compile Data'!C420 -> 5423.00363 | AX45: 7867.44185 | AY45: 10461.98104 | AZ45: 7559.062983 | BB45: 9233.553601 | BC45: 5608.094917 | BD45: 9885.768929 | BE45: 10162.70695 | BF45: 6147.519383 | BG45: 7083.629012 | BH45: 6022.980437 | BJ45: 1955 | BK45: ='Compile Data'!D409 -> 5477.317788 | BL45: ='Compile Data'!D410 -> 9518.716767 | BM45: ='Compile Data'!D411 -> 15080.5553 | BN45: ='Compile Data'!D412 -> 9466.233397 | BO45: ='Compile Data'!D413 -> 5941.132235 | BP45: ='Compile Data'!D414 -> 6160.525416 | BQ45: ='Compile Data'!D415 -> 5991.088492 | BR45: ='Compile Data'!D416 -> 4713.925831 | BS45: ='Compile Data'!D417 -> 7698.34392 | BT45: ='Compile Data'!D418 -> 8962.383988 | BU45: ='Compile Data'!D419 -> 6275.679517 | BV45: ='Compile Data'!D420 -> 5423.00363 | BX45: 7868.969835 | BY45: 10463.52743 | BZ45: 7559.075523 | CB45: 9233.432623 | CC45: 5617.587997 | CD45: 9885.705813 | CE45: 10162.64031 | CF45: 6140.970915 | CG45: 7089.852764 | CH45: 6026.174807 | CJ45: 1955 | CK45: ='Compile Data'!E409 -> 5478.219476 | CL45: ='Compile Data'!E410 -> 9517.479226 | CM45: ='Compile Data'!E411 -> 15080.78147 | CN45: ='Compile Data'!E412 -> 9466.603024 | CO45: ='Compile Data'!E413 -> 6468.901429 | CP45: ='Compile Data'!E414 -> 6134.205116 | CQ45: ='Compile Data'!E415 -> 6004.97534 | CR45: ='Compile Data'!E416 -> 4726.019123 | CS45: ='Compile Data'!E417 -> 7701.781484 | CT45: ='Compile Data'!E418 -> 8958.163481 | CU45: ='Compile Data'!E419 -> 6263.1318 | CV45: ='Compile Data'!E420 -> 5423.00363 | CX45: 7910.736552 | CY45: 10461.32196 | CZ45: 7601.938717 | DB45: 9333.594054 | DC45: 5611.658482 | DD45: 9885.7708 | DE45: 10338.76198 | DF45: 6141.745266 | DG45: 7086.520099 | DH45: 6023.503316 | DJ45: 1955 | DK45: ='Compile Data'!F409 ->  | DL45: ='Compile Data'!F410 ->  | DM45: ='Compile Data'!F411 ->  | DN45: ='Compile Data'!F412 ->  | DO45: ='Compile Data'!F413 ->  | DP45: ='Compile Data'!F414 ->  | DQ45: ='Compile Data'!F415 ->  | DR45: ='Compile Data'!F416 ->  | DS45: ='Compile Data'!F417 ->  | DT45: ='Compile Data'!F418 ->  | DU45: ='Compile Data'!F419 ->  | DV45: ='Compile Data'!F420 -> 
A46: 1924-07-31 | B46: =INDIRECT(CONCATENATE("'",B$1,"'!",B$4,(YEAR($A46)-1921)*12+MONTH($A46)+3+IF(ISNUMBER(FIND("PRV",B$6)),1,0)))*IF(AND(B$3>0,TRIM(B$9)="CFS"),Conv_Flags!$C46,1) -> 4245.219135 | C46: =INDIRECT(CONCATENATE("'",C$1,"'!",C$4,(YEAR($A46)-1921)*12+MONTH($A46)+3+IF(ISNUMBER(FIND("PRV",C$6)),1,0)))*IF(AND(C$3>0,TRIM(C$9)="CFS"),Conv_Flags!$C46,1) -> 5281.757587 | D46: =INDIRECT(CONCATENATE("'",D$1,"'!",D$4,(YEAR($A46)-1921)*12+MONTH($A46)+3+IF(ISNUMBER(FIND("PRV",D$6)),1,0)))*IF(AND(D$3>0,TRIM(D$9)="CFS"),Conv_Flags!$C46,1) -> 5278.54558 | E46: =INDIRECT(CONCATENATE("'",E$1,"'!",E$4,(YEAR($A46)-1921)*12+MONTH($A46)+3+IF(ISNUMBER(FIND("PRV",E$6)),1,0)))*IF(AND(E$3>0,TRIM(E$9)="CFS"),Conv_Flags!$C46,1) -> 5278.352673 | F46: =INDIRECT(CONCATENATE("'",F$1,"'!",F$4,(YEAR($A46)-1921)*12+MONTH($A46)+3+IF(ISNUMBER(FIND("PRV",F$6)),1,0)))*IF(AND(F$3>0,TRIM(F$9)="CFS"),Conv_Flags!$C46,1) ->  | J46: 1956 | K46: =B421 -> 4724.885748 | L46: =B422 -> 6565.226648 | M46: =B423 -> 21211.21511 | N46: =B424 -> 27188.27114 | O46: =B425 -> 19924.2812 | P46: =B426 -> 13946.49815 | Q46: =B427 -> 10274.74355 | R46: =B428 -> 11992.06603 | S46: =B429 -> 4746.614899 | T46: =B430 -> 4604.207428 | U46: =B431 -> 7202.107266 | V46: =B432 -> 10571.03969 | X46: 10970.56798 | Y46: 8869.267861 | Z46: 11912.5964 | AB46: 17767.09845 | AC46: 8921.913086 | AD46: 14922.39966 | AE46: 22774.58915 | AF46: 10239.98066 | AG46: 6780.99232 | AH46: 8776.606626 | AJ46: 1956 | AK46: ='Compile Data'!C421 -> 5144.014313 | AL46: ='Compile Data'!C422 -> 7501.923368 | AM46: ='Compile Data'!C423 -> 21131.36946 | AN46: ='Compile Data'!C424 -> 27160.71063 | AO46: ='Compile Data'!C425 -> 19381.24056 | AP46: ='Compile Data'!C426 -> 12002.41559 | AQ46: ='Compile Data'!C427 -> 10273.567 | AR46: ='Compile Data'!C428 -> 9882.979629 | AS46: ='Compile Data'!C429 -> 4746.614899 | AT46: ='Compile Data'!C430 -> 4604.207428 | AU46: ='Compile Data'!C431 -> 7195.493939 | AV46: ='Compile Data'!C432 -> 10562.45214 | AX46: 10562.68725 | AY46: 8502.883994 | AZ46: 11632.24908 | BB46: 17435.53192 | BC46: 8915.425761 | BD46: 15234.50444 | BE46: 22557.77355 | BF46: 9226.39428 | BG46: 6777.192102 | BH46: 8691.003855 | BJ46: 1956 | BK46: ='Compile Data'!D421 -> 5154.080845 | BL46: ='Compile Data'!D422 -> 7501.439947 | BM46: ='Compile Data'!D423 -> 21139.8008 | BN46: ='Compile Data'!D424 -> 27160.64891 | BO46: ='Compile Data'!D425 -> 19381.40789 | BP46: ='Compile Data'!D426 -> 12002.51515 | BQ46: ='Compile Data'!D427 -> 10321.7215 | BR46: ='Compile Data'!D428 -> 11255.16237 | BS46: ='Compile Data'!D429 -> 4746.614899 | BT46: ='Compile Data'!D430 -> 4604.207428 | BU46: ='Compile Data'!D431 -> 7182.423397 | BV46: ='Compile Data'!D432 -> 10567.73218 | BX46: 10680.5751 | BY46: 8620.899314 | BZ46: 11751.47961 | CB46: 17437.16254 | CC46: 8913.40176 | CD46: 15238.99263 | CE46: 22560.6192 | CF46: 9581.503481 | CG46: 6775.244475 | CH46: 8693.344758 | CJ46: 1956 | CK46: ='Compile Data'!E421 -> 5148.840016 | CL46: ='Compile Data'!E422 -> 7498.666301 | CM46: ='Compile Data'!E423 -> 21134.54788 | CN46: ='Compile Data'!E424 -> 27160.9208 | CO46: ='Compile Data'!E425 -> 19381.60851 | CP46: ='Compile Data'!E426 -> 12213.7592 | CQ46: ='Compile Data'!E427 -> 10313.06689 | CR46: ='Compile Data'!E428 -> 11257.15766 | CS46: ='Compile Data'!E429 -> 4746.614899 | CT46: ='Compile Data'!E430 -> 4604.207428 | CU46: ='Compile Data'!E431 -> 7186.540331 | CV46: ='Compile Data'!E432 -> 10568.06295 | CX46: 10698.08855 | CY46: 8638.477772 | CZ46: 11767.83274 | DB46: 17477.90054 | DC46: 8915.052263 | DD46: 15235.74375 | DE46: 22559.02573 | DF46: 9632.649662 | DG46: 6776.356401 | DH46: 8693.631874 | DJ46: 1956 | DK46: ='Compile Data'!F421 ->  | DL46: ='Compile Data'!F422 ->  | DM46: ='Compile Data'!F423 ->  | DN46: ='Compile Data'!F424 ->  | DO46: ='Compile Data'!F425 ->  | DP46: ='Compile Data'!F426 ->  | DQ46: ='Compile Data'!F427 ->  | DR46: ='Compile Data'!F428 ->  | DS46: ='Compile Data'!F429 ->  | DT46: ='Compile Data'!F430 ->  | DU46: ='Compile Data'!F431 ->  | DV46: ='Compile Data'!F432 -> 
A47: 1924-08-31 | B47: =INDIRECT(CONCATENATE("'",B$1,"'!",B$4,(YEAR($A47)-1921)*12+MONTH($A47)+3+IF(ISNUMBER(FIND("PRV",B$6)),1,0)))*IF(AND(B$3>0,TRIM(B$9)="CFS"),Conv_Flags!$C47,1) -> 3891.296367 | C47: =INDIRECT(CONCATENATE("'",C$1,"'!",C$4,(YEAR($A47)-1921)*12+MONTH($A47)+3+IF(ISNUMBER(FIND("PRV",C$6)),1,0)))*IF(AND(C$3>0,TRIM(C$9)="CFS"),Conv_Flags!$C47,1) -> 4368.852055 | D47: =INDIRECT(CONCATENATE("'",D$1,"'!",D$4,(YEAR($A47)-1921)*12+MONTH($A47)+3+IF(ISNUMBER(FIND("PRV",D$6)),1,0)))*IF(AND(D$3>0,TRIM(D$9)="CFS"),Conv_Flags!$C47,1) -> 4369.465369 | E47: =INDIRECT(CONCATENATE("'",E$1,"'!",E$4,(YEAR($A47)-1921)*12+MONTH($A47)+3+IF(ISNUMBER(FIND("PRV",E$6)),1,0)))*IF(AND(E$3>0,TRIM(E$9)="CFS"),Conv_Flags!$C47,1) -> 4369.738889 | F47: =INDIRECT(CONCATENATE("'",F$1,"'!",F$4,(YEAR($A47)-1921)*12+MONTH($A47)+3+IF(ISNUMBER(FIND("PRV",F$6)),1,0)))*IF(AND(F$3>0,TRIM(F$9)="CFS"),Conv_Flags!$C47,1) ->  | J47: 1957 | K47: =B433 -> 8992.592304 | L47: =B434 -> 6766.187889 | M47: =B435 -> 5438.20627 | N47: =B436 -> 6818.210835 | O47: =B437 -> 15078.74003 | P47: =B438 -> 20839.4092 | Q47: =B439 -> 6239.875239 | R47: =B440 -> 10921.09762 | S47: =B441 -> 4735.088577 | T47: =B442 -> 9790.958845 | U47: =B443 -> 5397.130541 | V47: =B444 -> 7664.559345 | X47: 10593.04508 | Y47: 13030.85596 | Z47: 9056.838058 | AB47: 10988.15084 | AC47: 8094.8043 | AD47: 7003.799324 | AE47: 9111.719044 | AF47: 10683.86766 | AG47: 6896.934327 | AH47: 9968.891969 | AJ47: 1957 | AK47: ='Compile Data'!C433 -> 8988.331199 | AL47: ='Compile Data'!C434 -> 6522.228223 | AM47: ='Compile Data'!C435 -> 5432.00578 | AN47: ='Compile Data'!C436 -> 6812.194713 | AO47: ='Compile Data'!C437 -> 15012.11738 | AP47: ='Compile Data'!C438 -> 19536.11692 | AQ47: ='Compile Data'!C439 -> 6281.169574 | AR47: ='Compile Data'!C440 -> 8927.583687 | AS47: ='Compile Data'!C441 -> 5362.94231 | AT47: ='Compile Data'!C442 -> 9802.438394 | AU47: ='Compile Data'!C443 -> 5709.931486 | AV47: ='Compile Data'!C444 -> 7425.180354 | AX47: 10366.54419 | AY47: 12776.63145 | AZ47: 8817.686668 | BB47: 10662.9326 | BC47: 8284.254497 | BD47: 6938.689979 | BE47: 9085.439291 | BF47: 10026.95312 | BG47: 7075.123136 | BH47: 9847.994573 | BJ47: 1957 | BK47: ='Compile Data'!D433 -> 8990.049706 | BL47: ='Compile Data'!D434 -> 6522.252391 | BM47: ='Compile Data'!D435 -> 5432.165383 | BN47: ='Compile Data'!D436 -> 6812.446978 | BO47: ='Compile Data'!D437 -> 15013.50039 | BP47: ='Compile Data'!D438 -> 19536.16902 | BQ47: ='Compile Data'!D439 -> 6281.194267 | BR47: ='Compile Data'!D440 -> 10700 | BS47: ='Compile Data'!D441 -> 4821.437311 | BT47: ='Compile Data'!D442 -> 9857.942667 | BU47: ='Compile Data'!D443 -> 5637.207991 | BV47: ='Compile Data'!D444 -> 7400.922866 | BX47: 10465.82242 | BY47: 12874.84477 | BZ47: 8917.107414 | CB47: 10663.30683 | CC47: 8251.994517 | CD47: 6939.228615 | CE47: 9086.037583 | CF47: 10334.70015 | CG47: 6929.377709 | CH47: 9839.975965 | CJ47: 1957 | CK47: ='Compile Data'!E433 -> 8990.553511 | CL47: ='Compile Data'!E434 -> 6522.279163 | CM47: ='Compile Data'!E435 -> 5432.291291 | CN47: ='Compile Data'!E436 -> 6812.786362 | CO47: ='Compile Data'!E437 -> 15014.41359 | CP47: ='Compile Data'!E438 -> 19536.42928 | CQ47: ='Compile Data'!E439 -> 6281.521572 | CR47: ='Compile Data'!E440 -> 10700 | CS47: ='Compile Data'!E441 -> 4821.417716 | CT47: ='Compile Data'!E442 -> 9858.254274 | CU47: ='Compile Data'!E443 -> 5637.091355 | CV47: ='Compile Data'!E444 -> 7400.871324 | CX47: 10465.99687 | CY47: 12874.93228 | CZ47: 8917.325786 | DB47: 10663.63994 | DC47: 8251.88922 | DD47: 6939.477582 | DE47: 9086.49708 | DF47: 10334.84214 | DG47: 6929.408667 | DH47: 9839.909546 | DJ47: 1957 | DK47: ='Compile Data'!F433 ->  | DL47: ='Compile Data'!F434 ->  | DM47: ='Compile Data'!F435 ->  | DN47: ='Compile Data'!F436 ->  | DO47: ='Compile Data'!F437 ->  | DP47: ='Compile Data'!F438 ->  | DQ47: ='Compile Data'!F439 ->  | DR47: ='Compile Data'!F440 ->  | DS47: ='Compile Data'!F441 ->  | DT47: ='Compile Data'!F442 ->  | DU47: ='Compile Data'!F443 ->  | DV47: ='Compile Data'!F444 -> 
A48: 1924-09-30 | B48: =INDIRECT(CONCATENATE("'",B$1,"'!",B$4,(YEAR($A48)-1921)*12+MONTH($A48)+3+IF(ISNUMBER(FIND("PRV",B$6)),1,0)))*IF(AND(B$3>0,TRIM(B$9)="CFS"),Conv_Flags!$C48,1) -> 4605.447802 | C48: =INDIRECT(CONCATENATE("'",C$1,"'!",C$4,(YEAR($A48)-1921)*12+MONTH($A48)+3+IF(ISNUMBER(FIND("PRV",C$6)),1,0)))*IF(AND(C$3>0,TRIM(C$9)="CFS"),Conv_Flags!$C48,1) -> 4798.584423 | D48: =INDIRECT(CONCATENATE("'",D$1,"'!",D$4,(YEAR($A48)-1921)*12+MONTH($A48)+3+IF(ISNUMBER(FIND("PRV",D$6)),1,0)))*IF(AND(D$3>0,TRIM(D$9)="CFS"),Conv_Flags!$C48,1) -> 4798.583659 | E48: =INDIRECT(CONCATENATE("'",E$1,"'!",E$4,(YEAR($A48)-1921)*12+MONTH($A48)+3+IF(ISNUMBER(FIND("PRV",E$6)),1,0)))*IF(AND(E$3>0,TRIM(E$9)="CFS"),Conv_Flags!$C48,1) -> 4798.71643 | F48: =INDIRECT(CONCATENATE("'",F$1,"'!",F$4,(YEAR($A48)-1921)*12+MONTH($A48)+3+IF(ISNUMBER(FIND("PRV",F$6)),1,0)))*IF(AND(F$3>0,TRIM(F$9)="CFS"),Conv_Flags!$C48,1) ->  | J48: 1958 | K48: =B445 -> 11222.72301 | L48: =B446 -> 11019.39355 | M48: =B447 -> 17389.35417 | N48: =B448 -> 23340.38284 | O48: =B449 -> 27810.29853 | P48: =B450 -> 24426.33397 | Q48: =B451 -> 25085.43993 | R48: =B452 -> 11224.77976 | S48: =B453 -> 8965.624651 | T48: =B454 -> 7724.702695 | U48: =B455 -> 8099.403151 | V48: =B456 -> 11194.54866 | X48: 13907.82247 | Y48: 13241.24961 | Z48: 15625.24874 | AB48: 20797.15261 | AC48: 9192.828464 | AD48: 15742.96339 | AE48: 22846.67851 | AF48: 17425.54458 | AG48: 8996.06979 | AH48: 8473.097513 | AJ48: 1958 | AK48: ='Compile Data'!C445 -> 11717.65165 | AL48: ='Compile Data'!C446 -> 10401.15171 | AM48: ='Compile Data'!C447 -> 17410.05204 | AN48: ='Compile Data'!C448 -> 22934.05859 | AO48: ='Compile Data'!C449 -> 27811.30062 | AP48: ='Compile Data'!C450 -> 24421.8494 | AQ48: ='Compile Data'!C451 -> 25073.9704 | AR48: ='Compile Data'!C452 -> 11105.45354 | AS48: ='Compile Data'!C453 -> 8811.714879 | AT48: ='Compile Data'!C454 -> 7730.644662 | AU48: ='Compile Data'!C455 -> 7730.489761 | AV48: ='Compile Data'!C456 -> 11211.74505 | AX48: 13801.42227 | AY48: 13132.57396 | AZ48: 15530.00686 | BB48: 20595.68247 | BC48: 9072.507796 | BD48: 15615.7285 | BE48: 22718.47042 | BF48: 17353.24705 | BG48: 8871.148589 | BH48: 8394.035277 | BJ48: 1958 | BK48: ='Compile Data'!D445 -> 11717.85269 | BL48: ='Compile Data'!D446 -> 10401.15234 | BM48: ='Compile Data'!D447 -> 17410.04254 | BN48: ='Compile Data'!D448 -> 22933.93307 | BO48: ='Compile Data'!D449 -> 27800.28245 | BP48: ='Compile Data'!D450 -> 24422.64207 | BQ48: ='Compile Data'!D451 -> 25073.80654 | BR48: ='Compile Data'!D452 -> 11104.76157 | BS48: ='Compile Data'!D453 -> 8819.524594 | BT48: ='Compile Data'!D454 -> 7730.084409 | BU48: ='Compile Data'!D455 -> 7722.664283 | BV48: ='Compile Data'!D456 -> 11212.20915 | BX48: 13800.46737 | BY48: 13132.30685 | BZ48: 15529.07964 | CB48: 20593.61049 | CC48: 9070.005145 | CD48: 15615.74516 | CE48: 22714.75268 | CF48: 17355.18369 | CG48: 8871.120608 | CH48: 8394.159261 | CJ48: 1958 | CK48: ='Compile Data'!E445 -> 11717.70498 | CL48: ='Compile Data'!E446 -> 10401.15233 | CM48: ='Compile Data'!E447 -> 17410.31961 | CN48: ='Compile Data'!E448 -> 22934.14756 | CO48: ='Compile Data'!E449 -> 27800.27741 | CP48: ='Compile Data'!E450 -> 24388.0654 | CQ48: ='Compile Data'!E451 -> 25074.89787 | CR48: ='Compile Data'!E452 -> 11103.95566 | CS48: ='Compile Data'!E453 -> 8811.156727 | CT48: ='Compile Data'!E454 -> 7730.522504 | CU48: ='Compile Data'!E455 -> 7721.69825 | CV48: ='Compile Data'!E456 -> 11212.38815 | CX48: 13796.93589 | CY48: 13129.2977 | CZ48: 15525.52387 | DB48: 20586.79246 | DC48: 9069.800698 | DD48: 15615.83112 | DE48: 22714.91486 | DF48: 17344.51891 | DG48: 8868.941407 | DH48: 8394.249587 | DJ48: 1958 | DK48: ='Compile Data'!F445 ->  | DL48: ='Compile Data'!F446 ->  | DM48: ='Compile Data'!F447 ->  | DN48: ='Compile Data'!F448 ->  | DO48: ='Compile Data'!F449 ->  | DP48: ='Compile Data'!F450 ->  | DQ48: ='Compile Data'!F451 ->  | DR48: ='Compile Data'!F452 ->  | DS48: ='Compile Data'!F453 ->  | DT48: ='Compile Data'!F454 ->  | DU48: ='Compile Data'!F455 ->  | DV48: ='Compile Data'!F456 -> 
A49: 1924-10-31 | B49: =INDIRECT(CONCATENATE("'",B$1,"'!",B$4,(YEAR($A49)-1921)*12+MONTH($A49)+3+IF(ISNUMBER(FIND("PRV",B$6)),1,0)))*IF(AND(B$3>0,TRIM(B$9)="CFS"),Conv_Flags!$C49,1) -> 3669.452728 | C49: =INDIRECT(CONCATENATE("'",C$1,"'!",C$4,(YEAR($A49)-1921)*12+MONTH($A49)+3+IF(ISNUMBER(FIND("PRV",C$6)),1,0)))*IF(AND(C$3>0,TRIM(C$9)="CFS"),Conv_Flags!$C49,1) -> 4266.949198 | D49: =INDIRECT(CONCATENATE("'",D$1,"'!",D$4,(YEAR($A49)-1921)*12+MONTH($A49)+3+IF(ISNUMBER(FIND("PRV",D$6)),1,0)))*IF(AND(D$3>0,TRIM(D$9)="CFS"),Conv_Flags!$C49,1) -> 4266.948817 | E49: =INDIRECT(CONCATENATE("'",E$1,"'!",E$4,(YEAR($A49)-1921)*12+MONTH($A49)+3+IF(ISNUMBER(FIND("PRV",E$6)),1,0)))*IF(AND(E$3>0,TRIM(E$9)="CFS"),Conv_Flags!$C49,1) -> 4267.110317 | F49: =INDIRECT(CONCATENATE("'",F$1,"'!",F$4,(YEAR($A49)-1921)*12+MONTH($A49)+3+IF(ISNUMBER(FIND("PRV",F$6)),1,0)))*IF(AND(F$3>0,TRIM(F$9)="CFS"),Conv_Flags!$C49,1) ->  | J49: 1959 | K49: =B457 -> 8284.533579 | L49: =B458 -> 5940.210297 | M49: =B459 -> 4797.611549 | N49: =B460 -> 19449.46125 | O49: =B461 -> 23702.34586 | P49: =B462 -> 8732.338031 | Q49: =B463 -> 4782.745392 | R49: =B464 -> 5252.252121 | S49: =B465 -> 8071.634187 | T49: =B466 -> 8888.880745 | U49: =B467 -> 7587.306005 | V49: =B468 -> 5104.324706 | X49: 9297.470076 | Y49: 7688.012681 | Z49: 9216.136977 | AB49: 12524.3934 | AC49: 6321.648352 | AD49: 9617.954168 | AE49: 15983.13955 | AF49: 6709.742433 | AG49: 7413.03641 | AH49: 5739.079717 | AJ49: 1959 | AK49: ='Compile Data'!C457 -> 8275.288576 | AL49: ='Compile Data'!C458 -> 5695.072202 | AM49: ='Compile Data'!C459 -> 4815.47954 | AN49: ='Compile Data'!C460 -> 19309.07353 | AO49: ='Compile Data'!C461 -> 23410.10595 | AP49: ='Compile Data'!C462 -> 8691.826564 | AQ49: ='Compile Data'!C463 -> 4894.41758 | AR49: ='Compile Data'!C464 -> 5225.2694 | AS49: ='Compile Data'!C465 -> 8225.801967 | AT49: ='Compile Data'!C466 -> 8922.778906 | AU49: ='Compile Data'!C467 -> 7685.568135 | AV49: ='Compile Data'!C468 -> 5469.080802 | AX49: 9349.081951 | AY49: 7722.260059 | AZ49: 9218.313596 | BB49: 12384.31156 | BC49: 6606.10666 | BD49: 9523.728461 | BE49: 15844.88634 | BF49: 6759.328878 | BG49: 7575.807452 | BH49: 5991.88208 | BJ49: 1959 | BK49: ='Compile Data'!D457 -> 8275.142006 | BL49: ='Compile Data'!D458 -> 5695.126631 | BM49: ='Compile Data'!D459 -> 4815.431703 | BN49: ='Compile Data'!D460 -> 19306.09007 | BO49: ='Compile Data'!D461 -> 23410.19924 | BP49: ='Compile Data'!D462 -> 8691.783522 | BQ49: ='Compile Data'!D463 -> 4894.398073 | BR49: ='Compile Data'!D464 -> 5225.137314 | BS49: ='Compile Data'!D465 -> 8225.879467 | BT49: ='Compile Data'!D466 -> 8922.763965 | BU49: ='Compile Data'!D467 -> 7685.514452 | BV49: ='Compile Data'!D468 -> 5469.018348 | BX49: 9348.602672 | BY49: 7722.030602 | BZ49: 9218.040399 | CB49: 12383.72623 | CC49: 6606.095582 | CD49: 9522.947602 | CE49: 15843.907 | CF49: 6759.299594 | CG49: 7575.794058 | CH49: 5991.854156 | CJ49: 1959 | CK49: ='Compile Data'!E457 -> 8275.315696 | CL49: ='Compile Data'!E458 -> 5695.044917 | CM49: ='Compile Data'!E459 -> 4815.760564 | CN49: ='Compile Data'!E460 -> 19306.44593 | CO49: ='Compile Data'!E461 -> 23416.32079 | CP49: ='Compile Data'!E462 -> 8739.808542 | CQ49: ='Compile Data'!E463 -> 4782.745392 | CR49: ='Compile Data'!E464 -> 4818.595578 | CS49: ='Compile Data'!E465 -> 8233.198352 | CT49: ='Compile Data'!E466 -> 8912.827993 | CU49: ='Compile Data'!E467 -> 7662.733848 | CV49: ='Compile Data'!E468 -> 5402.926881 | CX49: 9304.440102 | CY49: 7677.342595 | CZ49: 9171.810373 | DB49: 12394.67615 | DC49: 6587.8975 | DD49: 9523.141777 | DE49: 15846.17576 | DF49: 6643.586966 | DG49: 7552.921768 | DH49: 5981.185975 | DJ49: 1959 | DK49: ='Compile Data'!F457 ->  | DL49: ='Compile Data'!F458 ->  | DM49: ='Compile Data'!F459 ->  | DN49: ='Compile Data'!F460 ->  | DO49: ='Compile Data'!F461 ->  | DP49: ='Compile Data'!F462 ->  | DQ49: ='Compile Data'!F463 ->  | DR49: ='Compile Data'!F464 ->  | DS49: ='Compile Data'!F465 ->  | DT49: ='Compile Data'!F466 ->  | DU49: ='Compile Data'!F467 ->  | DV49: ='Compile Data'!F468 -> 
A50: 1924-11-30 | B50: =INDIRECT(CONCATENATE("'",B$1,"'!",B$4,(YEAR($A50)-1921)*12+MONTH($A50)+3+IF(ISNUMBER(FIND("PRV",B$6)),1,0)))*IF(AND(B$3>0,TRIM(B$9)="CFS"),Conv_Flags!$C50,1) -> 4454.308625 | C50: =INDIRECT(CONCATENATE("'",C$1,"'!",C$4,(YEAR($A50)-1921)*12+MONTH($A50)+3+IF(ISNUMBER(FIND("PRV",C$6)),1,0)))*IF(AND(C$3>0,TRIM(C$9)="CFS"),Conv_Flags!$C50,1) -> 4998.728799 | D50: =INDIRECT(CONCATENATE("'",D$1,"'!",D$4,(YEAR($A50)-1921)*12+MONTH($A50)+3+IF(ISNUMBER(FIND("PRV",D$6)),1,0)))*IF(AND(D$3>0,TRIM(D$9)="CFS"),Conv_Flags!$C50,1) -> 4619.77846 | E50: =INDIRECT(CONCATENATE("'",E$1,"'!",E$4,(YEAR($A50)-1921)*12+MONTH($A50)+3+IF(ISNUMBER(FIND("PRV",E$6)),1,0)))*IF(AND(E$3>0,TRIM(E$9)="CFS"),Conv_Flags!$C50,1) -> 4512.565338 | F50: =INDIRECT(CONCATENATE("'",F$1,"'!",F$4,(YEAR($A50)-1921)*12+MONTH($A50)+3+IF(ISNUMBER(FIND("PRV",F$6)),1,0)))*IF(AND(F$3>0,TRIM(F$9)="CFS"),Conv_Flags!$C50,1) ->  | J50: 1960 | K50: =B469 -> 6273.314345 | L50: =B470 -> 5839.6001 | M50: =B471 -> 7885.438176 | N50: =B472 -> 6887.624546 | O50: =B473 -> 16950.69382 | P50: =B474 -> 12313.22354 | Q50: =B475 -> 8324.581842 | R50: =B476 -> 3895.543927 | S50: =B477 -> 8021.89553 | T50: =B478 -> 6832.440443 | U50: =B479 -> 4063.285326 | V50: =B480 -> 4519.61441 | X50: 8104.210131 | Y50: 8554.059331 | Z50: 7650.604667 | AB50: 9975.316036 | AC50: 4510.945596 | AD50: 6721.494292 | AE50: 10574.58551 | AF50: 8138.81121 | AG50: 5859.308927 | AH50: 5365.003013 | AJ50: 1960 | AK50: ='Compile Data'!C469 -> 6663.671042 | AL50: ='Compile Data'!C470 -> 5842.894396 | AM50: ='Compile Data'!C471 -> 7848.495146 | AN50: ='Compile Data'!C472 -> 6897.733112 | AO50: ='Compile Data'!C473 -> 16299.58365 | AP50: ='Compile Data'!C474 -> 12184.56323 | AQ50: ='Compile Data'!C475 -> 8558.823543 | AR50: ='Compile Data'!C476 -> 3894.14035 | AS50: ='Compile Data'!C477 -> 7169.204181 | AT50: ='Compile Data'!C478 -> 7423.990942 | AU50: ='Compile Data'!C479 -> 4885.604746 | AV50: ='Compile Data'!C480 -> 4936.206473 | AX50: 8341.472492 | AY50: 8833.787123 | AZ50: 7717.075901 | BB50: 9814.653907 | BC50: 5127.330525 | BD50: 6813.198424 | BE50: 10348.60397 | BF50: 7951.682826 | BG50: 6103.751585 | BH50: 6369.295674 | BJ50: 1960 | BK50: ='Compile Data'!D469 -> 6663.753946 | BL50: ='Compile Data'!D470 -> 5842.790174 | BM50: ='Compile Data'!D471 -> 7845.903495 | BN50: ='Compile Data'!D472 -> 6897.875113 | BO50: ='Compile Data'!D473 -> 16299.54936 | BP50: ='Compile Data'!D474 -> 12184.51804 | BQ50: ='Compile Data'!D475 -> 8308.505454 | BR50: ='Compile Data'!D476 -> 3859.143902 | BS50: ='Compile Data'!D477 -> 7196.098455 | BT50: ='Compile Data'!D478 -> 7413.530785 | BU50: ='Compile Data'!D479 -> 4981.10483 | BV50: ='Compile Data'!D480 -> 5035.038067 | BX50: 8385.508384 | BY50: 8853.094141 | BZ50: 7710.650969 | CB50: 9814.127237 | CC50: 5222.73407 | CD50: 6812.580682 | CE50: 10347.77599 | CF50: 7887.066464 | CG50: 6156.443034 | CH50: 6385.334724 | CJ50: 1960 | CK50: ='Compile Data'!E469 -> 6698.031771 | CL50: ='Compile Data'!E470 -> 5842.599275 | CM50: ='Compile Data'!E471 -> 7837.046878 | CN50: ='Compile Data'!E472 -> 6898.314099 | CO50: ='Compile Data'!E473 -> 16299.28254 | CP50: ='Compile Data'!E474 -> 12184.4112 | CQ50: ='Compile Data'!E475 -> 8318.676774 | CR50: ='Compile Data'!E476 -> 3861.729366 | CS50: ='Compile Data'!E477 -> 7197.59524 | CT50: ='Compile Data'!E478 -> 7414.201118 | CU50: ='Compile Data'!E479 -> 4987.361883 | CV50: ='Compile Data'!E480 -> 5041.513396 | CX50: 8400.93864 | CY50: 8866.956344 | CZ50: 7715.063628 | DB50: 9812.330797 | DC50: 5228.323967 | DD50: 6818.998006 | DE50: 10344.88117 | DF50: 7890.603145 | DG50: 6160.167909 | DH50: 6404.502355 | DJ50: 1960 | DK50: ='Compile Data'!F469 ->  | DL50: ='Compile Data'!F470 ->  | DM50: ='Compile Data'!F471 ->  | DN50: ='Compile Data'!F472 ->  | DO50: ='Compile Data'!F473 ->  | DP50: ='Compile Data'!F474 ->  | DQ50: ='Compile Data'!F475 ->  | DR50: ='Compile Data'!F476 ->  | DS50: ='Compile Data'!F477 ->  | DT50: ='Compile Data'!F478 ->  | DU50: ='Compile Data'!F479 ->  | DV50: ='Compile Data'!F480 -> 
A51: 1924-12-31 | B51: =INDIRECT(CONCATENATE("'",B$1,"'!",B$4,(YEAR($A51)-1921)*12+MONTH($A51)+3+IF(ISNUMBER(FIND("PRV",B$6)),1,0)))*IF(AND(B$3>0,TRIM(B$9)="CFS"),Conv_Flags!$C51,1) -> 7505.530686 | C51: =INDIRECT(CONCATENATE("'",C$1,"'!",C$4,(YEAR($A51)-1921)*12+MONTH($A51)+3+IF(ISNUMBER(FIND("PRV",C$6)),1,0)))*IF(AND(C$3>0,TRIM(C$9)="CFS"),Conv_Flags!$C51,1) -> 7485.448103 | D51: =INDIRECT(CONCATENATE("'",D$1,"'!",D$4,(YEAR($A51)-1921)*12+MONTH($A51)+3+IF(ISNUMBER(FIND("PRV",D$6)),1,0)))*IF(AND(D$3>0,TRIM(D$9)="CFS"),Conv_Flags!$C51,1) -> 7508.011481 | E51: =INDIRECT(CONCATENATE("'",E$1,"'!",E$4,(YEAR($A51)-1921)*12+MONTH($A51)+3+IF(ISNUMBER(FIND("PRV",E$6)),1,0)))*IF(AND(E$3>0,TRIM(E$9)="CFS"),Conv_Flags!$C51,1) -> 7514.011083 | F51: =INDIRECT(CONCATENATE("'",F$1,"'!",F$4,(YEAR($A51)-1921)*12+MONTH($A51)+3+IF(ISNUMBER(FIND("PRV",F$6)),1,0)))*IF(AND(F$3>0,TRIM(F$9)="CFS"),Conv_Flags!$C51,1) ->  | J51: 1961 | K51: =B481 -> 4949.93705 | L51: =B482 -> 6625.457577 | M51: =B483 -> 13866.22356 | N51: =B484 -> 6664.156551 | O51: =B485 -> 22572.35222 | P51: =B486 -> 15537.26238 | Q51: =B487 -> 7004.395681 | R51: =B488 -> 5626.238921 | S51: =B489 -> 7630.593101 | T51: =B490 -> 7925.594546 | U51: =B491 -> 5111.99284 | V51: =B492 -> 5210.324258 | X51: 8935.151156 | Y51: 8858.287979 | Z51: 9060.37739 | AB51: 13053.09046 | AC51: 5488.43953 | AD51: 8026.443684 | AE51: 14367.57744 | AF51: 8949.62252 | AG51: 6469.626186 | AH51: 5872.112402 | AJ51: 1961 | AK51: ='Compile Data'!C481 -> 5560.180358 | AL51: ='Compile Data'!C482 -> 8611.500191 | AM51: ='Compile Data'!C483 -> 13676.13913 | AN51: ='Compile Data'!C484 -> 6643.940918 | AO51: ='Compile Data'!C485 -> 22461.15142 | AP51: ='Compile Data'!C486 -> 15504.64143 | AQ51: ='Compile Data'!C487 -> 7189.541103 | AR51: ='Compile Data'!C488 -> 5553.157026 | AS51: ='Compile Data'!C489 -> 8159.325867 | AT51: ='Compile Data'!C490 -> 9659.575745 | AU51: ='Compile Data'!C491 -> 5910.333616 | AV51: ='Compile Data'!C492 -> 4210.832156 | AX51: 8997.819883 | AY51: 8843.884627 | AZ51: 9428.359913 | BB51: 13379.47462 | BC51: 5652.619866 | BD51: 8622.940149 | BE51: 14260.41049 | BF51: 9101.666357 | BG51: 6985.016846 | BH51: 5755.417533 | BJ51: 1961 | BK51: ='Compile Data'!D481 -> 5652.059314 | BL51: ='Compile Data'!D482 -> 8468.90679 | BM51: ='Compile Data'!D483 -> 14329.77049 | BN51: ='Compile Data'!D484 -> 6643.940918 | BO51: ='Compile Data'!D485 -> 22164.51264 | BP51: ='Compile Data'!D486 -> 15473.8061 | BQ51: ='Compile Data'!D487 -> 7035.84618 | BR51: ='Compile Data'!D488 -> 5664.393119 | BS51: ='Compile Data'!D489 -> 8145.987713 | BT51: ='Compile Data'!D490 -> 9109.905449 | BU51: ='Compile Data'!D491 -> 6099.689875 | BV51: ='Compile Data'!D492 -> 4616.987891 | BX51: 8967.612113 | BY51: 8878.363375 | BZ51: 9450.483873 | CB51: 13416.18739 | CC51: 5874.721757 | CD51: 8773.669379 | CE51: 14379.40802 | CF51: 9080.008279 | CG51: 6993.142732 | CH51: 5944.287597 | CJ51: 1961 | CK51: ='Compile Data'!E481 -> 5656.096621 | CL51: ='Compile Data'!E482 -> 8515.897049 | CM51: ='Compile Data'!E483 -> 14436.1844 | CN51: ='Compile Data'!E484 -> 6643.940918 | CO51: ='Compile Data'!E485 -> 22145.86816 | CP51: ='Compile Data'!E486 -> 15475.79227 | CQ51: ='Compile Data'!E487 -> 7035.586472 | CR51: ='Compile Data'!E488 -> 5663.620172 | CS51: ='Compile Data'!E489 -> 8145.536431 | CT51: ='Compile Data'!E490 -> 9109.368466 | CU51: ='Compile Data'!E491 -> 6097.628846 | CV51: ='Compile Data'!E492 -> 4616.987891 | CX51: 8962.593007 | CY51: 8853.086344 | CZ51: 9461.875642 | DB51: 13443.53656 | DC51: 5874.101467 | DD51: 8813.029747 | DE51: 14408.66449 | DF51: 9080.133837 | DG51: 6992.380408 | DH51: 5931.005594 | DJ51: 1961 | DK51: ='Compile Data'!F481 ->  | DL51: ='Compile Data'!F482 ->  | DM51: ='Compile Data'!F483 ->  | DN51: ='Compile Data'!F484 ->  | DO51: ='Compile Data'!F485 ->  | DP51: ='Compile Data'!F486 ->  | DQ51: ='Compile Data'!F487 ->  | DR51: ='Compile Data'!F488 ->  | DS51: ='Compile Data'!F489 ->  | DT51: ='Compile Data'!F490 ->  | DU51: ='Compile Data'!F491 ->  | DV51: ='Compile Data'!F492 -> 
A52: 1925-01-31 | B52: =INDIRECT(CONCATENATE("'",B$1,"'!",B$4,(YEAR($A52)-1921)*12+MONTH($A52)+3+IF(ISNUMBER(FIND("PRV",B$6)),1,0)))*IF(AND(B$3>0,TRIM(B$9)="CFS"),Conv_Flags!$C52,1) -> 6012.204451 | C52: =INDIRECT(CONCATENATE("'",C$1,"'!",C$4,(YEAR($A52)-1921)*12+MONTH($A52)+3+IF(ISNUMBER(FIND("PRV",C$6)),1,0)))*IF(AND(C$3>0,TRIM(C$9)="CFS"),Conv_Flags!$C52,1) -> 6027.586705 | D52: =INDIRECT(CONCATENATE("'",D$1,"'!",D$4,(YEAR($A52)-1921)*12+MONTH($A52)+3+IF(ISNUMBER(FIND("PRV",D$6)),1,0)))*IF(AND(D$3>0,TRIM(D$9)="CFS"),Conv_Flags!$C52,1) -> 6020.590983 | E52: =INDIRECT(CONCATENATE("'",E$1,"'!",E$4,(YEAR($A52)-1921)*12+MONTH($A52)+3+IF(ISNUMBER(FIND("PRV",E$6)),1,0)))*IF(AND(E$3>0,TRIM(E$9)="CFS"),Conv_Flags!$C52,1) -> 6018.570052 | F52: =INDIRECT(CONCATENATE("'",F$1,"'!",F$4,(YEAR($A52)-1921)*12+MONTH($A52)+3+IF(ISNUMBER(FIND("PRV",F$6)),1,0)))*IF(AND(F$3>0,TRIM(F$9)="CFS"),Conv_Flags!$C52,1) ->  | J52: 1962 | K52: =B493 -> 6143.001493 | L52: =B494 -> 6263.011456 | M52: =B495 -> 11532.89042 | N52: =B496 -> 7291.867571 | O52: =B497 -> 21022.28307 | P52: =B498 -> 13219.50058 | Q52: =B499 -> 6889.40045 | R52: =B500 -> 5389.876602 | S52: =B501 -> 4627.749763 | T52: =B502 -> 7795.913803 | U52: =B503 -> 5293.916836 | V52: =B504 -> 4654.397492 | X52: 9522.648433 | Y52: 9705.906706 | Z52: 8343.650795 | AB52: 11865.91062 | AC52: 8500.747141 | AD52: 7807.692736 | AE52: 13282.34702 | AF52: 7531.631848 | AG52: 5592.994474 | AH52: 8786.055111 | AJ52: 1962 | AK52: ='Compile Data'!C493 -> 6836.693828 | AL52: ='Compile Data'!C494 -> 6218.726617 | AM52: ='Compile Data'!C495 -> 9625.918864 | AN52: ='Compile Data'!C496 -> 7241.793678 | AO52: ='Compile Data'!C497 -> 20016.0756 | AP52: ='Compile Data'!C498 -> 13037.92487 | AQ52: ='Compile Data'!C499 -> 6898.852792 | AR52: ='Compile Data'!C500 -> 5085.177817 | AS52: ='Compile Data'!C501 -> 5409.707854 | AT52: ='Compile Data'!C502 -> 6519.174745 | AU52: ='Compile Data'!C503 -> 4641.804945 | AV52: ='Compile Data'!C504 -> 4754.815798 | AX52: 9316.732961 | AY52: 9492.163106 | AZ52: 8023.888951 | BB52: 11228.08793 | BC52: 8780.220991 | BD52: 7480.783247 | BE52: 12294.59605 | BF52: 7607.915834 | BG52: 5331.375836 | BH52: 8995.823351 | BJ52: 1962 | BK52: ='Compile Data'!D493 -> 6907.487504 | BL52: ='Compile Data'!D494 -> 6308.387397 | BM52: ='Compile Data'!D495 -> 9440.400564 | BN52: ='Compile Data'!D496 -> 7291.499097 | BO52: ='Compile Data'!D497 -> 20445.96961 | BP52: ='Compile Data'!D498 -> 13012.38887 | BQ52: ='Compile Data'!D499 -> 6875.363764 | BR52: ='Compile Data'!D500 -> 5318.713155 | BS52: ='Compile Data'!D501 -> 5409.707854 | BT52: ='Compile Data'!D502 -> 7502.489379 | BU52: ='Compile Data'!D503 -> 5247.08494 | BV52: ='Compile Data'!D504 -> 4736.655676 | BX52: 9357.037517 | BY52: 9492.232413 | BZ52: 8208.012317 | CB52: 11299.72911 | CC52: 8384.953254 | CD52: 7486.943641 | CE52: 12392.62309 | CF52: 7654.04341 | CG52: 5723.984462 | CH52: 8411.117953 | CJ52: 1962 | CK52: ='Compile Data'!E493 -> 6907.687664 | CL52: ='Compile Data'!E494 -> 6268.341228 | CM52: ='Compile Data'!E495 -> 9440.75756 | CN52: ='Compile Data'!E496 -> 7075.849612 | CO52: ='Compile Data'!E497 -> 20399.87951 | CP52: ='Compile Data'!E498 -> 13008.70217 | CQ52: ='Compile Data'!E499 -> 6865.581071 | CR52: ='Compile Data'!E500 -> 5414.161499 | CS52: ='Compile Data'!E501 -> 5409.707854 | CT52: ='Compile Data'!E502 -> 7482.079221 | CU52: ='Compile Data'!E503 -> 5208.014973 | CV52: ='Compile Data'!E504 -> 4705.734807 | CX52: 9351.475059 | CY52: 9508.533082 | CZ52: 8182.208098 | DB52: 11238.70602 | DC52: 8430.05386 | DD52: 7423.159016 | DE52: 12305.49556 | DF52: 7674.538148 | DG52: 5701.384214 | DH52: 8467.919746 | DJ52: 1962 | DK52: ='Compile Data'!F493 ->  | DL52: ='Compile Data'!F494 ->  | DM52: ='Compile Data'!F495 ->  | DN52: ='Compile Data'!F496 ->  | DO52: ='Compile Data'!F497 ->  | DP52: ='Compile Data'!F498 ->  | DQ52: ='Compile Data'!F499 ->  | DR52: ='Compile Data'!F500 ->  | DS52: ='Compile Data'!F501 ->  | DT52: ='Compile Data'!F502 ->  | DU52: ='Compile Data'!F503 ->  | DV52: ='Compile Data'!F504 -> 
A53: 1925-02-28 | B53: =INDIRECT(CONCATENATE("'",B$1,"'!",B$4,(YEAR($A53)-1921)*12+MONTH($A53)+3+IF(ISNUMBER(FIND("PRV",B$6)),1,0)))*IF(AND(B$3>0,TRIM(B$9)="CFS"),Conv_Flags!$C53,1) -> 25251.20436 | C53: =INDIRECT(CONCATENATE("'",C$1,"'!",C$4,(YEAR($A53)-1921)*12+MONTH($A53)+3+IF(ISNUMBER(FIND("PRV",C$6)),1,0)))*IF(AND(C$3>0,TRIM(C$9)="CFS"),Conv_Flags!$C53,1) -> 24767.58935 | D53: =INDIRECT(CONCATENATE("'",D$1,"'!",D$4,(YEAR($A53)-1921)*12+MONTH($A53)+3+IF(ISNUMBER(FIND("PRV",D$6)),1,0)))*IF(AND(D$3>0,TRIM(D$9)="CFS"),Conv_Flags!$C53,1) -> 24766.45648 | E53: =INDIRECT(CONCATENATE("'",E$1,"'!",E$4,(YEAR($A53)-1921)*12+MONTH($A53)+3+IF(ISNUMBER(FIND("PRV",E$6)),1,0)))*IF(AND(E$3>0,TRIM(E$9)="CFS"),Conv_Flags!$C53,1) -> 24766.10274 | F53: =INDIRECT(CONCATENATE("'",F$1,"'!",F$4,(YEAR($A53)-1921)*12+MONTH($A53)+3+IF(ISNUMBER(FIND("PRV",F$6)),1,0)))*IF(AND(F$3>0,TRIM(F$9)="CFS"),Conv_Flags!$C53,1) ->  | J53: 1963 | K53: =B505 -> 15553.92709 | L53: =B506 -> 6149.840746 | M53: =B507 -> 16383.10719 | N53: =B508 -> 7089.949791 | O53: =B509 -> 23423.30014 | P53: =B510 -> 12854.04 | Q53: =B511 -> 25103.87995 | R53: =B512 -> 5672.260661 | S53: =B513 -> 5133.295161 | T53: =B514 -> 8775.488575 | U53: =B515 -> 4529.826366 | V53: =B516 -> 8200.862557 | X53: 10719.22892 | Y53: 9534.158747 | Z53: 11572.48152 | AB53: 13180.04757 | AC53: 6385.240663 | AD53: 11294.2062 | AE53: 15632.11904 | AF53: 12190.86894 | AG53: 6659.868165 | AH53: 9383.083051 | AJ53: 1963 | AK53: ='Compile Data'!C505 -> 16944.04223 | AL53: ='Compile Data'!C506 -> 5288.612025 | AM53: ='Compile Data'!C507 -> 15962.81318 | AN53: ='Compile Data'!C508 -> 6862.156494 | AO53: ='Compile Data'!C509 -> 22500.87452 | AP53: ='Compile Data'!C510 -> 12128.22875 | AQ53: ='Compile Data'!C511 -> 24827.36718 | AR53: ='Compile Data'!C512 -> 5682.806614 | AS53: ='Compile Data'!C513 -> 5118.461438 | AT53: ='Compile Data'!C514 -> 8766.231604 | AU53: ='Compile Data'!C515 -> 4529.826366 | AV53: ='Compile Data'!C516 -> 8264.868119 | AX53: 10504.877 | AY53: 9393.199275 | AZ53: 11406.35738 | BB53: 12548.53699 | BC53: 6417.890822 | BD53: 11264.40598 | BE53: 15108.61473 | BF53: 11939.216 | BG53: 6669.846882 | BH53: 9334.456019 | BJ53: 1963 | BK53: ='Compile Data'!D505 -> 15171.11915 | BL53: ='Compile Data'!D506 -> 5325.579036 | BM53: ='Compile Data'!D507 -> 15947.87969 | BN53: ='Compile Data'!D508 -> 6862.156494 | BO53: ='Compile Data'!D509 -> 22497.65095 | BP53: ='Compile Data'!D510 -> 12116.87034 | BQ53: ='Compile Data'!D511 -> 24827.07296 | BR53: ='Compile Data'!D512 -> 5682.066226 | BS53: ='Compile Data'!D513 -> 5118.474524 | BT53: ='Compile Data'!D514 -> 8768.045354 | BU53: ='Compile Data'!D515 -> 4529.826366 | BV53: ='Compile Data'!D516 -> 8222.089596 | BX53: 10503.34418 | BY53: 9391.967989 | BZ53: 11255.73589 | CB53: 12550.0273 | CC53: 6417.41613 | CD53: 10826.68359 | CE53: 15102.56238 | CF53: 11936.12101 | CG53: 6659.60896 | CH53: 9332.840352 | CJ53: 1963 | CK53: ='Compile Data'!E505 -> 15376.4118 | CL53: ='Compile Data'!E506 -> 5321.612632 | CM53: ='Compile Data'!E507 -> 15949.96556 | CN53: ='Compile Data'!E508 -> 6862.156494 | CO53: ='Compile Data'!E509 -> 22498.26891 | CP53: ='Compile Data'!E510 -> 12117.3477 | CQ53: ='Compile Data'!E511 -> 24827.29696 | CR53: ='Compile Data'!E512 -> 5682.369028 | CS53: ='Compile Data'!E513 -> 5118.560224 | CT53: ='Compile Data'!E514 -> 8768.03029 | CU53: ='Compile Data'!E515 -> 4758.218585 | CV53: ='Compile Data'!E516 -> 8002.644562 | CX53: 10500.85616 | CY53: 9389.351339 | CZ53: 11273.57356 | DB53: 12549.87026 | DC53: 6407.392786 | DD53: 10877.53662 | DE53: 15103.46365 | DF53: 11936.39348 | DG53: 6661.863415 | DH53: 9246.584533 | DJ53: 1963 | DK53: ='Compile Data'!F505 ->  | DL53: ='Compile Data'!F506 ->  | DM53: ='Compile Data'!F507 ->  | DN53: ='Compile Data'!F508 ->  | DO53: ='Compile Data'!F509 ->  | DP53: ='Compile Data'!F510 ->  | DQ53: ='Compile Data'!F511 ->  | DR53: ='Compile Data'!F512 ->  | DS53: ='Compile Data'!F513 ->  | DT53: ='Compile Data'!F514 ->  | DU53: ='Compile Data'!F515 ->  | DV53: ='Compile Data'!F516 -> 
A54: 1925-03-31 | B54: =INDIRECT(CONCATENATE("'",B$1,"'!",B$4,(YEAR($A54)-1921)*12+MONTH($A54)+3+IF(ISNUMBER(FIND("PRV",B$6)),1,0)))*IF(AND(B$3>0,TRIM(B$9)="CFS"),Conv_Flags!$C54,1) -> 7706.541462 | C54: =INDIRECT(CONCATENATE("'",C$1,"'!",C$4,(YEAR($A54)-1921)*12+MONTH($A54)+3+IF(ISNUMBER(FIND("PRV",C$6)),1,0)))*IF(AND(C$3>0,TRIM(C$9)="CFS"),Conv_Flags!$C54,1) -> 6495.15966 | D54: =INDIRECT(CONCATENATE("'",D$1,"'!",D$4,(YEAR($A54)-1921)*12+MONTH($A54)+3+IF(ISNUMBER(FIND("PRV",D$6)),1,0)))*IF(AND(D$3>0,TRIM(D$9)="CFS"),Conv_Flags!$C54,1) -> 6493.981427 | E54: =INDIRECT(CONCATENATE("'",E$1,"'!",E$4,(YEAR($A54)-1921)*12+MONTH($A54)+3+IF(ISNUMBER(FIND("PRV",E$6)),1,0)))*IF(AND(E$3>0,TRIM(E$9)="CFS"),Conv_Flags!$C54,1) -> 7739.177412 | F54: =INDIRECT(CONCATENATE("'",F$1,"'!",F$4,(YEAR($A54)-1921)*12+MONTH($A54)+3+IF(ISNUMBER(FIND("PRV",F$6)),1,0)))*IF(AND(F$3>0,TRIM(F$9)="CFS"),Conv_Flags!$C54,1) ->  | J54: 1964 | K54: =B517 -> 6425.033065 | L54: =B518 -> 13523.35353 | M54: =B519 -> 7899.457207 | N54: =B520 -> 9346.869298 | O54: =B521 -> 6945.538592 | P54: =B522 -> 5567.928478 | Q54: =B523 -> 6191.846131 | R54: =B524 -> 3592.30467 | S54: =B525 -> 5273.178094 | T54: =B526 -> 5057.378068 | U54: =B527 -> 5077.908994 | V54: =B528 -> 4653.921306 | X54: 6811.946463 | Y54: 8566.934314 | Z54: 6629.559786 | AB54: 8656.629421 | AC54: 4998.350325 | AD54: 9298.678275 | AE54: 8063.955032 | AF54: 5156.314343 | AG54: 5015.596615 | AH54: 6041.316845 | AJ54: 1964 | AK54: ='Compile Data'!C517 -> 6458.977979 | AL54: ='Compile Data'!C518 -> 13279.52196 | AM54: ='Compile Data'!C519 -> 7639.203024 | AN54: ='Compile Data'!C520 -> 9069.105784 | AO54: ='Compile Data'!C521 -> 6953.792485 | AP54: ='Compile Data'!C522 -> 5556.414942 | AQ54: ='Compile Data'!C523 -> 5728.336308 | AR54: ='Compile Data'!C524 -> 3670.362122 | AS54: ='Compile Data'!C525 -> 5718.061352 | AT54: ='Compile Data'!C526 -> 5206.48959 | AU54: ='Compile Data'!C527 -> 5186.099649 | AV54: ='Compile Data'!C528 -> 4878.2593 | AX54: 6881.408603 | AY54: 8418.5581 | AZ54: 6612.052041 | BB54: 8499.607639 | BC54: 5229.000956 | BD54: 9111.702187 | BE54: 7887.367098 | BF54: 5168.293681 | BG54: 5247.227473 | BH54: 6286.268024 | BJ54: 1964 | BK54: ='Compile Data'!D517 -> 6500.332427 | BL54: ='Compile Data'!D518 -> 13276.09903 | BM54: ='Compile Data'!D519 -> 7639.445856 | BN54: ='Compile Data'!D520 -> 9069.340307 | BO54: ='Compile Data'!D521 -> 6953.952885 | BP54: ='Compile Data'!D522 -> 5555.606397 | BQ54: ='Compile Data'!D523 -> 5725.083154 | BR54: ='Compile Data'!D524 -> 3676.29657 | BS54: ='Compile Data'!D525 -> 5729.687359 | BT54: ='Compile Data'!D526 -> 5218.342371 | BU54: ='Compile Data'!D527 -> 5215.871594 | BV54: ='Compile Data'!D528 -> 4896.253689 | BX54: 6876.152119 | BY54: 8413.12361 | BZ54: 6621.359304 | CB54: 8498.888896 | CC54: 5215.591642 | CD54: 9121.304406 | CE54: 7887.579683 | CF54: 5171.66837 | CG54: 5265.038753 | CH54: 6249.228142 | CJ54: 1964 | CK54: ='Compile Data'!E517 -> 6461.315211 | CL54: ='Compile Data'!E518 -> 13275.79383 | CM54: ='Compile Data'!E519 -> 7638.272139 | CN54: ='Compile Data'!E520 -> 9068.651972 | CO54: ='Compile Data'!E521 -> 6953.715569 | CP54: ='Compile Data'!E522 -> 5555.748256 | CQ54: ='Compile Data'!E523 -> 5725.664416 | CR54: ='Compile Data'!E524 -> 3675.748567 | CS54: ='Compile Data'!E525 -> 5728.420162 | CT54: ='Compile Data'!E526 -> 5213.374871 | CU54: ='Compile Data'!E527 -> 5208.485914 | CV54: ='Compile Data'!E528 -> 4921.068177 | CX54: 6870.526983 | CY54: 8567.510411 | CZ54: 6618.854923 | DB54: 8498.436353 | DC54: 5170.550722 | DD54: 9111.008287 | DE54: 7886.879893 | DF54: 5171.39535 | DG54: 5267.837281 | DH54: 6232.224073 | DJ54: 1964 | DK54: ='Compile Data'!F517 ->  | DL54: ='Compile Data'!F518 ->  | DM54: ='Compile Data'!F519 ->  | DN54: ='Compile Data'!F520 ->  | DO54: ='Compile Data'!F521 ->  | DP54: ='Compile Data'!F522 ->  | DQ54: ='Compile Data'!F523 ->  | DR54: ='Compile Data'!F524 ->  | DS54: ='Compile Data'!F525 ->  | DT54: ='Compile Data'!F526 ->  | DU54: ='Compile Data'!F527 ->  | DV54: ='Compile Data'!F528 -> 
A55: 1925-04-30 | B55: =INDIRECT(CONCATENATE("'",B$1,"'!",B$4,(YEAR($A55)-1921)*12+MONTH($A55)+3+IF(ISNUMBER(FIND("PRV",B$6)),1,0)))*IF(AND(B$3>0,TRIM(B$9)="CFS"),Conv_Flags!$C55,1) -> 13457.2059 | C55: =INDIRECT(CONCATENATE("'",C$1,"'!",C$4,(YEAR($A55)-1921)*12+MONTH($A55)+3+IF(ISNUMBER(FIND("PRV",C$6)),1,0)))*IF(AND(C$3>0,TRIM(C$9)="CFS"),Conv_Flags!$C55,1) -> 12569.59653 | D55: =INDIRECT(CONCATENATE("'",D$1,"'!",D$4,(YEAR($A55)-1921)*12+MONTH($A55)+3+IF(ISNUMBER(FIND("PRV",D$6)),1,0)))*IF(AND(D$3>0,TRIM(D$9)="CFS"),Conv_Flags!$C55,1) -> 12569.46022 | E55: =INDIRECT(CONCATENATE("'",E$1,"'!",E$4,(YEAR($A55)-1921)*12+MONTH($A55)+3+IF(ISNUMBER(FIND("PRV",E$6)),1,0)))*IF(AND(E$3>0,TRIM(E$9)="CFS"),Conv_Flags!$C55,1) -> 12504.04755 | F55: =INDIRECT(CONCATENATE("'",F$1,"'!",F$4,(YEAR($A55)-1921)*12+MONTH($A55)+3+IF(ISNUMBER(FIND("PRV",F$6)),1,0)))*IF(AND(F$3>0,TRIM(F$9)="CFS"),Conv_Flags!$C55,1) ->  | J55: 1965 | K55: =B529 -> 5263.220675 | L55: =B530 -> 8206.808553 | M55: =B531 -> 16566.4547 | N55: =B532 -> 25976.97482 | O55: =B533 -> 11375.28729 | P55: =B534 -> 7665.369882 | Q55: =B535 -> 21740.46535 | R55: =B536 -> 4885.106018 | S55: =B537 -> 4655.318619 | T55: =B538 -> 5423.253461 | U55: =B539 -> 4587.086296 | V55: =B540 -> 7588.00128 | X55: 9999.069847 | Y55: 9592.43347 | Z55: 10327.77891 | AB55: 13958.17905 | AC55: 6000.950216 | AD55: 14003.36469 | AE55: 17972.9056 | AF55: 9736.564967 | AG55: 5563.414914 | AH55: 9184.049338 | AJ55: 1965 | AK55: ='Compile Data'!C529 -> 5622.643919 | AL55: ='Compile Data'!C530 -> 8357.900852 | AM55: ='Compile Data'!C531 -> 16629.43693 | AN55: ='Compile Data'!C532 -> 25686.48849 | AO55: ='Compile Data'!C533 -> 8782.203739 | AP55: ='Compile Data'!C534 -> 7614.641272 | AQ55: ='Compile Data'!C535 -> 20247.64223 | AR55: ='Compile Data'!C536 -> 4885.106018 | AS55: ='Compile Data'!C537 -> 4655.318619 | AT55: ='Compile Data'!C538 -> 5405.622561 | AU55: ='Compile Data'!C539 -> 4587.086296 | AV55: ='Compile Data'!C540 -> 7584.775471 | AX55: 9565.297083 | AY55: 9318.823 | AZ55: 10004.90553 | BB55: 13414.13426 | BC55: 5999.279131 | BD55: 14074.11755 | BE55: 17032.70972 | BF55: 9350.677034 | BG55: 5558.200737 | BH55: 9065.563709 | BJ55: 1965 | BK55: ='Compile Data'!D529 -> 5534.649643 | BL55: ='Compile Data'!D530 -> 8316.781093 | BM55: ='Compile Data'!D531 -> 16621.96036 | BN55: ='Compile Data'!D532 -> 25685.82265 | BO55: ='Compile Data'!D533 -> 8781.128435 | BP55: ='Compile Data'!D534 -> 7614.482744 | BQ55: ='Compile Data'!D535 -> 20248.44398 | BR55: ='Compile Data'!D536 -> 4885.106018 | BS55: ='Compile Data'!D537 -> 4655.318619 | BT55: ='Compile Data'!D538 -> 5405.482724 | BU55: ='Compile Data'!D539 -> 4587.086296 | BV55: ='Compile Data'!D540 -> 7584.698754 | BX55: 9565.186738 | BY55: 9318.865734 | BZ55: 9993.413443 | CB55: 13404.03506 | CC55: 5999.261552 | CD55: 14039.80344 | CE55: 17029.63715 | CF55: 9350.83784 | CG55: 5558.146598 | CH55: 9065.551664 | CJ55: 1965 | CK55: ='Compile Data'!E529 -> 5382.098075 | CL55: ='Compile Data'!E530 -> 8393.505969 | CM55: ='Compile Data'!E531 -> 16619.84185 | CN55: ='Compile Data'!E532 -> 25686.16868 | CO55: ='Compile Data'!E533 -> 10700 | CP55: ='Compile Data'!E534 -> 7681.051349 | CQ55: ='Compile Data'!E535 -> 20278.07031 | CR55: ='Compile Data'!E536 -> 4885.106018 | CS55: ='Compile Data'!E537 -> 4655.318619 | CT55: ='Compile Data'!E538 -> 5416.232632 | CU55: ='Compile Data'!E539 -> 4587.086296 | CV55: ='Compile Data'!E540 -> 7618.235387 | CX55: 9736.928372 | CY55: 9330.782153 | CZ55: 10158.5596 | DB55: 13816.11357 | DC55: 6010.205626 | DD55: 14020.40364 | DE55: 17668.67018 | DF55: 9374.886573 | DG55: 5569.218234 | DH55: 9077.045015 | DJ55: 1965 | DK55: ='Compile Data'!F529 ->  | DL55: ='Compile Data'!F530 ->  | DM55: ='Compile Data'!F531 ->  | DN55: ='Compile Data'!F532 ->  | DO55: ='Compile Data'!F533 ->  | DP55: ='Compile Data'!F534 ->  | DQ55: ='Compile Data'!F535 ->  | DR55: ='Compile Data'!F536 ->  | DS55: ='Compile Data'!F537 ->  | DT55: ='Compile Data'!F538 ->  | DU55: ='Compile Data'!F539 ->  | DV55: ='Compile Data'!F540 -> 
A56: 1925-05-31 | B56: =INDIRECT(CONCATENATE("'",B$1,"'!",B$4,(YEAR($A56)-1921)*12+MONTH($A56)+3+IF(ISNUMBER(FIND("PRV",B$6)),1,0)))*IF(AND(B$3>0,TRIM(B$9)="CFS"),Conv_Flags!$C56,1) -> 3856.49176 | C56: =INDIRECT(CONCATENATE("'",C$1,"'!",C$4,(YEAR($A56)-1921)*12+MONTH($A56)+3+IF(ISNUMBER(FIND("PRV",C$6)),1,0)))*IF(AND(C$3>0,TRIM(C$9)="CFS"),Conv_Flags!$C56,1) -> 4456.49176 | D56: =INDIRECT(CONCATENATE("'",D$1,"'!",D$4,(YEAR($A56)-1921)*12+MONTH($A56)+3+IF(ISNUMBER(FIND("PRV",D$6)),1,0)))*IF(AND(D$3>0,TRIM(D$9)="CFS"),Conv_Flags!$C56,1) -> 4456.49176 | E56: =INDIRECT(CONCATENATE("'",E$1,"'!",E$4,(YEAR($A56)-1921)*12+MONTH($A56)+3+IF(ISNUMBER(FIND("PRV",E$6)),1,0)))*IF(AND(E$3>0,TRIM(E$9)="CFS"),Conv_Flags!$C56,1) -> 4456.49176 | F56: =INDIRECT(CONCATENATE("'",F$1,"'!",F$4,(YEAR($A56)-1921)*12+MONTH($A56)+3+IF(ISNUMBER(FIND("PRV",F$6)),1,0)))*IF(AND(F$3>0,TRIM(F$9)="CFS"),Conv_Flags!$C56,1) ->  | J56: 1966 | K56: =B541 -> 5827.763073 | L56: =B542 -> 14136.38366 | M56: =B543 -> 6127.828425 | N56: =B544 -> 17247.02713 | O56: =B545 -> 15225.59844 | P56: =B546 -> 18325.87101 | Q56: =B547 -> 10767.10557 | R56: =B548 -> 5012.07095 | S56: =B549 -> 8110.188386 | T56: =B550 -> 7364.095195 | U56: =B551 -> 4347.023069 | V56: =B552 -> 4519.760439 | X56: 10663.54605 | Y56: 11249.91189 | Z56: 9750.892946 | AB56: 14212.54173 | AC56: 4625.592357 | AD56: 10834.75057 | AE56: 12866.818 | AF56: 10553.80898 | AG56: 6085.266772 | AH56: 6316.918688 | AJ56: 1966 | AK56: ='Compile Data'!C541 -> 5825.975624 | AL56: ='Compile Data'!C542 -> 13785.94003 | AM56: ='Compile Data'!C543 -> 5722.764637 | AN56: ='Compile Data'!C544 -> 16821.97052 | AO56: ='Compile Data'!C545 -> 14689.03272 | AP56: ='Compile Data'!C546 -> 17521.25004 | AQ56: ='Compile Data'!C547 -> 10745.18361 | AR56: ='Compile Data'!C548 -> 5070.884118 | AS56: ='Compile Data'!C549 -> 8210.558108 | AT56: ='Compile Data'!C550 -> 7819.329886 | AU56: ='Compile Data'!C551 -> 4345.035495 | AV56: ='Compile Data'!C552 -> 4750.375832 | AX56: 10671.45046 | AY56: 11194.87124 | AZ56: 9609.025052 | BB56: 13708.19159 | BC56: 4771.939533 | BD56: 10539.1627 | BE56: 12411.25596 | BF56: 10386.96897 | BG56: 6281.32483 | BH56: 6521.218323 | BJ56: 1966 | BK56: ='Compile Data'!D541 -> 5825.999606 | BL56: ='Compile Data'!D542 -> 13785.95663 | BM56: ='Compile Data'!D543 -> 5722.714401 | BN56: ='Compile Data'!D544 -> 16822.0459 | BO56: ='Compile Data'!D545 -> 14689.05314 | BP56: ='Compile Data'!D546 -> 17521.26615 | BQ56: ='Compile Data'!D547 -> 10745.20427 | BR56: ='Compile Data'!D548 -> 5070.867708 | BS56: ='Compile Data'!D549 -> 8210.526905 | BT56: ='Compile Data'!D550 -> 7818.302346 | BU56: ='Compile Data'!D551 -> 4345.194222 | BV56: ='Compile Data'!D552 -> 4750.375832 | BX56: 10671.1813 | BY56: 11194.60511 | BZ56: 9608.958926 | CB56: 13708.20724 | CC56: 4770.513014 | CD56: 10539.17913 | CE56: 12411.27115 | CF56: 10386.96626 | CG56: 6281.099826 | CH56: 6520.423005 | CJ56: 1966 | CK56: ='Compile Data'!E541 -> 5825.295194 | CL56: ='Compile Data'!E542 -> 13787.60446 | CM56: ='Compile Data'!E543 -> 5722.971515 | CN56: ='Compile Data'!E544 -> 16822.70302 | CO56: ='Compile Data'!E545 -> 14689.71103 | CP56: ='Compile Data'!E546 -> 17521.7847 | CQ56: ='Compile Data'!E547 -> 10745.70277 | CR56: ='Compile Data'!E548 -> 5031.693172 | CS56: ='Compile Data'!E549 -> 8209.757374 | CT56: ='Compile Data'!E550 -> 7773.201703 | CU56: ='Compile Data'!E551 -> 4241.647133 | CV56: ='Compile Data'!E552 -> 4697.244217 | CX56: 10633.08294 | CY56: 11157.27678 | CZ56: 9589.109691 | DB56: 13708.95495 | DC56: 4737.288324 | DD56: 10539.64355 | DE56: 12411.79519 | DF56: 10377.2345 | DG56: 6230.462607 | DH56: 6579.84543 | DJ56: 1966 | DK56: ='Compile Data'!F541 ->  | DL56: ='Compile Data'!F542 ->  | DM56: ='Compile Data'!F543 ->  | DN56: ='Compile Data'!F544 ->  | DO56: ='Compile Data'!F545 ->  | DP56: ='Compile Data'!F546 ->  | DQ56: ='Compile Data'!F547 ->  | DR56: ='Compile Data'!F548 ->  | DS56: ='Compile Data'!F549 ->  | DT56: ='Compile Data'!F550 ->  | DU56: ='Compile Data'!F551 ->  | DV56: ='Compile Data'!F552 -> 
